Workbook

Sheet Sommaire des indicateurs
A1: Sommaire des indicateurs
A5: Indicateurs clés | D5: Indicateurs sectoriels | G5: Indicateurs de production électrique
A7: Consommations d'énergie finale | D7: Tous les secteurs | G7: Réseau interconnecté (RI)
A8: Consommation totale d'énergie finale par scénario | D8: Consommation d'énergie finale par énergie et par secteur | G8: Capacités installées sur le RI
A9: Consommation totale d'énergie finale par secteur | D9: Emissions de gaz à effet de serre par énergie et par secteur | G9: Emissions de GES dues à la production d'électricité sur le RI
A10: Consommation totale d'énergie finale par énergie | G10: Production d'électricité sur le RI
D11: Résidentiel | G11: Coûts par poste sur le RI
A12: Consommations d'énergie primaire | D12: Consommation d'énergie finale du secteur résidentiel | G12: Coûts par poste et par technologie sur le RI
A13: Consommation totale d'énergie primaire par scénario | D13: Consommation d'énergie finale du résidentiel par scénario
A14: Consommation totale d'énergie finale par type d'énergie | D14: Consommation d'énergie finale du résidentiel par énergie | G14: Mini-réseaux (MR)
D15: Emissions de gaz à effet de serre du secteur résidentiel | G15: Capacités installées sur les mini-réseaux
A16: Emissions de gaz à effet de serre | D16: Emissions de GES du résidentiel par scénario | G16: Production d'électricité sur les mini-réseaux
A17: Emissions de GES par scénario | D17: Emissions de GES du résidentiel par énergie | G17: Emissions de GES dues à la production d'électricité sur les mini-réseaux
A18: Emissions de GES par secteur | D18: Répartition des modes de cuisson | G18: Coûts par poste sur les mini-réseaux
A19: Emissions de GES par énergie finale | D19: Répartition des modes de cuisson | G19: Coûts par poste et par technologie sur les mini-réseaux
D20: Consommations d'énergie du secteur résidentiel, par usage
A21: Approvisionnement en électricité | D21: Consommation d'énergie de la cuisson, par énergie | G21: Autoconsommation
A22: Capacités installées de production électrique (tous types de réseaux hors production d'hydrogène) | D22: Consommations d'énergie du résidentiel, par usage | G22: Capacités de kits solaires installés
A23: Production d'électricité par source (hors électricité destinée à la production d'hydrogène) | D23: Consommation d'énergie (secteur résidentiel) par habitant | G23: Production d'électricité pour l'autoconsommation
A24: Consommation d'énergie primaire pour la production d'électricité, par type d'énergie | D24: Consommation d'électricité (secteur résidentiel) par habitant | G24: Coûts des kits solaires
A26: Comparaison de la consommation et de la production d'énergie en Mauritanie | D26: Transports
A27: Comparaison de la consommation et de la production d'énergie en Mauritanie | D27: Consommation d'énergie finale des transports, par scénario
D28: Consommation d'énergie finale des transports, par type de mobilité
D29: Consommation d'énergie finale du secteur des transports, par énergie
D31: Industrie
D32: Consommation d'énergie finale de l'industrie
D33: Consommation d'énergie finale de l'industrie par scénario
D34: Consommation d'énergie finale de l'industrie par sous-secteur
D35: Consommation d'énergie finale de l'industrie, par énergie
D37: Consommation d'énergie finale des mines
D38: Consommation d'énergie finale des mines par scénario
D39: Consommation d'énergie finale des mines, par énergie
D41: Consommation d'énergie finale de la pêche
D42: Consommation d'énergie finale de la pêche par scénario
D43: Consommation d'énergie finale de la pêche par sous-secteur
D44: Consommation d'énergie finale de la pêche, par énergie
D46: Approvisionnement en biomasse
D47: Potentiels durables d'approvisionnement en biomasse
D48: Potentiel durable d'approvisionnement en biomasse, par scénario
D49: Potentiel durable d'approvisionnement en biomasse, par origine
D50: Utilisation de la biomasse
D51: Comparaison entre le potentiel d'approvisionnement en biomasse durable et la demande en biomasse
D53: Secteur électrique
D54: Consommation d'électricité par secteur (hors demande d'électricité pour la production d'hydrogène)
D55: Capacités installées par scénario (hors capacités propres des mines et capacités destinées à la production d'hydrogène)
D56: Production d'électricité par scénario (hors autoproduction des sites miniers et production destinée à la production d'hydrogène)
D57: Emissions de GES liées à la production d'électricité, par scénario (hors autoproduction des sites miniers)
D58: Coûts du système électrique
D59: Coûts totaux annualisés du secteur électrique par scénario (hors autoproduction des sites miniers et production d'hydrogène)
D60: Répartition des coûts du systèmes électrique par type de coûts (hors autoproduction des sites miniers et production d'hydrogène)
D61: Répartition des coûts du systèmes électrique par technologie (hors autoproduction des sites miniers et production d'hydrogène)
D62: LCOE (hors autoproduction des sites miniers et production d'hydrogène)
D64: Production d'hydrogène
D65: Production d'hydrogène par scénario
D66: Comparaison entre la production d'électricité sur le RI et la consommation d'électricité pour la production d'hydrogène
D67: Capacités installées pour la production d'hydrogène
D68: Capacités renouvelables installées pour la production d'hydrogène, par scénario
D69: Capacités renouvelables installées pour la production d'hydrogène, par technologie
D71: Production de GNL
D72: Production de GNL par scénario
D73: Emissions de GES liées à la production de GNL, par scénario

Sheet Infos
B2: CEPIA
C4: CEPIA is an Excel based tool that enables an easy evaluation of energy and climate scenarios, using various economic and environmental indicators
C6: The tool is entirely based on a library of possible levers and the assessment of their environmental impacts and costs. It allows to forecast the effect of levers on the different economic and energy sectors so one can evaluate the different impacts and define operational goals (e.g. switch to LPG stove for cooking, increased penetration of renewables etc).
C8: This version of the tool is tailored to the context of the demo site countries while maintaining a standardized, adaptable framework that allows modeling for a wide range of contexts.
C10: This tool has been developped by Artelys, with the support of EMERGE partners for the context adaptation.
B20: Structure of the tool
C22: Category | D22: Tab name | E22: Description
C23: Indicators | D23: Key indicators | E23: Key indicators for Cambodia energy sector, including total energy consumption, greenhouse gases emissions and power generation mix
D24: Sectorial indicators | E24: Detailed sectoral indicators
D25: Electricity generation indicators | E25: Detailed indicators for power generation
C26: User defined scenario | E26: Hypothèses utilisées pour définir les "scénarios définis par l'utilisateur", basés sur la combinaison de l'ambition des autres scénarios préconfigurés.
C27: Scenarios hypotheses | D27: Context var. | E27: Definition of the variable of context (general contextual assumptions which are not differentiated between scenarios)
D28: Action var. | E28: Definition of the variable of context (assumptions which are differentiated between scenarios)
D29: Databook | E29: List of sources used for the different var. of context and actions
C30: Calculation tabs | D30: Residential | E30: Calculation of Residential energy demand
D31: Transport | E31: Calculation of transport energy demand
D32: Industry | E32: Calculation of Industry energy demand
D33: Agriculture | E33: Calculation of Agriculture energy demand
D34: Biomass supply | E34: Calculation of biomass supply
D35: Hydrogen production | E35: Calculation of hydrogen production
D36: Natural gas production | E36: Calculation of natural gas production and emissions
D37: Interconnected network | E37: Calculation of total demand, electricity generation, installed capacities, costs and GHG emissions on the interconnected network.
D38: Mini-grids | E38: Calculation of total demand, electricity generation, installed capacities, costs and GHG emissions on mini-grids.
D39: Self consumption | E39: Calculation of total demand, electricity generation, installed capacities and costs for self consumption.
B42: Contact
C44: Artelys
C45: alexis.godefroy@artelys.com
C46: claire.lucas@artelys.com
C47: emma.moulan@artelys.com

Sheet Key indicators
A1: Scenario choice | C1: A1 | E1: Retour sommaire
A4: Final energy consumption
B6: Total final energy consumption
G9: =Scenario1 -> A1 | N9: =Scenario2 -> A2 | U9: =Scenario3 -> B1
G10: =Scenario1 -> A1 | H10: A1 | I10: A1 | J10: A1 | K10: A1 | L10: A1 | M10: A1 | N10: =Scenario2 -> A2 | O10: A2 | P10: A2 | Q10: A2 | R10: A2 | S10: A2 | T10: A2 | U10: =Scenario3 -> B1 | V10: B1 | W10: B1 | X10: B1 | Y10: B1 | Z10: B1 | AA10: B1
G11: =G10&G12 -> A12024 | H11: A12030 | I11: A12035 | J11: A12040 | K11: A12045 | L11: A12050 | M11: A12055 | N11: A22024 | O11: A22030 | P11: A22035 | Q11: A22040 | R11: A22045 | S11: A22050 | T11: A22055 | U11: B12024 | V11: B12030 | W11: B12035 | X11: B12040 | Y11: B12045 | Z11: B12050 | AA11: B12055
F12: Sector | G12: ='%User_input%'!B10 -> 2024 | H12: ='%User_input%'!C10 -> 2030 | I12: ='%User_input%'!D10 -> 2035 | J12: ='%User_input%'!E10 -> 2040 | K12: ='%User_input%'!F10 -> 2045 | L12: ='%User_input%'!G10 -> 2050 | M12: ='%User_input%'!H10 -> 2055 | N12: ='%User_input%'!B10 -> 2024 | O12: ='%User_input%'!C10 -> 2030 | P12: ='%User_input%'!D10 -> 2035 | Q12: ='%User_input%'!E10 -> 2040 | R12: ='%User_input%'!F10 -> 2045 | S12: ='%User_input%'!G10 -> 2050 | T12: ='%User_input%'!H10 -> 2055 | U12: ='%User_input%'!B10 -> 2024 | V12: ='%User_input%'!C10 -> 2030 | W12: ='%User_input%'!D10 -> 2035 | X12: ='%User_input%'!E10 -> 2040 | Y12: ='%User_input%'!F10 -> 2045 | Z12: ='%User_input%'!G10 -> 2050 | AA12: ='%User_input%'!H10 -> 2055
F13: =ResidentialSector -> Residential | G13: =VLOOKUP(CONCATENATE("Total final energy consumption (",ResidentialSector,")"),Residential!$B$4:$X$117,MATCH(G$11,Residential!$B$4:$X$4,0),0)+'Self consumption'!D20*GWh_to_ktoe -> 303848.9068 | H13: =VLOOKUP(CONCATENATE("Total final energy consumption (",ResidentialSector,")"),Residential!$B$4:$X$117,MATCH(H$11,Residential!$B$4:$X$4,0),0)+'Self consumption'!E20*GWh_to_ktoe -> 375.6960576 | I13: =VLOOKUP(CONCATENATE("Total final energy consumption (",ResidentialSector,")"),Residential!$B$4:$X$117,MATCH(I$11,Residential!$B$4:$X$4,0),0)+'Self consumption'!F20*GWh_to_ktoe -> 397.8595098 | J13: =VLOOKUP(CONCATENATE("Total final energy consumption (",ResidentialSector,")"),Residential!$B$4:$X$117,MATCH(J$11,Residential!$B$4:$X$4,0),0)+'Self consumption'!G20*GWh_to_ktoe -> 415.2685907 | K13: =VLOOKUP(CONCATENATE("Total final energy consumption (",ResidentialSector,")"),Residential!$B$4:$X$117,MATCH(K$11,Residential!$B$4:$X$4,0),0)+'Self consumption'!H20*GWh_to_ktoe -> 424.0267616 | L13: =VLOOKUP(CONCATENATE("Total final energy consumption (",ResidentialSector,")"),Residential!$B$4:$X$117,MATCH(L$11,Residential!$B$4:$X$4,0),0)+'Self consumption'!I20*GWh_to_ktoe -> 426.2831798 | M13: =VLOOKUP(CONCATENATE("Total final energy consumption (",ResidentialSector,")"),Residential!$B$4:$X$117,MATCH(M$11,Residential!$B$4:$X$4,0),0)+'Self consumption'!J20*GWh_to_ktoe -> 419.3678444 | N13: =VLOOKUP(CONCATENATE("Total final energy consumption (",ResidentialSector,")"),Residential!$B$4:$X$117,MATCH(N$11,Residential!$B$4:$X$4,0),0)+'Self consumption'!K20*GWh_to_ktoe -> 343.586583 | O13: =VLOOKUP(CONCATENATE("Total final energy consumption (",ResidentialSector,")"),Residential!$B$4:$X$117,MATCH(O$11,Residential!$B$4:$X$4,0),0)+'Self consumption'!L20*GWh_to_ktoe -> 391.905449 | P13: =VLOOKUP(CONCATENATE("Total final energy consumption (",ResidentialSector,")"),Residential!$B$4:$X$117,MATCH(P$11,Residential!$B$4:$X$4,0),0)+'Self consumption'!M20*GWh_to_ktoe -> 433.6774567 | Q13: =VLOOKUP(CONCATENATE("Total final energy consumption (",ResidentialSector,")"),Residential!$B$4:$X$117,MATCH(Q$11,Residential!$B$4:$X$4,0),0)+'Self consumption'!N20*GWh_to_ktoe -> 474.1547493 | R13: =VLOOKUP(CONCATENATE("Total final energy consumption (",ResidentialSector,")"),Residential!$B$4:$X$117,MATCH(R$11,Residential!$B$4:$X$4,0),0)+'Self consumption'!O20*GWh_to_ktoe -> 509.1178238 | S13: =VLOOKUP(CONCATENATE("Total final energy consumption (",ResidentialSector,")"),Residential!$B$4:$X$117,MATCH(S$11,Residential!$B$4:$X$4,0),0)+'Self consumption'!P20*GWh_to_ktoe -> 540.4385253 | T13: =VLOOKUP(CONCATENATE("Total final energy consumption (",ResidentialSector,")"),Residential!$B$4:$X$117,MATCH(T$11,Residential!$B$4:$X$4,0),0)+'Self consumption'!Q20*GWh_to_ktoe -> 571.1310614 | U13: =VLOOKUP(CONCATENATE("Total final energy consumption (",ResidentialSector,")"),Residential!$B$4:$X$117,MATCH(U$11,Residential!$B$4:$X$4,0),0)+'Self consumption'!R20*GWh_to_ktoe -> 343.586583 | V13: =VLOOKUP(CONCATENATE("Total final energy consumption (",ResidentialSector,")"),Residential!$B$4:$X$117,MATCH(V$11,Residential!$B$4:$X$4,0),0)+'Self consumption'!S20*GWh_to_ktoe -> 382.5754192 | W13: =VLOOKUP(CONCATENATE("Total final energy consumption (",ResidentialSector,")"),Residential!$B$4:$X$117,MATCH(W$11,Residential!$B$4:$X$4,0),0)+'Self consumption'!T20*GWh_to_ktoe -> 411.5157598 | X13: =VLOOKUP(CONCATENATE("Total final energy consumption (",ResidentialSector,")"),Residential!$B$4:$X$117,MATCH(X$11,Residential!$B$4:$X$4,0),0)+'Self consumption'!U20*GWh_to_ktoe -> 435.4206882 | Y13: =VLOOKUP(CONCATENATE("Total final energy consumption (",ResidentialSector,")"),Residential!$B$4:$X$117,MATCH(Y$11,Residential!$B$4:$X$4,0),0)+'Self consumption'!V20*GWh_to_ktoe -> 449.8359875 | Z13: =VLOOKUP(CONCATENATE("Total final energy consumption (",ResidentialSector,")"),Residential!$B$4:$X$117,MATCH(Z$11,Residential!$B$4:$X$4,0),0)+'Self consumption'!W20*GWh_to_ktoe -> 456.5908509 | AA13: =VLOOKUP(CONCATENATE("Total final energy consumption (",ResidentialSector,")"),Residential!$B$4:$X$117,MATCH(AA$11,Residential!$B$4:$X$4,0),0)+'Self consumption'!X20*GWh_to_ktoe -> 454.2903915
F14: =IndustrySector -> Industry | G14: =VLOOKUP("Total final energy consumption (Industry)",Industry!$C$4:$Y$394,MATCH(G$11,Industry!$C$4:$Y$4,0),0) -> 193.0242544 | H14: =VLOOKUP("Total final energy consumption (Industry)",Industry!$C$4:$Y$394,MATCH(H$11,Industry!$C$4:$Y$4,0),0) -> 235.9647681 | I14: =VLOOKUP("Total final energy consumption (Industry)",Industry!$C$4:$Y$394,MATCH(I$11,Industry!$C$4:$Y$4,0),0) -> 231.0516396 | J14: =VLOOKUP("Total final energy consumption (Industry)",Industry!$C$4:$Y$394,MATCH(J$11,Industry!$C$4:$Y$4,0),0) -> 356.7471303 | K14: =VLOOKUP("Total final energy consumption (Industry)",Industry!$C$4:$Y$394,MATCH(K$11,Industry!$C$4:$Y$4,0),0) -> 403.5506011 | L14: =VLOOKUP("Total final energy consumption (Industry)",Industry!$C$4:$Y$394,MATCH(L$11,Industry!$C$4:$Y$4,0),0) -> 419.0249223 | M14: =VLOOKUP("Total final energy consumption (Industry)",Industry!$C$4:$Y$394,MATCH(M$11,Industry!$C$4:$Y$4,0),0) -> 618.6944348 | N14: =VLOOKUP("Total final energy consumption (Industry)",Industry!$C$4:$Y$394,MATCH(N$11,Industry!$C$4:$Y$4,0),0) -> 193.0242544 | O14: =VLOOKUP("Total final energy consumption (Industry)",Industry!$C$4:$Y$394,MATCH(O$11,Industry!$C$4:$Y$4,0),0) -> 282.8098767 | P14: =VLOOKUP("Total final energy consumption (Industry)",Industry!$C$4:$Y$394,MATCH(P$11,Industry!$C$4:$Y$4,0),0) -> 282.8098767 | Q14: =VLOOKUP("Total final energy consumption (Industry)",Industry!$C$4:$Y$394,MATCH(Q$11,Industry!$C$4:$Y$4,0),0) -> 447.3478233 | R14: =VLOOKUP("Total final energy consumption (Industry)",Industry!$C$4:$Y$394,MATCH(R$11,Industry!$C$4:$Y$4,0),0) -> 494.4370679 | S14: =VLOOKUP("Total final energy consumption (Industry)",Industry!$C$4:$Y$394,MATCH(S$11,Industry!$C$4:$Y$4,0),0) -> 540.4258606 | T14: =VLOOKUP("Total final energy consumption (Industry)",Industry!$C$4:$Y$394,MATCH(T$11,Industry!$C$4:$Y$4,0),0) -> 798.8904026 | U14: =VLOOKUP("Total final energy consumption (Industry)",Industry!$C$4:$Y$394,MATCH(U$11,Industry!$C$4:$Y$4,0),0) -> 128.8726806 | V14: =VLOOKUP("Total final energy consumption (Industry)",Industry!$C$4:$Y$394,MATCH(V$11,Industry!$C$4:$Y$4,0),0) -> 230.4156699 | W14: =VLOOKUP("Total final energy consumption (Industry)",Industry!$C$4:$Y$394,MATCH(W$11,Industry!$C$4:$Y$4,0),0) -> 94.97432479 | X14: =VLOOKUP("Total final energy consumption (Industry)",Industry!$C$4:$Y$394,MATCH(X$11,Industry!$C$4:$Y$4,0),0) -> 92.61584499 | Y14: =VLOOKUP("Total final energy consumption (Industry)",Industry!$C$4:$Y$394,MATCH(Y$11,Industry!$C$4:$Y$4,0),0) -> 94.78881847 | Z14: =VLOOKUP("Total final energy consumption (Industry)",Industry!$C$4:$Y$394,MATCH(Z$11,Industry!$C$4:$Y$4,0),0) -> 91.31277014 | AA14: =VLOOKUP("Total final energy consumption (Industry)",Industry!$C$4:$Y$394,MATCH(AA$11,Industry!$C$4:$Y$4,0),0) -> 120.0870021
F15: =TransportSector -> Transport | G15: =VLOOKUP("Total final energy consumption (Transport)",Transport!$B$4:$X$177,MATCH(G$11,Transport!$B$4:$X$4,0),0) -> 249.6511216 | H15: =VLOOKUP("Total final energy consumption (Transport)",Transport!$B$4:$X$177,MATCH(H$11,Transport!$B$4:$X$4,0),0) -> 304.8289526 | I15: =VLOOKUP("Total final energy consumption (Transport)",Transport!$B$4:$X$177,MATCH(I$11,Transport!$B$4:$X$4,0),0) -> 354.8007376 | J15: =VLOOKUP("Total final energy consumption (Transport)",Transport!$B$4:$X$177,MATCH(J$11,Transport!$B$4:$X$4,0),0) -> 444.3138248 | K15: =VLOOKUP("Total final energy consumption (Transport)",Transport!$B$4:$X$177,MATCH(K$11,Transport!$B$4:$X$4,0),0) -> 381.5675497 | L15: =VLOOKUP("Total final energy consumption (Transport)",Transport!$B$4:$X$177,MATCH(L$11,Transport!$B$4:$X$4,0),0) -> 335.6963072 | M15: =VLOOKUP("Total final energy consumption (Transport)",Transport!$B$4:$X$177,MATCH(M$11,Transport!$B$4:$X$4,0),0) -> 326.8034951 | N15: =VLOOKUP("Total final energy consumption (Transport)",Transport!$B$4:$X$177,MATCH(N$11,Transport!$B$4:$X$4,0),0) -> 262.8361716 | O15: =VLOOKUP("Total final energy consumption (Transport)",Transport!$B$4:$X$177,MATCH(O$11,Transport!$B$4:$X$4,0),0) -> 327.3493801 | P15: =VLOOKUP("Total final energy consumption (Transport)",Transport!$B$4:$X$177,MATCH(P$11,Transport!$B$4:$X$4,0),0) -> 384.5202998 | Q15: =VLOOKUP("Total final energy consumption (Transport)",Transport!$B$4:$X$177,MATCH(Q$11,Transport!$B$4:$X$4,0),0) -> 527.4792561 | R15: =VLOOKUP("Total final energy consumption (Transport)",Transport!$B$4:$X$177,MATCH(R$11,Transport!$B$4:$X$4,0),0) -> 554.8706725 | S15: =VLOOKUP("Total final energy consumption (Transport)",Transport!$B$4:$X$177,MATCH(S$11,Transport!$B$4:$X$4,0),0) -> 683.0347903 | T15: =VLOOKUP("Total final energy consumption (Transport)",Transport!$B$4:$X$177,MATCH(T$11,Transport!$B$4:$X$4,0),0) -> 693.1256373 | U15: =VLOOKUP("Total final energy consumption (Transport)",Transport!$B$4:$X$177,MATCH(U$11,Transport!$B$4:$X$4,0),0) -> 234.1197498 | V15: =VLOOKUP("Total final energy consumption (Transport)",Transport!$B$4:$X$177,MATCH(V$11,Transport!$B$4:$X$4,0),0) -> 275.9427496 | W15: =VLOOKUP("Total final energy consumption (Transport)",Transport!$B$4:$X$177,MATCH(W$11,Transport!$B$4:$X$4,0),0) -> 320.2385891 | X15: =VLOOKUP("Total final energy consumption (Transport)",Transport!$B$4:$X$177,MATCH(X$11,Transport!$B$4:$X$4,0),0) -> 458.169254 | Y15: =VLOOKUP("Total final energy consumption (Transport)",Transport!$B$4:$X$177,MATCH(Y$11,Transport!$B$4:$X$4,0),0) -> 509.0797588 | Z15: =VLOOKUP("Total final energy consumption (Transport)",Transport!$B$4:$X$177,MATCH(Z$11,Transport!$B$4:$X$4,0),0) -> 593.5748056 | AA15: =VLOOKUP("Total final energy consumption (Transport)",Transport!$B$4:$X$177,MATCH(AA$11,Transport!$B$4:$X$4,0),0) -> 585.9094264
F16: =AgricultureSector -> Agriculture | G16: =VLOOKUP("Total final energy consumption (Agriculture)",Agriculture!$B$7:$X$472,MATCH(G$11,Agriculture!$B$4:$X$4,0),0) -> 11.85019567 | H16: =VLOOKUP("Total final energy consumption (Agriculture)",Agriculture!$B$7:$X$472,MATCH(H$11,Agriculture!$B$4:$X$4,0),0) -> 15.27116653 | I16: =VLOOKUP("Total final energy consumption (Agriculture)",Agriculture!$B$7:$X$472,MATCH(I$11,Agriculture!$B$4:$X$4,0),0) -> 70.51425453 | J16: =VLOOKUP("Total final energy consumption (Agriculture)",Agriculture!$B$7:$X$472,MATCH(J$11,Agriculture!$B$4:$X$4,0),0) -> 126.3116436 | K16: =VLOOKUP("Total final energy consumption (Agriculture)",Agriculture!$B$7:$X$472,MATCH(K$11,Agriculture!$B$4:$X$4,0),0) -> 188.7028013 | L16: =VLOOKUP("Total final energy consumption (Agriculture)",Agriculture!$B$7:$X$472,MATCH(L$11,Agriculture!$B$4:$X$4,0),0) -> 205.8296134 | M16: =VLOOKUP("Total final energy consumption (Agriculture)",Agriculture!$B$7:$X$472,MATCH(M$11,Agriculture!$B$4:$X$4,0),0) -> 204.9148151 | N16: =VLOOKUP("Total final energy consumption (Agriculture)",Agriculture!$B$7:$X$472,MATCH(N$11,Agriculture!$B$4:$X$4,0),0) -> 11.85019567 | O16: =VLOOKUP("Total final energy consumption (Agriculture)",Agriculture!$B$7:$X$472,MATCH(O$11,Agriculture!$B$4:$X$4,0),0) -> 15.53111346 | P16: =VLOOKUP("Total final energy consumption (Agriculture)",Agriculture!$B$7:$X$472,MATCH(P$11,Agriculture!$B$4:$X$4,0),0) -> 26.83834535 | Q16: =VLOOKUP("Total final energy consumption (Agriculture)",Agriculture!$B$7:$X$472,MATCH(Q$11,Agriculture!$B$4:$X$4,0),0) -> 38.85931994 | R16: =VLOOKUP("Total final energy consumption (Agriculture)",Agriculture!$B$7:$X$472,MATCH(R$11,Agriculture!$B$4:$X$4,0),0) -> 61.32102906 | S16: =VLOOKUP("Total final energy consumption (Agriculture)",Agriculture!$B$7:$X$472,MATCH(S$11,Agriculture!$B$4:$X$4,0),0) -> 89.18360537 | T16: =VLOOKUP("Total final energy consumption (Agriculture)",Agriculture!$B$7:$X$472,MATCH(T$11,Agriculture!$B$4:$X$4,0),0) -> 88.13438648 | U16: =VLOOKUP("Total final energy consumption (Agriculture)",Agriculture!$B$7:$X$472,MATCH(U$11,Agriculture!$B$4:$X$4,0),0) -> 11.85019567 | V16: =VLOOKUP("Total final energy consumption (Agriculture)",Agriculture!$B$7:$X$472,MATCH(V$11,Agriculture!$B$4:$X$4,0),0) -> 15.27116653 | W16: =VLOOKUP("Total final energy consumption (Agriculture)",Agriculture!$B$7:$X$472,MATCH(W$11,Agriculture!$B$4:$X$4,0),0) -> 24.48661091 | X16: =VLOOKUP("Total final energy consumption (Agriculture)",Agriculture!$B$7:$X$472,MATCH(X$11,Agriculture!$B$4:$X$4,0),0) -> 32.21543034 | Y16: =VLOOKUP("Total final energy consumption (Agriculture)",Agriculture!$B$7:$X$472,MATCH(Y$11,Agriculture!$B$4:$X$4,0),0) -> 46.18689851 | Z16: =VLOOKUP("Total final energy consumption (Agriculture)",Agriculture!$B$7:$X$472,MATCH(Z$11,Agriculture!$B$4:$X$4,0),0) -> 64.81759588 | AA16: =VLOOKUP("Total final energy consumption (Agriculture)",Agriculture!$B$7:$X$472,MATCH(AA$11,Agriculture!$B$4:$X$4,0),0) -> 64.05503592
F17: Autre demande électrique | G17: ='Sectorial indicators'!Q16 -> 136608.2297 | H17: ='Sectorial indicators'!R16 -> 49.9604595 | I17: ='Sectorial indicators'!S16 -> 81.05266755 | J17: ='Sectorial indicators'!T16 -> 126.3203297 | K17: ='Sectorial indicators'!U16 -> 176.4156902 | L17: ='Sectorial indicators'!V16 -> 243.9677305 | M17: ='Sectorial indicators'!W16 -> 306.6926448 | N17: ='Sectorial indicators'!X16 -> 30.83561239 | O17: ='Sectorial indicators'!Y16 -> 49.9604595 | P17: ='Sectorial indicators'!Z16 -> 81.05266755 | Q17: ='Sectorial indicators'!AA16 -> 126.3203297 | R17: ='Sectorial indicators'!AB16 -> 176.4156902 | S17: ='Sectorial indicators'!AC16 -> 243.9677305 | T17: ='Sectorial indicators'!AD16 -> 306.6926448 | U17: ='Sectorial indicators'!AE16 -> 30.83561239 | V17: ='Sectorial indicators'!AF16 -> 49.9604595 | W17: ='Sectorial indicators'!AG16 -> 81.05266755 | X17: ='Sectorial indicators'!AH16 -> 126.3203297 | Y17: ='Sectorial indicators'!AI16 -> 176.4156902 | Z17: ='Sectorial indicators'!AJ16 -> 243.9677305 | AA17: ='Sectorial indicators'!AK16 -> 306.6926448
F18: Production de GNL | G18: ='Sectorial indicators'!Q41 -> 0 | H18: ='Sectorial indicators'!R41 -> 73.95083331 | I18: ='Sectorial indicators'!S41 -> 591.6066665 | J18: ='Sectorial indicators'!T41 -> 591.6066665 | K18: ='Sectorial indicators'!U41 -> 591.6066665 | L18: ='Sectorial indicators'!V41 -> 591.6066665 | M18: ='Sectorial indicators'!W41 -> 591.6066665 | N18: ='Sectorial indicators'!X41 -> 0 | O18: ='Sectorial indicators'!Y41 -> 73.95083331 | P18: ='Sectorial indicators'!Z41 -> 591.6066665 | Q18: ='Sectorial indicators'!AA41 -> 591.6066665 | R18: ='Sectorial indicators'!AB41 -> 591.6066665 | S18: ='Sectorial indicators'!AC41 -> 591.6066665 | T18: ='Sectorial indicators'!AD41 -> 591.6066665 | U18: ='Sectorial indicators'!AE41 -> 0 | V18: ='Sectorial indicators'!AF41 -> 73.95083331 | W18: ='Sectorial indicators'!AG41 -> 591.6066665 | X18: ='Sectorial indicators'!AH41 -> 591.6066665 | Y18: ='Sectorial indicators'!AI41 -> 591.6066665 | Z18: ='Sectorial indicators'!AJ41 -> 591.6066665 | AA18: ='Sectorial indicators'!AK41 -> 591.6066665
F19: Total | G19: =SUM(G13:G18) -> 440911.6621 | H19: =SUM(H13:H18) -> 1055.672238 | I19: 1726.885476 | J19: 2060.568186 | K19: 2165.87007 | L19: 2222.40842 | M19: 2468.079901 | N19: 842.1328171 | O19: 1141.507112 | P19: 1800.505313 | Q19: 2205.768145 | R19: 2387.76895 | S19: 2688.657179 | T19: 3049.580799 | U19: 749.2648215 | V19: 1028.116298 | W19: 1523.874619 | X19: 1736.348214 | Y19: 1867.91382 | Z19: 2041.87042 | AA19: 2122.641167
B31: Total final energy consumption per sector
B33: Chosen scenario : | C33: =$C$1 -> A1 | G33: =C33 -> A1
F34: Sector | G34: ='%User_input%'!B10 -> 2024 | H34: ='%User_input%'!C10 -> 2030 | I34: ='%User_input%'!D10 -> 2035 | J34: ='%User_input%'!E10 -> 2040 | K34: ='%User_input%'!F10 -> 2045 | L34: ='%User_input%'!G10 -> 2050 | M34: ='%User_input%'!H10 -> 2055
C35: titre : | D35: =CONCATENATE(B31," for scenario ",C33) -> Total final energy consumption per sector for scenario A1 | F35: =ResidentialSector -> Residential | G35: =SUMIFS($G13:$AH13,$G$10:$AH$10,$C$33,$G$12:$AH$12,G$34) -> 303848.9068 | H35: 375.6960576 | I35: 397.8595098 | J35: 415.2685907 | K35: 424.0267616 | L35: 426.2831798 | M35: 419.3678444
F36: =IndustrySector -> Industry | G36: =SUMIFS($G14:$AH14,$G$10:$AH$10,$C$33,$G$12:$AH$12,G$34) -> 193.0242544 | H36: 235.9647681 | I36: 231.0516396 | J36: 356.7471303 | K36: 403.5506011 | L36: 419.0249223 | M36: 618.6944348
F37: =TransportSector -> Transport | G37: 249.6511216 | H37: 304.8289526 | I37: 354.8007376 | J37: 444.3138248 | K37: 381.5675497 | L37: 335.6963072 | M37: 326.8034951
F38: =AgricultureSector -> Agriculture | G38: =SUMIFS($G16:$AH16,$G$10:$AH$10,$C$33,$G$12:$AH$12,G$34) -> 11.85019567 | H38: 15.27116653 | I38: 70.51425453 | J38: 126.3116436 | K38: 188.7028013 | L38: 205.8296134 | M38: 204.9148151
F39: Other electrical demand | G39: 136608.2297 | H39: 49.9604595 | I39: 81.05266755 | J39: 126.3203297 | K39: 176.4156902 | L39: 243.9677305 | M39: 306.6926448
F40: LNG Production | G40: 0 | H40: 73.95083331 | I40: 591.6066665 | J40: 591.6066665 | K40: 591.6066665 | L40: 591.6066665 | M40: 591.6066665
B57: Total final energy consumption per energy
B59: Chosen scenario | C59: =$C$1 -> A1
C61: titre : | D61: =CONCATENATE(B57," for scenario ",C59) -> Total final energy consumption per energy for scenario A1
G62: =Scenario1 -> A1 | N62: =Scenario2 -> A2 | U62: =Scenario3 -> B1
G63: =Scenario1 -> A1 | H63: A1 | I63: A1 | J63: A1 | K63: A1 | L63: A1 | M63: A1 | N63: =Scenario2 -> A2 | O63: A2 | P63: A2 | Q63: A2 | R63: A2 | S63: A2 | T63: A2 | U63: =Scenario3 -> B1 | V63: B1 | W63: B1 | X63: B1 | Y63: B1 | Z63: B1 | AA63: B1
G64: =G63&G65 -> A12024 | H64: A12030 | I64: A12035 | J64: A12040 | K64: A12045 | L64: A12050 | M64: A12055 | N64: A22024 | O64: A22030 | P64: A22035 | Q64: A22040 | R64: A22045 | S64: A22050 | T64: A22055 | U64: B12024 | V64: B12030 | W64: B12035 | X64: B12040 | Y64: B12045 | Z64: B12050 | AA64: B12055
F65: Energy | G65: ='%User_input%'!B10 -> 2024 | H65: ='%User_input%'!C10 -> 2030 | I65: ='%User_input%'!D10 -> 2035 | J65: ='%User_input%'!E10 -> 2040 | K65: ='%User_input%'!F10 -> 2045 | L65: ='%User_input%'!G10 -> 2050 | M65: ='%User_input%'!H10 -> 2055 | N65: ='%User_input%'!B10 -> 2024 | O65: ='%User_input%'!C10 -> 2030 | P65: ='%User_input%'!D10 -> 2035 | Q65: ='%User_input%'!E10 -> 2040 | R65: ='%User_input%'!F10 -> 2045 | S65: ='%User_input%'!G10 -> 2050 | T65: ='%User_input%'!H10 -> 2055 | U65: ='%User_input%'!B10 -> 2024 | V65: ='%User_input%'!C10 -> 2030 | W65: ='%User_input%'!D10 -> 2035 | X65: ='%User_input%'!E10 -> 2040 | Y65: ='%User_input%'!F10 -> 2045 | Z65: ='%User_input%'!G10 -> 2050 | AA65: ='%User_input%'!H10 -> 2055
F66: =PowerEnergy -> Electricity | G66: =SUM('Sectorial indicators'!Q$15:Q$20)-'Sectorial indicators'!Q17 ->  | H66: =SUM('Sectorial indicators'!R$15:R$20)-'Sectorial indicators'!R17 ->  | I66: =SUM('Sectorial indicators'!S$15:S$20)-'Sectorial indicators'!S17 ->  | J66: =SUM('Sectorial indicators'!T$15:T$20)-'Sectorial indicators'!T17 ->  | K66: =SUM('Sectorial indicators'!U$15:U$20)-'Sectorial indicators'!U17 ->  | L66: =SUM('Sectorial indicators'!V$15:V$20)-'Sectorial indicators'!V17 ->  | M66: =SUM('Sectorial indicators'!W$15:W$20)-'Sectorial indicators'!W17 ->  | N66: =SUM('Sectorial indicators'!X$15:X$20)-'Sectorial indicators'!X17 ->  | O66: =SUM('Sectorial indicators'!Y$15:Y$20)-'Sectorial indicators'!Y17 ->  | P66: =SUM('Sectorial indicators'!Z$15:Z$20)-'Sectorial indicators'!Z17 ->  | Q66: =SUM('Sectorial indicators'!AA$15:AA$20)-'Sectorial indicators'!AA17 ->  | R66: =SUM('Sectorial indicators'!AB$15:AB$20)-'Sectorial indicators'!AB17 ->  | S66: =SUM('Sectorial indicators'!AC$15:AC$20)-'Sectorial indicators'!AC17 ->  | T66: =SUM('Sectorial indicators'!AD$15:AD$20)-'Sectorial indicators'!AD17 ->  | U66: =SUM('Sectorial indicators'!AE$15:AE$20)-'Sectorial indicators'!AE17 ->  | V66: =SUM('Sectorial indicators'!AF$15:AF$20)-'Sectorial indicators'!AF17 ->  | W66: =SUM('Sectorial indicators'!AG$15:AG$20)-'Sectorial indicators'!AG17 ->  | X66: =SUM('Sectorial indicators'!AH$15:AH$20)-'Sectorial indicators'!AH17 ->  | Y66: =SUM('Sectorial indicators'!AI$15:AI$20)-'Sectorial indicators'!AI17 ->  | Z66: =SUM('Sectorial indicators'!AJ$15:AJ$20)-'Sectorial indicators'!AJ17 ->  | AA66: =SUM('Sectorial indicators'!AK$15:AK$20)-'Sectorial indicators'!AK17 -> 
F67: =BiomassEnergy -> Wood | G67: =SUM('Sectorial indicators'!Q$21:Q$24) -> 127.8515223 | H67: =SUM('Sectorial indicators'!R$21:R$24) -> 122.2562039 | I67: =SUM('Sectorial indicators'!S$21:S$24) -> 109.7138189 | J67: =SUM('Sectorial indicators'!T$21:T$24) -> 95.05552231 | K67: =SUM('Sectorial indicators'!U$21:U$24) -> 77.79934904 | L67: =SUM('Sectorial indicators'!V$21:V$24) -> 58.94428554 | M67: =SUM('Sectorial indicators'!W$21:W$24) -> 39.42751025 | N67: =SUM('Sectorial indicators'!X$21:X$24) -> 127.8515223 | O67: =SUM('Sectorial indicators'!Y$21:Y$24) -> 128.2554288 | P67: =SUM('Sectorial indicators'!Z$21:Z$24) -> 121.6607058 | Q67: =SUM('Sectorial indicators'!AA$21:AA$24) -> 112.7894765 | R67: =SUM('Sectorial indicators'!AB$21:AB$24) -> 100.7443239 | S67: =SUM('Sectorial indicators'!AC$21:AC$24) -> 86.34256389 | T67: =SUM('Sectorial indicators'!AD$21:AD$24) -> 70.38991373 | U67: =SUM('Sectorial indicators'!AE$21:AE$24) -> 127.8515223 | V67: =SUM('Sectorial indicators'!AF$21:AF$24) -> 128.2554288 | W67: =SUM('Sectorial indicators'!AG$21:AG$24) -> 121.6607058 | X67: =SUM('Sectorial indicators'!AH$21:AH$24) -> 112.7894765 | Y67: =SUM('Sectorial indicators'!AI$21:AI$24) -> 100.7443239 | Z67: =SUM('Sectorial indicators'!AJ$21:AJ$24) -> 86.34256389 | AA67: =SUM('Sectorial indicators'!AK$21:AK$24) -> 70.38991373
F68: =LPGEnergy -> LPG | G68: =SUM('Sectorial indicators'!Q$25:Q$28) -> 75.54898716 | H68: =SUM('Sectorial indicators'!R$25:R$28) -> 90.21414369 | I68: =SUM('Sectorial indicators'!S$25:S$28) -> 103.3864751 | J68: =SUM('Sectorial indicators'!T$25:T$28) -> 115.6799502 | K68: =SUM('Sectorial indicators'!U$25:U$28) -> 126.8538167 | L68: =SUM('Sectorial indicators'!V$25:V$28) -> 136.3687105 | M68: =SUM('Sectorial indicators'!W$25:W$28) -> 137.5227438 | N68: =SUM('Sectorial indicators'!X$25:X$28) -> 75.54898716 | O68: =SUM('Sectorial indicators'!Y$25:Y$28) -> 90.70032903 | P68: =SUM('Sectorial indicators'!Z$25:Z$28) -> 104.8483196 | Q68: =SUM('Sectorial indicators'!AA$25:AA$28) -> 118.6267 | R68: =SUM('Sectorial indicators'!AB$25:AB$28) -> 131.9077655 | S68: =SUM('Sectorial indicators'!AC$25:AC$28) -> 144.125075 | T68: =SUM('Sectorial indicators'!AD$25:AD$28) -> 154.9269636 | U68: =SUM('Sectorial indicators'!AE$25:AE$28) -> 75.54898716 | V68: =SUM('Sectorial indicators'!AF$25:AF$28) -> 88.4842398 | W68: =SUM('Sectorial indicators'!AG$25:AG$28) -> 99.83930284 | X68: =SUM('Sectorial indicators'!AH$25:AH$28) -> 110.224836 | Y68: =SUM('Sectorial indicators'!AI$25:AI$28) -> 119.4889568 | Z68: =SUM('Sectorial indicators'!AJ$25:AJ$28) -> 127.1165131 | AA68: =SUM('Sectorial indicators'!AK$25:AK$28) -> 127.9281338
F69: =OilEnergy -> Oil products | G69: =SUM('Sectorial indicators'!Q$29:Q$32) -> 261.5013173 | H69: =SUM('Sectorial indicators'!R$29:R$32) -> 318.0210083 | I69: =SUM('Sectorial indicators'!S$29:S$32) -> 400.2140515 | J69: =SUM('Sectorial indicators'!T$29:T$32) -> 483.412358 | K69: =SUM('Sectorial indicators'!U$29:U$32) -> 408.7791123 | L69: =SUM('Sectorial indicators'!V$29:V$32) -> 263.4594528 | M69: =SUM('Sectorial indicators'!W$29:W$32) -> 185.5946722 | N69: =SUM('Sectorial indicators'!X$29:X$32) -> 274.6863673 | O69: =SUM('Sectorial indicators'!Y$29:Y$32) -> 327.8887293 | P69: =SUM('Sectorial indicators'!Z$29:Z$32) -> 360.1096108 | Q69: =SUM('Sectorial indicators'!AA$29:AA$32) -> 424.1825445 | R69: =SUM('Sectorial indicators'!AB$29:AB$32) -> 422.1477062 | S69: =SUM('Sectorial indicators'!AC$29:AC$32) -> 401.647326 | T69: =SUM('Sectorial indicators'!AD$29:AD$32) -> 248.5955177 | U69: =SUM('Sectorial indicators'!AE$29:AE$32) -> 245.9699455 | V69: =SUM('Sectorial indicators'!AF$29:AF$32) -> 278.1639067 | W69: =SUM('Sectorial indicators'!AG$29:AG$32) -> 307.1923278 | X69: =SUM('Sectorial indicators'!AH$29:AH$32) -> 403.0699935 | Y69: =SUM('Sectorial indicators'!AI$29:AI$32) -> 403.8561091 | Z69: =SUM('Sectorial indicators'!AJ$29:AJ$32) -> 341.0566088 | AA69: =SUM('Sectorial indicators'!AK$29:AK$32) -> 166.4077284
F70: =CharcoalEnergy -> Charcoal | G70: =SUM('Sectorial indicators'!Q$33:Q$36) ->  | H70: =SUM('Sectorial indicators'!R$33:R$36) ->  | I70: =SUM('Sectorial indicators'!S$33:S$36) ->  | J70: =SUM('Sectorial indicators'!T$33:T$36) ->  | K70: =SUM('Sectorial indicators'!U$33:U$36) ->  | L70: =SUM('Sectorial indicators'!V$33:V$36) ->  | M70: =SUM('Sectorial indicators'!W$33:W$36) ->  | N70: =SUM('Sectorial indicators'!X$33:X$36) ->  | O70: =SUM('Sectorial indicators'!Y$33:Y$36) ->  | P70: =SUM('Sectorial indicators'!Z$33:Z$36) ->  | Q70: =SUM('Sectorial indicators'!AA$33:AA$36) ->  | R70: =SUM('Sectorial indicators'!AB$33:AB$36) ->  | S70: =SUM('Sectorial indicators'!AC$33:AC$36) ->  | T70: =SUM('Sectorial indicators'!AD$33:AD$36) ->  | U70: =SUM('Sectorial indicators'!AE$33:AE$36) ->  | V70: =SUM('Sectorial indicators'!AF$33:AF$36) ->  | W70: =SUM('Sectorial indicators'!AG$33:AG$36) ->  | X70: =SUM('Sectorial indicators'!AH$33:AH$36) ->  | Y70: =SUM('Sectorial indicators'!AI$33:AI$36) ->  | Z70: =SUM('Sectorial indicators'!AJ$33:AJ$36) ->  | AA70: =SUM('Sectorial indicators'!AK$33:AK$36) -> 
F71: =NaturalGasEnergy -> Natural gas | G71: =SUM('Sectorial indicators'!Q$37:Q$41) ->  | H71: =SUM('Sectorial indicators'!R$37:R$41) ->  | I71: =SUM('Sectorial indicators'!S$37:S$41) ->  | J71: =SUM('Sectorial indicators'!T$37:T$41) ->  | K71: =SUM('Sectorial indicators'!U$37:U$41) ->  | L71: =SUM('Sectorial indicators'!V$37:V$41) ->  | M71: =SUM('Sectorial indicators'!W$37:W$41) ->  | N71: =SUM('Sectorial indicators'!X$37:X$41) ->  | O71: =SUM('Sectorial indicators'!Y$37:Y$41) ->  | P71: =SUM('Sectorial indicators'!Z$37:Z$41) ->  | Q71: =SUM('Sectorial indicators'!AA$37:AA$41) ->  | R71: =SUM('Sectorial indicators'!AB$37:AB$41) ->  | S71: =SUM('Sectorial indicators'!AC$37:AC$41) ->  | T71: =SUM('Sectorial indicators'!AD$37:AD$41) ->  | U71: =SUM('Sectorial indicators'!AE$37:AE$41) ->  | V71: =SUM('Sectorial indicators'!AF$37:AF$41) ->  | W71: =SUM('Sectorial indicators'!AG$37:AG$41) ->  | X71: =SUM('Sectorial indicators'!AH$37:AH$41) ->  | Y71: =SUM('Sectorial indicators'!AI$37:AI$41) ->  | Z71: =SUM('Sectorial indicators'!AJ$37:AJ$41) ->  | AA71: =SUM('Sectorial indicators'!AK$37:AK$41) -> 
F72: Hydrogène | G72: =SUM('Sectorial indicators'!Q$43:Q$46) ->  | H72: =SUM('Sectorial indicators'!R$43:R$46) ->  | I72: =SUM('Sectorial indicators'!S$43:S$46) ->  | J72: =SUM('Sectorial indicators'!T$43:T$46) ->  | K72: =SUM('Sectorial indicators'!U$43:U$46) ->  | L72: =SUM('Sectorial indicators'!V$43:V$46) ->  | M72: =SUM('Sectorial indicators'!W$43:W$46) ->  | N72: =SUM('Sectorial indicators'!X$43:X$46) ->  | O72: =SUM('Sectorial indicators'!Y$43:Y$46) ->  | P72: =SUM('Sectorial indicators'!Z$43:Z$46) ->  | Q72: =SUM('Sectorial indicators'!AA$43:AA$46) ->  | R72: =SUM('Sectorial indicators'!AB$43:AB$46) ->  | S72: =SUM('Sectorial indicators'!AC$43:AC$46) ->  | T72: =SUM('Sectorial indicators'!AD$43:AD$46) ->  | U72: =SUM('Sectorial indicators'!AE$43:AE$46) ->  | V72: =SUM('Sectorial indicators'!AF$43:AF$46) ->  | W72: =SUM('Sectorial indicators'!AG$43:AG$46) ->  | X72: =SUM('Sectorial indicators'!AH$43:AH$46) ->  | Y72: =SUM('Sectorial indicators'!AI$43:AI$46) ->  | Z72: =SUM('Sectorial indicators'!AJ$43:AJ$46) ->  | AA72: =SUM('Sectorial indicators'!AK$43:AK$46) -> 
F73: Total | G73: =SUM(G66:G72) -> 
G75: =C59 -> A1
F76: Energy | G76: ='%User_input%'!B10 -> 2024 | H76: ='%User_input%'!C10 -> 2030 | I76: ='%User_input%'!D10 -> 2035 | J76: ='%User_input%'!E10 -> 2040 | K76: ='%User_input%'!F10 -> 2045 | L76: ='%User_input%'!G10 -> 2050 | M76: ='%User_input%'!H10 -> 2055
F77: =PowerEnergy -> Electricity | G77: =SUMIFS($G66:$AH66,$G$63:$AH$63,$C$59,$G$65:$AH$65,G$34) -> 
F78: =BiomassEnergy -> Wood | G78: 127.8515223 | H78: 122.2562039 | I78: 109.7138189 | J78: 95.05552231 | K78: 77.79934904 | L78: 58.94428554 | M78: 39.42751025
F79: =LPGEnergy -> LPG | G79: 75.54898716 | H79: 90.21414369 | I79: 103.3864751 | J79: 115.6799502 | K79: 126.8538167 | L79: 136.3687105 | M79: 137.5227438
F80: =OilEnergy -> Oil products | G80: 261.5013173 | H80: 318.0210083 | I80: 400.2140515 | J80: 483.412358 | K80: 408.7791123 | L80: 263.4594528 | M80: 185.5946722
F81: =CharcoalEnergy -> Charcoal
F82: =NaturalGasEnergy -> Natural gas
F83: Hydrogène
A88: Primary energy consumption
B90: Total primary energy consumption
G93: =Scenario1 -> A1 | N93: =Scenario2 -> A2 | U93: =Scenario3 -> B1
D94: =B90 -> Total primary energy consumption | G94: =Scenario1 -> A1 | H94: A1 | I94: A1 | J94: A1 | K94: A1 | L94: A1 | M94: A1 | N94: =Scenario2 -> A2 | O94: A2 | P94: A2 | Q94: A2 | R94: A2 | S94: A2 | T94: A2 | U94: =Scenario3 -> B1 | V94: B1 | W94: B1 | X94: B1 | Y94: B1 | Z94: B1 | AA94: B1
G95: =G94&G96 -> A12024 | H95: A12030 | I95: A12035 | J95: A12040 | K95: A12045 | L95: A12050 | M95: A12055 | N95: A22024 | O95: A22030 | P95: A22035 | Q95: A22040 | R95: A22045 | S95: A22050 | T95: A22055 | U95: B12024 | V95: B12030 | W95: B12035 | X95: B12040 | Y95: B12045 | Z95: B12050 | AA95: B12055
F96: Energy | G96: ='%User_input%'!B10 -> 2024 | H96: ='%User_input%'!C10 -> 2030 | I96: ='%User_input%'!D10 -> 2035 | J96: ='%User_input%'!E10 -> 2040 | K96: ='%User_input%'!F10 -> 2045 | L96: ='%User_input%'!G10 -> 2050 | M96: ='%User_input%'!H10 -> 2055 | N96: ='%User_input%'!B10 -> 2024 | O96: ='%User_input%'!C10 -> 2030 | P96: ='%User_input%'!D10 -> 2035 | Q96: ='%User_input%'!E10 -> 2040 | R96: ='%User_input%'!F10 -> 2045 | S96: ='%User_input%'!G10 -> 2050 | T96: ='%User_input%'!H10 -> 2055 | U96: ='%User_input%'!B10 -> 2024 | V96: ='%User_input%'!C10 -> 2030 | W96: ='%User_input%'!D10 -> 2035 | X96: ='%User_input%'!E10 -> 2040 | Y96: ='%User_input%'!F10 -> 2045 | Z96: ='%User_input%'!G10 -> 2050 | AA96: ='%User_input%'!H10 -> 2055
F97: =BiomassEnergy -> Wood | G97: ='Approvisionnement en biomasse'!D26 -> 528.2382945 | H97: ='Approvisionnement en biomasse'!E26 -> 544.3747232 | I97: ='Approvisionnement en biomasse'!F26 -> 521.3832818 | J97: ='Approvisionnement en biomasse'!G26 -> 476.4261001 | K97: ='Approvisionnement en biomasse'!H26 -> 408.3613648 | L97: ='Approvisionnement en biomasse'!I26 -> 319.179913 | M97: ='Approvisionnement en biomasse'!J26 -> 214.6450775 | N97: ='Approvisionnement en biomasse'!K26 -> 528.2382945 | O97: ='Approvisionnement en biomasse'!L26 -> 558.2473441 | P97: ='Approvisionnement en biomasse'!M26 -> 549.1935427 | Q97: ='Approvisionnement en biomasse'!N26 -> 517.9351506 | R97: ='Approvisionnement en biomasse'!O26 -> 462.2245118 | S97: ='Approvisionnement en biomasse'!P26 -> 383.389322 | T97: ='Approvisionnement en biomasse'!Q26 -> 286.5692713 | U97: ='Approvisionnement en biomasse'!R26 -> 528.2382945 | V97: ='Approvisionnement en biomasse'!S26 -> 559.7920281 | W97: ='Approvisionnement en biomasse'!T26 -> 552.305783 | X97: ='Approvisionnement en biomasse'!U26 -> 522.5995942 | Y97: ='Approvisionnement en biomasse'!V26 -> 468.2903577 | Z97: ='Approvisionnement en biomasse'!W26 -> 390.6113093 | AA97: ='Approvisionnement en biomasse'!X26 -> 294.6055778
F98: =LPGEnergy -> LPG | G98: =SUM('Sectorial indicators'!Q$25:Q$28) -> 75.54898716 | H98: =SUM('Sectorial indicators'!R$25:R$28) -> 90.21414369 | I98: =SUM('Sectorial indicators'!S$25:S$28) -> 103.3864751 | J98: =SUM('Sectorial indicators'!T$25:T$28) -> 115.6799502 | K98: =SUM('Sectorial indicators'!U$25:U$28) -> 126.8538167 | L98: =SUM('Sectorial indicators'!V$25:V$28) -> 136.3687105 | M98: =SUM('Sectorial indicators'!W$25:W$28) -> 137.5227438 | N98: =SUM('Sectorial indicators'!X$25:X$28) -> 75.54898716 | O98: =SUM('Sectorial indicators'!Y$25:Y$28) -> 90.70032903 | P98: =SUM('Sectorial indicators'!Z$25:Z$28) -> 104.8483196 | Q98: =SUM('Sectorial indicators'!AA$25:AA$28) -> 118.6267 | R98: =SUM('Sectorial indicators'!AB$25:AB$28) -> 131.9077655 | S98: =SUM('Sectorial indicators'!AC$25:AC$28) -> 144.125075 | T98: =SUM('Sectorial indicators'!AD$25:AD$28) -> 154.9269636 | U98: =SUM('Sectorial indicators'!AE$25:AE$28) -> 75.54898716 | V98: =SUM('Sectorial indicators'!AF$25:AF$28) -> 88.4842398 | W98: =SUM('Sectorial indicators'!AG$25:AG$28) -> 99.83930284 | X98: =SUM('Sectorial indicators'!AH$25:AH$28) -> 110.224836 | Y98: =SUM('Sectorial indicators'!AI$25:AI$28) -> 119.4889568 | Z98: =SUM('Sectorial indicators'!AJ$25:AJ$28) -> 127.1165131 | AA98: =SUM('Sectorial indicators'!AK$25:AK$28) -> 127.9281338
F99: =OilEnergy -> Oil products | G99: =SUM('Sectorial indicators'!Q$29:Q$32)+SUM(G322:G322) -> 1624980.372 | H99: =SUM('Sectorial indicators'!R$29:R$32)+SUM(H322:H322) -> 423.8977888 | I99: =SUM('Sectorial indicators'!S$29:S$32)+SUM(I322:I322) -> 454.7402641 | J99: =SUM('Sectorial indicators'!T$29:T$32)+SUM(J322:J322) -> 552.4310449 | K99: =SUM('Sectorial indicators'!U$29:U$32)+SUM(K322:K322) -> 484.913061 | L99: =SUM('Sectorial indicators'!V$29:V$32)+SUM(L322:L322) -> 326.2311758 | M99: =SUM('Sectorial indicators'!W$29:W$32)+SUM(M322:M322) -> 277.8519395 | N99: =SUM('Sectorial indicators'!X$29:X$32)+SUM(N322:N322) -> 472.6481422 | O99: =SUM('Sectorial indicators'!Y$29:Y$32)+SUM(O322:O322) -> 439.5738722 | P99: =SUM('Sectorial indicators'!Z$29:Z$32)+SUM(P322:P322) -> 425.3496425 | Q99: =SUM('Sectorial indicators'!AA$29:AA$32)+SUM(Q322:Q322) -> 524.6257119 | R99: =SUM('Sectorial indicators'!AB$29:AB$32)+SUM(R322:R322) -> 533.0139753 | S99: =SUM('Sectorial indicators'!AC$29:AC$32)+SUM(S322:S322) -> 522.9940293 | T99: =SUM('Sectorial indicators'!AD$29:AD$32)+SUM(T322:T322) -> 427.4418863 | U99: =SUM('Sectorial indicators'!AE$29:AE$32)+SUM(U322:U322) -> 411.645195 | V99: =SUM('Sectorial indicators'!AF$29:AF$32)+SUM(V322:V322) -> 382.4906606 | W99: =SUM('Sectorial indicators'!AG$29:AG$32)+SUM(W322:W322) -> 330.1691489 | X99: =SUM('Sectorial indicators'!AH$29:AH$32)+SUM(X322:X322) -> 421.8502561 | Y99: =SUM('Sectorial indicators'!AI$29:AI$32)+SUM(Y322:Y322) -> 422.6090873 | Z99: =SUM('Sectorial indicators'!AJ$29:AJ$32)+SUM(Z322:Z322) -> 355.6485482 | AA99: =SUM('Sectorial indicators'!AK$29:AK$32)+SUM(AA322:AA322) -> 191.2485455
F100: =NaturalGasEnergy -> Natural gas | G100: =SUM('Sectorial indicators'!Q$37:Q$41)+G323 ->  | H100: =SUM('Sectorial indicators'!R$37:R$41)+H323 ->  | I100: =SUM('Sectorial indicators'!S$37:S$41)+I323 ->  | J100: =SUM('Sectorial indicators'!T$37:T$41)+J323 ->  | K100: =SUM('Sectorial indicators'!U$37:U$41)+K323 ->  | L100: =SUM('Sectorial indicators'!V$37:V$41)+L323 ->  | M100: =SUM('Sectorial indicators'!W$37:W$41)+M323 ->  | N100: =SUM('Sectorial indicators'!X$37:X$41)+N323 ->  | O100: =SUM('Sectorial indicators'!Y$37:Y$41)+O323 ->  | P100: =SUM('Sectorial indicators'!Z$37:Z$41)+P323 ->  | Q100: =SUM('Sectorial indicators'!AA$37:AA$41)+Q323 ->  | R100: =SUM('Sectorial indicators'!AB$37:AB$41)+R323 ->  | S100: =SUM('Sectorial indicators'!AC$37:AC$41)+S323 ->  | T100: =SUM('Sectorial indicators'!AD$37:AD$41)+T323 ->  | U100: =SUM('Sectorial indicators'!AE$37:AE$41)+U323 ->  | V100: =SUM('Sectorial indicators'!AF$37:AF$41)+V323 ->  | W100: =SUM('Sectorial indicators'!AG$37:AG$41)+W323 ->  | X100: =SUM('Sectorial indicators'!AH$37:AH$41)+X323 ->  | Y100: =SUM('Sectorial indicators'!AI$37:AI$41)+Y323 ->  | Z100: =SUM('Sectorial indicators'!AJ$37:AJ$41)+Z323 ->  | AA100: =SUM('Sectorial indicators'!AK$37:AK$41)+AA323 -> 
F101: =HYDROTechnology -> Hydroélectricité | G101: =G324 -> 33.9638865 | H101: 33.9638865 | I101: 33.9638865 | J101: 72.44424727 | K101: 72.44424727 | L101: 72.44424727 | M101: 72.44424727 | N101: 33.9638865 | O101: 33.9638865 | P101: 33.9638865 | Q101: 72.44424727 | R101: 72.44424727 | S101: 72.44424727 | T101: 72.44424727 | U101: 33.9638865 | V101: 33.9638865 | W101: 33.9638865 | X101: 72.44424727 | Y101: 72.44424727 | Z101: 72.44424727 | AA101: 72.44424727
F102: =SOLARTechnology -> Solaire PV | G102: =G325+'Hydrogen production'!D46*GWh_to_ktoe -> 34.36678859 | H102: =H325+'Hydrogen production'!E46*GWh_to_ktoe -> 249.4930891 | I102: =I325+'Hydrogen production'!F46*GWh_to_ktoe -> 1391.005881 | J102: =J325+'Hydrogen production'!G46*GWh_to_ktoe -> 2593.287543 | K102: =K325+'Hydrogen production'!H46*GWh_to_ktoe -> 3803.066185 | L102: =L325+'Hydrogen production'!I46*GWh_to_ktoe -> 5656.863422 | M102: =M325+'Hydrogen production'!J46*GWh_to_ktoe -> 7545.979527 | N102: =N325+'Hydrogen production'!K46*GWh_to_ktoe -> 34.36678859 | O102: =O325+'Hydrogen production'!L46*GWh_to_ktoe -> 245.8762896 | P102: =P325+'Hydrogen production'!M46*GWh_to_ktoe -> 1382.578192 | Q102: =Q325+'Hydrogen production'!N46*GWh_to_ktoe -> 2578.625876 | R102: =R325+'Hydrogen production'!O46*GWh_to_ktoe -> 3779.612462 | S102: =S325+'Hydrogen production'!P46*GWh_to_ktoe -> 5593.967744 | T102: =T325+'Hydrogen production'!Q46*GWh_to_ktoe -> 7411.350376 | U102: =U325+'Hydrogen production'!R46*GWh_to_ktoe -> 34.36678859 | V102: =V325+'Hydrogen production'!S46*GWh_to_ktoe -> 249.2085628 | W102: =W325+'Hydrogen production'!T46*GWh_to_ktoe -> 1376.927362 | X102: =X325+'Hydrogen production'!U46*GWh_to_ktoe -> 2556.852749 | Y102: =Y325+'Hydrogen production'!V46*GWh_to_ktoe -> 3750.623505 | Z102: =Z325+'Hydrogen production'!W46*GWh_to_ktoe -> 5579.411755 | AA102: =AA325+'Hydrogen production'!X46*GWh_to_ktoe -> 7418.741597
F103: Wind | G103: =G326+'Hydrogen production'!D47*GWh_to_ktoe -> 9.716251075 | H103: =H326+'Hydrogen production'!E47*GWh_to_ktoe -> 776.5802365 | I103: =I326+'Hydrogen production'!F47*GWh_to_ktoe -> 4517.284 | J103: =J326+'Hydrogen production'!G47*GWh_to_ktoe -> 8453.14415 | K103: =K326+'Hydrogen production'!H47*GWh_to_ktoe -> 12400.86694 | L103: =L326+'Hydrogen production'!I47*GWh_to_ktoe -> 18386.51131 | M103: =M326+'Hydrogen production'!J47*GWh_to_ktoe -> 24423.37906 | N103: =N326+'Hydrogen production'!K47*GWh_to_ktoe -> 9.716251075 | O103: =O326+'Hydrogen production'!L47*GWh_to_ktoe -> 771.1550371 | P103: =P326+'Hydrogen production'!M47*GWh_to_ktoe -> 4504.642466 | Q103: =Q326+'Hydrogen production'!N47*GWh_to_ktoe -> 8431.15165 | R103: =R326+'Hydrogen production'!O47*GWh_to_ktoe -> 12365.69595 | S103: =S326+'Hydrogen production'!P47*GWh_to_ktoe -> 18296.28762 | T103: =T326+'Hydrogen production'!Q47*GWh_to_ktoe -> 24225.95848 | U103: =U326+'Hydrogen production'!R47*GWh_to_ktoe -> 9.716251075 | V103: =V326+'Hydrogen production'!S47*GWh_to_ktoe -> 776.153447 | W103: =W326+'Hydrogen production'!T47*GWh_to_ktoe -> 4496.166222 | X103: =X326+'Hydrogen production'!U47*GWh_to_ktoe -> 8398.49196 | Y103: =Y326+'Hydrogen production'!V47*GWh_to_ktoe -> 12322.21252 | Z103: =Z326+'Hydrogen production'!W47*GWh_to_ktoe -> 18274.53346 | AA103: =AA326+'Hydrogen production'!X47*GWh_to_ktoe -> 24239.21442
F104: Total | G104: =SUM(G97:G103) -> 
D114: Primary energy consumption includes the primary energy used to produce electricity and hydrogen, as well as the conversion process between charcoal and wood (the total primary wood consumption then corresponds to the final energy consumption of wood plus the wood equivalent of charcoal). Please note that, for simplicity, the efficiency of processes used in oil refineries is not included here.
B118: Primary energy consumption per type of energy
B120: Chosen scenario : | C120: =$C$1 -> A1
D123: =CONCATENATE(B118," for scenario ",C120) -> Primary energy consumption per type of energy for scenario A1
G125: =C120 -> A1
F126: Energy | G126: ='%User_input%'!B10 -> 2024 | H126: ='%User_input%'!C10 -> 2030 | I126: ='%User_input%'!D10 -> 2035 | J126: ='%User_input%'!E10 -> 2040 | K126: ='%User_input%'!F10 -> 2045 | L126: ='%User_input%'!G10 -> 2050 | M126: ='%User_input%'!H10 -> 2055
F127: =BiomassEnergy -> Wood | G127: =SUMIFS($G97:$AH97,$G$63:$AH$63,$C$59,$G$65:$AH$65,G$34) -> 528.2382945 | H127: 544.3747232 | I127: 521.3832818 | J127: 476.4261001 | K127: 408.3613648 | L127: 319.179913 | M127: 214.6450775
F128: =LPGEnergy -> LPG | G128: 75.54898716 | H128: 90.21414369 | I128: 103.3864751 | J128: 115.6799502 | K128: 126.8538167 | L128: 136.3687105 | M128: 137.5227438
F129: =OilEnergy -> Oil products | G129: 1624980.372 | H129: 423.8977888 | I129: 454.7402641 | J129: 552.4310449 | K129: 484.913061 | L129: 326.2311758 | M129: 277.8519395
F130: =NaturalGasEnergy -> Natural gas
F131: =HYDROTechnology -> Hydroélectricité | G131: 33.9638865 | H131: 33.9638865 | I131: 33.9638865 | J131: 72.44424727 | K131: 72.44424727 | L131: 72.44424727 | M131: 72.44424727
F132: =SOLARTechnology -> Solaire PV | G132: 34.36678859 | H132: 249.4930891 | I132: 1391.005881 | J132: 2593.287543 | K132: 3803.066185 | L132: 5656.863422 | M132: 7545.979527
F133: Wind | G133: 9.716251075 | H133: 776.5802365 | I133: 4517.284 | J133: 8453.14415 | K133: 12400.86694 | L133: 18386.51131 | M133: 24423.37906
D143: Primary energy consumption includes the primary energy used to produce electricity and hydrogen, as well as the conversion process between charcoal and wood (the total primary wood consumption then corresponds to the final energy consumption of wood plus the wood equivalent of charcoal). Please note that, for simplicity, the efficiency of processes used in oil refineries is not included here.
A145: Green house gases emissions
B147: Total GHG emissions
G150: =Scenario1 -> A1 | N150: =Scenario2 -> A2 | U150: =Scenario3 -> B1
G151: =Scenario1 -> A1 | H151: A1 | I151: A1 | J151: A1 | K151: A1 | L151: A1 | M151: A1 | N151: =Scenario2 -> A2 | O151: A2 | P151: A2 | Q151: A2 | R151: A2 | S151: A2 | T151: A2 | U151: =Scenario3 -> B1 | V151: B1 | W151: B1 | X151: B1 | Y151: B1 | Z151: B1 | AA151: B1
G152: =G151&G153 -> A12024 | H152: =H151&H153 -> A12030 | I152: A12035 | J152: A12040 | K152: A12045 | L152: =L151&L153 -> A12050 | M152: =M151&M153 -> A12055 | N152: =N151&N153 -> A22024 | O152: =O151&O153 -> A22030 | P152: A22035 | Q152: =Q151&Q153 -> A22040 | R152: =R151&R153 -> A22045 | S152: A22050 | T152: A22055 | U152: =U151&U153 -> B12024 | V152: =V151&V153 -> B12030 | W152: B12035 | X152: B12040 | Y152: B12045 | Z152: B12050 | AA152: B12055
F153: Sector | G153: ='%User_input%'!B10 -> 2024 | H153: ='%User_input%'!C10 -> 2030 | I153: ='%User_input%'!D10 -> 2035 | J153: ='%User_input%'!E10 -> 2040 | K153: ='%User_input%'!F10 -> 2045 | L153: ='%User_input%'!G10 -> 2050 | M153: ='%User_input%'!H10 -> 2055 | N153: ='%User_input%'!B10 -> 2024 | O153: ='%User_input%'!C10 -> 2030 | P153: ='%User_input%'!D10 -> 2035 | Q153: ='%User_input%'!E10 -> 2040 | R153: ='%User_input%'!F10 -> 2045 | S153: ='%User_input%'!G10 -> 2050 | T153: ='%User_input%'!H10 -> 2055 | U153: ='%User_input%'!B10 -> 2024 | V153: ='%User_input%'!C10 -> 2030 | W153: ='%User_input%'!D10 -> 2035 | X153: ='%User_input%'!E10 -> 2040 | Y153: ='%User_input%'!F10 -> 2045 | Z153: ='%User_input%'!G10 -> 2050 | AA153: ='%User_input%'!H10 -> 2055
F154: =ResidentialSector -> Residential | G154: =VLOOKUP(CONCATENATE("Total GHG emissions (",ResidentialSector,")"),Residential!$B$4:$X$117,MATCH(G$152,Residential!$B$4:$X$4,0),0) -> 2705.135264 | H154: =VLOOKUP(CONCATENATE("Total GHG emissions (",ResidentialSector,")"),Residential!$B$4:$X$117,MATCH(H$152,Residential!$B$4:$X$4,0),0) -> 0.5505464553 | I154: =VLOOKUP(CONCATENATE("Total GHG emissions (",ResidentialSector,")"),Residential!$B$4:$X$117,MATCH(I$152,Residential!$B$4:$X$4,0),0) -> 0.619967929 | J154: =VLOOKUP(CONCATENATE("Total GHG emissions (",ResidentialSector,")"),Residential!$B$4:$X$117,MATCH(J$152,Residential!$B$4:$X$4,0),0) -> 0.7207167364 | K154: =VLOOKUP(CONCATENATE("Total GHG emissions (",ResidentialSector,")"),Residential!$B$4:$X$117,MATCH(K$152,Residential!$B$4:$X$4,0),0) -> 0.8137000869 | L154: =VLOOKUP(CONCATENATE("Total GHG emissions (",ResidentialSector,")"),Residential!$B$4:$X$117,MATCH(L$152,Residential!$B$4:$X$4,0),0) -> 0.8125862705 | M154: =VLOOKUP(CONCATENATE("Total GHG emissions (",ResidentialSector,")"),Residential!$B$4:$X$117,MATCH(M$152,Residential!$B$4:$X$4,0),0) -> 0.7489376784 | N154: =VLOOKUP(CONCATENATE("Total GHG emissions (",ResidentialSector,")"),Residential!$B$4:$X$117,MATCH(N$152,Residential!$B$4:$X$4,0),0) -> 0.5035383652 | O154: =VLOOKUP(CONCATENATE("Total GHG emissions (",ResidentialSector,")"),Residential!$B$4:$X$117,MATCH(O$152,Residential!$B$4:$X$4,0),0) -> 0.5875107216 | P154: =VLOOKUP(CONCATENATE("Total GHG emissions (",ResidentialSector,")"),Residential!$B$4:$X$117,MATCH(P$152,Residential!$B$4:$X$4,0),0) -> 0.6936232268 | Q154: =VLOOKUP(CONCATENATE("Total GHG emissions (",ResidentialSector,")"),Residential!$B$4:$X$117,MATCH(Q$152,Residential!$B$4:$X$4,0),0) -> 0.832575501 | R154: =VLOOKUP(CONCATENATE("Total GHG emissions (",ResidentialSector,")"),Residential!$B$4:$X$117,MATCH(R$152,Residential!$B$4:$X$4,0),0) -> 0.9672072017 | S154: =VLOOKUP(CONCATENATE("Total GHG emissions (",ResidentialSector,")"),Residential!$B$4:$X$117,MATCH(S$152,Residential!$B$4:$X$4,0),0) -> 1.099168777 | T154: =VLOOKUP(CONCATENATE("Total GHG emissions (",ResidentialSector,")"),Residential!$B$4:$X$117,MATCH(T$152,Residential!$B$4:$X$4,0),0) -> 1.231227869 | U154: =VLOOKUP(CONCATENATE("Total GHG emissions (",ResidentialSector,")"),Residential!$B$4:$X$117,MATCH(U$152,Residential!$B$4:$X$4,0),0) -> 0.4967019898 | V154: =VLOOKUP(CONCATENATE("Total GHG emissions (",ResidentialSector,")"),Residential!$B$4:$X$117,MATCH(V$152,Residential!$B$4:$X$4,0),0) -> 0.5475179323 | W154: =VLOOKUP(CONCATENATE("Total GHG emissions (",ResidentialSector,")"),Residential!$B$4:$X$117,MATCH(W$152,Residential!$B$4:$X$4,0),0) -> 0.6136960675 | X154: =VLOOKUP(CONCATENATE("Total GHG emissions (",ResidentialSector,")"),Residential!$B$4:$X$117,MATCH(X$152,Residential!$B$4:$X$4,0),0) -> 0.7108507859 | Y154: =VLOOKUP(CONCATENATE("Total GHG emissions (",ResidentialSector,")"),Residential!$B$4:$X$117,MATCH(Y$152,Residential!$B$4:$X$4,0),0) -> 0.7999609264 | Z154: =VLOOKUP(CONCATENATE("Total GHG emissions (",ResidentialSector,")"),Residential!$B$4:$X$117,MATCH(Z$152,Residential!$B$4:$X$4,0),0) -> 0.794793214 | AA154: =VLOOKUP(CONCATENATE("Total GHG emissions (",ResidentialSector,")"),Residential!$B$4:$X$117,MATCH(AA$152,Residential!$B$4:$X$4,0),0) -> 0.7316674272
F155: =IndustrySector -> Industry | G155: =VLOOKUP(CONCATENATE("Total GHG emissions (",IndustrySector,")"),Industry!$C$4:$Y$202,MATCH(G$152,Industry!$C$4:$Y$4,0),0) -> 0.4311309584 | H155: =VLOOKUP(CONCATENATE("Total GHG emissions (",IndustrySector,")"),Industry!$C$4:$Y$202,MATCH(H$152,Industry!$C$4:$Y$4,0),0) -> 0.5465584643 | I155: =VLOOKUP(CONCATENATE("Total GHG emissions (",IndustrySector,")"),Industry!$C$4:$Y$202,MATCH(I$152,Industry!$C$4:$Y$4,0),0) -> 0.5353832291 | J155: =VLOOKUP(CONCATENATE("Total GHG emissions (",IndustrySector,")"),Industry!$C$4:$Y$202,MATCH(J$152,Industry!$C$4:$Y$4,0),0) -> 0.8285377079 | K155: =VLOOKUP(CONCATENATE("Total GHG emissions (",IndustrySector,")"),Industry!$C$4:$Y$202,MATCH(K$152,Industry!$C$4:$Y$4,0),0) -> 0.9664093026 | L155: =VLOOKUP(CONCATENATE("Total GHG emissions (",IndustrySector,")"),Industry!$C$4:$Y$202,MATCH(L$152,Industry!$C$4:$Y$4,0),0) -> 0.8835677151 | M155: =VLOOKUP(CONCATENATE("Total GHG emissions (",IndustrySector,")"),Industry!$C$4:$Y$202,MATCH(M$152,Industry!$C$4:$Y$4,0),0) -> 1.135710932 | N155: =VLOOKUP(CONCATENATE("Total GHG emissions (",IndustrySector,")"),Industry!$C$4:$Y$202,MATCH(N$152,Industry!$C$4:$Y$4,0),0) -> 0.3555672371 | O155: =VLOOKUP(CONCATENATE("Total GHG emissions (",IndustrySector,")"),Industry!$C$4:$Y$202,MATCH(O$152,Industry!$C$4:$Y$4,0),0) -> 0.6944031434 | P155: =VLOOKUP(CONCATENATE("Total GHG emissions (",IndustrySector,")"),Industry!$C$4:$Y$202,MATCH(P$152,Industry!$C$4:$Y$4,0),0) -> 0.6688560335 | Q155: =VLOOKUP(CONCATENATE("Total GHG emissions (",IndustrySector,")"),Industry!$C$4:$Y$202,MATCH(Q$152,Industry!$C$4:$Y$4,0),0) -> 1.046158946 | R155: =VLOOKUP(CONCATENATE("Total GHG emissions (",IndustrySector,")"),Industry!$C$4:$Y$202,MATCH(R$152,Industry!$C$4:$Y$4,0),0) -> 1.141034329 | S155: =VLOOKUP(CONCATENATE("Total GHG emissions (",IndustrySector,")"),Industry!$C$4:$Y$202,MATCH(S$152,Industry!$C$4:$Y$4,0),0) -> 1.230592351 | T155: =VLOOKUP(CONCATENATE("Total GHG emissions (",IndustrySector,")"),Industry!$C$4:$Y$202,MATCH(T$152,Industry!$C$4:$Y$4,0),0) -> 1.793971924 | U155: =VLOOKUP(CONCATENATE("Total GHG emissions (",IndustrySector,")"),Industry!$C$4:$Y$202,MATCH(U$152,Industry!$C$4:$Y$4,0),0) -> 0.2341652409 | V155: =VLOOKUP(CONCATENATE("Total GHG emissions (",IndustrySector,")"),Industry!$C$4:$Y$202,MATCH(V$152,Industry!$C$4:$Y$4,0),0) -> 0.5337052465 | W155: =VLOOKUP(CONCATENATE("Total GHG emissions (",IndustrySector,")"),Industry!$C$4:$Y$202,MATCH(W$152,Industry!$C$4:$Y$4,0),0) -> 0.2200705469 | X155: =VLOOKUP(CONCATENATE("Total GHG emissions (",IndustrySector,")"),Industry!$C$4:$Y$202,MATCH(X$152,Industry!$C$4:$Y$4,0),0) -> 0.2150983523 | Y155: =VLOOKUP(CONCATENATE("Total GHG emissions (",IndustrySector,")"),Industry!$C$4:$Y$202,MATCH(Y$152,Industry!$C$4:$Y$4,0),0) -> 0.2269970499 | Z155: =VLOOKUP(CONCATENATE("Total GHG emissions (",IndustrySector,")"),Industry!$C$4:$Y$202,MATCH(Z$152,Industry!$C$4:$Y$4,0),0) -> 0.1925446707 | AA155: =VLOOKUP(CONCATENATE("Total GHG emissions (",IndustrySector,")"),Industry!$C$4:$Y$202,MATCH(AA$152,Industry!$C$4:$Y$4,0),0) -> 0.2238835938
F156: =TransportSector -> Transport | G156: =VLOOKUP("Total GHG emissions (Transport)",Transport!$B$4:$X$177,MATCH(G$152,Transport!$B$4:$X$4,0),0) -> 0.9386882173 | H156: =VLOOKUP("Total GHG emissions (Transport)",Transport!$B$4:$X$177,MATCH(H$152,Transport!$B$4:$X$4,0),0) -> 1.143640062 | I156: =VLOOKUP("Total GHG emissions (Transport)",Transport!$B$4:$X$177,MATCH(I$152,Transport!$B$4:$X$4,0),0) -> 1.303597289 | J156: =VLOOKUP("Total GHG emissions (Transport)",Transport!$B$4:$X$177,MATCH(J$152,Transport!$B$4:$X$4,0),0) -> 1.563140855 | K156: =VLOOKUP("Total GHG emissions (Transport)",Transport!$B$4:$X$177,MATCH(K$152,Transport!$B$4:$X$4,0),0) -> 1.240308186 | L156: =VLOOKUP("Total GHG emissions (Transport)",Transport!$B$4:$X$177,MATCH(L$152,Transport!$B$4:$X$4,0),0) -> 0.6895964944 | M156: =VLOOKUP("Total GHG emissions (Transport)",Transport!$B$4:$X$177,MATCH(M$152,Transport!$B$4:$X$4,0),0) -> 0.2579930738 | N156: =VLOOKUP("Total GHG emissions (Transport)",Transport!$B$4:$X$177,MATCH(N$152,Transport!$B$4:$X$4,0),0) -> 0.9882640053 | O156: =VLOOKUP("Total GHG emissions (Transport)",Transport!$B$4:$X$177,MATCH(O$152,Transport!$B$4:$X$4,0),0) -> 1.210154231 | P156: =VLOOKUP("Total GHG emissions (Transport)",Transport!$B$4:$X$177,MATCH(P$152,Transport!$B$4:$X$4,0),0) -> 1.379153451 | Q156: =VLOOKUP("Total GHG emissions (Transport)",Transport!$B$4:$X$177,MATCH(Q$152,Transport!$B$4:$X$4,0),0) -> 1.798180354 | R156: =VLOOKUP("Total GHG emissions (Transport)",Transport!$B$4:$X$177,MATCH(R$152,Transport!$B$4:$X$4,0),0) -> 1.831502331 | S156: =VLOOKUP("Total GHG emissions (Transport)",Transport!$B$4:$X$177,MATCH(S$152,Transport!$B$4:$X$4,0),0) -> 2.062188155 | T156: =VLOOKUP("Total GHG emissions (Transport)",Transport!$B$4:$X$177,MATCH(T$152,Transport!$B$4:$X$4,0),0) -> 1.687221919 | U156: =VLOOKUP("Total GHG emissions (Transport)",Transport!$B$4:$X$177,MATCH(U$152,Transport!$B$4:$X$4,0),0) -> 0.8802902592 | V156: =VLOOKUP("Total GHG emissions (Transport)",Transport!$B$4:$X$177,MATCH(V$152,Transport!$B$4:$X$4,0),0) -> 1.019751473 | W156: =VLOOKUP("Total GHG emissions (Transport)",Transport!$B$4:$X$177,MATCH(W$152,Transport!$B$4:$X$4,0),0) -> 1.153355575 | X156: =VLOOKUP("Total GHG emissions (Transport)",Transport!$B$4:$X$177,MATCH(X$152,Transport!$B$4:$X$4,0),0) -> 1.604757543 | Y156: =VLOOKUP("Total GHG emissions (Transport)",Transport!$B$4:$X$177,MATCH(Y$152,Transport!$B$4:$X$4,0),0) -> 1.711301781 | Z156: =VLOOKUP("Total GHG emissions (Transport)",Transport!$B$4:$X$177,MATCH(Z$152,Transport!$B$4:$X$4,0),0) -> 1.751021701 | AA156: =VLOOKUP("Total GHG emissions (Transport)",Transport!$B$4:$X$177,MATCH(AA$152,Transport!$B$4:$X$4,0),0) -> 1.301036173
F157: =AgricultureSector -> Agriculture | G157: =VLOOKUP("Total GHG emissions (Agriculture)",Agriculture!$B$7:$X$472,MATCH(G$152,Agriculture!$B$4:$X$4,0),0) -> 0.04455673573 | H157: =VLOOKUP("Total GHG emissions (Agriculture)",Agriculture!$B$7:$X$472,MATCH(H$152,Agriculture!$B$4:$X$4,0),0) -> 0.05704415692 | I157: =VLOOKUP("Total GHG emissions (Agriculture)",Agriculture!$B$7:$X$472,MATCH(I$152,Agriculture!$B$4:$X$4,0),0) -> 0.2615464384 | J157: =VLOOKUP("Total GHG emissions (Agriculture)",Agriculture!$B$7:$X$472,MATCH(J$152,Agriculture!$B$4:$X$4,0),0) -> 0.4639279524 | K157: =VLOOKUP("Total GHG emissions (Agriculture)",Agriculture!$B$7:$X$472,MATCH(K$152,Agriculture!$B$4:$X$4,0),0) -> 0.6848212244 | L157: =VLOOKUP("Total GHG emissions (Agriculture)",Agriculture!$B$7:$X$472,MATCH(L$152,Agriculture!$B$4:$X$4,0),0) -> 0.7462698253 | M157: =VLOOKUP("Total GHG emissions (Agriculture)",Agriculture!$B$7:$X$472,MATCH(M$152,Agriculture!$B$4:$X$4,0),0) -> 0.7422421732 | N157: =VLOOKUP("Total GHG emissions (Agriculture)",Agriculture!$B$7:$X$472,MATCH(N$152,Agriculture!$B$4:$X$4,0),0) -> 0.04455673573 | O157: =VLOOKUP("Total GHG emissions (Agriculture)",Agriculture!$B$7:$X$472,MATCH(O$152,Agriculture!$B$4:$X$4,0),0) -> 0.058209272 | P157: =VLOOKUP("Total GHG emissions (Agriculture)",Agriculture!$B$7:$X$472,MATCH(P$152,Agriculture!$B$4:$X$4,0),0) -> 0.1002527744 | Q157: =VLOOKUP("Total GHG emissions (Agriculture)",Agriculture!$B$7:$X$472,MATCH(Q$152,Agriculture!$B$4:$X$4,0),0) -> 0.1445634245 | R157: =VLOOKUP("Total GHG emissions (Agriculture)",Agriculture!$B$7:$X$472,MATCH(R$152,Agriculture!$B$4:$X$4,0),0) -> 0.2270862869 | S157: =VLOOKUP("Total GHG emissions (Agriculture)",Agriculture!$B$7:$X$472,MATCH(S$152,Agriculture!$B$4:$X$4,0),0) -> 0.3302426935 | T157: =VLOOKUP("Total GHG emissions (Agriculture)",Agriculture!$B$7:$X$472,MATCH(T$152,Agriculture!$B$4:$X$4,0),0) -> 0.326330941 | U157: =VLOOKUP("Total GHG emissions (Agriculture)",Agriculture!$B$7:$X$472,MATCH(U$152,Agriculture!$B$4:$X$4,0),0) -> 0.04455673573 | V157: =VLOOKUP("Total GHG emissions (Agriculture)",Agriculture!$B$7:$X$472,MATCH(V$152,Agriculture!$B$4:$X$4,0),0) -> 0.05704415692 | W157: =VLOOKUP("Total GHG emissions (Agriculture)",Agriculture!$B$7:$X$472,MATCH(W$152,Agriculture!$B$4:$X$4,0),0) -> 0.0908236447 | X157: =VLOOKUP("Total GHG emissions (Agriculture)",Agriculture!$B$7:$X$472,MATCH(X$152,Agriculture!$B$4:$X$4,0),0) -> 0.1183222771 | Y157: =VLOOKUP("Total GHG emissions (Agriculture)",Agriculture!$B$7:$X$472,MATCH(Y$152,Agriculture!$B$4:$X$4,0),0) -> 0.1676135419 | Z157: =VLOOKUP("Total GHG emissions (Agriculture)",Agriculture!$B$7:$X$472,MATCH(Z$152,Agriculture!$B$4:$X$4,0),0) -> 0.2350016589 | AA157: =VLOOKUP("Total GHG emissions (Agriculture)",Agriculture!$B$7:$X$472,MATCH(AA$152,Agriculture!$B$4:$X$4,0),0) -> 0.2320146786
F158: Other electrical demand | G158: ='Sectorial indicators'!R61 -> 1217.314256 | H158: ='Sectorial indicators'!S61 -> 0.1426196841 | I158: ='Sectorial indicators'!T61 -> 0.196521127 | J158: ='Sectorial indicators'!U61 -> 0.3065147056 | K158: ='Sectorial indicators'!V61 -> 0.4284829192 | L158: ='Sectorial indicators'!W61 -> 0.4537373871 | M158: ='Sectorial indicators'!X61 -> 0.3955663206 | N158: ='Sectorial indicators'!Y61 -> 0.1454786412 | O158: ='Sectorial indicators'!Z61 -> 0.1616978662 | P158: ='Sectorial indicators'!AA61 -> 0.2241810761 | Q158: ='Sectorial indicators'!AB61 -> 0.3352837639 | R158: ='Sectorial indicators'!AC61 -> 0.4486007438 | S158: ='Sectorial indicators'!AD61 -> 0.5929676907 | T158: ='Sectorial indicators'!AE61 -> 0.7107621502 | U158: ='Sectorial indicators'!AF61 -> 0.1369934047 | V158: ='Sectorial indicators'!AG61 -> 0.1426196841 | W158: ='Sectorial indicators'!AH61 -> 0.196521127 | X158: ='Sectorial indicators'!AI61 -> 0.3065147056 | Y158: ='Sectorial indicators'!AJ61 -> 0.4284829192 | Z158: ='Sectorial indicators'!AK61 -> 0.4537373871 | AA158: ='Sectorial indicators'!AL61 -> 0.3955663206
F159: Emissions related to LNG production for export | G159: ='Natural gas production'!D32 -> 0 | H159: ='Natural gas production'!E32 -> 0.2530418016 | I159: ='Natural gas production'!F32 -> 2.29427533 | J159: ='Natural gas production'!G32 -> 2.231588874 | K159: ='Natural gas production'!H32 -> 2.181965147 | L159: ='Natural gas production'!I32 -> 2.184567309 | M159: ='Natural gas production'!J32 -> 2.201514367 | N159: ='Natural gas production'!K32 -> 0 | O159: ='Natural gas production'!L32 -> 0.2333397326 | P159: ='Natural gas production'!M32 -> 2.271551279 | Q159: ='Natural gas production'!N32 -> 2.201844525 | R159: ='Natural gas production'!O32 -> 2.165363415 | S159: ='Natural gas production'!P32 -> 2.100760568 | T159: ='Natural gas production'!Q32 -> 2.036334938 | U159: ='Natural gas production'!R32 -> 0 | V159: ='Natural gas production'!S32 -> 0.2512482765 | W159: ='Natural gas production'!T32 -> 2.310716844 | X159: ='Natural gas production'!U32 -> 2.274830221 | Y159: ='Natural gas production'!V32 -> 2.23894217 | Z159: ='Natural gas production'!W32 -> 2.212603469 | AA159: ='Natural gas production'!X32 -> 2.210290176
F160: Emissions related to electricity generation for export | G160: ='Interconnected network'!D87 -> 0 | H160: ='Interconnected network'!E87 -> 0 | I160: ='Interconnected network'!F87 -> 0.08246428095 | J160: ='Interconnected network'!G87 -> 0.1649690864 | K160: ='Interconnected network'!H87 -> 0.1650099529 | L160: ='Interconnected network'!I87 -> 0.1262298565 | M160: ='Interconnected network'!J87 -> 0.08745011098 | N160: ='Interconnected network'!K87 -> 0 | O160: ='Interconnected network'!L87 -> 0 | P160: ='Interconnected network'!M87 -> 0.09411067373 | Q160: ='Interconnected network'!N87 -> 0.1804976101 | R160: ='Interconnected network'!O87 -> 0.1727742147 | S160: ='Interconnected network'!P87 -> 0.1650511658 | T160: ='Interconnected network'!Q87 -> 0.1573284676 | U160: ='Interconnected network'!R87 -> 0 | V160: ='Interconnected network'!S87 -> 0 | W160: ='Interconnected network'!T87 -> 0.04123214048 | X160: ='Interconnected network'!U87 -> 0.08248454319 | Y160: ='Interconnected network'!V87 -> 0.08250497644 | Z160: ='Interconnected network'!W87 -> 0.06311492827 | AA160: ='Interconnected network'!X87 -> 0.04372505549
F161: Emissions related to electricity losses | G161: ='Interconnected network'!D88+'Mini-grid'!D37 -> 2303.481781 | H161: ='Interconnected network'!E88+'Mini-grid'!E37 -> 0.1563794045 | I161: ='Interconnected network'!F88+'Mini-grid'!F37 -> 0.1563737009 | J161: ='Interconnected network'!G88+'Mini-grid'!G37 -> 0.2393565135 | K161: ='Interconnected network'!H88+'Mini-grid'!H37 -> 0.3071057358 | L161: ='Interconnected network'!I88+'Mini-grid'!I37 -> 0.2630753206 | M161: ='Interconnected network'!J88+'Mini-grid'!J37 -> 0.2108627813 | N161: ='Interconnected network'!K88+'Mini-grid'!K37 -> 0.1937241421 | O161: ='Interconnected network'!L88+'Mini-grid'!L37 -> 0.1823787874 | P161: ='Interconnected network'!M88+'Mini-grid'!M37 -> 0.1758478497 | Q161: ='Interconnected network'!N88+'Mini-grid'!N37 -> 0.2527314417 | R161: ='Interconnected network'!O88+'Mini-grid'!O37 -> 0.2925486458 | S161: ='Interconnected network'!P88+'Mini-grid'!P37 -> 0.3309370844 | T161: ='Interconnected network'!Q88+'Mini-grid'!Q37 -> 0.3717548861 | U161: ='Interconnected network'!R88+'Mini-grid'!R37 -> 0.1816079101 | V161: ='Interconnected network'!S88+'Mini-grid'!S37 -> 0.1559285143 | W161: ='Interconnected network'!T88+'Mini-grid'!T37 -> 0.1374908612 | X161: ='Interconnected network'!U88+'Mini-grid'!U37 -> 0.1891912957 | Y161: ='Interconnected network'!V88+'Mini-grid'!V37 -> 0.2325069238 | Z161: ='Interconnected network'!W88+'Mini-grid'!W37 -> 0.2071741554 | AA161: ='Interconnected network'!X88+'Mini-grid'!X37 -> 0.1678085948
F162: Total | G162: =SUM(G154:G161) -> 6227.345678 | H162: 2.849830029 | I162: 5.450129324 | J162: 6.518752432 | K162: 6.787802554 | L162: 6.159630179 | M162: 5.780277437 | N162: 2.231129127 | O162: 3.127693755 | P162: 5.607576364 | Q162: 6.791835566 | R162: 7.246117168 | S162: 7.911908486 | T162: =SUM(T154:T161) -> 8.314933095 | U162: 1.97431554 | V162: 2.707815284 | W162: 4.763906807 | X162: 5.502049724 | Y162: 5.888310289 | Z162: 5.909991184 | AA162: 5.305992019
B167: Total GHG emissions per sector
B169: Chosen scenario : | C169: =$C$1 -> A1
G170: =C169 -> A1
C171: titre : | D171: =CONCATENATE(B167," for scenario ",C169) -> Total GHG emissions per sector for scenario A1 | F171: Sector | G171: ='%User_input%'!B10 -> 2024 | H171: ='%User_input%'!C10 -> 2030 | I171: ='%User_input%'!D10 -> 2035 | J171: ='%User_input%'!E10 -> 2040 | K171: ='%User_input%'!F10 -> 2045 | L171: ='%User_input%'!G10 -> 2050 | M171: ='%User_input%'!H10 -> 2055
F172: =ResidentialSector -> Residential | G172: =SUMIFS($G154:$AH154,$G$151:$AH$151,$C$169,$G$153:$AH$153,G$171) -> 2705.135264 | H172: 0.5505464553 | I172: 0.619967929 | J172: 0.7207167364 | K172: 0.8137000869 | L172: 0.8125862705 | M172: 0.7489376784
F173: =IndustrySector -> Industry | G173: 0.4311309584 | H173: 0.5465584643 | I173: 0.5353832291 | J173: 0.8285377079 | K173: 0.9664093026 | L173: 0.8835677151 | M173: 1.135710932
F174: =TransportSector -> Transport | G174: 0.9386882173 | H174: 1.143640062 | I174: 1.303597289 | J174: 1.563140855 | K174: 1.240308186 | L174: 0.6895964944 | M174: 0.2579930738
F175: =AgricultureSector -> Agriculture | G175: =SUMIFS($G157:$AH157,$G$151:$AH$151,$C$169,$G$153:$AH$153,G$171) -> 0.04455673573 | H175: 0.05704415692 | I175: 0.2615464384 | J175: 0.4639279524 | K175: 0.6848212244 | L175: 0.7462698253 | M175: 0.7422421732
F176: Other electrical demand | G176: 1217.314256 | H176: 0.1426196841 | I176: 0.196521127 | J176: 0.3065147056 | K176: 0.4284829192 | L176: 0.4537373871 | M176: 0.3955663206
F177: Emissions related to LNG production for export | G177: =SUMIFS($G159:$AH159,$G$151:$AH$151,$C$169,$G$153:$AH$153,G$171) -> 0 | H177: 0.2530418016 | I177: 2.29427533 | J177: 2.231588874 | K177: 2.181965147 | L177: 2.184567309 | M177: 2.201514367
F178: Emissions related to electricity generation for export | G178: 0 | H178: 0 | I178: 0.08246428095 | J178: 0.1649690864 | K178: 0.1650099529 | L178: 0.1262298565 | M178: 0.08745011098
F179: Emissions related to electricity losses | G179: 2303.481781 | H179: 0.1563794045 | I179: 0.1563737009 | J179: 0.2393565135 | K179: 0.3071057358 | L179: 0.2630753206 | M179: 0.2108627813
F180: Total (Without emissions related to energy production for export) | G180: =SUM(G172:G176,G179) -> 6227.345678 | H180: 2.596788227 | I180: 3.073389714 | J180: 4.122194471 | K180: =SUM(K172:K176,K179) -> 4.440827455 | L180: 3.848833013 | M180: =SUM(M172:M176,M179) -> 3.49131296
F181: Total (including emissions related to energy production for export) | G181: =SUM(G172:G179) -> 6227.345678 | H181: 2.849830029 | I181: 5.450129324 | J181: 6.518752432 | K181: 6.787802554 | L181: 6.159630179 | M181: 5.780277437
B191: Total GHG emissions per final energy
B193: Chosen scenario : | C193: =$C$1 -> A1 | G193: =Scenario1 -> A1 | N193: =Scenario2 -> A2 | U193: =Scenario3 -> B1
G194: =Scenario1 -> A1 | H194: A1 | I194: A1 | J194: A1 | K194: A1 | L194: A1 | M194: A1 | N194: =Scenario2 -> A2 | O194: A2 | P194: A2 | Q194: A2 | R194: A2 | S194: A2 | T194: A2 | U194: =Scenario3 -> B1 | V194: B1 | W194: B1 | X194: B1 | Y194: B1 | Z194: B1 | AA194: B1
G195: =G194&G196 -> A12024 | H195: A12030 | I195: A12035 | J195: A12040 | K195: A12045 | L195: A12050 | M195: A12055 | N195: A22024 | O195: A22030 | P195: A22035 | Q195: A22040 | R195: A22045 | S195: A22050 | T195: A22055 | U195: B12024 | V195: B12030 | W195: B12035 | X195: B12040 | Y195: B12045 | Z195: B12050 | AA195: B12055
F196: Energy | G196: ='%User_input%'!B10 -> 2024 | H196: ='%User_input%'!C10 -> 2030 | I196: ='%User_input%'!D10 -> 2035 | J196: ='%User_input%'!E10 -> 2040 | K196: ='%User_input%'!F10 -> 2045 | L196: ='%User_input%'!G10 -> 2050 | M196: ='%User_input%'!H10 -> 2055 | N196: ='%User_input%'!B10 -> 2024 | O196: ='%User_input%'!C10 -> 2030 | P196: ='%User_input%'!D10 -> 2035 | Q196: ='%User_input%'!E10 -> 2040 | R196: ='%User_input%'!F10 -> 2045 | S196: ='%User_input%'!G10 -> 2050 | T196: ='%User_input%'!H10 -> 2055 | U196: ='%User_input%'!B10 -> 2024 | V196: ='%User_input%'!C10 -> 2030 | W196: ='%User_input%'!D10 -> 2035 | X196: ='%User_input%'!E10 -> 2040 | Y196: ='%User_input%'!F10 -> 2045 | Z196: ='%User_input%'!G10 -> 2050 | AA196: ='%User_input%'!H10 -> 2055
C197: titre : | D197: =CONCATENATE(B191, " for scenario ",C193) -> Total GHG emissions per final energy for scenario A1 | F197: =PowerEnergy -> Electricity | G197: =SUM('Sectorial indicators'!R$58:R$64) ->  | H197: =SUM('Sectorial indicators'!S$58:S$64) ->  | I197: =SUM('Sectorial indicators'!T$58:T$64) ->  | J197: =SUM('Sectorial indicators'!U$58:U$64) ->  | K197: =SUM('Sectorial indicators'!V$58:V$64) ->  | L197: =SUM('Sectorial indicators'!W$58:W$64) ->  | M197: =SUM('Sectorial indicators'!X$58:X$64) ->  | N197: =SUM('Sectorial indicators'!Y$58:Y$64) ->  | O197: =SUM('Sectorial indicators'!Z$58:Z$64) ->  | P197: =SUM('Sectorial indicators'!AA$58:AA$64) ->  | Q197: =SUM('Sectorial indicators'!AB$58:AB$64) ->  | R197: =SUM('Sectorial indicators'!AC$58:AC$64) ->  | S197: =SUM('Sectorial indicators'!AD$58:AD$64) ->  | T197: =SUM('Sectorial indicators'!AE$58:AE$64) ->  | U197: =SUM('Sectorial indicators'!AF$58:AF$64) ->  | V197: =SUM('Sectorial indicators'!AG$58:AG$64) ->  | W197: =SUM('Sectorial indicators'!AH$58:AH$64) ->  | X197: =SUM('Sectorial indicators'!AI$58:AI$64) ->  | Y197: =SUM('Sectorial indicators'!AJ$58:AJ$64) ->  | Z197: =SUM('Sectorial indicators'!AK$58:AK$64) ->  | AA197: =SUM('Sectorial indicators'!AL$58:AL$64) -> 
F198: =BiomassEnergy -> Wood | G198: =SUM('Sectorial indicators'!R$65:R$68) -> 0 | H198: =SUM('Sectorial indicators'!S$65:S$68) -> 0 | I198: =SUM('Sectorial indicators'!T$65:T$68) -> 0 | J198: =SUM('Sectorial indicators'!U$65:U$68) -> 0 | K198: =SUM('Sectorial indicators'!V$65:V$68) -> 0 | L198: =SUM('Sectorial indicators'!W$65:W$68) -> 0 | M198: =SUM('Sectorial indicators'!X$65:X$68) -> 0 | N198: =SUM('Sectorial indicators'!Y$65:Y$68) -> 0 | O198: =SUM('Sectorial indicators'!Z$65:Z$68) -> 0 | P198: =SUM('Sectorial indicators'!AA$65:AA$68) -> 0 | Q198: =SUM('Sectorial indicators'!AB$65:AB$68) -> 0 | R198: =SUM('Sectorial indicators'!AC$65:AC$68) -> 0 | S198: =SUM('Sectorial indicators'!AD$65:AD$68) -> 0 | T198: =SUM('Sectorial indicators'!AE$65:AE$68) -> 0 | U198: =SUM('Sectorial indicators'!AF$65:AF$68) -> 0 | V198: =SUM('Sectorial indicators'!AG$65:AG$68) -> 0 | W198: =SUM('Sectorial indicators'!AH$65:AH$68) -> 0 | X198: =SUM('Sectorial indicators'!AI$65:AI$68) -> 0 | Y198: =SUM('Sectorial indicators'!AJ$65:AJ$68) -> 0 | Z198: =SUM('Sectorial indicators'!AK$65:AK$68) -> 0 | AA198: =SUM('Sectorial indicators'!AL$65:AL$68) -> 0
F199: =LPGEnergy -> LPG | G199: =SUM('Sectorial indicators'!R$69:R$72) -> 0.247045188 | H199: =SUM('Sectorial indicators'!S$69:S$72) -> 0.2950002499 | I199: =SUM('Sectorial indicators'!T$69:T$72) -> 0.3380737736 | J199: =SUM('Sectorial indicators'!U$69:U$72) -> 0.3782734372 | K199: =SUM('Sectorial indicators'!V$69:V$72) -> 0.4148119807 | L199: =SUM('Sectorial indicators'!W$69:W$72) -> 0.4459256835 | M199: =SUM('Sectorial indicators'!X$69:X$72) -> 0.4496993723 | N199: =SUM('Sectorial indicators'!Y$69:Y$72) -> 0.247045188 | O199: =SUM('Sectorial indicators'!Z$69:Z$72) -> 0.2965900759 | P199: =SUM('Sectorial indicators'!AA$69:AA$72) -> 0.3428540049 | Q199: =SUM('Sectorial indicators'!AB$69:AB$72) -> 0.387909309 | R199: =SUM('Sectorial indicators'!AC$69:AC$72) -> 0.4313383933 | S199: =SUM('Sectorial indicators'!AD$69:AD$72) -> 0.4712889952 | T199: =SUM('Sectorial indicators'!AE$69:AE$72) -> 0.5066111711 | U199: =SUM('Sectorial indicators'!AF$69:AF$72) -> 0.247045188 | V199: =SUM('Sectorial indicators'!AG$69:AG$72) -> 0.2893434642 | W199: =SUM('Sectorial indicators'!AH$69:AH$72) -> 0.3264745203 | X199: =SUM('Sectorial indicators'!AI$69:AI$72) -> 0.3604352137 | Y199: =SUM('Sectorial indicators'!AJ$69:AJ$72) -> 0.3907288888 | Z199: =SUM('Sectorial indicators'!AK$69:AK$72) -> 0.4156709979 | AA199: =SUM('Sectorial indicators'!AL$69:AL$72) -> 0.4183249975
F200: =OilEnergy -> Oil products | G200: =SUM('Sectorial indicators'!R$73:R$76) -> 0.983244953 | H200: =SUM('Sectorial indicators'!S$73:S$76) -> 1.195758991 | I200: =SUM('Sectorial indicators'!T$73:T$76) -> 1.504804833 | J200: =SUM('Sectorial indicators'!U$73:U$76) -> 1.817630466 | K200: =SUM('Sectorial indicators'!V$73:V$76) -> 1.537009462 | L200: =SUM('Sectorial indicators'!W$73:W$76) -> 0.9906075424 | M200: =SUM('Sectorial indicators'!X$73:X$76) -> 0.6978359677 | N200: =SUM('Sectorial indicators'!Y$73:Y$76) -> 1.032820741 | O200: =SUM('Sectorial indicators'!Z$73:Z$76) -> 1.232861622 | P200: =SUM('Sectorial indicators'!AA$73:AA$76) -> 1.354012137 | Q200: =SUM('Sectorial indicators'!AB$73:AB$76) -> 1.594926367 | R200: =SUM('Sectorial indicators'!AC$73:AC$76) -> 1.587275375 | S200: =SUM('Sectorial indicators'!AD$73:AD$76) -> 1.510193946 | T200: =SUM('Sectorial indicators'!AE$73:AE$76) -> 0.9347191464 | U200: =SUM('Sectorial indicators'!AF$73:AF$76) -> 0.924846995 | V200: =SUM('Sectorial indicators'!AG$73:AG$76) -> 1.045896289 | W200: =SUM('Sectorial indicators'!AH$73:AH$76) -> 1.155043152 | X200: =SUM('Sectorial indicators'!AI$73:AI$76) -> 1.515543176 | Y200: =SUM('Sectorial indicators'!AJ$73:AJ$76) -> 1.51849897 | Z200: =SUM('Sectorial indicators'!AK$73:AK$76) -> 1.282372849 | AA200: =SUM('Sectorial indicators'!AL$73:AL$76) -> 0.6256930588
F201: =CharcoalEnergy -> Charcoal | G201: =SUM('Sectorial indicators'!R$77:R$80) ->  | H201: =SUM('Sectorial indicators'!S$77:S$80) ->  | I201: =SUM('Sectorial indicators'!T$77:T$80) ->  | J201: =SUM('Sectorial indicators'!U$77:U$80) ->  | K201: =SUM('Sectorial indicators'!V$77:V$80) ->  | L201: =SUM('Sectorial indicators'!W$77:W$80) ->  | M201: =SUM('Sectorial indicators'!X$77:X$80) ->  | N201: =SUM('Sectorial indicators'!Y$77:Y$80) ->  | O201: =SUM('Sectorial indicators'!Z$77:Z$80) ->  | P201: =SUM('Sectorial indicators'!AA$77:AA$80) ->  | Q201: =SUM('Sectorial indicators'!AB$77:AB$80) ->  | R201: =SUM('Sectorial indicators'!AC$77:AC$80) ->  | S201: =SUM('Sectorial indicators'!AD$77:AD$80) ->  | T201: =SUM('Sectorial indicators'!AE$77:AE$80) ->  | U201: =SUM('Sectorial indicators'!AF$77:AF$80) ->  | V201: =SUM('Sectorial indicators'!AG$77:AG$80) ->  | W201: =SUM('Sectorial indicators'!AH$77:AH$80) ->  | X201: =SUM('Sectorial indicators'!AI$77:AI$80) ->  | Y201: =SUM('Sectorial indicators'!AJ$77:AJ$80) ->  | Z201: =SUM('Sectorial indicators'!AK$77:AK$80) ->  | AA201: =SUM('Sectorial indicators'!AL$77:AL$80) -> 
F202: =NaturalGasEnergy -> Natural gas | G202: =SUM('Sectorial indicators'!R$81:R$85) ->  | H202: =SUM('Sectorial indicators'!S$81:S$85) ->  | I202: =SUM('Sectorial indicators'!T$81:T$85) ->  | J202: =SUM('Sectorial indicators'!U$81:U$85) ->  | K202: =SUM('Sectorial indicators'!V$81:V$85) ->  | L202: =SUM('Sectorial indicators'!W$81:W$85) ->  | M202: =SUM('Sectorial indicators'!X$81:X$85) ->  | N202: =SUM('Sectorial indicators'!Y$81:Y$85) ->  | O202: =SUM('Sectorial indicators'!Z$81:Z$85) ->  | P202: =SUM('Sectorial indicators'!AA$81:AA$85) ->  | Q202: =SUM('Sectorial indicators'!AB$81:AB$85) ->  | R202: =SUM('Sectorial indicators'!AC$81:AC$85) ->  | S202: =SUM('Sectorial indicators'!AD$81:AD$85) ->  | T202: =SUM('Sectorial indicators'!AE$81:AE$85) ->  | U202: =SUM('Sectorial indicators'!AF$81:AF$85) ->  | V202: =SUM('Sectorial indicators'!AG$81:AG$85) ->  | W202: =SUM('Sectorial indicators'!AH$81:AH$85) ->  | X202: =SUM('Sectorial indicators'!AI$81:AI$85) ->  | Y202: =SUM('Sectorial indicators'!AJ$81:AJ$85) ->  | Z202: =SUM('Sectorial indicators'!AK$81:AK$85) ->  | AA202: =SUM('Sectorial indicators'!AL$81:AL$85) -> 
F203: Total | G203: =SUM(G197:G202) -> 
AJ204: =SUM(AA198:AA202) -> 
G205: =C193 -> A1
F206: Energy | G206: ='%User_input%'!B10 -> 2024 | H206: ='%User_input%'!C10 -> 2030 | I206: ='%User_input%'!D10 -> 2035 | J206: ='%User_input%'!E10 -> 2040 | K206: ='%User_input%'!F10 -> 2045 | L206: ='%User_input%'!G10 -> 2050 | M206: ='%User_input%'!H10 -> 2055
F207: =PowerEnergy -> Electricity | G207: =SUMIFS($G197:$AH197,$G$194:$AH$194,$C$193,$G$196:$AH$196,'Key indicators'!G$34) ->  | H207: =SUMIFS($G197:$AH197,$G$194:$AH$194,$C$193,$G$196:$AH$196,'Key indicators'!H$34) ->  | I207: =SUMIFS($G197:$AH197,$G$194:$AH$194,$C$193,$G$196:$AH$196,'Key indicators'!I$34) ->  | J207: =SUMIFS($G197:$AH197,$G$194:$AH$194,$C$193,$G$196:$AH$196,'Key indicators'!J$34) ->  | K207: =SUMIFS($G197:$AH197,$G$194:$AH$194,$C$193,$G$196:$AH$196,'Key indicators'!K$34) ->  | L207: =SUMIFS($G197:$AH197,$G$194:$AH$194,$C$193,$G$196:$AH$196,'Key indicators'!L$34) ->  | M207: =SUMIFS($G197:$AH197,$G$194:$AH$194,$C$193,$G$196:$AH$196,'Key indicators'!M$34) -> 
F208: =BiomassEnergy -> Wood | G208: =SUMIFS($G198:$AH198,$G$194:$AH$194,$C$193,$G$196:$AH$196,'Key indicators'!G$34) -> 0 | H208: =SUMIFS($G198:$AH198,$G$194:$AH$194,$C$193,$G$196:$AH$196,'Key indicators'!H$34) -> 0 | I208: =SUMIFS($G198:$AH198,$G$194:$AH$194,$C$193,$G$196:$AH$196,'Key indicators'!I$34) -> 0 | J208: =SUMIFS($G198:$AH198,$G$194:$AH$194,$C$193,$G$196:$AH$196,'Key indicators'!J$34) -> 0 | K208: =SUMIFS($G198:$AH198,$G$194:$AH$194,$C$193,$G$196:$AH$196,'Key indicators'!K$34) -> 0 | L208: =SUMIFS($G198:$AH198,$G$194:$AH$194,$C$193,$G$196:$AH$196,'Key indicators'!L$34) -> 0 | M208: =SUMIFS($G198:$AH198,$G$194:$AH$194,$C$193,$G$196:$AH$196,'Key indicators'!M$34) -> 0
F209: =LPGEnergy -> LPG | G209: =SUMIFS($G199:$AH199,$G$194:$AH$194,$C$193,$G$196:$AH$196,'Key indicators'!G$34) -> 0.247045188 | H209: =SUMIFS($G199:$AH199,$G$194:$AH$194,$C$193,$G$196:$AH$196,'Key indicators'!H$34) -> 0.2950002499 | I209: =SUMIFS($G199:$AH199,$G$194:$AH$194,$C$193,$G$196:$AH$196,'Key indicators'!I$34) -> 0.3380737736 | J209: =SUMIFS($G199:$AH199,$G$194:$AH$194,$C$193,$G$196:$AH$196,'Key indicators'!J$34) -> 0.3782734372 | K209: =SUMIFS($G199:$AH199,$G$194:$AH$194,$C$193,$G$196:$AH$196,'Key indicators'!K$34) -> 0.4148119807 | L209: =SUMIFS($G199:$AH199,$G$194:$AH$194,$C$193,$G$196:$AH$196,'Key indicators'!L$34) -> 0.4459256835 | M209: =SUMIFS($G199:$AH199,$G$194:$AH$194,$C$193,$G$196:$AH$196,'Key indicators'!M$34) -> 0.4496993723
F210: =OilEnergy -> Oil products | G210: =SUMIFS($G200:$AH200,$G$194:$AH$194,$C$193,$G$196:$AH$196,'Key indicators'!G$34) -> 0.983244953 | H210: =SUMIFS($G200:$AH200,$G$194:$AH$194,$C$193,$G$196:$AH$196,'Key indicators'!H$34) -> 1.195758991 | I210: =SUMIFS($G200:$AH200,$G$194:$AH$194,$C$193,$G$196:$AH$196,'Key indicators'!I$34) -> 1.504804833 | J210: =SUMIFS($G200:$AH200,$G$194:$AH$194,$C$193,$G$196:$AH$196,'Key indicators'!J$34) -> 1.817630466 | K210: =SUMIFS($G200:$AH200,$G$194:$AH$194,$C$193,$G$196:$AH$196,'Key indicators'!K$34) -> 1.537009462 | L210: =SUMIFS($G200:$AH200,$G$194:$AH$194,$C$193,$G$196:$AH$196,'Key indicators'!L$34) -> 0.9906075424 | M210: =SUMIFS($G200:$AH200,$G$194:$AH$194,$C$193,$G$196:$AH$196,'Key indicators'!M$34) -> 0.6978359677
F211: =CharcoalEnergy -> Charcoal | G211: =SUMIFS($G201:$AH201,$G$194:$AH$194,$C$193,$G$196:$AH$196,'Key indicators'!G$34) ->  | H211: =SUMIFS($G201:$AH201,$G$194:$AH$194,$C$193,$G$196:$AH$196,'Key indicators'!H$34) ->  | I211: =SUMIFS($G201:$AH201,$G$194:$AH$194,$C$193,$G$196:$AH$196,'Key indicators'!I$34) ->  | J211: =SUMIFS($G201:$AH201,$G$194:$AH$194,$C$193,$G$196:$AH$196,'Key indicators'!J$34) ->  | K211: =SUMIFS($G201:$AH201,$G$194:$AH$194,$C$193,$G$196:$AH$196,'Key indicators'!K$34) ->  | L211: =SUMIFS($G201:$AH201,$G$194:$AH$194,$C$193,$G$196:$AH$196,'Key indicators'!L$34) ->  | M211: =SUMIFS($G201:$AH201,$G$194:$AH$194,$C$193,$G$196:$AH$196,'Key indicators'!M$34) -> 
F212: =NaturalGasEnergy -> Natural gas | G212: =SUMIFS($G202:$AH202,$G$194:$AH$194,$C$193,$G$196:$AH$196,'Key indicators'!G$34) ->  | H212: =SUMIFS($G202:$AH202,$G$194:$AH$194,$C$193,$G$196:$AH$196,'Key indicators'!H$34) ->  | I212: =SUMIFS($G202:$AH202,$G$194:$AH$194,$C$193,$G$196:$AH$196,'Key indicators'!I$34) ->  | J212: =SUMIFS($G202:$AH202,$G$194:$AH$194,$C$193,$G$196:$AH$196,'Key indicators'!J$34) ->  | K212: =SUMIFS($G202:$AH202,$G$194:$AH$194,$C$193,$G$196:$AH$196,'Key indicators'!K$34) ->  | L212: =SUMIFS($G202:$AH202,$G$194:$AH$194,$C$193,$G$196:$AH$196,'Key indicators'!L$34) ->  | M212: =SUMIFS($G202:$AH202,$G$194:$AH$194,$C$193,$G$196:$AH$196,'Key indicators'!M$34) -> 
A224: Electricity supply
B226: Installed eletrical production capacities (all grids without hydrogen production)
B228: Chosen scenario : | C228: =$C$1 -> A1
G230: =Scenario1 -> A1 | N230: =Scenario2 -> A2 | U230: =Scenario3 -> B1
G231: =Scenario1 -> A1 | H231: A1 | I231: A1 | J231: A1 | K231: A1 | L231: A1 | M231: A1 | N231: =Scenario2 -> A2 | O231: A2 | P231: A2 | Q231: A2 | R231: A2 | S231: A2 | T231: A2 | U231: =Scenario3 -> B1 | V231: B1 | W231: B1 | X231: B1 | Y231: B1 | Z231: B1 | AA231: B1
G232: =G231&G233 -> A12024 | H232: A12030 | I232: A12035 | J232: A12040 | K232: A12045 | L232: A12050 | M232: A12055 | N232: A22024 | O232: A22030 | P232: A22035 | Q232: A22040 | R232: A22045 | S232: A22050 | T232: A22055 | U232: B12024 | V232: B12030 | W232: B12035 | X232: B12040 | Y232: B12045 | Z232: B12050 | AA232: B12055
F233: technology | G233: ='%User_input%'!B10 -> 2024 | H233: ='%User_input%'!C10 -> 2030 | I233: ='%User_input%'!D10 -> 2035 | J233: ='%User_input%'!E10 -> 2040 | K233: ='%User_input%'!F10 -> 2045 | L233: ='%User_input%'!G10 -> 2050 | M233: ='%User_input%'!H10 -> 2055 | N233: ='%User_input%'!B10 -> 2024 | O233: ='%User_input%'!C10 -> 2030 | P233: ='%User_input%'!D10 -> 2035 | Q233: ='%User_input%'!E10 -> 2040 | R233: ='%User_input%'!F10 -> 2045 | S233: ='%User_input%'!G10 -> 2050 | T233: ='%User_input%'!H10 -> 2055 | U233: ='%User_input%'!B10 -> 2024 | V233: ='%User_input%'!C10 -> 2030 | W233: ='%User_input%'!D10 -> 2035 | X233: ='%User_input%'!E10 -> 2040 | Y233: ='%User_input%'!F10 -> 2045 | Z233: ='%User_input%'!G10 -> 2050 | AA233: ='%User_input%'!H10 -> 2055
F234: =WINDONSHORETechnology -> Eolien Onshore | G234: ='Interconnected network'!D55 -> 34 | H234: ='Interconnected network'!E55 -> 126.6340809 | I234: ='Interconnected network'!F55 -> 262.2141904 | J234: ='Interconnected network'!G55 -> 432.9917495 | K234: ='Interconnected network'!H55 -> 645.3413697 | L234: ='Interconnected network'!I55 -> 1150.845537 | M234: ='Interconnected network'!J55 -> 1847.088891 | N234: ='Interconnected network'!K55 -> 34 | O234: ='Interconnected network'!L55 -> 107.6497239 | P234: ='Interconnected network'!M55 -> 217.977772 | Q234: ='Interconnected network'!N55 -> 356.0335679 | R234: ='Interconnected network'!O55 -> 522.2065978 | S234: ='Interconnected network'!P55 -> 808.8512982 | T234: ='Interconnected network'!Q55 -> 1127.409158 | U234: ='Interconnected network'!R55 -> 34 | V234: ='Interconnected network'!S55 -> 125.14062 | W234: ='Interconnected network'!T55 -> 188.3169177 | X234: ='Interconnected network'!U55 -> 241.747775 | Y234: ='Interconnected network'!V55 -> 370.045354 | Z234: ='Interconnected network'!W55 -> 732.2180435 | AA234: ='Interconnected network'!X55 -> 1159.961532
C235: titre : | D235: =CONCATENATE(B226," for scenario ",C228) -> Installed eletrical production capacities (all grids without hydrogen production) for scenario A1 | F235: =HYDROTechnology -> Hydroélectricité | G235: ='Interconnected network'!D45 -> 94 | H235: ='Interconnected network'!E45 -> 94 | I235: ='Interconnected network'!F45 -> 94 | J235: ='Interconnected network'!G45 -> 200.5 | K235: ='Interconnected network'!H45 -> 200.5 | L235: ='Interconnected network'!I45 -> 200.5 | M235: ='Interconnected network'!J45 -> 200.5 | N235: ='Interconnected network'!K45 -> 94 | O235: ='Interconnected network'!L45 -> 94 | P235: ='Interconnected network'!M45 -> 94 | Q235: ='Interconnected network'!N45 -> 200.5 | R235: ='Interconnected network'!O45 -> 200.5 | S235: ='Interconnected network'!P45 -> 200.5 | T235: ='Interconnected network'!Q45 -> 200.5 | U235: ='Interconnected network'!R45 -> 94 | V235: ='Interconnected network'!S45 -> 94 | W235: ='Interconnected network'!T45 -> 94 | X235: ='Interconnected network'!U45 -> 200.5 | Y235: ='Interconnected network'!V45 -> 200.5 | Z235: ='Interconnected network'!W45 -> 200.5 | AA235: ='Interconnected network'!X45 -> 200.5
F236: =CCGTTechnology -> CCGT (Gaz) | G236: ='Interconnected network'!D66 -> 0 | H236: ='Interconnected network'!E66 -> 172.0057246 | I236: ='Interconnected network'!F66 -> 292.0732769 | J236: ='Interconnected network'!G66 -> 511.4215946 | K236: ='Interconnected network'!H66 -> 695.7187449 | L236: ='Interconnected network'!I66 -> 578.1010889 | M236: ='Interconnected network'!J66 -> 315.5619449 | N236: ='Interconnected network'!K66 -> 0 | O236: ='Interconnected network'!L66 -> 250.9670583 | P236: ='Interconnected network'!M66 -> 362.6025868 | Q236: ='Interconnected network'!N66 -> 564.9061969 | R236: ='Interconnected network'!O66 -> 664.136938 | S236: ='Interconnected network'!P66 -> 836.7734316 | T236: ='Interconnected network'!Q66 -> 982.0124096 | U236: ='Interconnected network'!R66 -> 0 | V236: ='Interconnected network'!S66 -> 170.7079632 | W236: ='Interconnected network'!T66 -> 227.3600225 | X236: ='Interconnected network'!U66 -> 344.2581717 | Y236: ='Interconnected network'!V66 -> 455.5404819 | Z236: ='Interconnected network'!W66 -> 392.3614671 | AA236: ='Interconnected network'!X66 -> 207.1024521
F237: =OCGTTechnology -> Multi-combustibles | G237: ='Interconnected network'!D64+'Mini-grid'!D26 -> 2810592.843 | H237: ='Interconnected network'!E64+'Mini-grid'!E26 -> 235.2170624 | I237: ='Interconnected network'!F64+'Mini-grid'!F26 -> 364.0840703 | J237: ='Interconnected network'!G64+'Mini-grid'!G26 -> 640.3838601 | K237: ='Interconnected network'!H64+'Mini-grid'!H26 -> 877.1372691 | L237: ='Interconnected network'!I64+'Mini-grid'!I26 -> 1483.963014 | M237: ='Interconnected network'!J64+'Mini-grid'!J26 -> 2329.845827 | N237: ='Interconnected network'!K64+'Mini-grid'!K26 -> 292 | O237: ='Interconnected network'!L64+'Mini-grid'!L26 -> 207.2128406 | P237: ='Interconnected network'!M64+'Mini-grid'!M26 -> 306.8066329 | Q237: ='Interconnected network'!N64+'Mini-grid'!N26 -> 546.8677916 | R237: ='Interconnected network'!O64+'Mini-grid'!O26 -> 736.8367147 | S237: ='Interconnected network'!P64+'Mini-grid'!P26 -> 1064.969421 | T237: ='Interconnected network'!Q64+'Mini-grid'!Q26 -> 1437.505302 | U237: ='Interconnected network'!R64+'Mini-grid'!R26 -> 292 | V237: ='Interconnected network'!S64+'Mini-grid'!S26 -> 233.5600206 | W237: ='Interconnected network'!T64+'Mini-grid'!T26 -> 285.0885598 | X237: ='Interconnected network'!U64+'Mini-grid'!U26 -> 434.0703072 | Y237: ='Interconnected network'!V64+'Mini-grid'!V26 -> 577.4260151 | Z237: ='Interconnected network'!W64+'Mini-grid'!W26 -> 1010.135005 | AA237: ='Interconnected network'!X64+'Mini-grid'!X26 -> 1532.297362
F238: =SOLARTechnology -> Solaire PV | G238: ='Interconnected network'!D54+'Mini-grid'!D24+'Self consumption'!D16 -> 266.4571676 | H238: ='Interconnected network'!E54+'Mini-grid'!E24+'Self consumption'!E16 -> 207.1717809 | I238: ='Interconnected network'!F54+'Mini-grid'!F24+'Self consumption'!F16 -> 421.5444416 | J238: ='Interconnected network'!G54+'Mini-grid'!G24+'Self consumption'!G16 -> 675.2705829 | K238: ='Interconnected network'!H54+'Mini-grid'!H24+'Self consumption'!H16 -> 987.164132 | L238: ='Interconnected network'!I54+'Mini-grid'!I24+'Self consumption'!I16 -> 1733.596375 | M238: ='Interconnected network'!J54+'Mini-grid'!J24+'Self consumption'!J16 -> 2761.529989 | N238: ='Interconnected network'!K54+'Mini-grid'!K24+'Self consumption'!K16 -> 266.4571676 | O238: ='Interconnected network'!L54+'Mini-grid'!L24+'Self consumption'!L16 -> 179.129528 | P238: ='Interconnected network'!M54+'Mini-grid'!M24+'Self consumption'!M16 -> 356.2017582 | Q238: ='Interconnected network'!N54+'Mini-grid'!N24+'Self consumption'!N16 -> 561.5937918 | R238: ='Interconnected network'!O54+'Mini-grid'!O24+'Self consumption'!O16 -> 805.2787827 | S238: ='Interconnected network'!P54+'Mini-grid'!P24+'Self consumption'!P16 -> 1228.428414 | T238: ='Interconnected network'!Q54+'Mini-grid'!Q24+'Self consumption'!Q16 -> 1698.473651 | U238: ='Interconnected network'!R54+'Mini-grid'!R24+'Self consumption'!R16 -> 266.4571676 | V238: ='Interconnected network'!S54+'Mini-grid'!S24+'Self consumption'!S16 -> 204.9657536 | W238: ='Interconnected network'!T54+'Mini-grid'!T24+'Self consumption'!T16 -> 312.388993 | X238: ='Interconnected network'!U54+'Mini-grid'!U24+'Self consumption'!U16 -> 392.7794834 | Y238: ='Interconnected network'!V54+'Mini-grid'!V24+'Self consumption'!V16 -> 580.5177297 | Z238: ='Interconnected network'!W54+'Mini-grid'!W24+'Self consumption'!W16 -> 1115.23158 | AA238: ='Interconnected network'!X54+'Mini-grid'!X24+'Self consumption'!X16 -> 1746.55755
F239: Total installed capacity | G239: =SUM(G234:G238) -> 2810987.3 | H239: 835.0286488 | I239: 1433.915979 | J239: 2460.567787 | K239: 3405.861516 | L239: 5147.006015 | M239: 7454.526651 | N239: 686.4571676 | O239: 838.9591508 | P239: 1337.58875 | Q239: 2229.901348 | R239: 2928.959033 | S239: 4139.522565 | T239: 5445.900521 | U239: 686.4571676 | V239: 828.3743575 | W239: 1107.154493 | X239: 1613.355737 | Y239: 2184.029581 | Z239: 3450.446096 | AA239: 4846.418896
F241: Scenario | G241: =C228 -> A1
F242: technology | G242: ='%User_input%'!B10 -> 2024 | H242: ='%User_input%'!C10 -> 2030 | I242: ='%User_input%'!D10 -> 2035 | J242: ='%User_input%'!E10 -> 2040 | K242: ='%User_input%'!F10 -> 2045 | L242: ='%User_input%'!G10 -> 2050 | M242: ='%User_input%'!H10 -> 2055
F243: =WINDONSHORETechnology -> Eolien Onshore | G243: =SUMIFS($G234:$AH234,$G$231:$AH$231,$C$228,$G$233:$AH$233,'Key indicators'!G$34) -> 34 | H243: =SUMIFS($G234:$AH234,$G$231:$AH$231,$C$228,$G$233:$AH$233,'Key indicators'!H$34) -> 126.6340809 | I243: =SUMIFS($G234:$AH234,$G$231:$AH$231,$C$228,$G$233:$AH$233,'Key indicators'!I$34) -> 262.2141904 | J243: =SUMIFS($G234:$AH234,$G$231:$AH$231,$C$228,$G$233:$AH$233,'Key indicators'!J$34) -> 432.9917495 | K243: =SUMIFS($G234:$AH234,$G$231:$AH$231,$C$228,$G$233:$AH$233,'Key indicators'!K$34) -> 645.3413697 | L243: =SUMIFS($G234:$AH234,$G$231:$AH$231,$C$228,$G$233:$AH$233,'Key indicators'!L$34) -> 1150.845537 | M243: =SUMIFS($G234:$AH234,$G$231:$AH$231,$C$228,$G$233:$AH$233,'Key indicators'!M$34) -> 1847.088891
F244: =HYDROTechnology -> Hydroélectricité | G244: =SUMIFS($G235:$AH235,$G$231:$AH$231,$C$228,$G$233:$AH$233,'Key indicators'!G$34) -> 94 | H244: =SUMIFS($G235:$AH235,$G$231:$AH$231,$C$228,$G$233:$AH$233,'Key indicators'!H$34) -> 94 | I244: =SUMIFS($G235:$AH235,$G$231:$AH$231,$C$228,$G$233:$AH$233,'Key indicators'!I$34) -> 94 | J244: =SUMIFS($G235:$AH235,$G$231:$AH$231,$C$228,$G$233:$AH$233,'Key indicators'!J$34) -> 200.5 | K244: =SUMIFS($G235:$AH235,$G$231:$AH$231,$C$228,$G$233:$AH$233,'Key indicators'!K$34) -> 200.5 | L244: =SUMIFS($G235:$AH235,$G$231:$AH$231,$C$228,$G$233:$AH$233,'Key indicators'!L$34) -> 200.5 | M244: =SUMIFS($G235:$AH235,$G$231:$AH$231,$C$228,$G$233:$AH$233,'Key indicators'!M$34) -> 200.5
F245: =CCGTTechnology -> CCGT (Gaz) | G245: =SUMIFS($G236:$AH236,$G$231:$AH$231,$C$228,$G$233:$AH$233,'Key indicators'!G$34) -> 0 | H245: =SUMIFS($G236:$AH236,$G$231:$AH$231,$C$228,$G$233:$AH$233,'Key indicators'!H$34) -> 172.0057246 | I245: =SUMIFS($G236:$AH236,$G$231:$AH$231,$C$228,$G$233:$AH$233,'Key indicators'!I$34) -> 292.0732769 | J245: =SUMIFS($G236:$AH236,$G$231:$AH$231,$C$228,$G$233:$AH$233,'Key indicators'!J$34) -> 511.4215946 | K245: =SUMIFS($G236:$AH236,$G$231:$AH$231,$C$228,$G$233:$AH$233,'Key indicators'!K$34) -> 695.7187449 | L245: =SUMIFS($G236:$AH236,$G$231:$AH$231,$C$228,$G$233:$AH$233,'Key indicators'!L$34) -> 578.1010889 | M245: =SUMIFS($G236:$AH236,$G$231:$AH$231,$C$228,$G$233:$AH$233,'Key indicators'!M$34) -> 315.5619449
F246: =OCGTTechnology -> Multi-combustibles | G246: =SUMIFS($G237:$AH237,$G$231:$AH$231,$C$228,$G$233:$AH$233,'Key indicators'!G$34) -> 2810592.843 | H246: =SUMIFS($G237:$AH237,$G$231:$AH$231,$C$228,$G$233:$AH$233,'Key indicators'!H$34) -> 235.2170624 | I246: =SUMIFS($G237:$AH237,$G$231:$AH$231,$C$228,$G$233:$AH$233,'Key indicators'!I$34) -> 364.0840703 | J246: =SUMIFS($G237:$AH237,$G$231:$AH$231,$C$228,$G$233:$AH$233,'Key indicators'!J$34) -> 640.3838601 | K246: =SUMIFS($G237:$AH237,$G$231:$AH$231,$C$228,$G$233:$AH$233,'Key indicators'!K$34) -> 877.1372691 | L246: =SUMIFS($G237:$AH237,$G$231:$AH$231,$C$228,$G$233:$AH$233,'Key indicators'!L$34) -> 1483.963014 | M246: =SUMIFS($G237:$AH237,$G$231:$AH$231,$C$228,$G$233:$AH$233,'Key indicators'!M$34) -> 2329.845827
F247: =SOLARTechnology -> Solaire PV | G247: =SUMIFS($G238:$AH238,$G$231:$AH$231,$C$228,$G$233:$AH$233,'Key indicators'!G$34) -> 266.4571676 | H247: =SUMIFS($G238:$AH238,$G$231:$AH$231,$C$228,$G$233:$AH$233,'Key indicators'!H$34) -> 207.1717809 | I247: =SUMIFS($G238:$AH238,$G$231:$AH$231,$C$228,$G$233:$AH$233,'Key indicators'!I$34) -> 421.5444416 | J247: =SUMIFS($G238:$AH238,$G$231:$AH$231,$C$228,$G$233:$AH$233,'Key indicators'!J$34) -> 675.2705829 | K247: =SUMIFS($G238:$AH238,$G$231:$AH$231,$C$228,$G$233:$AH$233,'Key indicators'!K$34) -> 987.164132 | L247: =SUMIFS($G238:$AH238,$G$231:$AH$231,$C$228,$G$233:$AH$233,'Key indicators'!L$34) -> 1733.596375 | M247: =SUMIFS($G238:$AH238,$G$231:$AH$231,$C$228,$G$233:$AH$233,'Key indicators'!M$34) -> 2761.529989
B248: Year selected | C248: 2050
F250: Year | G250: =C248 -> 2050
F251: technology | G251: =Scenario1 -> A1 | H251: =Scenario2 -> A2 | I251: =Scenario3 -> B1
C252: titre | D252: =CONCATENATE(B226,"for all scenarios in ",C248) -> Installed eletrical production capacities (all grids without hydrogen production) for all scenarios in 2050 | F252: =WINDONSHORETechnology -> Eolien Onshore | G252: =SUMIFS($G234:$AH234,$G$231:$AH$231,G$251,$G$233:$AH$233,$G$250) -> 1150.845537 | H252: 808.8512982 | I252: 732.2180435
F253: =HYDROTechnology -> Hydroélectricité | G253: 200.5 | H253: 200.5 | I253: 200.5
F254: =CCGTTechnology -> CCGT (Gaz) | G254: 578.1010889 | H254: 836.7734316 | I254: 392.3614671
F255: =OCGTTechnology -> Multi-combustibles | G255: 1483.963014 | H255: 1064.969421 | I255: 1010.135005
F256: =SOLARTechnology -> Solaire PV | G256: 1733.596375 | H256: 1228.428414 | I256: 1115.23158
B270: Electricity generation (all grids without hydrogen production)
B272: Chosen scenario : | C272: =$C$1 -> A1 | G272: =Scenario1 -> A1 | N272: =Scenario2 -> A2 | U272: =Scenario3 -> B1
G273: =Scenario1 -> A1 | H273: A1 | I273: A1 | J273: A1 | K273: A1 | L273: A1 | M273: A1 | N273: =Scenario2 -> A2 | O273: A2 | P273: A2 | Q273: A2 | R273: A2 | S273: A2 | T273: A2 | U273: =Scenario3 -> B1 | V273: B1 | W273: B1 | X273: B1 | Y273: B1 | Z273: B1 | AA273: B1
G274: =G273&G275 -> A12024 | H274: A12030 | I274: A12035 | J274: A12040 | K274: A12045 | L274: A12050 | M274: A12055 | N274: A22024 | O274: A22030 | P274: A22035 | Q274: A22040 | R274: A22045 | S274: A22050 | T274: A22055 | U274: B12024 | V274: B12030 | W274: B12035 | X274: B12040 | Y274: B12045 | Z274: B12050 | AA274: B12055
F275: technology | G275: ='%User_input%'!B10 -> 2024 | H275: ='%User_input%'!C10 -> 2030 | I275: ='%User_input%'!D10 -> 2035 | J275: ='%User_input%'!E10 -> 2040 | K275: ='%User_input%'!F10 -> 2045 | L275: ='%User_input%'!G10 -> 2050 | M275: ='%User_input%'!H10 -> 2055 | N275: ='%User_input%'!B10 -> 2024 | O275: ='%User_input%'!C10 -> 2030 | P275: ='%User_input%'!D10 -> 2035 | Q275: ='%User_input%'!E10 -> 2040 | R275: ='%User_input%'!F10 -> 2045 | S275: ='%User_input%'!G10 -> 2050 | T275: ='%User_input%'!H10 -> 2055 | U275: ='%User_input%'!B10 -> 2024 | V275: ='%User_input%'!C10 -> 2030 | W275: ='%User_input%'!D10 -> 2035 | X275: ='%User_input%'!E10 -> 2040 | Y275: ='%User_input%'!F10 -> 2045 | Z275: ='%User_input%'!G10 -> 2050 | AA275: ='%User_input%'!H10 -> 2055
C276: titre : | D276: =CONCATENATE(B270," for scenario ",C272,) -> Electricity generation (all grids without hydrogen production) for scenario A1 | F276: =WINDONSHORETechnology -> Eolien Onshore | G276: ='Interconnected network'!D51 -> 113 | H276: ='Interconnected network'!E51 -> 420.8720925 | I276: ='Interconnected network'!F51 -> 871.476574 | J276: ='Interconnected network'!G51 -> 1439.060814 | K276: ='Interconnected network'!H51 -> 2144.811023 | L276: ='Interconnected network'!I51 -> 3824.868991 | M276: ='Interconnected network'!J51 -> 6138.854255 | N276: ='Interconnected network'!K51 -> 113 | O276: ='Interconnected network'!L51 -> 357.7770236 | P276: ='Interconnected network'!M51 -> 724.4555364 | Q276: ='Interconnected network'!N51 -> 1183.288034 | R276: ='Interconnected network'!O51 -> 1735.568987 | S276: ='Interconnected network'!P51 -> 2688.241079 | T276: ='Interconnected network'!Q51 -> 3746.977495 | U276: ='Interconnected network'!R51 -> 113 | V276: ='Interconnected network'!S51 -> 415.9085312 | W276: ='Interconnected network'!T51 -> 625.8768146 | X276: ='Interconnected network'!U51 -> 803.4558404 | Y276: ='Interconnected network'!V51 -> 1229.856618 | Z276: ='Interconnected network'!W51 -> 2433.548203 | AA276: ='Interconnected network'!X51 -> 3855.166267
F277: =HYDROTechnology -> Hydroélectricité | G277: ='Interconnected network'!D47 -> 395 | H277: ='Interconnected network'!E47 -> 395 | I277: ='Interconnected network'!F47 -> 395 | J277: ='Interconnected network'!G47 -> 842.5265957 | K277: ='Interconnected network'!H47 -> 842.5265957 | L277: ='Interconnected network'!I47 -> 842.5265957 | M277: ='Interconnected network'!J47 -> 842.5265957 | N277: ='Interconnected network'!K47 -> 395 | O277: ='Interconnected network'!L47 -> 395 | P277: ='Interconnected network'!M47 -> 395 | Q277: ='Interconnected network'!N47 -> 842.5265957 | R277: ='Interconnected network'!O47 -> 842.5265957 | S277: ='Interconnected network'!P47 -> 842.5265957 | T277: ='Interconnected network'!Q47 -> 842.5265957 | U277: ='Interconnected network'!R47 -> 395 | V277: ='Interconnected network'!S47 -> 395 | W277: ='Interconnected network'!T47 -> 395 | X277: ='Interconnected network'!U47 -> 842.5265957 | Y277: ='Interconnected network'!V47 -> 842.5265957 | Z277: ='Interconnected network'!W47 -> 842.5265957 | AA277: ='Interconnected network'!X47 -> 842.5265957
F278: =CCGTTechnology -> CCGT (Gaz) | G278: ='Interconnected network'!D65 -> 0 | H278: ='Interconnected network'!E65 -> 904.0620883 | I278: ='Interconnected network'!F65 -> 1535.137143 | J278: ='Interconnected network'!G65 -> 2688.031901 | K278: ='Interconnected network'!H65 -> 3656.697723 | L278: ='Interconnected network'!I65 -> 3038.499323 | M278: ='Interconnected network'!J65 -> 1658.593583 | N278: ='Interconnected network'!K65 -> 0 | O278: ='Interconnected network'!L65 -> 1319.082858 | P278: ='Interconnected network'!M65 -> 1905.839196 | Q278: ='Interconnected network'!N65 -> 2969.146971 | R278: ='Interconnected network'!O65 -> 3490.703746 | S278: ='Interconnected network'!P65 -> 4398.081156 | T278: ='Interconnected network'!Q65 -> 5161.457225 | U278: ='Interconnected network'!R65 -> 0 | V278: ='Interconnected network'!S65 -> 897.2410548 | W278: ='Interconnected network'!T65 -> 1195.004278 | X278: ='Interconnected network'!U65 -> 1809.42095 | Y278: ='Interconnected network'!V65 -> 2394.320773 | Z278: ='Interconnected network'!W65 -> 2062.251871 | AA278: ='Interconnected network'!X65 -> 1088.530488
F279: =OCGTTechnology -> Multi-combustibles | G279: ='Interconnected network'!D63+'Mini-grid'!D17 -> 8124754.246 | H279: ='Interconnected network'!E63+'Mini-grid'!E17 -> 242.2755203 | I279: ='Interconnected network'!F63+'Mini-grid'!F17 -> 315.7745084 | J279: ='Interconnected network'!G63+'Mini-grid'!G17 -> 557.1277553 | K279: ='Interconnected network'!H63+'Mini-grid'!H17 -> 764.6139127 | L279: ='Interconnected network'!I63+'Mini-grid'!I17 -> 1296.09396 | M279: ='Interconnected network'!J63+'Mini-grid'!J17 -> 2037.012807 | N279: ='Interconnected network'!K63+'Mini-grid'!K17 -> 687.630406 | O279: ='Interconnected network'!L63+'Mini-grid'!L17 -> 217.743822 | P279: ='Interconnected network'!M63+'Mini-grid'!M17 -> 265.5994732 | Q279: ='Interconnected network'!N63+'Mini-grid'!N17 -> 475.2076793 | R279: ='Interconnected network'!O63+'Mini-grid'!O17 -> 641.710627 | S279: ='Interconnected network'!P63+'Mini-grid'!P17 -> 929.0555727 | T279: ='Interconnected network'!Q63+'Mini-grid'!Q17 -> 1255.322507 | U279: ='Interconnected network'!R63+'Mini-grid'!R17 -> 615.2031369 | V279: ='Interconnected network'!S63+'Mini-grid'!S17 -> 240.8239517 | W279: ='Interconnected network'!T63+'Mini-grid'!T17 -> 246.5744412 | X279: ='Interconnected network'!U63+'Mini-grid'!U17 -> 376.397083 | Y279: ='Interconnected network'!V63+'Mini-grid'!V17 -> 502.0668541 | Z279: ='Interconnected network'!W63+'Mini-grid'!W17 -> 881.0206245 | AA279: ='Interconnected network'!X63+'Mini-grid'!X17 -> 1338.360352
F280: =SOLARTechnology -> Solaire PV | G280: ='Interconnected network'!D50+'Mini-grid'!D16+'Self consumption'!D20 -> 399.6857514 | H280: ='Interconnected network'!E50+'Mini-grid'!E16+'Self consumption'!E20 -> 310.7576713 | I280: ='Interconnected network'!F50+'Mini-grid'!F16+'Self consumption'!F20 -> 632.3166624 | J280: ='Interconnected network'!G50+'Mini-grid'!G16+'Self consumption'!G20 -> 1012.905874 | K280: ='Interconnected network'!H50+'Mini-grid'!H16+'Self consumption'!H20 -> 1480.746198 | L280: ='Interconnected network'!I50+'Mini-grid'!I16+'Self consumption'!I20 -> 2600.394562 | M280: ='Interconnected network'!J50+'Mini-grid'!J16+'Self consumption'!J20 -> 4142.294983 | N280: ='Interconnected network'!K50+'Mini-grid'!K16+'Self consumption'!K20 -> 399.6857514 | O280: ='Interconnected network'!L50+'Mini-grid'!L16+'Self consumption'!L20 -> 268.6942921 | P280: ='Interconnected network'!M50+'Mini-grid'!M16+'Self consumption'!M20 -> 534.3026374 | Q280: ='Interconnected network'!N50+'Mini-grid'!N16+'Self consumption'!N20 -> 842.3906877 | R280: ='Interconnected network'!O50+'Mini-grid'!O16+'Self consumption'!O20 -> 1207.918174 | S280: ='Interconnected network'!P50+'Mini-grid'!P16+'Self consumption'!P20 -> 1842.642621 | T280: ='Interconnected network'!Q50+'Mini-grid'!Q16+'Self consumption'!Q20 -> 2547.710477 | U280: ='Interconnected network'!R50+'Mini-grid'!R16+'Self consumption'!R20 -> 399.6857514 | V280: ='Interconnected network'!S50+'Mini-grid'!S16+'Self consumption'!S20 -> 307.4486305 | W280: ='Interconnected network'!T50+'Mini-grid'!T16+'Self consumption'!T20 -> 468.5834894 | X280: ='Interconnected network'!U50+'Mini-grid'!U16+'Self consumption'!U20 -> 589.169225 | Y280: ='Interconnected network'!V50+'Mini-grid'!V16+'Self consumption'!V20 -> 870.7765946 | Z280: ='Interconnected network'!W50+'Mini-grid'!W16+'Self consumption'!W20 -> 1672.847371 | AA280: ='Interconnected network'!X50+'Mini-grid'!X16+'Self consumption'!X20 -> 2619.836324
F282: Production totale | G282: =SUM(G276:G280) -> 8125661.931 | H282: 2272.967372 | I282: 3749.704888 | J282: 6539.652941 | K282: 8889.395452 | L282: 11602.38343 | M282: 14819.28222 | N282: 1595.316157 | O282: 2558.297996 | P282: 3825.196843 | Q282: 6312.559968 | R282: 7918.42813 | S282: 10700.54703 | T282: 13553.9943 | U282: 1522.888888 | V282: 2256.422168 | W282: 2931.039023 | X282: 4420.969695 | Y282: 5839.547435 | Z282: 7892.194665 | AA282: 9744.420027
F284: Scenario | G284: =C272 -> A1
F285: technology | G285: ='%User_input%'!B10 -> 2024 | H285: ='%User_input%'!C10 -> 2030 | I285: ='%User_input%'!D10 -> 2035 | J285: ='%User_input%'!E10 -> 2040 | K285: ='%User_input%'!F10 -> 2045 | L285: ='%User_input%'!G10 -> 2050 | M285: ='%User_input%'!H10 -> 2055
F286: =WINDONSHORETechnology -> Eolien Onshore | G286: =SUMIFS($G276:$AH276,$G$273:$AH$273,$C$272,$G$275:$AH$275,'Key indicators'!G$34) -> 113 | H286: =SUMIFS($G276:$AH276,$G$273:$AH$273,$C$272,$G$275:$AH$275,'Key indicators'!H$34) -> 420.8720925 | I286: =SUMIFS($G276:$AH276,$G$273:$AH$273,$C$272,$G$275:$AH$275,'Key indicators'!I$34) -> 871.476574 | J286: =SUMIFS($G276:$AH276,$G$273:$AH$273,$C$272,$G$275:$AH$275,'Key indicators'!J$34) -> 1439.060814 | K286: =SUMIFS($G276:$AH276,$G$273:$AH$273,$C$272,$G$275:$AH$275,'Key indicators'!K$34) -> 2144.811023 | L286: =SUMIFS($G276:$AH276,$G$273:$AH$273,$C$272,$G$275:$AH$275,'Key indicators'!L$34) -> 3824.868991 | M286: =SUMIFS($G276:$AH276,$G$273:$AH$273,$C$272,$G$275:$AH$275,'Key indicators'!M$34) -> 6138.854255
F287: =HYDROTechnology -> Hydroélectricité | G287: =SUMIFS($G277:$AH277,$G$273:$AH$273,$C$272,$G$275:$AH$275,'Key indicators'!G$34) -> 395 | H287: =SUMIFS($G277:$AH277,$G$273:$AH$273,$C$272,$G$275:$AH$275,'Key indicators'!H$34) -> 395 | I287: =SUMIFS($G277:$AH277,$G$273:$AH$273,$C$272,$G$275:$AH$275,'Key indicators'!I$34) -> 395 | J287: =SUMIFS($G277:$AH277,$G$273:$AH$273,$C$272,$G$275:$AH$275,'Key indicators'!J$34) -> 842.5265957 | K287: =SUMIFS($G277:$AH277,$G$273:$AH$273,$C$272,$G$275:$AH$275,'Key indicators'!K$34) -> 842.5265957 | L287: =SUMIFS($G277:$AH277,$G$273:$AH$273,$C$272,$G$275:$AH$275,'Key indicators'!L$34) -> 842.5265957 | M287: =SUMIFS($G277:$AH277,$G$273:$AH$273,$C$272,$G$275:$AH$275,'Key indicators'!M$34) -> 842.5265957
F288: =CCGTTechnology -> CCGT (Gaz) | G288: =SUMIFS($G278:$AH278,$G$273:$AH$273,$C$272,$G$275:$AH$275,'Key indicators'!G$34) -> 0 | H288: =SUMIFS($G278:$AH278,$G$273:$AH$273,$C$272,$G$275:$AH$275,'Key indicators'!H$34) -> 904.0620883 | I288: =SUMIFS($G278:$AH278,$G$273:$AH$273,$C$272,$G$275:$AH$275,'Key indicators'!I$34) -> 1535.137143 | J288: =SUMIFS($G278:$AH278,$G$273:$AH$273,$C$272,$G$275:$AH$275,'Key indicators'!J$34) -> 2688.031901 | K288: =SUMIFS($G278:$AH278,$G$273:$AH$273,$C$272,$G$275:$AH$275,'Key indicators'!K$34) -> 3656.697723 | L288: =SUMIFS($G278:$AH278,$G$273:$AH$273,$C$272,$G$275:$AH$275,'Key indicators'!L$34) -> 3038.499323 | M288: =SUMIFS($G278:$AH278,$G$273:$AH$273,$C$272,$G$275:$AH$275,'Key indicators'!M$34) -> 1658.593583
F289: =OCGTTechnology -> Multi-combustibles | G289: =SUMIFS($G279:$AH279,$G$273:$AH$273,$C$272,$G$275:$AH$275,'Key indicators'!G$34) -> 8124754.246 | H289: =SUMIFS($G279:$AH279,$G$273:$AH$273,$C$272,$G$275:$AH$275,'Key indicators'!H$34) -> 242.2755203 | I289: =SUMIFS($G279:$AH279,$G$273:$AH$273,$C$272,$G$275:$AH$275,'Key indicators'!I$34) -> 315.7745084 | J289: =SUMIFS($G279:$AH279,$G$273:$AH$273,$C$272,$G$275:$AH$275,'Key indicators'!J$34) -> 557.1277553 | K289: =SUMIFS($G279:$AH279,$G$273:$AH$273,$C$272,$G$275:$AH$275,'Key indicators'!K$34) -> 764.6139127 | L289: =SUMIFS($G279:$AH279,$G$273:$AH$273,$C$272,$G$275:$AH$275,'Key indicators'!L$34) -> 1296.09396 | M289: =SUMIFS($G279:$AH279,$G$273:$AH$273,$C$272,$G$275:$AH$275,'Key indicators'!M$34) -> 2037.012807
F290: =SOLARTechnology -> Solaire PV | G290: =SUMIFS($G280:$AH280,$G$273:$AH$273,$C$272,$G$275:$AH$275,'Key indicators'!G$34) -> 399.6857514 | H290: =SUMIFS($G280:$AH280,$G$273:$AH$273,$C$272,$G$275:$AH$275,'Key indicators'!H$34) -> 310.7576713 | I290: =SUMIFS($G280:$AH280,$G$273:$AH$273,$C$272,$G$275:$AH$275,'Key indicators'!I$34) -> 632.3166624 | J290: =SUMIFS($G280:$AH280,$G$273:$AH$273,$C$272,$G$275:$AH$275,'Key indicators'!J$34) -> 1012.905874 | K290: =SUMIFS($G280:$AH280,$G$273:$AH$273,$C$272,$G$275:$AH$275,'Key indicators'!K$34) -> 1480.746198 | L290: =SUMIFS($G280:$AH280,$G$273:$AH$273,$C$272,$G$275:$AH$275,'Key indicators'!L$34) -> 2600.394562 | M290: =SUMIFS($G280:$AH280,$G$273:$AH$273,$C$272,$G$275:$AH$275,'Key indicators'!M$34) -> 4142.294983
B293: Year selected : | C293: 2035 | F293: Year | G293: =C293 -> 2035
F294: technology | G294: =Scenario1 -> A1 | H294: =Scenario2 -> A2 | I294: =Scenario3 -> B1
C295: titre | D295: =CONCATENATE(B270, " for all scenarios in ",C293) -> Electricity generation (all grids without hydrogen production) for all scenarios in 2035 | F295: =WINDONSHORETechnology -> Eolien Onshore | G295: =SUMIFS($G276:$AH276,$G$231:$AH$231,G$294,$G$233:$AH$233,$G$293) -> 871.476574 | H295: 724.4555364 | I295: 625.8768146
F296: =HYDROTechnology -> Hydroélectricité | G296: 395 | H296: 395 | I296: 395
F297: =CCGTTechnology -> CCGT (Gaz) | G297: 1535.137143 | H297: 1905.839196 | I297: 1195.004278
F298: =OCGTTechnology -> Multi-combustibles | G298: 315.7745084 | H298: 265.5994732 | I298: 246.5744412
F299: =SOLARTechnology -> Solaire PV | G299: 632.3166624 | H299: 534.3026374 | I299: 468.5834894
B315: Primary energy consumption for electricity generation (all grids, without hydrogen production)
B317: Chosen scenario : | C317: =$C$1 -> A1
G318: =Scenario1 -> A1 | N318: =Scenario2 -> A2 | U318: =Scenario3 -> B1
G319: =Scenario1 -> A1 | H319: A1 | I319: A1 | J319: A1 | K319: A1 | L319: A1 | M319: A1 | N319: =Scenario2 -> A2 | O319: A2 | P319: A2 | Q319: A2 | R319: A2 | S319: A2 | T319: A2 | U319: =Scenario3 -> B1 | V319: B1 | W319: B1 | X319: B1 | Y319: B1 | Z319: B1 | AA319: B1
G320: =G319&G321 -> A12024 | H320: A12030 | I320: A12035 | J320: A12040 | K320: A12045 | L320: A12050 | M320: A12055 | N320: A22024 | O320: A22030 | P320: A22035 | Q320: A22040 | R320: A22045 | S320: A22050 | T320: A22055 | U320: B12024 | V320: B12030 | W320: B12035 | X320: B12040 | Y320: B12045 | Z320: B12050 | AA320: B12055
C321: titre : | D321: =CONCATENATE(B315," for scenario ",C317) -> Primary energy consumption for electricity generation (all grids, without hydrogen production) for scenario A1 | F321: Energy | G321: ='%User_input%'!B10 -> 2024 | H321: ='%User_input%'!C10 -> 2030 | I321: ='%User_input%'!D10 -> 2035 | J321: ='%User_input%'!E10 -> 2040 | K321: ='%User_input%'!F10 -> 2045 | L321: ='%User_input%'!G10 -> 2050 | M321: ='%User_input%'!H10 -> 2055 | N321: ='%User_input%'!B10 -> 2024 | O321: ='%User_input%'!C10 -> 2030 | P321: ='%User_input%'!D10 -> 2035 | Q321: ='%User_input%'!E10 -> 2040 | R321: ='%User_input%'!F10 -> 2045 | S321: ='%User_input%'!G10 -> 2050 | T321: ='%User_input%'!H10 -> 2055 | U321: ='%User_input%'!B10 -> 2024 | V321: ='%User_input%'!C10 -> 2030 | W321: ='%User_input%'!D10 -> 2035 | X321: ='%User_input%'!E10 -> 2040 | Y321: ='%User_input%'!F10 -> 2045 | Z321: ='%User_input%'!G10 -> 2050 | AA321: ='%User_input%'!H10 -> 2055
F322: =OilEnergy -> Oil products | G322: =Industry!E188+'Mini-grid'!D32+'Interconnected network'!D77+'Interconnected network'!D79 -> 1624718.871 | H322: =Industry!F188+'Mini-grid'!E32+'Interconnected network'!E77+'Interconnected network'!E79 -> 105.8767805 | I322: =Industry!G188+'Mini-grid'!F32+'Interconnected network'!F77+'Interconnected network'!F79 -> 54.52621264 | J322: =Industry!H188+'Mini-grid'!G32+'Interconnected network'!G77+'Interconnected network'!G79 -> 69.01868696 | K322: =Industry!I188+'Mini-grid'!H32+'Interconnected network'!H77+'Interconnected network'!H79 -> 76.13394862 | L322: =Industry!J188+'Mini-grid'!I32+'Interconnected network'!I77+'Interconnected network'!I79 -> 62.77172299 | M322: =Industry!K188+'Mini-grid'!J32+'Interconnected network'!J77+'Interconnected network'!J79 -> 92.25726722 | N322: =Industry!L188+'Mini-grid'!K32+'Interconnected network'!K77+'Interconnected network'!K79 -> 197.9617749 | O322: =Industry!M188+'Mini-grid'!L32+'Interconnected network'!L77+'Interconnected network'!L79 -> 111.6851428 | P322: =Industry!N188+'Mini-grid'!M32+'Interconnected network'!M77+'Interconnected network'!M79 -> 65.24003171 | Q322: =Industry!O188+'Mini-grid'!N32+'Interconnected network'!N77+'Interconnected network'!N79 -> 100.4431674 | R322: =Industry!P188+'Mini-grid'!O32+'Interconnected network'!O77+'Interconnected network'!O79 -> 110.8662691 | S322: =Industry!Q188+'Mini-grid'!P32+'Interconnected network'!P77+'Interconnected network'!P79 -> 121.3467034 | T322: =Industry!R188+'Mini-grid'!Q32+'Interconnected network'!Q77+'Interconnected network'!Q79 -> 178.8463687 | U322: =Industry!S188+'Mini-grid'!R32+'Interconnected network'!R77+'Interconnected network'!R79 -> 165.6752495 | V322: =Industry!T188+'Mini-grid'!S32+'Interconnected network'!S77+'Interconnected network'!S79 -> 104.3267539 | W322: =Industry!U188+'Mini-grid'!T32+'Interconnected network'!T77+'Interconnected network'!T79 -> 22.9768211 | X322: =Industry!V188+'Mini-grid'!U32+'Interconnected network'!U77+'Interconnected network'!U79 -> 18.78026258 | Y322: =Industry!W188+'Mini-grid'!V32+'Interconnected network'!V77+'Interconnected network'!V79 -> 18.75297819 | Z322: =Industry!X188+'Mini-grid'!W32+'Interconnected network'!W77+'Interconnected network'!W79 -> 14.59193949 | AA322: =Industry!Y188+'Mini-grid'!X32+'Interconnected network'!X77+'Interconnected network'!X79 -> 24.84081708
F323: =NaturalGasEnergy -> Natural gas | G323: ='Interconnected network'!D78 -> 0 | H323: ='Interconnected network'!E78 -> 155.4706945 | I323: ='Interconnected network'!F78 -> 326.4495904 | J323: ='Interconnected network'!G78 -> 572.8242557 | K323: ='Interconnected network'!H78 -> 780.914226 | L323: ='Interconnected network'!I78 -> 780.8584542 | M323: ='Interconnected network'!J78 -> 691.6982309 | N323: ='Interconnected network'!K78 -> 0 | O323: ='Interconnected network'!L78 -> 226.8414202 | P323: ='Interconnected network'!M78 -> 380.1656675 | Q323: ='Interconnected network'!N78 -> 604.7862792 | R323: ='Interconnected network'!O78 -> 727.7921667 | S323: ='Interconnected network'!P78 -> 941.2699779 | T323: ='Interconnected network'!Q78 -> 1137.772424 | U323: ='Interconnected network'!R78 -> 0 | V323: ='Interconnected network'!S78 -> 154.2976878 | W323: ='Interconnected network'!T78 -> 254.1197435 | X323: ='Interconnected network'!U78 -> 385.5907397 | Y323: ='Interconnected network'!V78 -> 511.324505 | Z323: ='Interconnected network'!W78 -> 529.9743844 | AA323: ='Interconnected network'!X78 -> 453.9596807
F324: =HYDROTechnology -> Hydroélectricité | G324: ='Interconnected network'!D47*GWh_to_ktoe -> 33.9638865 | H324: ='Interconnected network'!E47*GWh_to_ktoe -> 33.9638865 | I324: ='Interconnected network'!F47*GWh_to_ktoe -> 33.9638865 | J324: ='Interconnected network'!G47*GWh_to_ktoe -> 72.44424727 | K324: ='Interconnected network'!H47*GWh_to_ktoe -> 72.44424727 | L324: ='Interconnected network'!I47*GWh_to_ktoe -> 72.44424727 | M324: ='Interconnected network'!J47*GWh_to_ktoe -> 72.44424727 | N324: ='Interconnected network'!K47*GWh_to_ktoe -> 33.9638865 | O324: ='Interconnected network'!L47*GWh_to_ktoe -> 33.9638865 | P324: ='Interconnected network'!M47*GWh_to_ktoe -> 33.9638865 | Q324: ='Interconnected network'!N47*GWh_to_ktoe -> 72.44424727 | R324: ='Interconnected network'!O47*GWh_to_ktoe -> 72.44424727 | S324: ='Interconnected network'!P47*GWh_to_ktoe -> 72.44424727 | T324: ='Interconnected network'!Q47*GWh_to_ktoe -> 72.44424727 | U324: ='Interconnected network'!R47*GWh_to_ktoe -> 33.9638865 | V324: ='Interconnected network'!S47*GWh_to_ktoe -> 33.9638865 | W324: ='Interconnected network'!T47*GWh_to_ktoe -> 33.9638865 | X324: ='Interconnected network'!U47*GWh_to_ktoe -> 72.44424727 | Y324: ='Interconnected network'!V47*GWh_to_ktoe -> 72.44424727 | Z324: ='Interconnected network'!W47*GWh_to_ktoe -> 72.44424727 | AA324: ='Interconnected network'!X47*GWh_to_ktoe -> 72.44424727
F325: =SOLARTechnology -> Solaire PV | G325: =('Interconnected network'!D50+'Mini-grid'!D16+'Self consumption'!D20)*GWh_to_ktoe -> 34.36678859 | H325: =('Interconnected network'!E50+'Mini-grid'!E16+'Self consumption'!E20)*GWh_to_ktoe -> 26.72035007 | I325: =('Interconnected network'!F50+'Mini-grid'!F16+'Self consumption'!F20)*GWh_to_ktoe -> 54.36944647 | J325: =('Interconnected network'!G50+'Mini-grid'!G16+'Self consumption'!G20)*GWh_to_ktoe -> 87.09422823 | K325: =('Interconnected network'!H50+'Mini-grid'!H16+'Self consumption'!H20)*GWh_to_ktoe -> 127.3212552 | L325: =('Interconnected network'!I50+'Mini-grid'!I16+'Self consumption'!I20)*GWh_to_ktoe -> 223.5936855 | M325: =('Interconnected network'!J50+'Mini-grid'!J16+'Self consumption'!J20)*GWh_to_ktoe -> 356.1732574 | N325: =('Interconnected network'!K50+'Mini-grid'!K16+'Self consumption'!K20)*GWh_to_ktoe -> 34.36678859 | O325: =('Interconnected network'!L50+'Mini-grid'!L16+'Self consumption'!L20)*GWh_to_ktoe -> 23.10355048 | P325: =('Interconnected network'!M50+'Mini-grid'!M16+'Self consumption'!M20)*GWh_to_ktoe -> 45.9417573 | Q325: =('Interconnected network'!N50+'Mini-grid'!N16+'Self consumption'!N20)*GWh_to_ktoe -> 72.43256128 | R325: =('Interconnected network'!O50+'Mini-grid'!O16+'Self consumption'!O20)*GWh_to_ktoe -> 103.8622678 | S325: =('Interconnected network'!P50+'Mini-grid'!P16+'Self consumption'!P20)*GWh_to_ktoe -> 158.4387464 | T325: =('Interconnected network'!Q50+'Mini-grid'!Q16+'Self consumption'!Q20)*GWh_to_ktoe -> 219.0636696 | U325: =('Interconnected network'!R50+'Mini-grid'!R16+'Self consumption'!R20)*GWh_to_ktoe -> 34.36678859 | V325: =('Interconnected network'!S50+'Mini-grid'!S16+'Self consumption'!S20)*GWh_to_ktoe -> 26.43582377 | W325: =('Interconnected network'!T50+'Mini-grid'!T16+'Self consumption'!T20)*GWh_to_ktoe -> 40.29092772 | X325: =('Interconnected network'!U50+'Mini-grid'!U16+'Self consumption'!U20)*GWh_to_ktoe -> 50.65943466 | Y325: =('Interconnected network'!V50+'Mini-grid'!V16+'Self consumption'!V20)*GWh_to_ktoe -> 74.87330994 | Z325: =('Interconnected network'!W50+'Mini-grid'!W16+'Self consumption'!W20)*GWh_to_ktoe -> 143.8389828 | AA325: =('Interconnected network'!X50+'Mini-grid'!X16+'Self consumption'!X20)*GWh_to_ktoe -> 225.2653761
F326: Wind | G326: =('Interconnected network'!D51)*GWh_to_ktoe -> 9.716251075 | H326: =('Interconnected network'!E51)*GWh_to_ktoe -> 36.18848603 | I326: =('Interconnected network'!F51)*GWh_to_ktoe -> 74.93349733 | J326: =('Interconnected network'!G51)*GWh_to_ktoe -> 123.7369574 | K326: =('Interconnected network'!H51)*GWh_to_ktoe -> 184.4205523 | L326: =('Interconnected network'!I51)*GWh_to_ktoe -> 328.8795349 | M326: =('Interconnected network'!J51)*GWh_to_ktoe -> 527.8464535 | N326: =('Interconnected network'!K51)*GWh_to_ktoe -> 9.716251075 | O326: =('Interconnected network'!L51)*GWh_to_ktoe -> 30.76328664 | P326: =('Interconnected network'!M51)*GWh_to_ktoe -> 62.29196358 | Q326: =('Interconnected network'!N51)*GWh_to_ktoe -> 101.744457 | R326: =('Interconnected network'!O51)*GWh_to_ktoe -> 149.2320711 | S326: =('Interconnected network'!P51)*GWh_to_ktoe -> 231.1471263 | T326: =('Interconnected network'!Q51)*GWh_to_ktoe -> 322.1820718 | U326: =('Interconnected network'!R51)*GWh_to_ktoe -> 9.716251075 | V326: =('Interconnected network'!S51)*GWh_to_ktoe -> 35.76169658 | W326: =('Interconnected network'!T51)*GWh_to_ktoe -> 53.81571922 | X326: =('Interconnected network'!U51)*GWh_to_ktoe -> 69.08476702 | Y326: =('Interconnected network'!V51)*GWh_to_ktoe -> 105.7486344 | Z326: =('Interconnected network'!W51)*GWh_to_ktoe -> 209.247481 | AA326: =('Interconnected network'!X51)*GWh_to_ktoe -> 331.4846317
F327: Total | G327: =SUM(G322:G326) -> 1624796.918 | H327: 358.2201975 | I327: 544.2426333 | J327: 925.1183755 | K327: 1241.234229 | L327: 1468.547645 | M327: 1740.419456 | N327: 276.0087011 | O327: 426.3572866 | P327: 587.6033066 | Q327: 951.8507122 | R327: 1164.197022 | S327: 1524.646801 | T327: 1930.308781 | U327: 243.7221757 | V327: 354.7858486 | W327: 405.1670981 | X327: 596.5594512 | Y327: 783.1436748 | Z327: 970.097035 | AA327: 1107.994753
G330: =C317 -> A1
G331: ='%User_input%'!B10 -> 2024 | H331: ='%User_input%'!C10 -> 2030 | I331: ='%User_input%'!D10 -> 2035 | J331: ='%User_input%'!E10 -> 2040 | K331: ='%User_input%'!F10 -> 2045 | L331: ='%User_input%'!G10 -> 2050 | M331: ='%User_input%'!H10 -> 2055
F332: =OilEnergy -> Oil products | G332: =SUMIFS($G322:$AH322,$G$321:$AH$321,G$331,$G$319:$AH$319,$C$1) -> 1624718.871 | H332: 105.8767805 | I332: 54.52621264 | J332: 69.01868696 | K332: 76.13394862 | L332: 62.77172299 | M332: 92.25726722
F333: =NaturalGasEnergy -> Natural gas | G333: 0 | H333: 155.4706945 | I333: 326.4495904 | J333: 572.8242557 | K333: 780.914226 | L333: 780.8584542 | M333: 691.6982309
F334: =HYDROTechnology -> Hydroélectricité | G334: 33.9638865 | H334: 33.9638865 | I334: 33.9638865 | J334: 72.44424727 | K334: 72.44424727 | L334: 72.44424727 | M334: 72.44424727
F335: =SOLARTechnology -> Solaire PV | G335: 34.36678859 | H335: 26.72035007 | I335: 54.36944647 | J335: 87.09422823 | K335: 127.3212552 | L335: 223.5936855 | M335: 356.1732574
F336: Wind | G336: 9.716251075 | H336: 36.18848603 | I336: 74.93349733 | J336: 123.7369574 | K336: 184.4205523 | L336: 328.8795349 | M336: 527.8464535
D337: Primary energy consumption for electricity production includes the fuel used in the various power plants. For renewable energy production (solar, wind, hydro), we assume by convention that primary energy consumption is equal to electricity production. | F337: Total | G337: 1624796.918 | H337: 358.2201975 | I337: 544.2426333 | J337: 925.1183755 | K337: 1241.234229 | L337: 1468.547645 | M337: 1740.419456
A341: Production and consumption comparaison
D343: Graph reading guide: The colors below the dashed line represent energy consumed, while the colors above the dashed line represent energy produced. The blue dot indicates Mauritania's total energy balance: if it is below the dashed line, Mauritania is a net importer of energy (overall, for all considered energy types, it consumes more energy than it produces within its territory). If it is above the dashed line, it produces more total energy than it consumes within its territory.
... 39 more rows

Sheet Sectorial indicators
B1: Scenario choice | C1: A1 | G1: Retour sommaire
A4: All sectors
B7: Final energy consumption
B9: Final energy consumption per sector and per energy
B11: Selected scenario : | C11: =C1 -> A1 | Q11: =Scenario1 -> A1 | X11: =Scenario2 -> A2 | AE11: =Scenario3 -> B1
B12: Year sélectionnée : | C12: 2024 | Q12: =Scenario1 -> A1 | R12: A1 | S12: A1 | T12: A1 | U12: A1 | V12: A1 | W12: A1 | X12: =Scenario2 -> A2 | Y12: A2 | Z12: A2 | AA12: A2 | AB12: A2 | AC12: A2 | AD12: A2 | AE12: =Scenario3 -> B1 | AF12: B1 | AG12: B1 | AH12: B1 | AI12: B1 | AJ12: B1 | AK12: B1
Q13: =Q12&Q14 -> A12024 | R13: A12030 | S13: A12035 | T13: A12040 | U13: A12045 | V13: A12050 | W13: A12055 | X13: A22024 | Y13: A22030 | Z13: A22035 | AA13: A22040 | AB13: A22045 | AC13: A22050 | AD13: A22055 | AE13: B12024 | AF13: B12030 | AG13: B12035 | AH13: B12040 | AI13: B12045 | AJ13: B12050 | AK13: B12055 | AS13: =CONCATENATE(C11,C12) -> A12024
O14: Energy | P14: Secteur | Q14: ='%User_input%'!B10 -> 2024 | R14: ='%User_input%'!C10 -> 2030 | S14: ='%User_input%'!D10 -> 2035 | T14: ='%User_input%'!E10 -> 2040 | U14: ='%User_input%'!F10 -> 2045 | V14: ='%User_input%'!G10 -> 2050 | W14: ='%User_input%'!H10 -> 2055 | X14: ='%User_input%'!B10 -> 2024 | Y14: ='%User_input%'!C10 -> 2030 | Z14: ='%User_input%'!D10 -> 2035 | AA14: ='%User_input%'!E10 -> 2040 | AB14: ='%User_input%'!F10 -> 2045 | AC14: ='%User_input%'!G10 -> 2050 | AD14: ='%User_input%'!H10 -> 2055 | AE14: ='%User_input%'!B10 -> 2024 | AF14: ='%User_input%'!C10 -> 2030 | AG14: ='%User_input%'!D10 -> 2035 | AH14: ='%User_input%'!E10 -> 2040 | AI14: ='%User_input%'!F10 -> 2045 | AJ14: ='%User_input%'!G10 -> 2050 | AK14: ='%User_input%'!H10 -> 2055
F15: Scenario | G15: =C11 -> A1 | O15: =PowerEnergy -> Electricity | P15: =ResidentialSector -> Residential | Q15: =VLOOKUP(CONCATENATE("Total consumption - ",$O$15," (",$P15,")"),INDIRECT($P15&"!$B$4:$AQ$368"),MATCH(Q$13,INDIRECT($P15&"!$B$4:$AQ$4"),0),0)+'Self consumption'!D20*GWh_to_ktoe -> 303531.935 | R15: =VLOOKUP(CONCATENATE("Total consumption - ",$O$15," (",$P15,")"),INDIRECT($P15&"!$B$4:$AQ$368"),MATCH(R$13,INDIRECT($P15&"!$B$4:$AQ$4"),0),0)+'Self consumption'!E20*GWh_to_ktoe -> 43.49016847 | S15: =VLOOKUP(CONCATENATE("Total consumption - ",$O$15," (",$P15,")"),INDIRECT($P15&"!$B$4:$AQ$368"),MATCH(S$13,INDIRECT($P15&"!$B$4:$AQ$4"),0),0)+'Self consumption'!F20*GWh_to_ktoe -> 67.98758926 | T15: =VLOOKUP(CONCATENATE("Total consumption - ",$O$15," (",$P15,")"),INDIRECT($P15&"!$B$4:$AQ$368"),MATCH(T$13,INDIRECT($P15&"!$B$4:$AQ$4"),0),0)+'Self consumption'!G20*GWh_to_ktoe -> 96.35588698 | U15: =VLOOKUP(CONCATENATE("Total consumption - ",$O$15," (",$P15,")"),INDIRECT($P15&"!$B$4:$AQ$368"),MATCH(U$13,INDIRECT($P15&"!$B$4:$AQ$4"),0),0)+'Self consumption'!H20*GWh_to_ktoe -> 125.6084087 | V15: =VLOOKUP(CONCATENATE("Total consumption - ",$O$15," (",$P15,")"),INDIRECT($P15&"!$B$4:$AQ$368"),MATCH(V$13,INDIRECT($P15&"!$B$4:$AQ$4"),0),0)+'Self consumption'!I20*GWh_to_ktoe -> 157.153347 | W15: =VLOOKUP(CONCATENATE("Total consumption - ",$O$15," (",$P15,")"),INDIRECT($P15&"!$B$4:$AQ$368"),MATCH(W$13,INDIRECT($P15&"!$B$4:$AQ$4"),0),0)+'Self consumption'!J20*GWh_to_ktoe -> 192.7164535 | X15: =VLOOKUP(CONCATENATE("Total consumption - ",$O$15," (",$P15,")"),INDIRECT($P15&"!$B$4:$AQ$368"),MATCH(X$13,INDIRECT($P15&"!$B$4:$AQ$4"),0),0)+'Self consumption'!K20*GWh_to_ktoe -> 26.61482565 | Y15: =VLOOKUP(CONCATENATE("Total consumption - ",$O$15," (",$P15,")"),INDIRECT($P15&"!$B$4:$AQ$368"),MATCH(Y$13,INDIRECT($P15&"!$B$4:$AQ$4"),0),0)+'Self consumption'!L20*GWh_to_ktoe -> 42.88171547 | Z15: =VLOOKUP(CONCATENATE("Total consumption - ",$O$15," (",$P15,")"),INDIRECT($P15&"!$B$4:$AQ$368"),MATCH(Z$13,INDIRECT($P15&"!$B$4:$AQ$4"),0),0)+'Self consumption'!M20*GWh_to_ktoe -> 66.56873681 | AA15: =VLOOKUP(CONCATENATE("Total consumption - ",$O$15," (",$P15,")"),INDIRECT($P15&"!$B$4:$AQ$368"),MATCH(AA$13,INDIRECT($P15&"!$B$4:$AQ$4"),0),0)+'Self consumption'!N20*GWh_to_ktoe -> 93.91162496 | AB15: =VLOOKUP(CONCATENATE("Total consumption - ",$O$15," (",$P15,")"),INDIRECT($P15&"!$B$4:$AQ$368"),MATCH(AB$13,INDIRECT($P15&"!$B$4:$AQ$4"),0),0)+'Self consumption'!O20*GWh_to_ktoe -> 121.9153374 | AC15: =VLOOKUP(CONCATENATE("Total consumption - ",$O$15," (",$P15,")"),INDIRECT($P15&"!$B$4:$AQ$368"),MATCH(AC$13,INDIRECT($P15&"!$B$4:$AQ$4"),0),0)+'Self consumption'!P20*GWh_to_ktoe -> 151.9879177 | AD15: =VLOOKUP(CONCATENATE("Total consumption - ",$O$15," (",$P15,")"),INDIRECT($P15&"!$B$4:$AQ$368"),MATCH(AD$13,INDIRECT($P15&"!$B$4:$AQ$4"),0),0)+'Self consumption'!Q20*GWh_to_ktoe -> 185.4852825 | AE15: =VLOOKUP(CONCATENATE("Total consumption - ",$O$15," (",$P15,")"),INDIRECT($P15&"!$B$4:$AQ$368"),MATCH(AE$13,INDIRECT($P15&"!$B$4:$AQ$4"),0),0)+'Self consumption'!R20*GWh_to_ktoe -> 26.61482565 | AF15: =VLOOKUP(CONCATENATE("Total consumption - ",$O$15," (",$P15,")"),INDIRECT($P15&"!$B$4:$AQ$368"),MATCH(AF$13,INDIRECT($P15&"!$B$4:$AQ$4"),0),0)+'Self consumption'!S20*GWh_to_ktoe -> 43.42873444 | AG15: =VLOOKUP(CONCATENATE("Total consumption - ",$O$15," (",$P15,")"),INDIRECT($P15&"!$B$4:$AQ$368"),MATCH(AG$13,INDIRECT($P15&"!$B$4:$AQ$4"),0),0)+'Self consumption'!T20*GWh_to_ktoe -> 67.86161863 | AH15: =VLOOKUP(CONCATENATE("Total consumption - ",$O$15," (",$P15,")"),INDIRECT($P15&"!$B$4:$AQ$368"),MATCH(AH$13,INDIRECT($P15&"!$B$4:$AQ$4"),0),0)+'Self consumption'!U20*GWh_to_ktoe -> 96.16215967 | AI15: =VLOOKUP(CONCATENATE("Total consumption - ",$O$15," (",$P15,")"),INDIRECT($P15&"!$B$4:$AQ$368"),MATCH(AI$13,INDIRECT($P15&"!$B$4:$AQ$4"),0),0)+'Self consumption'!V20*GWh_to_ktoe -> 125.3468606 | AJ15: =VLOOKUP(CONCATENATE("Total consumption - ",$O$15," (",$P15,")"),INDIRECT($P15&"!$B$4:$AQ$368"),MATCH(AJ$13,INDIRECT($P15&"!$B$4:$AQ$4"),0),0)+'Self consumption'!W20*GWh_to_ktoe -> 156.824774 | AK15: =VLOOKUP(CONCATENATE("Total consumption - ",$O$15," (",$P15,")"),INDIRECT($P15&"!$B$4:$AQ$368"),MATCH(AK$13,INDIRECT($P15&"!$B$4:$AQ$4"),0),0)+'Self consumption'!X20*GWh_to_ktoe -> 192.3727085 | AS15: =SUMIFS(Q15:AR15,$Q$13:$AR$13,$AS$13) -> 303531.935
F16: Year | G16: =C12 -> 2024 | O16: Electricity | P16: Other electrical demand | Q16: =('Interconnected network'!D11+'Interconnected network'!D21+'Mini-grid'!D10)*GWh_to_ktoe -> 136608.2297 | R16: =('Interconnected network'!E11+'Interconnected network'!E21+'Mini-grid'!E10)*GWh_to_ktoe -> 49.9604595 | S16: =('Interconnected network'!F11+'Interconnected network'!F21+'Mini-grid'!F10)*GWh_to_ktoe -> 81.05266755 | T16: =('Interconnected network'!G11+'Interconnected network'!G21+'Mini-grid'!G10)*GWh_to_ktoe -> 126.3203297 | U16: =('Interconnected network'!H11+'Interconnected network'!H21+'Mini-grid'!H10)*GWh_to_ktoe -> 176.4156902 | V16: =('Interconnected network'!I11+'Interconnected network'!I21+'Mini-grid'!I10)*GWh_to_ktoe -> 243.9677305 | W16: =('Interconnected network'!J11+'Interconnected network'!J21+'Mini-grid'!J10)*GWh_to_ktoe -> 306.6926448 | X16: =('Interconnected network'!K11+'Interconnected network'!K21+'Mini-grid'!K10)*GWh_to_ktoe -> 30.83561239 | Y16: =('Interconnected network'!L11+'Interconnected network'!L21+'Mini-grid'!L10)*GWh_to_ktoe -> 49.9604595 | Z16: =('Interconnected network'!M11+'Interconnected network'!M21+'Mini-grid'!M10)*GWh_to_ktoe -> 81.05266755 | AA16: =('Interconnected network'!N11+'Interconnected network'!N21+'Mini-grid'!N10)*GWh_to_ktoe -> 126.3203297 | AB16: =('Interconnected network'!O11+'Interconnected network'!O21+'Mini-grid'!O10)*GWh_to_ktoe -> 176.4156902 | AC16: =('Interconnected network'!P11+'Interconnected network'!P21+'Mini-grid'!P10)*GWh_to_ktoe -> 243.9677305 | AD16: =('Interconnected network'!Q11+'Interconnected network'!Q21+'Mini-grid'!Q10)*GWh_to_ktoe -> 306.6926448 | AE16: =('Interconnected network'!R11+'Interconnected network'!R21+'Mini-grid'!R10)*GWh_to_ktoe -> 30.83561239 | AF16: =('Interconnected network'!S11+'Interconnected network'!S21+'Mini-grid'!S10)*GWh_to_ktoe -> 49.9604595 | AG16: =('Interconnected network'!T11+'Interconnected network'!T21+'Mini-grid'!T10)*GWh_to_ktoe -> 81.05266755 | AH16: =('Interconnected network'!U11+'Interconnected network'!U21+'Mini-grid'!U10)*GWh_to_ktoe -> 126.3203297 | AI16: =('Interconnected network'!V11+'Interconnected network'!V21+'Mini-grid'!V10)*GWh_to_ktoe -> 176.4156902 | AJ16: =('Interconnected network'!W11+'Interconnected network'!W21+'Mini-grid'!W10)*GWh_to_ktoe -> 243.9677305 | AK16: =('Interconnected network'!X11+'Interconnected network'!X21+'Mini-grid'!X10)*GWh_to_ktoe -> 306.6926448 | AS16: 136608.2297
F17: Energy | G17: =ResidentialSector -> Residential | H17: =IndustrySector -> Industry | I17: =TransportSector -> Transport | J17: Agriculture | K17: Autre demande électrique | L17: LNG Production | O17: Electricity | P17: Exports | Q17: ='Interconnected network'!D30*GWh_to_ktoe -> 0 | R17: ='Interconnected network'!E30*GWh_to_ktoe -> 0 | S17: ='Interconnected network'!F30*GWh_to_ktoe -> 33.89509888 | T17: ='Interconnected network'!G30*GWh_to_ktoe -> 67.79019776 | U17: ='Interconnected network'!H30*GWh_to_ktoe -> 67.79019776 | V17: ='Interconnected network'!I30*GWh_to_ktoe -> 67.79019776 | W17: ='Interconnected network'!J30*GWh_to_ktoe -> 67.79019776 | X17: ='Interconnected network'!K30*GWh_to_ktoe -> 0 | Y17: ='Interconnected network'!L30*GWh_to_ktoe -> 0 | Z17: ='Interconnected network'!M30*GWh_to_ktoe -> 33.89509888 | AA17: ='Interconnected network'!N30*GWh_to_ktoe -> 67.79019776 | AB17: ='Interconnected network'!O30*GWh_to_ktoe -> 67.79019776 | AC17: ='Interconnected network'!P30*GWh_to_ktoe -> 67.79019776 | AD17: ='Interconnected network'!Q30*GWh_to_ktoe -> 67.79019776 | AE17: ='Interconnected network'!R30*GWh_to_ktoe -> 0 | AF17: ='Interconnected network'!S30*GWh_to_ktoe -> 0 | AG17: ='Interconnected network'!T30*GWh_to_ktoe -> 16.94754944 | AH17: ='Interconnected network'!U30*GWh_to_ktoe -> 33.89509888 | AI17: ='Interconnected network'!V30*GWh_to_ktoe -> 33.89509888 | AJ17: ='Interconnected network'!W30*GWh_to_ktoe -> 33.89509888 | AK17: ='Interconnected network'!X30*GWh_to_ktoe -> 33.89509888 | AS17: 0
B18: titre | C18: =CONCATENATE(B9," for scenario ",C11, " and for year ",C12) -> Final energy consumption per sector and per energy for scenario A1 and for year 2024 | F18: =PowerEnergy -> Electricity | G18: =SUMIFS($AS$15:$AS$47,$O$15:$O$47,$F18,$P$15:$P$47,G$17) -> 303531.935 | H18: =SUMIFS($AS$15:$AS$47,$O$15:$O$47,$F18,$P$15:$P$47,H$17) ->  | I18: 0 | J18: 0 | K18: 0 | L18: 0 | O18: Electricity | P18: =IndustrySector -> Industry | Q18: =VLOOKUP(CONCATENATE("Total consumption - ",$O$15," (",$P18,")"),INDIRECT($P18&"!$B$4:$AQ$368"),MATCH(Q$13,INDIRECT($P18&"!$B$4:$AQ$4"),0),0) ->  | R18: =VLOOKUP(CONCATENATE("Total consumption - ",$O$15," (",$P18,")"),INDIRECT($P18&"!$B$4:$AQ$368"),MATCH(R$13,INDIRECT($P18&"!$B$4:$AQ$4"),0),0) -> 
F19: =BiomassEnergy -> Wood | G19: 127.8515223 | H19: 0 | I19: 0 | J19: 0 | K19: 0 | L19: 0 | O19: Electricity | P19: =TransportSector -> Transport | Q19: =VLOOKUP(CONCATENATE("Total consumption - ",$O$15," (",$P19,")"),INDIRECT($P19&"!$B$4:$AQ$368"),MATCH(Q$13,INDIRECT($P19&"!$B$4:$AQ$4"),0),0) -> 0 | R19: 0.006508661893 | S19: 13.90052557 | T19: 44.3348891 | U19: 89.61874518 | V19: 172.5351563 | W19: 198.2520714 | X19: 0 | Y19: 0.006508661893 | Z19: 9.904197801 | AA19: 38.02561357 | AB19: 65.41600009 | AC19: 170.2929588 | AD19: 223.8015367 | AE19: 0 | AF19: 0 | AG19: 4.09879808 | AH19: 12.01718387 | AI19: 28.52987354 | AJ19: 85.46096906 | AK19: 118.5505157 | AS19: 0
F20: =LPGEnergy -> LPG | G20: 75.54898716 | H20: 0 | I20: 0 | J20: 0 | K20: 0 | L20: 0 | O20: Electricity | P20: =AgricultureSector -> Agriculture | Q20: =VLOOKUP(CONCATENATE("Total consumption - ",$O$15," (",$P20,")"),INDIRECT($P20&"!$B$4:$AQ$368"),MATCH(Q$13,INDIRECT($P20&"!$B$4:$AQ$4"),0),0) -> 0 | R20: 0 | S20: 0 | T20: 0.3468928839 | U20: 1.144466878 | V20: 1.248255104 | W20: 1.242707304 | X20: 0 | Y20: 0 | Z20: 0 | AA20: 0.04914315855 | AB20: 0.1621328077 | AC20: 0.2357815197 | AD20: 0.2330076195 | AE20: 0 | AF20: 0 | AG20: 0 | AH20: 0.08848409572 | AI20: 0.2801556192 | AJ20: 0.3931452684 | AK20: 0.38852003 | AS20: 0
F21: =OilEnergy -> Oil products | G21: 0 | H21: 0 | I21: 249.6511216 | J21: 11.85019567 | K21: 0 | L21: 0 | O21: =BiomassEnergy -> Wood | P21: =ResidentialSector -> Residential | Q21: =VLOOKUP(CONCATENATE("Total consumption - ",$O$21," (",$P21,")"),INDIRECT($P21&"!$B$4:$AQ$368"),MATCH(Q$13,INDIRECT($P21&"!$B$4:$AQ$4"),0),0) -> 127.8515223 | R21: =VLOOKUP(CONCATENATE("Total consumption - ",$O$21," (",$P21,")"),INDIRECT($P21&"!$B$4:$AQ$368"),MATCH(R$13,INDIRECT($P21&"!$B$4:$AQ$4"),0),0) -> 122.2562039 | S21: 109.7138189 | T21: 95.05552231 | U21: 77.79934904 | V21: 58.94428554 | W21: 39.42751025 | X21: 127.8515223 | Y21: 128.2554288 | Z21: 121.6607058 | AA21: 112.7894765 | AB21: 100.7443239 | AC21: 86.34256389 | AD21: 70.38991373 | AE21: 127.8515223 | AF21: 128.2554288 | AG21: 121.6607058 | AH21: 112.7894765 | AI21: 100.7443239 | AJ21: 86.34256389 | AK21: 70.38991373 | AS21: 127.8515223
F22: =CharcoalEnergy -> Charcoal | G22: 113.5712479 | I22: 0 | J22: 0 | K22: 0 | L22: 0 | O22: =BiomassEnergy -> Wood | P22: =IndustrySector -> Industry | Q22: =IFERROR(VLOOKUP(CONCATENATE("Total consumption - ",$O$21," (",$P22,")"),INDIRECT($P22&"!$B$4:$AQ$368"),MATCH(Q$13,INDIRECT($P22&"!$B$4:$AQ$4"),0),0),0) -> 0 | R22: =IFERROR(VLOOKUP(CONCATENATE("Total consumption - ",$O$21," (",$P22,")"),INDIRECT($P22&"!$B$4:$AQ$368"),MATCH(R$13,INDIRECT($P22&"!$B$4:$AQ$4"),0),0),0) -> 0 | S22: 0 | T22: 0 | U22: 0 | V22: 0 | W22: 0 | X22: 0 | Y22: 0 | Z22: 0 | AA22: 0 | AB22: 0 | AC22: 0 | AD22: 0 | AE22: 0 | AF22: 0 | AG22: 0 | AH22: 0 | AI22: 0 | AJ22: 0 | AK22: 0 | AS22: 0
F23: =NaturalGasEnergy -> Natural gas | G23: =SUMIFS($AS$15:$AS$47,$O$15:$O$47,$F23,$P$15:$P$47,G$17) -> 0 | I23: 0 | J23: 0 | K23: 0 | L23: =SUMIFS($AS$15:$AS$47,$O$15:$O$47,$F23,$P$15:$P$47,L$17) -> 0 | O23: =BiomassEnergy -> Wood | P23: =TransportSector -> Transport | Q23: =VLOOKUP(CONCATENATE("Total consumption - ",$O$21," (",$P23,")"),INDIRECT($P23&"!$B$4:$AQ$368"),MATCH(Q$13,INDIRECT($P23&"!$B$4:$AQ$4"),0),0) -> 0 | R23: =VLOOKUP(CONCATENATE("Total consumption - ",$O$21," (",$P23,")"),INDIRECT($P23&"!$B$4:$AQ$368"),MATCH(R$13,INDIRECT($P23&"!$B$4:$AQ$4"),0),0) -> 0 | S23: 0 | T23: 0 | U23: 0 | V23: 0 | W23: 0 | X23: 0 | Y23: 0 | Z23: 0 | AA23: 0 | AB23: 0 | AC23: 0 | AD23: 0 | AE23: 0 | AF23: 0 | AG23: 0 | AH23: 0 | AI23: 0 | AJ23: 0 | AK23: 0 | AS23: 0
F24: Hydrogen | G24: =SUMIFS($AS$15:$AS$47,$O$15:$O$47,$F24,$P$15:$P$47,G$17) -> 0 | I24: =SUMIFS($AS$15:$AS$47,$O$15:$O$47,$F24,$P$15:$P$47,I$17) -> 0 | J24: 0 | K24: 0 | L24: 0 | O24: =BiomassEnergy -> Wood | P24: =AgricultureSector -> Agriculture | Q24: =IFERROR(VLOOKUP(CONCATENATE("Total consumption - ",$O$21," (",$P24,")"),INDIRECT($P24&"!$B$4:$AQ$368"),MATCH(Q$13,INDIRECT($P24&"!$B$4:$AQ$4"),0),0),0) -> 0 | R24: =IFERROR(VLOOKUP(CONCATENATE("Total consumption - ",$O$21," (",$P24,")"),INDIRECT($P24&"!$B$4:$AQ$368"),MATCH(R$13,INDIRECT($P24&"!$B$4:$AQ$4"),0),0),0) -> 0 | S24: 0 | T24: 0 | U24: 0 | V24: 0 | W24: 0 | X24: 0 | Y24: 0 | Z24: 0 | AA24: 0 | AB24: 0 | AC24: 0 | AD24: 0 | AE24: 0 | AF24: 0 | AG24: 0 | AH24: 0 | AI24: 0 | AJ24: 0 | AK24: 0 | AS24: 0
O25: =LPGEnergy -> LPG | P25: =ResidentialSector -> Residential | Q25: =IFERROR(VLOOKUP(CONCATENATE("Total consumption - ",$O$25," (",$P25,")"),INDIRECT($P25&"!$B$4:$AQ$368"),MATCH(Q$13,INDIRECT($P25&"!$B$4:$AQ$4"),0),0),0) -> 75.54898716 | R25: =IFERROR(VLOOKUP(CONCATENATE("Total consumption - ",$O$25," (",$P25,")"),INDIRECT($P25&"!$B$4:$AQ$368"),MATCH(R$13,INDIRECT($P25&"!$B$4:$AQ$4"),0),0),0) -> 90.21414369 | S25: 103.3864751 | T25: 115.6799502 | U25: 126.8538167 | V25: 136.3687105 | W25: 137.5227438 | X25: 75.54898716 | Y25: 90.70032903 | Z25: 104.8483196 | AA25: 118.6267 | AB25: 131.9077655 | AC25: 144.125075 | AD25: 154.9269636 | AE25: 75.54898716 | AF25: 88.4842398 | AG25: 99.83930284 | AH25: 110.224836 | AI25: 119.4889568 | AJ25: 127.1165131 | AK25: 127.9281338 | AS25: 75.54898716
O26: =LPGEnergy -> LPG | P26: =IndustrySector -> Industry | Q26: =IFERROR(VLOOKUP(CONCATENATE("Total consumption - ",$O$25," (",$P26,")"),INDIRECT($P26&"!$B$4:$AQ$368"),MATCH(Q$13,INDIRECT($P26&"!$B$4:$AQ$4"),0),0),0) -> 0 | R26: =IFERROR(VLOOKUP(CONCATENATE("Consommation totale - ",$O$25," (",$P26,")"),INDIRECT($P26&"!$B$4:$AQ$368"),MATCH(R$13,INDIRECT($P26&"!$B$4:$AQ$4"),0),0),0) -> 0 | S26: 0 | T26: 0 | U26: 0 | V26: 0 | W26: 0 | X26: 0 | Y26: 0 | Z26: 0 | AA26: 0 | AB26: 0 | AC26: 0 | AD26: 0 | AE26: 0 | AF26: 0 | AG26: 0 | AH26: 0 | AI26: 0 | AJ26: 0 | AK26: 0 | AS26: 0
O27: =LPGEnergy -> LPG | P27: =TransportSector -> Transport | Q27: =VLOOKUP(CONCATENATE("Total consumption - ",$O$25," (",$P27,")"),INDIRECT($P27&"!$B$4:$AQ$368"),MATCH(Q$13,INDIRECT($P27&"!$B$4:$AQ$4"),0),0) -> 0 | R27: =VLOOKUP(CONCATENATE("Total consumption - ",$O$25," (",$P27,")"),INDIRECT($P27&"!$B$4:$AQ$368"),MATCH(R$13,INDIRECT($P27&"!$B$4:$AQ$4"),0),0) -> 0 | S27: 0 | T27: 0 | U27: 0 | V27: 0 | W27: 0 | X27: 0 | Y27: 0 | Z27: 0 | AA27: 0 | AB27: 0 | AC27: 0 | AD27: 0 | AE27: 0 | AF27: 0 | AG27: 0 | AH27: 0 | AI27: 0 | AJ27: 0 | AK27: 0 | AS27: 0
O28: =LPGEnergy -> LPG | P28: =AgricultureSector -> Agriculture | Q28: =IFERROR(VLOOKUP(CONCATENATE("Total consumption - ",$O$25," (",$P28,")"),INDIRECT($P28&"!$B$4:$AQ$368"),MATCH(Q$13,INDIRECT($P28&"!$B$4:$AQ$4"),0),0),0) -> 0 | R28: =IFERROR(VLOOKUP(CONCATENATE("Total consumption - ",$O$25," (",$P28,")"),INDIRECT($P28&"!$B$4:$AQ$368"),MATCH(R$13,INDIRECT($P28&"!$B$4:$AQ$4"),0),0),0) -> 0 | S28: 0 | T28: 0 | U28: 0 | V28: 0 | W28: 0 | X28: 0 | Y28: 0 | Z28: 0 | AA28: 0 | AB28: 0 | AC28: 0 | AD28: 0 | AE28: 0 | AF28: 0 | AG28: 0 | AH28: 0 | AI28: 0 | AJ28: 0 | AK28: 0 | AS28: 0
O29: =OilEnergy -> Oil products | P29: =ResidentialSector -> Residential | Q29: =VLOOKUP(CONCATENATE("Total consumption - ",$O$29," (",$P29,")"),INDIRECT($P29&"!$B$4:$AQ$368"),MATCH(Q$13,INDIRECT($P29&"!$B$4:$AQ$4"),0),0) -> 0 | R29: =VLOOKUP(CONCATENATE("Total consumption - ",$O$29," (",$P29,")"),INDIRECT($P29&"!$B$4:$AQ$368"),MATCH(R$13,INDIRECT($P29&"!$B$4:$AQ$4"),0),0) -> 0 | S29: 0 | T29: 0 | U29: 0 | V29: 0 | W29: 0 | X29: 0 | Y29: 0 | Z29: 0 | AA29: 0 | AB29: 0 | AC29: 0 | AD29: 0 | AE29: 0 | AF29: 0 | AG29: 0 | AH29: 0 | AI29: 0 | AJ29: 0 | AK29: 0 | AS29: 0
O30: =OilEnergy -> Oil products | P30: =IndustrySector -> Industry | Q30: =IFERROR(VLOOKUP(CONCATENATE("Total consumption - ",$O$29," (",$P30,")"),INDIRECT($P30&"!$B$4:$AQ$368"),MATCH(Q$13,INDIRECT($P30&"!$B$4:$AQ$4"),0),0),0) -> 0 | R30: =IFERROR(VLOOKUP(CONCATENATE("Total consumption - ",$O$29," (",$P30,")"),INDIRECT($P30&"!$B$4:$AQ$368"),MATCH(R$13,INDIRECT($P30&"!$B$4:$AQ$4"),0),0),0) -> 0 | S30: 0 | T30: 0 | U30: 0 | V30: 0 | W30: 0 | X30: 0 | Y30: 0 | Z30: 0 | AA30: 0 | AB30: 0 | AC30: 0 | AD30: 0 | AE30: 0 | AF30: 0 | AG30: 0 | AH30: 0 | AI30: 0 | AJ30: 0 | AK30: 0 | AS30: 0
O31: =OilEnergy -> Oil products | P31: =TransportSector -> Transport | Q31: =VLOOKUP(CONCATENATE("Total consumption - ",$O$29," (",$P31,")"),INDIRECT($P31&"!$B$4:$AQ$368"),MATCH(Q$13,INDIRECT($P31&"!$B$4:$AQ$4"),0),0) -> 249.6511216 | R31: =VLOOKUP(CONCATENATE("Total consumption - ",$O$29," (",$P31,")"),INDIRECT($P31&"!$B$4:$AQ$368"),MATCH(R$13,INDIRECT($P31&"!$B$4:$AQ$4"),0),0) -> 303.0195009 | S31: 332.2763417 | T31: 365.0208073 | U31: 237.8730473 | V31: 77.03623288 | W31: 0 | X31: 262.8361716 | Y31: 312.4924454 | Z31: 333.744895 | AA31: 386.4452378 | AB31: 363.3478815 | AC31: 316.1293727 | AD31: 164.083658 | AE31: 234.1197498 | AF31: 263.1623993 | AG31: 283.6006889 | AH31: 372.8754558 | AI31: 362.0275148 | AJ31: 282.3541316 | AK31: 108.3958686 | AS31: 249.6511216
O32: =OilEnergy -> Oil products | P32: =AgricultureSector -> Agriculture | Q32: =VLOOKUP(CONCATENATE("Total consumption - ",$O$29," (",$P32,")"),INDIRECT($P32&"!$B$4:$AQ$368"),MATCH(Q$13,INDIRECT($P32&"!$B$4:$AQ$4"),0),0) -> 11.85019567 | R32: 15.00150737 | S32: 67.93770977 | T32: 118.3915507 | U32: 170.9060651 | V32: 186.4232199 | W32: 185.5946722 | X32: 11.85019567 | Y32: 15.39628388 | Z32: 26.3647158 | AA32: 37.73730677 | AB32: 58.79982477 | AC32: 85.51795325 | AD32: 84.51185969 | AE32: 11.85019567 | AF32: 15.00150737 | AG32: 23.59163893 | AH32: 30.19453767 | AI32: 41.8285943 | AJ32: 58.7024772 | AK32: 58.01185982 | AS32: 11.85019567
O33: =CharcoalEnergy -> Charcoal | P33: =ResidentialSector -> Residential | Q33: =VLOOKUP(CONCATENATE("Total consumption - ",$O$33," (",$P33,")"),INDIRECT($P33&"!$B$4:$AQ$368"),MATCH(Q$13,INDIRECT($P33&"!$B$4:$AQ$4"),0),0) -> 113.5712479 | R33: =VLOOKUP(CONCATENATE("Total consumption - ",$O$33," (",$P33,")"),INDIRECT($P33&"!$B$4:$AQ$368"),MATCH(R$13,INDIRECT($P33&"!$B$4:$AQ$4"),0),0) -> 119.7355415 | S33: 116.7716265 | T33: 108.1772312 | U33: 93.76518717 | V33: 73.81683662 | W33: 49.70113686 | X33: 113.5712479 | Y33: 121.9688606 | Z33: 121.2713335 | AA33: 114.9211287 | AB33: 102.5352456 | AC33: 84.25845544 | AD33: 61.32010625 | AE33: 113.5712479 | AF33: 122.4070161 | AG33: 122.1541325 | AH33: 116.2442161 | AI33: 104.2558461 | AJ33: 86.3069999 | AK33: 63.59963549 | AS33: 113.5712479
O34: =CharcoalEnergy -> Charcoal | P34: =IndustrySector -> Industry | Q34: =VLOOKUP(CONCATENATE("Total consumption - ",$O$33," (",$P34,")"),INDIRECT($P34&"!$B$4:$AQ$368"),MATCH(Q$13,INDIRECT($P34&"!$B$4:$AQ$4"),0),0) ->  | R34: =VLOOKUP(CONCATENATE("Total consumption - ",$O$33," (",$P34,")"),INDIRECT($P34&"!$B$4:$AQ$368"),MATCH(R$13,INDIRECT($P34&"!$B$4:$AQ$4"),0),0) -> 
O35: =CharcoalEnergy -> Charcoal | P35: =TransportSector -> Transport | Q35: =VLOOKUP(CONCATENATE("Total consumption - ",$O$33," (",$P35,")"),INDIRECT($P35&"!$B$4:$AQ$368"),MATCH(Q$13,INDIRECT($P35&"!$B$4:$AQ$4"),0),0) -> 0 | R35: 0 | S35: 0 | T35: 0 | U35: 0 | V35: 0 | W35: 0 | X35: 0 | Y35: 0 | Z35: 0 | AA35: 0 | AB35: 0 | AC35: 0 | AD35: 0 | AE35: 0 | AF35: 0 | AG35: 0 | AH35: 0 | AI35: 0 | AJ35: 0 | AK35: 0 | AS35: 0
O36: =CharcoalEnergy -> Charcoal | P36: =AgricultureSector -> Agriculture | Q36: =IFERROR(VLOOKUP(CONCATENATE("Total consumption - ",$O$33," (",$P36,")"),INDIRECT($P36&"!$B$4:$AQ$368"),MATCH(Q$13,INDIRECT($P36&"!$B$4:$AQ$4"),0),0),0) -> 0 | R36: =IFERROR(VLOOKUP(CONCATENATE("Total consumption - ",$O$33," (",$P36,")"),INDIRECT($P36&"!$B$4:$AQ$368"),MATCH(R$13,INDIRECT($P36&"!$B$4:$AQ$4"),0),0),0) -> 0 | S36: 0 | T36: 0 | U36: 0 | V36: 0 | W36: 0 | X36: 0 | Y36: 0 | Z36: 0 | AA36: 0 | AB36: 0 | AC36: 0 | AD36: 0 | AE36: 0 | AF36: 0 | AG36: 0 | AH36: 0 | AI36: 0 | AJ36: 0 | AK36: 0 | AS36: 0
O37: =NaturalGasEnergy -> Natural gas | P37: =ResidentialSector -> Residential | Q37: =VLOOKUP(CONCATENATE("Total consumption - ",$O$37," (",$P37,")"),INDIRECT($P37&"!$B$4:$AQ$368"),MATCH(Q$13,INDIRECT($P37&"!$B$4:$AQ$4"),0),0) -> 0 | R37: =VLOOKUP(CONCATENATE("Total consumption - ",$O$37," (",$P37,")"),INDIRECT($P37&"!$B$4:$AQ$368"),MATCH(R$13,INDIRECT($P37&"!$B$4:$AQ$4"),0),0) -> 0 | S37: 0 | T37: =VLOOKUP(CONCATENATE("Total consumption - ",$O$37," (",$P37,")"),INDIRECT($P37&"!$B$4:$AQ$368"),MATCH(T$13,INDIRECT($P37&"!$B$4:$AQ$4"),0),0) -> 0 | U37: 0 | V37: 0 | W37: 0 | X37: 0 | Y37: 8.09911514 | Z37: 19.32836098 | AA37: 33.9058192 | AB37: 52.0151514 | AC37: 73.72451326 | AD37: 99.00879533 | AE37: 0 | AF37: 0 | AG37: 0 | AH37: 0 | AI37: 0 | AJ37: 0 | AK37: 0 | AS37: 0
O38: Natural gas | P38: =IndustrySector -> Industry | Q38: =VLOOKUP(CONCATENATE("Total consumption - ",$O$37," (",$P38,")"),INDIRECT($P38&"!$B$4:$AQ$368"),MATCH(Q$13,INDIRECT($P38&"!$B$4:$AQ$4"),0),0) ->  | R38: =VLOOKUP(CONCATENATE("Total consumption - ",$O$37," (",$P38,")"),INDIRECT($P38&"!$B$4:$AQ$368"),MATCH(R$13,INDIRECT($P38&"!$B$4:$AQ$4"),0),0) -> 
O39: Natural gas | P39: =TransportSector -> Transport | Q39: =VLOOKUP(CONCATENATE("Total consumption - ",$O$37," (",$P39,")"),INDIRECT($P39&"!$B$4:$AQ$368"),MATCH(Q$13,INDIRECT($P39&"!$B$4:$AQ$4"),0),0) -> 0 | R39: 1.802942999 | S39: 8.62387036 | T39: 34.95812839 | U39: 53.95897714 | V39: 33.22473313 | W39: 0.9484438745 | X39: 0 | Y39: 14.85042599 | Z39: 40.87120699 | AA39: 103.0084048 | AB39: 126.106791 | AC39: 193.821475 | AD39: 232.6522235 | AE39: 0 | AF39: 12.78035037 | AG39: 32.53910219 | AH39: 73.27661432 | AI39: 118.5223705 | AJ39: 223.9396252 | AK39: 312.7576286 | AS39: 0
O40: Natural gas | P40: =AgricultureSector -> Agriculture | Q40: =VLOOKUP(CONCATENATE("Total consumption - ",$O$37," (",$P40,")"),INDIRECT($P40&"!$B$4:$AQ$368"),MATCH(Q$13,INDIRECT($P40&"!$B$4:$AQ$4"),0),0) -> 0 | R40: 0.2696591546 | S40: 2.576544759 | T40: 7.573200098 | U40: 16.65226931 | V40: 18.15813843 | W40: 18.0774356 | X40: 0 | Y40: 0.1348295773 | Z40: 0.4736295513 | AA40: 1.072870014 | AB40: 2.359071486 | AC40: 3.429870593 | AD40: 3.389519174 | AE40: 0 | AF40: 0.2696591546 | AG40: 0.8949719804 | AH40: 1.932408569 | AI40: 4.078148597 | AJ40: 5.721973407 | AK40: 5.654656073 | AS40: 0
O41: Natural gas | P41: LNG Production | Q41: ='Natural gas production'!D12 -> 0 | R41: ='Natural gas production'!E12 -> 73.95083331 | S41: ='Natural gas production'!F12 -> 591.6066665 | T41: ='Natural gas production'!G12 -> 591.6066665 | U41: ='Natural gas production'!H12 -> 591.6066665 | V41: ='Natural gas production'!I12 -> 591.6066665 | W41: ='Natural gas production'!J12 -> 591.6066665 | X41: ='Natural gas production'!K12 -> 0 | Y41: ='Natural gas production'!L12 -> 73.95083331 | Z41: ='Natural gas production'!M12 -> 591.6066665 | AA41: ='Natural gas production'!N12 -> 591.6066665 | AB41: ='Natural gas production'!O12 -> 591.6066665 | AC41: ='Natural gas production'!P12 -> 591.6066665 | AD41: ='Natural gas production'!Q12 -> 591.6066665 | AE41: ='Natural gas production'!R12 -> 0 | AF41: ='Natural gas production'!S12 -> 73.95083331 | AG41: ='Natural gas production'!T12 -> 591.6066665 | AH41: ='Natural gas production'!U12 -> 591.6066665 | AI41: ='Natural gas production'!V12 -> 591.6066665 | AJ41: ='Natural gas production'!W12 -> 591.6066665 | AK41: ='Natural gas production'!X12 -> 591.6066665 | AS41: 0
O42: Natural gas | P42: Exports | Q42: ='Natural gas production'!D21 -> -46.70126258 | R42: ='Natural gas production'!E21 -> 1210.34349 | S42: ='Natural gas production'!F21 -> 10973.92285 | T42: ='Natural gas production'!G21 -> 10674.0825 | U42: ='Natural gas production'!H21 -> 10436.72347 | V42: ='Natural gas production'!I21 -> 10449.17007 | W42: ='Natural gas production'!J21 -> 10530.23083 | X42: ='Natural gas production'!K21 -> -46.70126258 | Y42: ='Natural gas production'!L21 -> 1116.105025 | Z42: ='Natural gas production'!M21 -> 10865.22972 | AA42: ='Natural gas production'!N21 -> 10531.81004 | AB42: ='Natural gas production'!O21 -> 10357.31447 | AC42: ='Natural gas production'!P21 -> 10048.30767 | AD42: ='Natural gas production'!Q21 -> 9740.148542 | AE42: ='Natural gas production'!R21 -> -31.18010695 | AF42: ='Natural gas production'!S21 -> 1201.764743 | AG42: ='Natural gas production'!T21 -> 11052.56551 | AH42: ='Natural gas production'!U21 -> 10880.91347 | AI42: ='Natural gas production'!V21 -> 10709.2546 | AJ42: ='Natural gas production'!W21 -> 10583.27196 | AK42: ='Natural gas production'!X21 -> 10572.20707 | AS42: -46.70126258
O43: Hydrogen | P43: =ResidentialSector -> Residential | Q43: =VLOOKUP(CONCATENATE("Total consumption - ",$O$43," (",$P43,")"),INDIRECT($P43&"!$B$4:$AQ$368"),MATCH(Q$13,INDIRECT($P43&"!$B$4:$AQ$4"),0),0) -> 0 | R43: =VLOOKUP(CONCATENATE("Total consumption - ",$O$43," (",$P43,")"),INDIRECT($P43&"!$B$4:$AQ$368"),MATCH(R$13,INDIRECT($P43&"!$B$4:$AQ$4"),0),0) -> 0 | S43: 0 | T43: 0 | U43: 0 | V43: 0 | W43: 0 | X43: 0 | Y43: 0 | Z43: 0 | AA43: 0 | AB43: 0 | AC43: 0 | AD43: 0 | AE43: 0 | AF43: 0 | AG43: 0 | AH43: 0 | AI43: 0 | AJ43: 0 | AK43: 0 | AS43: 0
O44: Hydrogen | P44: =IndustrySector -> Industry | Q44: =VLOOKUP(CONCATENATE("Total consumption - ",$O$43," (",$P44,")"),INDIRECT($P44&"!$B$4:$AQ$368"),MATCH(Q$13,INDIRECT($P44&"!$B$4:$AQ$4"),0),0) ->  | R44: =VLOOKUP(CONCATENATE("Total consumption - ",$O$43," (",$P44,")"),INDIRECT($P44&"!$B$4:$AQ$368"),MATCH(R$13,INDIRECT($P44&"!$B$4:$AQ$4"),0),0) -> 
O45: Hydrogen | P45: =TransportSector -> Transport | Q45: =VLOOKUP(CONCATENATE("Total consumption - ",$O$43," (",$P45,")"),INDIRECT($P45&"!$B$4:$AQ$368"),MATCH(Q$13,INDIRECT($P45&"!$B$4:$AQ$4"),0),0) -> 0 | R45: 0 | S45: 0 | T45: 0 | U45: 0.1167800665 | V45: 52.90018484 | W45: 127.6029798 | X45: 0 | Y45: 0 | Z45: 0 | AA45: 0 | AB45: 0 | AC45: 2.790983815 | AD45: 72.58821917 | AE45: 0 | AF45: 0 | AG45: 0 | AH45: 0 | AI45: 0 | AJ45: 1.820079762 | AK45: 46.20541343 | AS45: 0
O46: Hydrogen | P46: =AgricultureSector -> Agriculture | Q46: =IFERROR(VLOOKUP(CONCATENATE("Total consumption - ",$O$43," (",$P46,")"),INDIRECT($P46&"!$B$4:$AQ$368"),MATCH(Q$13,INDIRECT($P46&"!$B$4:$AQ$4"),0),0),0) -> 0 | R46: =IFERROR(VLOOKUP(CONCATENATE("Total consumption - ",$O$43," (",$P46,")"),INDIRECT($P46&"!$B$4:$AQ$368"),MATCH(R$13,INDIRECT($P46&"!$B$4:$AQ$4"),0),0),0) -> 0 | S46: 0 | T46: 0 | U46: 0 | V46: 0 | W46: 0 | X46: 0 | Y46: 0 | Z46: 0 | AA46: 0 | AB46: 0 | AC46: 0 | AD46: 0 | AE46: 0 | AF46: 0 | AG46: 0 | AH46: 0 | AI46: 0 | AJ46: 0 | AK46: 0 | AS46: 0
O47: Hydrogen | P47: Exports | Q47: ='Hydrogen production'!D16*'Hydrogen production'!D13*GWh_to_ktoe*1000 -> 0 | R47: ='Hydrogen production'!E16*'Hydrogen production'!E13*GWh_to_ktoe*1000 -> 572.6569218 | S47: ='Hydrogen production'!F16*'Hydrogen production'!F13*GWh_to_ktoe*1000 -> 3435.941531 | T47: ='Hydrogen production'!G16*'Hydrogen production'!G13*GWh_to_ktoe*1000 -> 6442.39037 | U47: ='Hydrogen production'!H16*'Hydrogen production'!H13*GWh_to_ktoe*1000 -> 9448.722429 | V47: ='Hydrogen production'!I16*'Hydrogen production'!I13*GWh_to_ktoe*1000 -> 13919.92871 | W47: ='Hydrogen production'!J16*'Hydrogen production'!J13*GWh_to_ktoe*1000 -> 18369.21559 | X47: ='Hydrogen production'!K16*'Hydrogen production'!K13*GWh_to_ktoe*1000 -> 0 | Y47: ='Hydrogen production'!L16*'Hydrogen production'!L13*GWh_to_ktoe*1000 -> 572.6569218 | Z47: ='Hydrogen production'!M16*'Hydrogen production'!M13*GWh_to_ktoe*1000 -> 3435.941531 | AA47: ='Hydrogen production'!N16*'Hydrogen production'!N13*GWh_to_ktoe*1000 -> 6442.39037 | AB47: ='Hydrogen production'!O16*'Hydrogen production'!O13*GWh_to_ktoe*1000 -> 9448.839209 | AC47: ='Hydrogen production'!P16*'Hydrogen production'!P13*GWh_to_ktoe*1000 -> 13970.03791 | AD47: ='Hydrogen production'!Q16*'Hydrogen production'!Q13*GWh_to_ktoe*1000 -> 18424.23035 | AE47: ='Hydrogen production'!R16*'Hydrogen production'!R13*GWh_to_ktoe*1000 -> 0 | AF47: ='Hydrogen production'!S16*'Hydrogen production'!S13*GWh_to_ktoe*1000 -> 572.6569218 | AG47: ='Hydrogen production'!T16*'Hydrogen production'!T13*GWh_to_ktoe*1000 -> 3435.941531 | AH47: ='Hydrogen production'!U16*'Hydrogen production'!U13*GWh_to_ktoe*1000 -> 6442.39037 | AI47: ='Hydrogen production'!V16*'Hydrogen production'!V13*GWh_to_ktoe*1000 -> 9448.839209 | AJ47: ='Hydrogen production'!W16*'Hydrogen production'!W13*GWh_to_ktoe*1000 -> 13971.00881 | AK47: ='Hydrogen production'!X16*'Hydrogen production'!X13*GWh_to_ktoe*1000 -> 18450.61316 | AS47: 0
B50: Green house gases emissions
B52: Total GHG emissions per sector and type of energy
B54: Selected scenario | C54: =C1 -> A1 | R54: =Scenario1 -> A1 | Y54: =Scenario2 -> A2 | AF54: =Scenario3 -> B1
B55: Choose year | C55: 2055 | R55: =Scenario1 -> A1 | S55: A1 | T55: A1 | U55: A1 | V55: A1 | W55: A1 | X55: A1 | Y55: =Scenario2 -> A2 | Z55: A2 | AA55: A2 | AB55: A2 | AC55: A2 | AD55: A2 | AE55: A2 | AF55: =Scenario3 -> B1 | AG55: B1 | AH55: B1 | AI55: B1 | AJ55: B1 | AK55: B1 | AL55: B1
R56: =R55&R57 -> A12024 | S56: A12030 | T56: A12035 | U56: A12040 | V56: A12045 | W56: A12050 | X56: A12055 | Y56: A22024 | Z56: A22030 | AA56: A22035 | AB56: A22040 | AC56: A22045 | AD56: A22050 | AE56: A22055 | AF56: B12024 | AG56: B12030 | AH56: B12035 | AI56: B12040 | AJ56: B12045 | AK56: B12050 | AL56: B12055 | AT56: =CONCATENATE(C54,C55) -> A12055
P57: Energy | Q57: Secteur | R57: ='%User_input%'!B10 -> 2024 | S57: ='%User_input%'!C10 -> 2030 | T57: ='%User_input%'!D10 -> 2035 | U57: ='%User_input%'!E10 -> 2040 | V57: ='%User_input%'!F10 -> 2045 | W57: ='%User_input%'!G10 -> 2050 | X57: ='%User_input%'!H10 -> 2055 | Y57: ='%User_input%'!B10 -> 2024 | Z57: ='%User_input%'!C10 -> 2030 | AA57: ='%User_input%'!D10 -> 2035 | AB57: ='%User_input%'!E10 -> 2040 | AC57: ='%User_input%'!F10 -> 2045 | AD57: ='%User_input%'!G10 -> 2050 | AE57: ='%User_input%'!H10 -> 2055 | AF57: ='%User_input%'!B10 -> 2024 | AG57: ='%User_input%'!C10 -> 2030 | AH57: ='%User_input%'!D10 -> 2035 | AI57: ='%User_input%'!E10 -> 2040 | AJ57: ='%User_input%'!F10 -> 2045 | AK57: ='%User_input%'!G10 -> 2050 | AL57: ='%User_input%'!H10 -> 2055
P58: =PowerEnergy -> Electricity | Q58: Exports | R58: ='Interconnected network'!D87 -> 0 | S58: ='Interconnected network'!E87 -> 0 | T58: ='Interconnected network'!F87 -> 0.08246428095 | U58: ='Interconnected network'!G87 -> 0.1649690864 | V58: ='Interconnected network'!H87 -> 0.1650099529 | W58: ='Interconnected network'!I87 -> 0.1262298565 | X58: ='Interconnected network'!J87 -> 0.08745011098 | Y58: ='Interconnected network'!K87 -> 0 | Z58: ='Interconnected network'!L87 -> 0 | AA58: ='Interconnected network'!M87 -> 0.09411067373 | AB58: ='Interconnected network'!N87 -> 0.1804976101 | AC58: ='Interconnected network'!O87 -> 0.1727742147 | AD58: ='Interconnected network'!P87 -> 0.1650511658 | AE58: ='Interconnected network'!Q87 -> 0.1573284676 | AF58: ='Interconnected network'!R87 -> 0 | AG58: ='Interconnected network'!S87 -> 0 | AH58: ='Interconnected network'!T87 -> 0.04123214048 | AI58: ='Interconnected network'!U87 -> 0.08248454319 | AJ58: ='Interconnected network'!V87 -> 0.08250497644 | AK58: ='Interconnected network'!W87 -> 0.06311492827 | AL58: ='Interconnected network'!X87 -> 0.04372505549 | AT58: =SUMIFS(R58:AS58,$R$56:$AS$56,$AT$56) -> 0.08745011098
P59: Electricity | Q59: Losses | R59: ='Interconnected network'!D88+'Mini-grid'!D37 -> 2303.481781 | S59: ='Interconnected network'!E88+'Mini-grid'!E37 -> 0.1563794045 | T59: ='Interconnected network'!F88+'Mini-grid'!F37 -> 0.1563737009 | U59: ='Interconnected network'!G88+'Mini-grid'!G37 -> 0.2393565135 | V59: ='Interconnected network'!H88+'Mini-grid'!H37 -> 0.3071057358 | W59: ='Interconnected network'!I88+'Mini-grid'!I37 -> 0.2630753206 | X59: ='Interconnected network'!J88+'Mini-grid'!J37 -> 0.2108627813 | Y59: ='Interconnected network'!K88+'Mini-grid'!K37 -> 0.1937241421 | Z59: ='Interconnected network'!L88+'Mini-grid'!L37 -> 0.1823787874 | AA59: ='Interconnected network'!M88+'Mini-grid'!M37 -> 0.1758478497 | AB59: ='Interconnected network'!N88+'Mini-grid'!N37 -> 0.2527314417 | AC59: ='Interconnected network'!O88+'Mini-grid'!O37 -> 0.2925486458 | AD59: ='Interconnected network'!P88+'Mini-grid'!P37 -> 0.3309370844 | AE59: ='Interconnected network'!Q88+'Mini-grid'!Q37 -> 0.3717548861 | AF59: ='Interconnected network'!R88+'Mini-grid'!R37 -> 0.1816079101 | AG59: ='Interconnected network'!S88+'Mini-grid'!S37 -> 0.1559285143 | AH59: ='Interconnected network'!T88+'Mini-grid'!T37 -> 0.1374908612 | AI59: ='Interconnected network'!U88+'Mini-grid'!U37 -> 0.1891912957 | AJ59: ='Interconnected network'!V88+'Mini-grid'!V37 -> 0.2325069238 | AK59: ='Interconnected network'!W88+'Mini-grid'!W37 -> 0.2071741554 | AL59: ='Interconnected network'!X88+'Mini-grid'!X37 -> 0.1678085948 | AT59: 0.2108627813
F60: Scenario | G60: =C54 -> A1 | P60: Electricity | Q60: =ResidentialSector -> Residential | R60: =VLOOKUP(CONCATENATE("GHG emissions - ",$P60," (",$Q60,")"),INDIRECT($Q60&"!$B$4:$AQ$368"),MATCH(R$56,INDIRECT($Q60&"!$B$4:$AQ$4"),0),0) -> 2704.769344 | S60: =VLOOKUP(CONCATENATE("GHG emissions - ",$P60," (",$Q60,")"),INDIRECT($Q60&"!$B$4:$AQ$368"),MATCH(S$56,INDIRECT($Q60&"!$B$4:$AQ$4"),0),0) -> 0.1302190141 | T60: 0.159669294 | U60: 0.2292141913 | V60: 0.3007440847 | W60: 0.2893965041 | X60: 0.2472161262 | Y60: 0.1376181521 | Z60: 0.144079047 | AA60: 0.1780695218 | AB60: 0.2440972722 | AC60: 0.3053855695 | AD60: 0.3651242164 | AE60: 0.426003492 | AF60: 0.1307817767 | AG60: 0.1300510444 | AH60: 0.1593628167 | AI60: 0.2287427512 | AJ60: 0.3001074435 | AK60: 0.2887846793 | AL60: 0.2467726913 | AT60: 0.2472161262
F61: Year | G61: =C55 -> 2055 | P61: Electricity | Q61: Other electrical demand | R61: ='Interconnected network'!D86+'Mini-grid'!D36 -> 1217.314256 | S61: ='Interconnected network'!E86+'Mini-grid'!E36 -> 0.1426196841 | T61: ='Interconnected network'!F86+'Mini-grid'!F36 -> 0.196521127 | U61: ='Interconnected network'!G86+'Mini-grid'!G36 -> 0.3065147056 | V61: ='Interconnected network'!H86+'Mini-grid'!H36 -> 0.4284829192 | W61: ='Interconnected network'!I86+'Mini-grid'!I36 -> 0.4537373871 | X61: ='Interconnected network'!J86+'Mini-grid'!J36 -> 0.3955663206 | Y61: ='Interconnected network'!K86+'Mini-grid'!K36 -> 0.1454786412 | Z61: ='Interconnected network'!L86+'Mini-grid'!L36 -> 0.1616978662 | AA61: ='Interconnected network'!M86+'Mini-grid'!M36 -> 0.2241810761 | AB61: ='Interconnected network'!N86+'Mini-grid'!N36 -> 0.3352837639 | AC61: ='Interconnected network'!O86+'Mini-grid'!O36 -> 0.4486007438 | AD61: ='Interconnected network'!P86+'Mini-grid'!P36 -> 0.5929676907 | AE61: ='Interconnected network'!Q86+'Mini-grid'!Q36 -> 0.7107621502 | AF61: ='Interconnected network'!R86+'Mini-grid'!R36 -> 0.1369934047 | AG61: ='Interconnected network'!S86+'Mini-grid'!S36 -> 0.1426196841 | AH61: ='Interconnected network'!T86+'Mini-grid'!T36 -> 0.196521127 | AI61: ='Interconnected network'!U86+'Mini-grid'!U36 -> 0.3065147056 | AJ61: ='Interconnected network'!V86+'Mini-grid'!V36 -> 0.4284829192 | AK61: ='Interconnected network'!W86+'Mini-grid'!W36 -> 0.4537373871 | AL61: ='Interconnected network'!X86+'Mini-grid'!X36 -> 0.3955663206 | AT61: 0.3955663206
F62: Energy | G62: =ResidentialSector -> Residential | H62: =IndustrySector -> Industry | I62: =TransportSector -> Transport | J62: =AgricultureSector -> Agriculture | K62: Other electrical demand | L62: Exports | M62: Losses | P62: Electricity | Q62: =IndustrySector -> Industry | R62: =VLOOKUP(CONCATENATE("GHG emissions - ",$P62," (",$Q62,")"),INDIRECT($Q62&"!$B$4:$AQ$368"),MATCH(R$56,INDIRECT($Q62&"!$B$4:$AQ$4"),0),0) ->  | S62: =VLOOKUP(CONCATENATE("GHG emissions - ",$P62," (",$Q62,")"),INDIRECT($Q62&"!$B$4:$AQ$368"),MATCH(S$56,INDIRECT($Q62&"!$B$4:$AQ$4"),0),0) -> 
B63: titre : | C63: =CONCATENATE(B52," for scenario ",C54, " and year ",C55) -> Total GHG emissions per sector and type of energy for scenario A1 and year 2055 | F63: =PowerEnergy -> Electricity | G63: =SUMIFS($AT$58:$AT$85,$P$58:$P$85,$F63,$Q$58:$Q$85,G$62) -> 0.2472161262 | H63: =SUMIFS($AT$58:$AT$85,$P$58:$P$85,$F63,$Q$58:$Q$85,H$62) ->  | I63: 0.2557473827 | J63: 0.001603106278 | K63: 0.3955663206 | L63: 0.08745011098 | M63: 0.2108627813 | P63: Electricity | Q63: =TransportSector -> Transport | R63: =VLOOKUP(CONCATENATE("GHG emissions - ",$P63," (",$Q63,")"),INDIRECT($Q63&"!$B$4:$AQ$368"),MATCH(R$56,INDIRECT($Q63&"!$B$4:$AQ$4"),0),0) -> 0 | S63: 1.779564335e-05 | T63: 0.03381895566 | U63: 0.1078900253 | V63: 0.2181434102 | W63: 0.3212719353 | X63: 0.2557473827 | Y63: 0 | Z63: 2.03342218e-05 | AA63: 0.02749927743 | AB63: 0.1012466787 | AC63: 0.1667231904 | AD63: 0.4146182236 | AE63: 0.5194018306 | AF63: 0 | AG63: 0 | AH63: 0.009972074064 | AI63: 0.02924410768 | AJ63: 0.06944533639 | AK63: 0.1591340079 | AL63: 0.1529314872 | AT63: 0.2557473827
F64: =BiomassEnergy -> Wood | G64: 0 | H64: 0 | I64: 0 | J64: 0 | K64: =SUMIFS($AT$58:$AT$85,$P$58:$P$85,$F64,$Q$58:$Q$85,K$62) -> 0 | L64: 0 | M64: 0 | P64: Electricity | Q64: =AgricultureSector -> Agriculture | R64: =VLOOKUP(CONCATENATE("GHG emissions - ",$P64," (",$Q64,")"),INDIRECT($Q64&"!$B$4:$AQ$368"),MATCH(R$56,INDIRECT($Q64&"!$B$4:$AQ$4"),0),0) -> 0 | S64: 0 | T64: 0 | U64: 0.0008441722257 | V64: 0.002785777765 | W64: 0.002324334018 | X64: 0.001603106278 | Y64: 0 | Z64: 0 | AA64: 0 | AB64: 0.0001308481604 | AC64: 0.0004132215197 | AD64: 0.0005740655136 | AE64: 0.0005407674402 | AF64: 0 | AG64: 0 | AH64: 0 | AI64: 0.0002153281877 | AJ64: 0.000681934366 | AK64: 0.0007320626354 | AL64: 0.0005011951707 | AT64: 0.001603106278
F65: =LPGEnergy -> LPG | G65: =SUMIFS($AT$58:$AT$85,$P$58:$P$85,$F65,$Q$58:$Q$85,G$62) -> 0.4496993723 | H65: 0 | I65: 0 | J65: 0 | K65: 0 | L65: 0 | M65: 0 | P65: =BiomassEnergy -> Wood | Q65: =ResidentialSector -> Residential | R65: =VLOOKUP(CONCATENATE("GHG emissions - ",$P65," (",$Q65,")"),INDIRECT($Q65&"!$B$4:$AQ$368"),MATCH(R$56,INDIRECT($Q65&"!$B$4:$AQ$4"),0),0) -> 0 | S65: =VLOOKUP(CONCATENATE("GHG emissions - ",$P65," (",$Q65,")"),INDIRECT($Q65&"!$B$4:$AQ$368"),MATCH(S$56,INDIRECT($Q65&"!$B$4:$AQ$4"),0),0) -> 0 | T65: 0 | U65: 0 | V65: 0 | W65: 0 | X65: 0 | Y65: 0 | Z65: 0 | AA65: 0 | AB65: 0 | AC65: 0 | AD65: 0 | AE65: 0 | AF65: 0 | AG65: 0 | AH65: 0 | AI65: 0 | AJ65: 0 | AK65: 0 | AL65: 0 | AT65: 0
F66: =OilEnergy -> Oil products | G66: 0 | H66: =SUMIFS($AT$58:$AT$85,$P$58:$P$85,$F66,$Q$58:$Q$85,H$62) -> 0 | I66: 0 | J66: 0.6978359677 | K66: 0 | L66: 0 | M66: 0 | P66: =BiomassEnergy -> Wood | Q66: =IndustrySector -> Industry | R66: =IFERROR(VLOOKUP(CONCATENATE("GHG emissions - ",$P66," (",$Q66,")"),INDIRECT($Q66&"!$B$4:$AQ$368"),MATCH(R$56,INDIRECT($Q66&"!$B$4:$AQ$4"),0),0),0) -> 0 | S66: =IFERROR(VLOOKUP(CONCATENATE("GHG emissions - ",$P66," (",$Q66,")"),INDIRECT($Q66&"!$B$4:$AQ$368"),MATCH(S$56,INDIRECT($Q66&"!$B$4:$AQ$4"),0),0),0) -> 0 | T66: 0 | U66: 0 | V66: 0 | W66: 0 | X66: 0 | Y66: 0 | Z66: 0 | AA66: 0 | AB66: 0 | AC66: 0 | AD66: 0 | AE66: 0 | AF66: 0 | AG66: 0 | AH66: 0 | AI66: 0 | AJ66: 0 | AK66: 0 | AL66: 0 | AT66: 0
F67: =CharcoalEnergy -> Charcoal | G67: 0.05202217995 | I67: 0 | J67: 0 | K67: 0 | L67: 0 | M67: 0 | P67: =BiomassEnergy -> Wood | Q67: =TransportSector -> Transport | R67: =VLOOKUP(CONCATENATE("GHG emissions - ",$P67," (",$Q67,")"),INDIRECT($Q67&"!$B$4:$AQ$368"),MATCH(R$56,INDIRECT($Q67&"!$B$4:$AQ$4"),0),0) -> 0 | S67: =VLOOKUP(CONCATENATE("GHG emissions - ",$P67," (",$Q67,")"),INDIRECT($Q67&"!$B$4:$AQ$368"),MATCH(S$56,INDIRECT($Q67&"!$B$4:$AQ$4"),0),0) -> 0 | T67: 0 | U67: 0 | V67: 0 | W67: 0 | X67: 0 | Y67: 0 | Z67: 0 | AA67: 0 | AB67: 0 | AC67: 0 | AD67: 0 | AE67: 0 | AF67: 0 | AG67: 0 | AH67: 0 | AI67: 0 | AJ67: 0 | AK67: 0 | AL67: 0 | AT67: 0
F68: =NaturalGasEnergy -> Natural gas | G68: 0 | I68: 0.002245691159 | J68: 0.04280309925 | K68: 0 | L68: 2.201514367 | M68: 0 | P68: =BiomassEnergy -> Wood | Q68: =AgricultureSector -> Agriculture | R68: =IFERROR(VLOOKUP(CONCATENATE("GHG emissions - ",$P68," (",$Q68,")"),INDIRECT($Q68&"!$B$4:$AQ$368"),MATCH(R$56,INDIRECT($Q68&"!$B$4:$AQ$4"),0),0),0) -> 0 | S68: =IFERROR(VLOOKUP(CONCATENATE("GHG emissions - ",$P68," (",$Q68,")"),INDIRECT($Q68&"!$B$4:$AQ$368"),MATCH(S$56,INDIRECT($Q68&"!$B$4:$AQ$4"),0),0),0) -> 0 | T68: 0 | U68: 0 | V68: 0 | W68: 0 | X68: 0 | Y68: 0 | Z68: 0 | AA68: 0 | AB68: 0 | AC68: 0 | AD68: 0 | AE68: 0 | AF68: 0 | AG68: 0 | AH68: 0 | AI68: 0 | AJ68: 0 | AK68: 0 | AL68: 0 | AT68: 0
P69: =LPGEnergy -> LPG | Q69: =ResidentialSector -> Residential | R69: =VLOOKUP(CONCATENATE("GHG emissions - ",$P69," (",$Q69,")"),INDIRECT($Q69&"!$B$4:$AQ$368"),MATCH(R$56,INDIRECT($Q69&"!$B$4:$AQ$4"),0),0) -> 0.247045188 | S69: =VLOOKUP(CONCATENATE("GHG emissions - ",$P69," (",$Q69,")"),INDIRECT($Q69&"!$B$4:$AQ$368"),MATCH(S$56,INDIRECT($Q69&"!$B$4:$AQ$4"),0),0) -> 0.2950002499 | T69: =VLOOKUP(CONCATENATE("GHG emissions - ",$P69," (",$Q69,")"),INDIRECT($Q69&"!$B$4:$AQ$368"),MATCH(T$56,INDIRECT($Q69&"!$B$4:$AQ$4"),0),0) -> 0.3380737736 | U69: 0.3782734372 | V69: 0.4148119807 | W69: 0.4459256835 | X69: 0.4496993723 | Y69: 0.247045188 | Z69: 0.2965900759 | AA69: 0.3428540049 | AB69: 0.387909309 | AC69: 0.4313383933 | AD69: 0.4712889952 | AE69: 0.5066111711 | AF69: 0.247045188 | AG69: 0.2893434642 | AH69: 0.3264745203 | AI69: 0.3604352137 | AJ69: 0.3907288888 | AK69: 0.4156709979 | AL69: 0.4183249975 | AT69: 0.4496993723
P70: =LPGEnergy -> LPG | Q70: =IndustrySector -> Industry | R70: =IFERROR(VLOOKUP(CONCATENATE("Emissions de GES - ",$P70," (",$Q70,")"),INDIRECT($Q70&"!$B$4:$AQ$368"),MATCH(R$56,INDIRECT($Q70&"!$B$4:$AQ$4"),0),0),0) -> 0 | S70: =IFERROR(VLOOKUP(CONCATENATE("Emissions de GES - ",$P70," (",$Q70,")"),INDIRECT($Q70&"!$B$4:$AQ$368"),MATCH(S$56,INDIRECT($Q70&"!$B$4:$AQ$4"),0),0),0) -> 0 | T70: 0 | U70: 0 | V70: 0 | W70: 0 | X70: 0 | Y70: 0 | Z70: 0 | AA70: 0 | AB70: 0 | AC70: 0 | AD70: 0 | AE70: 0 | AF70: 0 | AG70: 0 | AH70: 0 | AI70: 0 | AJ70: 0 | AK70: 0 | AL70: 0 | AT70: 0
P71: =LPGEnergy -> LPG | Q71: =TransportSector -> Transport | R71: =VLOOKUP(CONCATENATE("GHG emissions - ",$P71," (",$Q71,")"),INDIRECT($Q71&"!$B$4:$AQ$368"),MATCH(R$56,INDIRECT($Q71&"!$B$4:$AQ$4"),0),0) -> 0 | S71: =VLOOKUP(CONCATENATE("GHG emissions - ",$P71," (",$Q71,")"),INDIRECT($Q71&"!$B$4:$AQ$368"),MATCH(S$56,INDIRECT($Q71&"!$B$4:$AQ$4"),0),0) -> 0 | T71: 0 | U71: 0 | V71: 0 | W71: 0 | X71: 0 | Y71: 0 | Z71: 0 | AA71: 0 | AB71: 0 | AC71: 0 | AD71: 0 | AE71: 0 | AF71: 0 | AG71: 0 | AH71: 0 | AI71: 0 | AJ71: 0 | AK71: 0 | AL71: =VLOOKUP(CONCATENATE("GHG emissions - ",$P71," (",$Q71,")"),INDIRECT($Q71&"!$B$4:$AQ$368"),MATCH(AL$56,INDIRECT($Q71&"!$B$4:$AQ$4"),0),0) -> 0 | AT71: 0
P72: =LPGEnergy -> LPG | Q72: =AgricultureSector -> Agriculture | R72: =IFERROR(VLOOKUP(CONCATENATE("GHG emissions - ",$P72," (",$Q72,")"),INDIRECT($Q72&"!$B$4:$AQ$368"),MATCH(R$56,INDIRECT($Q72&"!$B$4:$AQ$4"),0),0),0) -> 0 | S72: =IFERROR(VLOOKUP(CONCATENATE("GHG emissions - ",$P72," (",$Q72,")"),INDIRECT($Q72&"!$B$4:$AQ$368"),MATCH(S$56,INDIRECT($Q72&"!$B$4:$AQ$4"),0),0),0) -> 0 | T72: 0 | U72: 0 | V72: 0 | W72: 0 | X72: 0 | Y72: 0 | Z72: 0 | AA72: 0 | AB72: 0 | AC72: 0 | AD72: 0 | AE72: 0 | AF72: 0 | AG72: 0 | AH72: 0 | AI72: 0 | AJ72: 0 | AK72: 0 | AL72: 0 | AT72: 0
P73: =OilEnergy -> Oil products | Q73: =ResidentialSector -> Residential | R73: =VLOOKUP(CONCATENATE("GHG emissions - ",$P73," (",$Q73,")"),INDIRECT($Q73&"!$B$4:$AQ$368"),MATCH(R$56,INDIRECT($Q73&"!$B$4:$AQ$4"),0),0) -> 0 | S73: =VLOOKUP(CONCATENATE("GHG emissions - ",$P73," (",$Q73,")"),INDIRECT($Q73&"!$B$4:$AQ$368"),MATCH(S$56,INDIRECT($Q73&"!$B$4:$AQ$4"),0),0) -> 0 | T73: 0 | U73: 0 | V73: 0 | W73: 0 | X73: 0 | Y73: 0 | Z73: 0 | AA73: 0 | AB73: 0 | AC73: 0 | AD73: 0 | AE73: 0 | AF73: 0 | AG73: 0 | AH73: 0 | AI73: 0 | AJ73: 0 | AK73: 0 | AL73: 0 | AT73: 0
P74: =OilEnergy -> Oil products | Q74: =IndustrySector -> Industry | R74: =IFERROR(VLOOKUP(CONCATENATE("GHG emissions - ",$P74," (",$Q74,")"),INDIRECT($Q74&"!$B$4:$AQ$368"),MATCH(R$56,INDIRECT($Q74&"!$B$4:$AQ$4"),0),0),0) -> 0 | S74: =IFERROR(VLOOKUP(CONCATENATE("GHG emissions - ",$P74," (",$Q74,")"),INDIRECT($Q74&"!$B$4:$AQ$368"),MATCH(S$56,INDIRECT($Q74&"!$B$4:$AQ$4"),0),0),0) -> 0 | T74: 0 | U74: 0 | V74: 0 | W74: 0 | X74: 0 | Y74: 0 | Z74: 0 | AA74: 0 | AB74: 0 | AC74: 0 | AD74: 0 | AE74: 0 | AF74: 0 | AG74: 0 | AH74: 0 | AI74: 0 | AJ74: 0 | AK74: 0 | AL74: 0 | AT74: 0
P75: =OilEnergy -> Oil products | Q75: =TransportSector -> Transport | R75: =VLOOKUP(CONCATENATE("GHG emissions - ",$P75," (",$Q75,")"),INDIRECT($Q75&"!$B$4:$AQ$368"),MATCH(R$56,INDIRECT($Q75&"!$B$4:$AQ$4"),0),0) -> 0.9386882173 | S75: =VLOOKUP(CONCATENATE("GHG emissions - ",$P75," (",$Q75,")"),INDIRECT($Q75&"!$B$4:$AQ$368"),MATCH(S$56,INDIRECT($Q75&"!$B$4:$AQ$4"),0),0) -> 1.139353323 | T75: 1.249359045 | U75: 1.372478236 | V75: 0.8944026578 | W75: 0.2896562356 | X75: 0 | Y75: 0.9882640053 | Z75: 1.174971595 | AA75: 1.254880805 | AB75: 1.453034094 | AC75: 1.366188034 | AD75: 1.188646441 | AE75: 0.616954554 | AF75: 0.8802902592 | AG75: 0.9894906213 | AH75: 1.06633859 | AI75: 1.402011714 | AJ75: 1.361223456 | AK75: 1.061651535 | AL75: 0.4075684659 | AT75: 0
P76: =OilEnergy -> Oil products | Q76: =AgricultureSector -> Agriculture | R76: =VLOOKUP(CONCATENATE("GHG emissions - ",$P76," (",$Q76,")"),INDIRECT($Q76&"!$B$4:$AQ$368"),MATCH(R$56,INDIRECT($Q76&"!$B$4:$AQ$4"),0),0) -> 0.04455673573 | S76: 0.05640566771 | T76: 0.2554457887 | U76: 0.4451522305 | V76: 0.6426068046 | W76: 0.7009513068 | X76: 0.6978359677 | Y76: 0.04455673573 | Z76: 0.05789002739 | AA76: 0.09913133141 | AB76: 0.1418922735 | AC76: 0.2210873411 | AD76: 0.3215475042 | AE76: 0.3177645924 | AF76: 0.04455673573 | AG76: 0.05640566771 | AH76: 0.08870456236 | AI76: 0.1135314617 | AJ76: 0.1572755146 | AK76: 0.2207213143 | AL76: 0.2181245929 | AT76: 0.6978359677
P77: =CharcoalEnergy -> Charcoal | Q77: =ResidentialSector -> Residential | R77: =VLOOKUP(CONCATENATE("GHG emissions - ",$P77," (",$Q77,")"),INDIRECT($Q77&"!$B$4:$AQ$368"),MATCH(R$56,INDIRECT($Q77&"!$B$4:$AQ$4"),0),0) -> 0.1188750251 | S77: =VLOOKUP(CONCATENATE("GHG emissions - ",$P77," (",$Q77,")"),INDIRECT($Q77&"!$B$4:$AQ$368"),MATCH(S$56,INDIRECT($Q77&"!$B$4:$AQ$4"),0),0) -> 0.1253271913 | T77: 0.1222248614 | U77: 0.1132291079 | V77: 0.09814402141 | W77: 0.07726408289 | X77: 0.05202217995 | Y77: 0.1188750251 | Z77: 0.1276648064 | AA77: 0.1269347048 | AB77: 0.1202879454 | AC77: 0.1073236416 | AD77: 0.0881933253 | AE77: 0.06418375521 | AF77: 0.1188750251 | AG77: 0.1281234238 | AH77: 0.1278587304 | AI77: 0.121672821 | AJ77: 0.1091245941 | AK77: 0.0903375368 | AL77: 0.06656973847 | AT77: 0.05202217995
P78: =CharcoalEnergy -> Charcoal | Q78: =IndustrySector -> Industry | R78: =VLOOKUP(CONCATENATE("GHG emissions - ",$P78," (",$Q78,")"),INDIRECT($Q78&"!$B$4:$AQ$368"),MATCH(R$56,INDIRECT($Q78&"!$B$4:$AQ$4"),0),0) ->  | S78: =VLOOKUP(CONCATENATE("GHG emissions - ",$P78," (",$Q78,")"),INDIRECT($Q78&"!$B$4:$AQ$368"),MATCH(S$56,INDIRECT($Q78&"!$B$4:$AQ$4"),0),0) -> 
P79: =CharcoalEnergy -> Charcoal | Q79: =TransportSector -> Transport | R79: =VLOOKUP(CONCATENATE("GHG emissions - ",$P79," (",$Q79,")"),INDIRECT($Q79&"!$B$4:$AQ$368"),MATCH(R$56,INDIRECT($Q79&"!$B$4:$AQ$4"),0),0) -> 0 | S79: 0 | T79: 0 | U79: 0 | V79: 0 | W79: 0 | X79: 0 | Y79: 0 | Z79: 0 | AA79: 0 | AB79: 0 | AC79: 0 | AD79: 0 | AE79: 0 | AF79: 0 | AG79: 0 | AH79: 0 | AI79: 0 | AJ79: 0 | AK79: 0 | AL79: 0 | AT79: 0
P80: =CharcoalEnergy -> Charcoal | Q80: =AgricultureSector -> Agriculture | R80: =IFERROR(VLOOKUP(CONCATENATE("GHG emissions - ",$P80," (",$Q80,")"),INDIRECT($Q80&"!$B$4:$AQ$368"),MATCH(R$56,INDIRECT($Q80&"!$B$4:$AQ$4"),0),0),0) -> 0 | S80: =IFERROR(VLOOKUP(CONCATENATE("GHG emissions - ",$P80," (",$Q80,")"),INDIRECT($Q80&"!$B$4:$AQ$368"),MATCH(S$56,INDIRECT($Q80&"!$B$4:$AQ$4"),0),0),0) -> 0 | T80: 0 | U80: 0 | V80: 0 | W80: 0 | X80: 0 | Y80: 0 | Z80: 0 | AA80: 0 | AB80: 0 | AC80: 0 | AD80: 0 | AE80: 0 | AF80: 0 | AG80: 0 | AH80: 0 | AI80: 0 | AJ80: 0 | AK80: 0 | AL80: 0 | AT80: 0
P81: =NaturalGasEnergy -> Natural gas | Q81: =ResidentialSector -> Residential | R81: =VLOOKUP(CONCATENATE("GHG emissions - ",$P81," (",$Q81,")"),INDIRECT($Q81&"!$B$4:$AQ$368"),MATCH(R$56,INDIRECT($Q81&"!$B$4:$AQ$4"),0),0) -> 0 | S81: =VLOOKUP(CONCATENATE("GHG emissions - ",$P81," (",$Q81,")"),INDIRECT($Q81&"!$B$4:$AQ$368"),MATCH(S$56,INDIRECT($Q81&"!$B$4:$AQ$4"),0),0) -> 0 | T81: 0 | U81: 0 | V81: 0 | W81: 0 | X81: 0 | Y81: 0 | Z81: 0.01917679238 | AA81: 0.0457649952 | AB81: 0.08028097439 | AC81: 0.1231595973 | AD81: 0.1745622404 | AE81: 0.2344294505 | AF81: 0 | AG81: 0 | AH81: 0 | AI81: 0 | AJ81: 0 | AK81: 0 | AL81: 0 | AT81: 0
P82: Natural gas | Q82: =IndustrySector -> Industry | R82: =VLOOKUP(CONCATENATE("GHG emissions - ",$P82," (",$Q82,")"),INDIRECT($Q82&"!$B$4:$AQ$368"),MATCH(R$56,INDIRECT($Q82&"!$B$4:$AQ$4"),0),0) ->  | S82: =VLOOKUP(CONCATENATE("GHG emissions - ",$P82," (",$Q82,")"),INDIRECT($Q82&"!$B$4:$AQ$368"),MATCH(S$56,INDIRECT($Q82&"!$B$4:$AQ$4"),0),0) -> 
P83: Natural gas | Q83: =TransportSector -> Transport | R83: =VLOOKUP(CONCATENATE("GHG emissions - ",$P83," (",$Q83,")"),INDIRECT($Q83&"!$B$4:$AQ$368"),MATCH(R$56,INDIRECT($Q83&"!$B$4:$AQ$4"),0),0) -> 0 | S83: 0.004268943331 | T83: 0.02041928884 | U83: 0.0827725941 | V83: 0.1277621177 | W83: 0.0786683234 | X83: 0.002245691159 | Y83: 0 | Z83: 0.03516230242 | AA83: 0.0967733681 | AB83: 0.2438995813 | AC83: 0.2985911061 | AD83: 0.4589234899 | AE83: 0.550865534 | AF83: 0 | AG83: 0.03026085211 | AH83: 0.07704491122 | AI83: 0.1735017214 | AJ83: 0.2806329891 | AK83: 0.5302361584 | AL83: 0.7405362198 | AT83: 0.002245691159
P84: Natural gas | Q84: =AgricultureSector -> Agriculture | R84: =VLOOKUP(CONCATENATE("GHG emissions - ",$P84," (",$Q84,")"),INDIRECT($Q84&"!$B$4:$AQ$368"),MATCH(R$56,INDIRECT($Q84&"!$B$4:$AQ$4"),0),0) -> 0 | S84: 0.0006384892092 | T84: 0.006100649644 | U84: 0.01793154973 | V84: 0.03942864199 | W84: 0.04299418451 | X84: 0.04280309925 | Y84: 0 | Z84: 0.0003192446046 | AA84: 0.001121442949 | AB84: 0.002540302879 | AC84: 0.005585724282 | AD84: 0.008121123741 | AE84: 0.008025581109 | AF84: 0 | AG84: 0.0006384892092 | AH84: 0.002119082339 | AI84: 0.004575487233 | AJ84: 0.00965609299 | AK84: 0.01354828202 | AL84: 0.01338889047 | AT84: 0.04280309925
P85: Natural gas | Q85: Exports | R85: ='Natural gas production'!D32 -> 0 | S85: ='Natural gas production'!E32 -> 0.2530418016 | T85: ='Natural gas production'!F32 -> 2.29427533 | U85: ='Natural gas production'!G32 -> 2.231588874 | V85: ='Natural gas production'!H32 -> 2.181965147 | W85: ='Natural gas production'!I32 -> 2.184567309 | X85: ='Natural gas production'!J32 -> 2.201514367 | Y85: ='Natural gas production'!K32 -> 0 | Z85: ='Natural gas production'!L32 -> 0.2333397326 | AA85: ='Natural gas production'!M32 -> 2.271551279 | AB85: ='Natural gas production'!N32 -> 2.201844525 | AC85: ='Natural gas production'!O32 -> 2.165363415 | AD85: ='Natural gas production'!P32 -> 2.100760568 | AE85: ='Natural gas production'!Q32 -> 2.036334938 | AF85: ='Natural gas production'!R32 -> 0 | AG85: ='Natural gas production'!S32 -> 0.2512482765 | AH85: ='Natural gas production'!T32 -> 2.310716844 | AI85: ='Natural gas production'!U32 -> 2.274830221 | AJ85: ='Natural gas production'!V32 -> 2.23894217 | AK85: ='Natural gas production'!W32 -> 2.212603469 | AL85: ='Natural gas production'!X32 -> 2.210290176 | AT85: 2.201514367
A89: Residential
B91: Final energy consumption
B93: Residential : final energy consumption for residential sector
F95: =Scenario1 -> A1 | M95: =Scenario2 -> A2 | T95: =Scenario3 -> B1
F96: =Scenario1 -> A1 | G96: A1 | H96: A1 | I96: A1 | J96: A1 | K96: A1 | L96: A1 | M96: =Scenario2 -> A2 | N96: A2 | O96: A2 | P96: A2 | Q96: A2 | R96: A2 | S96: A2 | T96: =Scenario3 -> B1 | U96: B1 | V96: B1 | W96: B1 | X96: B1 | Y96: B1 | Z96: B1
F97: =F96&F98 -> A12024 | G97: A12030 | H97: A12035 | I97: A12040 | J97: A12045 | K97: A12050 | L97: A12055 | M97: A22024 | N97: A22030 | O97: A22035 | P97: A22040 | Q97: A22045 | R97: A22050 | S97: A22055 | T97: B12024 | U97: B12030 | V97: B12035 | W97: B12040 | X97: B12045 | Y97: B12050 | Z97: B12055
E98: Energy | F98: ='%User_input%'!B10 -> 2024 | G98: ='%User_input%'!C10 -> 2030 | H98: ='%User_input%'!D10 -> 2035 | I98: ='%User_input%'!E10 -> 2040 | J98: ='%User_input%'!F10 -> 2045 | K98: ='%User_input%'!G10 -> 2050 | L98: ='%User_input%'!H10 -> 2055 | M98: ='%User_input%'!B10 -> 2024 | N98: ='%User_input%'!C10 -> 2030 | O98: ='%User_input%'!D10 -> 2035 | P98: ='%User_input%'!E10 -> 2040 | Q98: ='%User_input%'!F10 -> 2045 | R98: ='%User_input%'!G10 -> 2050 | S98: ='%User_input%'!H10 -> 2055 | T98: ='%User_input%'!B10 -> 2024 | U98: ='%User_input%'!C10 -> 2030 | V98: ='%User_input%'!D10 -> 2035 | W98: ='%User_input%'!E10 -> 2040 | X98: ='%User_input%'!F10 -> 2045 | Y98: ='%User_input%'!G10 -> 2050 | Z98: ='%User_input%'!H10 -> 2055
E99: =PowerEnergy -> Electricity | F99: =VLOOKUP(CONCATENATE("Total consumption - ",$E99," (",ResidentialSector,")"),Residential!$B$4:$X$117,MATCH(F$97,Residential!$B$4:$X$4,0),0) -> 303531.935 | G99: =VLOOKUP(CONCATENATE("Total consumption - ",$E99," (",ResidentialSector,")"),Residential!$B$4:$X$117,MATCH(G$97,Residential!$B$4:$X$4,0),0) -> 42.73373104 | H99: =VLOOKUP(CONCATENATE("Total consumption - ",$E99," (",ResidentialSector,")"),Residential!$B$4:$X$117,MATCH(H$97,Residential!$B$4:$X$4,0),0) -> 66.24416505 | I99: =VLOOKUP(CONCATENATE("Total consumption - ",$E99," (",ResidentialSector,")"),Residential!$B$4:$X$117,MATCH(I$97,Residential!$B$4:$X$4,0),0) -> 95.00191748 | J99: =VLOOKUP(CONCATENATE("Total consumption - ",$E99," (",ResidentialSector,")"),Residential!$B$4:$X$117,MATCH(J$97,Residential!$B$4:$X$4,0),0) -> 124.4070187 | K99: =VLOOKUP(CONCATENATE("Total consumption - ",$E99," (",ResidentialSector,")"),Residential!$B$4:$X$117,MATCH(K$97,Residential!$B$4:$X$4,0),0) -> 156.0693497 | L99: =VLOOKUP(CONCATENATE("Total consumption - ",$E99," (",ResidentialSector,")"),Residential!$B$4:$X$117,MATCH(L$97,Residential!$B$4:$X$4,0),0) -> 191.7603883 | M99: =VLOOKUP(CONCATENATE("Total consumption - ",$E99," (",ResidentialSector,")"),Residential!$B$4:$X$117,MATCH(M$97,Residential!$B$4:$X$4,0),0) -> 26.61482565 | N99: =VLOOKUP(CONCATENATE("Total consumption - ",$E99," (",ResidentialSector,")"),Residential!$B$4:$X$117,MATCH(N$97,Residential!$B$4:$X$4,0),0) -> 42.12527804 | O99: =VLOOKUP(CONCATENATE("Total consumption - ",$E99," (",ResidentialSector,")"),Residential!$B$4:$X$117,MATCH(O$97,Residential!$B$4:$X$4,0),0) -> 64.82531261 | P99: =VLOOKUP(CONCATENATE("Total consumption - ",$E99," (",ResidentialSector,")"),Residential!$B$4:$X$117,MATCH(P$97,Residential!$B$4:$X$4,0),0) -> 92.55765546 | Q99: =VLOOKUP(CONCATENATE("Total consumption - ",$E99," (",ResidentialSector,")"),Residential!$B$4:$X$117,MATCH(Q$97,Residential!$B$4:$X$4,0),0) -> 120.7139474 | R99: =VLOOKUP(CONCATENATE("Total consumption - ",$E99," (",ResidentialSector,")"),Residential!$B$4:$X$117,MATCH(R$97,Residential!$B$4:$X$4,0),0) -> 150.9039204 | S99: =VLOOKUP(CONCATENATE("Total consumption - ",$E99," (",ResidentialSector,")"),Residential!$B$4:$X$117,MATCH(S$97,Residential!$B$4:$X$4,0),0) -> 184.5292173 | T99: =VLOOKUP(CONCATENATE("Total consumption - ",$E99," (",ResidentialSector,")"),Residential!$B$4:$X$117,MATCH(T$97,Residential!$B$4:$X$4,0),0) -> 26.61482565 | U99: =VLOOKUP(CONCATENATE("Total consumption - ",$E99," (",ResidentialSector,")"),Residential!$B$4:$X$117,MATCH(U$97,Residential!$B$4:$X$4,0),0) -> 42.67229701 | V99: =VLOOKUP(CONCATENATE("Total consumption - ",$E99," (",ResidentialSector,")"),Residential!$B$4:$X$117,MATCH(V$97,Residential!$B$4:$X$4,0),0) -> 66.11819442 | W99: =VLOOKUP(CONCATENATE("Total consumption - ",$E99," (",ResidentialSector,")"),Residential!$B$4:$X$117,MATCH(W$97,Residential!$B$4:$X$4,0),0) -> 94.80819016 | X99: =VLOOKUP(CONCATENATE("Total consumption - ",$E99," (",ResidentialSector,")"),Residential!$B$4:$X$117,MATCH(X$97,Residential!$B$4:$X$4,0),0) -> 124.1454706 | Y99: =VLOOKUP(CONCATENATE("Total consumption - ",$E99," (",ResidentialSector,")"),Residential!$B$4:$X$117,MATCH(Y$97,Residential!$B$4:$X$4,0),0) -> 155.7407767 | Z99: =VLOOKUP(CONCATENATE("Total consumption - ",$E99," (",ResidentialSector,")"),Residential!$B$4:$X$117,MATCH(Z$97,Residential!$B$4:$X$4,0),0) -> 191.4166433
E100: =BiomassEnergy -> Wood | F100: =VLOOKUP(CONCATENATE("Total consumption - ",$E100," (",ResidentialSector,")"),Residential!$B$4:$X$117,MATCH(F$97,Residential!$B$4:$X$4,0),0) -> 127.8515223 | G100: =VLOOKUP(CONCATENATE("Total consumption - ",$E100," (",ResidentialSector,")"),Residential!$B$4:$X$117,MATCH(G$97,Residential!$B$4:$X$4,0),0) -> 122.2562039 | H100: =VLOOKUP(CONCATENATE("Total consumption - ",$E100," (",ResidentialSector,")"),Residential!$B$4:$X$117,MATCH(H$97,Residential!$B$4:$X$4,0),0) -> 109.7138189 | I100: =VLOOKUP(CONCATENATE("Total consumption - ",$E100," (",ResidentialSector,")"),Residential!$B$4:$X$117,MATCH(I$97,Residential!$B$4:$X$4,0),0) -> 95.05552231 | J100: =VLOOKUP(CONCATENATE("Total consumption - ",$E100," (",ResidentialSector,")"),Residential!$B$4:$X$117,MATCH(J$97,Residential!$B$4:$X$4,0),0) -> 77.79934904 | K100: =VLOOKUP(CONCATENATE("Total consumption - ",$E100," (",ResidentialSector,")"),Residential!$B$4:$X$117,MATCH(K$97,Residential!$B$4:$X$4,0),0) -> 58.94428554 | L100: =VLOOKUP(CONCATENATE("Total consumption - ",$E100," (",ResidentialSector,")"),Residential!$B$4:$X$117,MATCH(L$97,Residential!$B$4:$X$4,0),0) -> 39.42751025 | M100: =VLOOKUP(CONCATENATE("Total consumption - ",$E100," (",ResidentialSector,")"),Residential!$B$4:$X$117,MATCH(M$97,Residential!$B$4:$X$4,0),0) -> 127.8515223 | N100: =VLOOKUP(CONCATENATE("Total consumption - ",$E100," (",ResidentialSector,")"),Residential!$B$4:$X$117,MATCH(N$97,Residential!$B$4:$X$4,0),0) -> 128.2554288 | O100: =VLOOKUP(CONCATENATE("Total consumption - ",$E100," (",ResidentialSector,")"),Residential!$B$4:$X$117,MATCH(O$97,Residential!$B$4:$X$4,0),0) -> 121.6607058 | P100: =VLOOKUP(CONCATENATE("Total consumption - ",$E100," (",ResidentialSector,")"),Residential!$B$4:$X$117,MATCH(P$97,Residential!$B$4:$X$4,0),0) -> 112.7894765 | Q100: =VLOOKUP(CONCATENATE("Total consumption - ",$E100," (",ResidentialSector,")"),Residential!$B$4:$X$117,MATCH(Q$97,Residential!$B$4:$X$4,0),0) -> 100.7443239 | R100: =VLOOKUP(CONCATENATE("Total consumption - ",$E100," (",ResidentialSector,")"),Residential!$B$4:$X$117,MATCH(R$97,Residential!$B$4:$X$4,0),0) -> 86.34256389 | S100: =VLOOKUP(CONCATENATE("Total consumption - ",$E100," (",ResidentialSector,")"),Residential!$B$4:$X$117,MATCH(S$97,Residential!$B$4:$X$4,0),0) -> 70.38991373 | T100: =VLOOKUP(CONCATENATE("Total consumption - ",$E100," (",ResidentialSector,")"),Residential!$B$4:$X$117,MATCH(T$97,Residential!$B$4:$X$4,0),0) -> 127.8515223 | U100: =VLOOKUP(CONCATENATE("Total consumption - ",$E100," (",ResidentialSector,")"),Residential!$B$4:$X$117,MATCH(U$97,Residential!$B$4:$X$4,0),0) -> 128.2554288 | V100: =VLOOKUP(CONCATENATE("Total consumption - ",$E100," (",ResidentialSector,")"),Residential!$B$4:$X$117,MATCH(V$97,Residential!$B$4:$X$4,0),0) -> 121.6607058 | W100: =VLOOKUP(CONCATENATE("Total consumption - ",$E100," (",ResidentialSector,")"),Residential!$B$4:$X$117,MATCH(W$97,Residential!$B$4:$X$4,0),0) -> 112.7894765 | X100: =VLOOKUP(CONCATENATE("Total consumption - ",$E100," (",ResidentialSector,")"),Residential!$B$4:$X$117,MATCH(X$97,Residential!$B$4:$X$4,0),0) -> 100.7443239 | Y100: =VLOOKUP(CONCATENATE("Total consumption - ",$E100," (",ResidentialSector,")"),Residential!$B$4:$X$117,MATCH(Y$97,Residential!$B$4:$X$4,0),0) -> 86.34256389 | Z100: =VLOOKUP(CONCATENATE("Total consumption - ",$E100," (",ResidentialSector,")"),Residential!$B$4:$X$117,MATCH(Z$97,Residential!$B$4:$X$4,0),0) -> 70.38991373
E101: =CharcoalEnergy -> Charcoal | F101: =VLOOKUP(CONCATENATE("Total consumption - ",$E101," (",ResidentialSector,")"),Residential!$B$4:$X$117,MATCH(F$97,Residential!$B$4:$X$4,0),0) -> 113.5712479 | G101: =VLOOKUP(CONCATENATE("Total consumption - ",$E101," (",ResidentialSector,")"),Residential!$B$4:$X$117,MATCH(G$97,Residential!$B$4:$X$4,0),0) -> 119.7355415 | H101: =VLOOKUP(CONCATENATE("Total consumption - ",$E101," (",ResidentialSector,")"),Residential!$B$4:$X$117,MATCH(H$97,Residential!$B$4:$X$4,0),0) -> 116.7716265 | I101: =VLOOKUP(CONCATENATE("Total consumption - ",$E101," (",ResidentialSector,")"),Residential!$B$4:$X$117,MATCH(I$97,Residential!$B$4:$X$4,0),0) -> 108.1772312 | J101: =VLOOKUP(CONCATENATE("Total consumption - ",$E101," (",ResidentialSector,")"),Residential!$B$4:$X$117,MATCH(J$97,Residential!$B$4:$X$4,0),0) -> 93.76518717 | K101: =VLOOKUP(CONCATENATE("Total consumption - ",$E101," (",ResidentialSector,")"),Residential!$B$4:$X$117,MATCH(K$97,Residential!$B$4:$X$4,0),0) -> 73.81683662 | L101: =VLOOKUP(CONCATENATE("Total consumption - ",$E101," (",ResidentialSector,")"),Residential!$B$4:$X$117,MATCH(L$97,Residential!$B$4:$X$4,0),0) -> 49.70113686 | M101: =VLOOKUP(CONCATENATE("Total consumption - ",$E101," (",ResidentialSector,")"),Residential!$B$4:$X$117,MATCH(M$97,Residential!$B$4:$X$4,0),0) -> 113.5712479 | N101: =VLOOKUP(CONCATENATE("Total consumption - ",$E101," (",ResidentialSector,")"),Residential!$B$4:$X$117,MATCH(N$97,Residential!$B$4:$X$4,0),0) -> 121.9688606 | O101: =VLOOKUP(CONCATENATE("Total consumption - ",$E101," (",ResidentialSector,")"),Residential!$B$4:$X$117,MATCH(O$97,Residential!$B$4:$X$4,0),0) -> 121.2713335 | P101: =VLOOKUP(CONCATENATE("Total consumption - ",$E101," (",ResidentialSector,")"),Residential!$B$4:$X$117,MATCH(P$97,Residential!$B$4:$X$4,0),0) -> 114.9211287 | Q101: =VLOOKUP(CONCATENATE("Total consumption - ",$E101," (",ResidentialSector,")"),Residential!$B$4:$X$117,MATCH(Q$97,Residential!$B$4:$X$4,0),0) -> 102.5352456 | R101: =VLOOKUP(CONCATENATE("Total consumption - ",$E101," (",ResidentialSector,")"),Residential!$B$4:$X$117,MATCH(R$97,Residential!$B$4:$X$4,0),0) -> 84.25845544 | S101: =VLOOKUP(CONCATENATE("Total consumption - ",$E101," (",ResidentialSector,")"),Residential!$B$4:$X$117,MATCH(S$97,Residential!$B$4:$X$4,0),0) -> 61.32010625 | T101: =VLOOKUP(CONCATENATE("Total consumption - ",$E101," (",ResidentialSector,")"),Residential!$B$4:$X$117,MATCH(T$97,Residential!$B$4:$X$4,0),0) -> 113.5712479 | U101: =VLOOKUP(CONCATENATE("Total consumption - ",$E101," (",ResidentialSector,")"),Residential!$B$4:$X$117,MATCH(U$97,Residential!$B$4:$X$4,0),0) -> 122.4070161 | V101: =VLOOKUP(CONCATENATE("Total consumption - ",$E101," (",ResidentialSector,")"),Residential!$B$4:$X$117,MATCH(V$97,Residential!$B$4:$X$4,0),0) -> 122.1541325 | W101: =VLOOKUP(CONCATENATE("Total consumption - ",$E101," (",ResidentialSector,")"),Residential!$B$4:$X$117,MATCH(W$97,Residential!$B$4:$X$4,0),0) -> 116.2442161 | X101: =VLOOKUP(CONCATENATE("Total consumption - ",$E101," (",ResidentialSector,")"),Residential!$B$4:$X$117,MATCH(X$97,Residential!$B$4:$X$4,0),0) -> 104.2558461 | Y101: =VLOOKUP(CONCATENATE("Total consumption - ",$E101," (",ResidentialSector,")"),Residential!$B$4:$X$117,MATCH(Y$97,Residential!$B$4:$X$4,0),0) -> 86.3069999 | Z101: =VLOOKUP(CONCATENATE("Total consumption - ",$E101," (",ResidentialSector,")"),Residential!$B$4:$X$117,MATCH(Z$97,Residential!$B$4:$X$4,0),0) -> 63.59963549
E102: =LPGEnergy -> LPG | F102: =VLOOKUP(CONCATENATE("Total consumption - ",$E102," (",ResidentialSector,")"),Residential!$B$4:$X$117,MATCH(F$97,Residential!$B$4:$X$4,0),0) -> 75.54898716 | G102: =VLOOKUP(CONCATENATE("Total consumption - ",$E102," (",ResidentialSector,")"),Residential!$B$4:$X$117,MATCH(G$97,Residential!$B$4:$X$4,0),0) -> 90.21414369 | H102: =VLOOKUP(CONCATENATE("Total consumption - ",$E102," (",ResidentialSector,")"),Residential!$B$4:$X$117,MATCH(H$97,Residential!$B$4:$X$4,0),0) -> 103.3864751 | I102: =VLOOKUP(CONCATENATE("Total consumption - ",$E102," (",ResidentialSector,")"),Residential!$B$4:$X$117,MATCH(I$97,Residential!$B$4:$X$4,0),0) -> 115.6799502 | J102: =VLOOKUP(CONCATENATE("Total consumption - ",$E102," (",ResidentialSector,")"),Residential!$B$4:$X$117,MATCH(J$97,Residential!$B$4:$X$4,0),0) -> 126.8538167 | K102: =VLOOKUP(CONCATENATE("Total consumption - ",$E102," (",ResidentialSector,")"),Residential!$B$4:$X$117,MATCH(K$97,Residential!$B$4:$X$4,0),0) -> 136.3687105 | L102: =VLOOKUP(CONCATENATE("Total consumption - ",$E102," (",ResidentialSector,")"),Residential!$B$4:$X$117,MATCH(L$97,Residential!$B$4:$X$4,0),0) -> 137.5227438 | M102: =VLOOKUP(CONCATENATE("Total consumption - ",$E102," (",ResidentialSector,")"),Residential!$B$4:$X$117,MATCH(M$97,Residential!$B$4:$X$4,0),0) -> 75.54898716 | N102: =VLOOKUP(CONCATENATE("Total consumption - ",$E102," (",ResidentialSector,")"),Residential!$B$4:$X$117,MATCH(N$97,Residential!$B$4:$X$4,0),0) -> 90.70032903 | O102: =VLOOKUP(CONCATENATE("Total consumption - ",$E102," (",ResidentialSector,")"),Residential!$B$4:$X$117,MATCH(O$97,Residential!$B$4:$X$4,0),0) -> 104.8483196 | P102: =VLOOKUP(CONCATENATE("Total consumption - ",$E102," (",ResidentialSector,")"),Residential!$B$4:$X$117,MATCH(P$97,Residential!$B$4:$X$4,0),0) -> 118.6267 | Q102: =VLOOKUP(CONCATENATE("Total consumption - ",$E102," (",ResidentialSector,")"),Residential!$B$4:$X$117,MATCH(Q$97,Residential!$B$4:$X$4,0),0) -> 131.9077655 | R102: =VLOOKUP(CONCATENATE("Total consumption - ",$E102," (",ResidentialSector,")"),Residential!$B$4:$X$117,MATCH(R$97,Residential!$B$4:$X$4,0),0) -> 144.125075 | S102: =VLOOKUP(CONCATENATE("Total consumption - ",$E102," (",ResidentialSector,")"),Residential!$B$4:$X$117,MATCH(S$97,Residential!$B$4:$X$4,0),0) -> 154.9269636 | T102: =VLOOKUP(CONCATENATE("Total consumption - ",$E102," (",ResidentialSector,")"),Residential!$B$4:$X$117,MATCH(T$97,Residential!$B$4:$X$4,0),0) -> 75.54898716 | U102: =VLOOKUP(CONCATENATE("Total consumption - ",$E102," (",ResidentialSector,")"),Residential!$B$4:$X$117,MATCH(U$97,Residential!$B$4:$X$4,0),0) -> 88.4842398 | V102: =VLOOKUP(CONCATENATE("Total consumption - ",$E102," (",ResidentialSector,")"),Residential!$B$4:$X$117,MATCH(V$97,Residential!$B$4:$X$4,0),0) -> 99.83930284 | W102: =VLOOKUP(CONCATENATE("Total consumption - ",$E102," (",ResidentialSector,")"),Residential!$B$4:$X$117,MATCH(W$97,Residential!$B$4:$X$4,0),0) -> 110.224836 | X102: =VLOOKUP(CONCATENATE("Total consumption - ",$E102," (",ResidentialSector,")"),Residential!$B$4:$X$117,MATCH(X$97,Residential!$B$4:$X$4,0),0) -> 119.4889568 | Y102: =VLOOKUP(CONCATENATE("Total consumption - ",$E102," (",ResidentialSector,")"),Residential!$B$4:$X$117,MATCH(Y$97,Residential!$B$4:$X$4,0),0) -> 127.1165131 | Z102: =VLOOKUP(CONCATENATE("Total consumption - ",$E102," (",ResidentialSector,")"),Residential!$B$4:$X$117,MATCH(Z$97,Residential!$B$4:$X$4,0),0) -> 127.9281338
E103: =NaturalGasEnergy -> Natural gas | F103: =VLOOKUP(CONCATENATE("Total consumption - ",$E103," (",ResidentialSector,")"),Residential!$B$4:$X$117,MATCH(F$97,Residential!$B$4:$X$4,0),0) -> 0 | G103: =VLOOKUP(CONCATENATE("Total consumption - ",$E103," (",ResidentialSector,")"),Residential!$B$4:$X$117,MATCH(G$97,Residential!$B$4:$X$4,0),0) -> 0 | H103: =VLOOKUP(CONCATENATE("Total consumption - ",$E103," (",ResidentialSector,")"),Residential!$B$4:$X$117,MATCH(H$97,Residential!$B$4:$X$4,0),0) -> 0 | I103: =VLOOKUP(CONCATENATE("Total consumption - ",$E103," (",ResidentialSector,")"),Residential!$B$4:$X$117,MATCH(I$97,Residential!$B$4:$X$4,0),0) -> 0 | J103: =VLOOKUP(CONCATENATE("Total consumption - ",$E103," (",ResidentialSector,")"),Residential!$B$4:$X$117,MATCH(J$97,Residential!$B$4:$X$4,0),0) -> 0 | K103: =VLOOKUP(CONCATENATE("Total consumption - ",$E103," (",ResidentialSector,")"),Residential!$B$4:$X$117,MATCH(K$97,Residential!$B$4:$X$4,0),0) -> 0 | L103: =VLOOKUP(CONCATENATE("Total consumption - ",$E103," (",ResidentialSector,")"),Residential!$B$4:$X$117,MATCH(L$97,Residential!$B$4:$X$4,0),0) -> 0 | M103: =VLOOKUP(CONCATENATE("Total consumption - ",$E103," (",ResidentialSector,")"),Residential!$B$4:$X$117,MATCH(M$97,Residential!$B$4:$X$4,0),0) -> 0 | N103: =VLOOKUP(CONCATENATE("Total consumption - ",$E103," (",ResidentialSector,")"),Residential!$B$4:$X$117,MATCH(N$97,Residential!$B$4:$X$4,0),0) -> 8.09911514 | O103: =VLOOKUP(CONCATENATE("Total consumption - ",$E103," (",ResidentialSector,")"),Residential!$B$4:$X$117,MATCH(O$97,Residential!$B$4:$X$4,0),0) -> 19.32836098 | P103: =VLOOKUP(CONCATENATE("Total consumption - ",$E103," (",ResidentialSector,")"),Residential!$B$4:$X$117,MATCH(P$97,Residential!$B$4:$X$4,0),0) -> 33.9058192 | Q103: =VLOOKUP(CONCATENATE("Total consumption - ",$E103," (",ResidentialSector,")"),Residential!$B$4:$X$117,MATCH(Q$97,Residential!$B$4:$X$4,0),0) -> 52.0151514 | R103: =VLOOKUP(CONCATENATE("Total consumption - ",$E103," (",ResidentialSector,")"),Residential!$B$4:$X$117,MATCH(R$97,Residential!$B$4:$X$4,0),0) -> 73.72451326 | S103: =VLOOKUP(CONCATENATE("Total consumption - ",$E103," (",ResidentialSector,")"),Residential!$B$4:$X$117,MATCH(S$97,Residential!$B$4:$X$4,0),0) -> 99.00879533 | T103: =VLOOKUP(CONCATENATE("Total consumption - ",$E103," (",ResidentialSector,")"),Residential!$B$4:$X$117,MATCH(T$97,Residential!$B$4:$X$4,0),0) -> 0 | U103: =VLOOKUP(CONCATENATE("Total consumption - ",$E103," (",ResidentialSector,")"),Residential!$B$4:$X$117,MATCH(U$97,Residential!$B$4:$X$4,0),0) -> 0 | V103: =VLOOKUP(CONCATENATE("Total consumption - ",$E103," (",ResidentialSector,")"),Residential!$B$4:$X$117,MATCH(V$97,Residential!$B$4:$X$4,0),0) -> 0 | W103: =VLOOKUP(CONCATENATE("Total consumption - ",$E103," (",ResidentialSector,")"),Residential!$B$4:$X$117,MATCH(W$97,Residential!$B$4:$X$4,0),0) -> 0 | X103: =VLOOKUP(CONCATENATE("Total consumption - ",$E103," (",ResidentialSector,")"),Residential!$B$4:$X$117,MATCH(X$97,Residential!$B$4:$X$4,0),0) -> 0 | Y103: =VLOOKUP(CONCATENATE("Total consumption - ",$E103," (",ResidentialSector,")"),Residential!$B$4:$X$117,MATCH(Y$97,Residential!$B$4:$X$4,0),0) -> 0 | Z103: =VLOOKUP(CONCATENATE("Total consumption - ",$E103," (",ResidentialSector,")"),Residential!$B$4:$X$117,MATCH(Z$97,Residential!$B$4:$X$4,0),0) -> 0
E104: TOTAL Residential | F104: =SUM(F99:F103) -> 303848.9068 | G104: =SUM(G99:G103) -> 374.9396202 | H104: 396.1160856 | I104: 413.9146212 | J104: 422.8253716 | K104: 425.1991824 | L104: 418.4117792 | M104: 343.586583 | N104: 391.1490116 | O104: 431.9340325 | P104: 472.8007798 | Q104: 507.9164339 | R104: 539.354528 | S104: 570.1749962 | T104: 343.586583 | U104: 381.8189818 | V104: 409.7723356 | W104: 434.0667187 | X104: 448.6345975 | Y104: 455.5068536 | Z104: 453.3343263
B118: Energy consumption per energy for residential sector
B120: Chosen scenario : | C120: =$C$1 -> A1 | F120: Scenario | G120: =C120 -> A1
E121: Energy | F121: ='%User_input%'!B10 -> 2024 | G121: ='%User_input%'!C10 -> 2030 | H121: ='%User_input%'!D10 -> 2035 | I121: ='%User_input%'!E10 -> 2040 | J121: ='%User_input%'!F10 -> 2045 | K121: ='%User_input%'!G10 -> 2050 | L121: ='%User_input%'!H10 -> 2055
B122: title: | C122: =CONCATENATE(B118, " for scenario ",C120) -> Energy consumption per energy for residential sector for scenario A1 | E122: =PowerEnergy -> Electricity | F122: =SUMIFS($F99:$AG99,$F$96:$AG$96,$C$120,$F$98:$AG$98,F$121) -> 303531.935 | G122: 42.73373104 | H122: 66.24416505 | I122: 95.00191748 | J122: 124.4070187 | K122: 156.0693497 | L122: 191.7603883
E123: =BiomassEnergy -> Wood | F123: 127.8515223 | G123: 122.2562039 | H123: 109.7138189 | I123: 95.05552231 | J123: 77.79934904 | K123: 58.94428554 | L123: 39.42751025
E124: =CharcoalEnergy -> Charcoal | F124: 113.5712479 | G124: 119.7355415 | H124: 116.7716265 | I124: 108.1772312 | J124: 93.76518717 | K124: 73.81683662 | L124: 49.70113686
E125: =LPGEnergy -> LPG | F125: 75.54898716 | G125: 90.21414369 | H125: 103.3864751 | I125: 115.6799502 | J125: 126.8538167 | K125: 136.3687105 | L125: 137.5227438
E126: =NaturalGasEnergy -> Natural gas | F126: 0 | G126: 0 | H126: 0 | I126: 0 | J126: 0 | K126: 0 | L126: 0
B146: Green house gases emissions
B149: Total GHG emissions for the residential sector
F151: =Scenario1 -> A1 | M151: =Scenario2 -> A2 | T151: =Scenario3 -> B1
F152: =Scenario1 -> A1 | G152: A1 | H152: A1 | I152: A1 | J152: A1 | K152: A1 | L152: A1 | M152: =Scenario2 -> A2 | N152: A2 | O152: A2 | P152: A2 | Q152: A2 | R152: A2 | S152: A2 | T152: =Scenario3 -> B1 | U152: B1 | V152: B1 | W152: B1 | X152: B1 | Y152: B1 | Z152: B1
F153: =F152&F154 -> A12024 | G153: A12030 | H153: A12035 | I153: A12040 | J153: A12045 | K153: A12050 | L153: A12055 | M153: A22024 | N153: A22030 | O153: A22035 | P153: A22040 | Q153: A22045 | R153: A22050 | S153: A22055 | T153: B12024 | U153: B12030 | V153: B12035 | W153: B12040 | X153: B12045 | Y153: B12050 | Z153: B12055
E154: Energy | F154: ='%User_input%'!B10 -> 2024 | G154: ='%User_input%'!C10 -> 2030 | H154: ='%User_input%'!D10 -> 2035 | I154: ='%User_input%'!E10 -> 2040 | J154: ='%User_input%'!F10 -> 2045 | K154: ='%User_input%'!G10 -> 2050 | L154: ='%User_input%'!H10 -> 2055 | M154: ='%User_input%'!B10 -> 2024 | N154: ='%User_input%'!C10 -> 2030 | O154: ='%User_input%'!D10 -> 2035 | P154: ='%User_input%'!E10 -> 2040 | Q154: ='%User_input%'!F10 -> 2045 | R154: ='%User_input%'!G10 -> 2050 | S154: ='%User_input%'!H10 -> 2055 | T154: ='%User_input%'!B10 -> 2024 | U154: ='%User_input%'!C10 -> 2030 | V154: ='%User_input%'!D10 -> 2035 | W154: ='%User_input%'!E10 -> 2040 | X154: ='%User_input%'!F10 -> 2045 | Y154: ='%User_input%'!G10 -> 2050 | Z154: ='%User_input%'!H10 -> 2055
E155: =PowerEnergy -> Electricity | F155: =VLOOKUP(CONCATENATE("GHG emissions - ",PowerEnergy," (",ResidentialSector,")"),Residential!$B$4:$X$117,MATCH(F$153,Residential!$B$4:$X$4,0),0) -> 2704.769344 | G155: =VLOOKUP(CONCATENATE("GHG emissions - ",PowerEnergy," (",ResidentialSector,")"),Residential!$B$4:$X$117,MATCH(G$153,Residential!$B$4:$X$4,0),0) -> 0.1302190141 | H155: =VLOOKUP(CONCATENATE("GHG emissions - ",PowerEnergy," (",ResidentialSector,")"),Residential!$B$4:$X$117,MATCH(H$153,Residential!$B$4:$X$4,0),0) -> 0.159669294 | I155: =VLOOKUP(CONCATENATE("GHG emissions - ",PowerEnergy," (",ResidentialSector,")"),Residential!$B$4:$X$117,MATCH(I$153,Residential!$B$4:$X$4,0),0) -> 0.2292141913 | J155: =VLOOKUP(CONCATENATE("GHG emissions - ",PowerEnergy," (",ResidentialSector,")"),Residential!$B$4:$X$117,MATCH(J$153,Residential!$B$4:$X$4,0),0) -> 0.3007440847 | K155: =VLOOKUP(CONCATENATE("GHG emissions - ",PowerEnergy," (",ResidentialSector,")"),Residential!$B$4:$X$117,MATCH(K$153,Residential!$B$4:$X$4,0),0) -> 0.2893965041 | L155: =VLOOKUP(CONCATENATE("GHG emissions - ",PowerEnergy," (",ResidentialSector,")"),Residential!$B$4:$X$117,MATCH(L$153,Residential!$B$4:$X$4,0),0) -> 0.2472161262 | M155: =VLOOKUP(CONCATENATE("GHG emissions - ",PowerEnergy," (",ResidentialSector,")"),Residential!$B$4:$X$117,MATCH(M$153,Residential!$B$4:$X$4,0),0) -> 0.1376181521 | N155: =VLOOKUP(CONCATENATE("GHG emissions - ",PowerEnergy," (",ResidentialSector,")"),Residential!$B$4:$X$117,MATCH(N$153,Residential!$B$4:$X$4,0),0) -> 0.144079047 | O155: =VLOOKUP(CONCATENATE("GHG emissions - ",PowerEnergy," (",ResidentialSector,")"),Residential!$B$4:$X$117,MATCH(O$153,Residential!$B$4:$X$4,0),0) -> 0.1780695218 | P155: =VLOOKUP(CONCATENATE("GHG emissions - ",PowerEnergy," (",ResidentialSector,")"),Residential!$B$4:$X$117,MATCH(P$153,Residential!$B$4:$X$4,0),0) -> 0.2440972722 | Q155: =VLOOKUP(CONCATENATE("GHG emissions - ",PowerEnergy," (",ResidentialSector,")"),Residential!$B$4:$X$117,MATCH(Q$153,Residential!$B$4:$X$4,0),0) -> 0.3053855695 | R155: =VLOOKUP(CONCATENATE("GHG emissions - ",PowerEnergy," (",ResidentialSector,")"),Residential!$B$4:$X$117,MATCH(R$153,Residential!$B$4:$X$4,0),0) -> 0.3651242164 | S155: =VLOOKUP(CONCATENATE("GHG emissions - ",PowerEnergy," (",ResidentialSector,")"),Residential!$B$4:$X$117,MATCH(S$153,Residential!$B$4:$X$4,0),0) -> 0.426003492 | T155: =VLOOKUP(CONCATENATE("GHG emissions - ",PowerEnergy," (",ResidentialSector,")"),Residential!$B$4:$X$117,MATCH(T$153,Residential!$B$4:$X$4,0),0) -> 0.1307817767 | U155: =VLOOKUP(CONCATENATE("GHG emissions - ",PowerEnergy," (",ResidentialSector,")"),Residential!$B$4:$X$117,MATCH(U$153,Residential!$B$4:$X$4,0),0) -> 0.1300510444 | V155: =VLOOKUP(CONCATENATE("GHG emissions - ",PowerEnergy," (",ResidentialSector,")"),Residential!$B$4:$X$117,MATCH(V$153,Residential!$B$4:$X$4,0),0) -> 0.1593628167 | W155: =VLOOKUP(CONCATENATE("GHG emissions - ",PowerEnergy," (",ResidentialSector,")"),Residential!$B$4:$X$117,MATCH(W$153,Residential!$B$4:$X$4,0),0) -> 0.2287427512 | X155: =VLOOKUP(CONCATENATE("GHG emissions - ",PowerEnergy," (",ResidentialSector,")"),Residential!$B$4:$X$117,MATCH(X$153,Residential!$B$4:$X$4,0),0) -> 0.3001074435 | Y155: =VLOOKUP(CONCATENATE("GHG emissions - ",PowerEnergy," (",ResidentialSector,")"),Residential!$B$4:$X$117,MATCH(Y$153,Residential!$B$4:$X$4,0),0) -> 0.2887846793 | Z155: =VLOOKUP(CONCATENATE("GHG emissions - ",PowerEnergy," (",ResidentialSector,")"),Residential!$B$4:$X$117,MATCH(Z$153,Residential!$B$4:$X$4,0),0) -> 0.2467726913
E156: =BiomassEnergy -> Wood | F156: =VLOOKUP(CONCATENATE("GHG emissions - ",BiomassEnergy," (",ResidentialSector,")"),Residential!$B$4:$X$117,MATCH(F$153,Residential!$B$4:$X$4,0),0) -> 0 | G156: =VLOOKUP(CONCATENATE("GHG emissions - ",BiomassEnergy," (",ResidentialSector,")"),Residential!$B$4:$X$117,MATCH(G$153,Residential!$B$4:$X$4,0),0) -> 0 | H156: =VLOOKUP(CONCATENATE("GHG emissions - ",BiomassEnergy," (",ResidentialSector,")"),Residential!$B$4:$X$117,MATCH(H$153,Residential!$B$4:$X$4,0),0) -> 0 | I156: =VLOOKUP(CONCATENATE("GHG emissions - ",BiomassEnergy," (",ResidentialSector,")"),Residential!$B$4:$X$117,MATCH(I$153,Residential!$B$4:$X$4,0),0) -> 0 | J156: =VLOOKUP(CONCATENATE("GHG emissions - ",BiomassEnergy," (",ResidentialSector,")"),Residential!$B$4:$X$117,MATCH(J$153,Residential!$B$4:$X$4,0),0) -> 0 | K156: =VLOOKUP(CONCATENATE("GHG emissions - ",BiomassEnergy," (",ResidentialSector,")"),Residential!$B$4:$X$117,MATCH(K$153,Residential!$B$4:$X$4,0),0) -> 0 | L156: =VLOOKUP(CONCATENATE("GHG emissions - ",BiomassEnergy," (",ResidentialSector,")"),Residential!$B$4:$X$117,MATCH(L$153,Residential!$B$4:$X$4,0),0) -> 0 | M156: =VLOOKUP(CONCATENATE("GHG emissions - ",BiomassEnergy," (",ResidentialSector,")"),Residential!$B$4:$X$117,MATCH(M$153,Residential!$B$4:$X$4,0),0) -> 0 | N156: =VLOOKUP(CONCATENATE("GHG emissions - ",BiomassEnergy," (",ResidentialSector,")"),Residential!$B$4:$X$117,MATCH(N$153,Residential!$B$4:$X$4,0),0) -> 0 | O156: =VLOOKUP(CONCATENATE("GHG emissions - ",BiomassEnergy," (",ResidentialSector,")"),Residential!$B$4:$X$117,MATCH(O$153,Residential!$B$4:$X$4,0),0) -> 0 | P156: =VLOOKUP(CONCATENATE("GHG emissions - ",BiomassEnergy," (",ResidentialSector,")"),Residential!$B$4:$X$117,MATCH(P$153,Residential!$B$4:$X$4,0),0) -> 0 | Q156: =VLOOKUP(CONCATENATE("GHG emissions - ",BiomassEnergy," (",ResidentialSector,")"),Residential!$B$4:$X$117,MATCH(Q$153,Residential!$B$4:$X$4,0),0) -> 0 | R156: =VLOOKUP(CONCATENATE("GHG emissions - ",BiomassEnergy," (",ResidentialSector,")"),Residential!$B$4:$X$117,MATCH(R$153,Residential!$B$4:$X$4,0),0) -> 0 | S156: =VLOOKUP(CONCATENATE("GHG emissions - ",BiomassEnergy," (",ResidentialSector,")"),Residential!$B$4:$X$117,MATCH(S$153,Residential!$B$4:$X$4,0),0) -> 0 | T156: =VLOOKUP(CONCATENATE("GHG emissions - ",BiomassEnergy," (",ResidentialSector,")"),Residential!$B$4:$X$117,MATCH(T$153,Residential!$B$4:$X$4,0),0) -> 0 | U156: =VLOOKUP(CONCATENATE("GHG emissions - ",BiomassEnergy," (",ResidentialSector,")"),Residential!$B$4:$X$117,MATCH(U$153,Residential!$B$4:$X$4,0),0) -> 0 | V156: =VLOOKUP(CONCATENATE("GHG emissions - ",BiomassEnergy," (",ResidentialSector,")"),Residential!$B$4:$X$117,MATCH(V$153,Residential!$B$4:$X$4,0),0) -> 0 | W156: =VLOOKUP(CONCATENATE("GHG emissions - ",BiomassEnergy," (",ResidentialSector,")"),Residential!$B$4:$X$117,MATCH(W$153,Residential!$B$4:$X$4,0),0) -> 0 | X156: =VLOOKUP(CONCATENATE("GHG emissions - ",BiomassEnergy," (",ResidentialSector,")"),Residential!$B$4:$X$117,MATCH(X$153,Residential!$B$4:$X$4,0),0) -> 0 | Y156: =VLOOKUP(CONCATENATE("GHG emissions - ",BiomassEnergy," (",ResidentialSector,")"),Residential!$B$4:$X$117,MATCH(Y$153,Residential!$B$4:$X$4,0),0) -> 0 | Z156: =VLOOKUP(CONCATENATE("GHG emissions - ",BiomassEnergy," (",ResidentialSector,")"),Residential!$B$4:$X$117,MATCH(Z$153,Residential!$B$4:$X$4,0),0) -> 0
E157: =CharcoalEnergy -> Charcoal | F157: =VLOOKUP(CONCATENATE("GHG emissions - ",CharcoalEnergy," (",ResidentialSector,")"),Residential!$B$4:$X$117,MATCH(F$153,Residential!$B$4:$X$4,0),0) -> 0.1188750251 | G157: =VLOOKUP(CONCATENATE("GHG emissions - ",CharcoalEnergy," (",ResidentialSector,")"),Residential!$B$4:$X$117,MATCH(G$153,Residential!$B$4:$X$4,0),0) -> 0.1253271913 | H157: =VLOOKUP(CONCATENATE("GHG emissions - ",CharcoalEnergy," (",ResidentialSector,")"),Residential!$B$4:$X$117,MATCH(H$153,Residential!$B$4:$X$4,0),0) -> 0.1222248614 | I157: =VLOOKUP(CONCATENATE("GHG emissions - ",CharcoalEnergy," (",ResidentialSector,")"),Residential!$B$4:$X$117,MATCH(I$153,Residential!$B$4:$X$4,0),0) -> 0.1132291079 | J157: =VLOOKUP(CONCATENATE("GHG emissions - ",CharcoalEnergy," (",ResidentialSector,")"),Residential!$B$4:$X$117,MATCH(J$153,Residential!$B$4:$X$4,0),0) -> 0.09814402141 | K157: =VLOOKUP(CONCATENATE("GHG emissions - ",CharcoalEnergy," (",ResidentialSector,")"),Residential!$B$4:$X$117,MATCH(K$153,Residential!$B$4:$X$4,0),0) -> 0.07726408289 | L157: =VLOOKUP(CONCATENATE("GHG emissions - ",CharcoalEnergy," (",ResidentialSector,")"),Residential!$B$4:$X$117,MATCH(L$153,Residential!$B$4:$X$4,0),0) -> 0.05202217995 | M157: =VLOOKUP(CONCATENATE("GHG emissions - ",CharcoalEnergy," (",ResidentialSector,")"),Residential!$B$4:$X$117,MATCH(M$153,Residential!$B$4:$X$4,0),0) -> 0.1188750251 | N157: =VLOOKUP(CONCATENATE("GHG emissions - ",CharcoalEnergy," (",ResidentialSector,")"),Residential!$B$4:$X$117,MATCH(N$153,Residential!$B$4:$X$4,0),0) -> 0.1276648064 | O157: =VLOOKUP(CONCATENATE("GHG emissions - ",CharcoalEnergy," (",ResidentialSector,")"),Residential!$B$4:$X$117,MATCH(O$153,Residential!$B$4:$X$4,0),0) -> 0.1269347048 | P157: =VLOOKUP(CONCATENATE("GHG emissions - ",CharcoalEnergy," (",ResidentialSector,")"),Residential!$B$4:$X$117,MATCH(P$153,Residential!$B$4:$X$4,0),0) -> 0.1202879454 | Q157: =VLOOKUP(CONCATENATE("GHG emissions - ",CharcoalEnergy," (",ResidentialSector,")"),Residential!$B$4:$X$117,MATCH(Q$153,Residential!$B$4:$X$4,0),0) -> 0.1073236416 | R157: =VLOOKUP(CONCATENATE("GHG emissions - ",CharcoalEnergy," (",ResidentialSector,")"),Residential!$B$4:$X$117,MATCH(R$153,Residential!$B$4:$X$4,0),0) -> 0.0881933253 | S157: =VLOOKUP(CONCATENATE("GHG emissions - ",CharcoalEnergy," (",ResidentialSector,")"),Residential!$B$4:$X$117,MATCH(S$153,Residential!$B$4:$X$4,0),0) -> 0.06418375521 | T157: =VLOOKUP(CONCATENATE("GHG emissions - ",CharcoalEnergy," (",ResidentialSector,")"),Residential!$B$4:$X$117,MATCH(T$153,Residential!$B$4:$X$4,0),0) -> 0.1188750251 | U157: =VLOOKUP(CONCATENATE("GHG emissions - ",CharcoalEnergy," (",ResidentialSector,")"),Residential!$B$4:$X$117,MATCH(U$153,Residential!$B$4:$X$4,0),0) -> 0.1281234238 | V157: =VLOOKUP(CONCATENATE("GHG emissions - ",CharcoalEnergy," (",ResidentialSector,")"),Residential!$B$4:$X$117,MATCH(V$153,Residential!$B$4:$X$4,0),0) -> 0.1278587304 | W157: =VLOOKUP(CONCATENATE("GHG emissions - ",CharcoalEnergy," (",ResidentialSector,")"),Residential!$B$4:$X$117,MATCH(W$153,Residential!$B$4:$X$4,0),0) -> 0.121672821 | X157: =VLOOKUP(CONCATENATE("GHG emissions - ",CharcoalEnergy," (",ResidentialSector,")"),Residential!$B$4:$X$117,MATCH(X$153,Residential!$B$4:$X$4,0),0) -> 0.1091245941 | Y157: =VLOOKUP(CONCATENATE("GHG emissions - ",CharcoalEnergy," (",ResidentialSector,")"),Residential!$B$4:$X$117,MATCH(Y$153,Residential!$B$4:$X$4,0),0) -> 0.0903375368 | Z157: =VLOOKUP(CONCATENATE("GHG emissions - ",CharcoalEnergy," (",ResidentialSector,")"),Residential!$B$4:$X$117,MATCH(Z$153,Residential!$B$4:$X$4,0),0) -> 0.06656973847
E158: =LPGEnergy -> LPG | F158: =VLOOKUP(CONCATENATE("GHG emissions - ",LPGEnergy," (",ResidentialSector,")"),Residential!$B$4:$X$117,MATCH(F$153,Residential!$B$4:$X$4,0),0) -> 0.247045188 | G158: =VLOOKUP(CONCATENATE("GHG emissions - ",LPGEnergy," (",ResidentialSector,")"),Residential!$B$4:$X$117,MATCH(G$153,Residential!$B$4:$X$4,0),0) -> 0.2950002499 | H158: =VLOOKUP(CONCATENATE("GHG emissions - ",LPGEnergy," (",ResidentialSector,")"),Residential!$B$4:$X$117,MATCH(H$153,Residential!$B$4:$X$4,0),0) -> 0.3380737736 | I158: =VLOOKUP(CONCATENATE("GHG emissions - ",LPGEnergy," (",ResidentialSector,")"),Residential!$B$4:$X$117,MATCH(I$153,Residential!$B$4:$X$4,0),0) -> 0.3782734372 | J158: =VLOOKUP(CONCATENATE("GHG emissions - ",LPGEnergy," (",ResidentialSector,")"),Residential!$B$4:$X$117,MATCH(J$153,Residential!$B$4:$X$4,0),0) -> 0.4148119807 | K158: =VLOOKUP(CONCATENATE("GHG emissions - ",LPGEnergy," (",ResidentialSector,")"),Residential!$B$4:$X$117,MATCH(K$153,Residential!$B$4:$X$4,0),0) -> 0.4459256835 | L158: =VLOOKUP(CONCATENATE("GHG emissions - ",LPGEnergy," (",ResidentialSector,")"),Residential!$B$4:$X$117,MATCH(L$153,Residential!$B$4:$X$4,0),0) -> 0.4496993723 | M158: =VLOOKUP(CONCATENATE("GHG emissions - ",LPGEnergy," (",ResidentialSector,")"),Residential!$B$4:$X$117,MATCH(M$153,Residential!$B$4:$X$4,0),0) -> 0.247045188 | N158: =VLOOKUP(CONCATENATE("GHG emissions - ",LPGEnergy," (",ResidentialSector,")"),Residential!$B$4:$X$117,MATCH(N$153,Residential!$B$4:$X$4,0),0) -> 0.2965900759 | O158: =VLOOKUP(CONCATENATE("GHG emissions - ",LPGEnergy," (",ResidentialSector,")"),Residential!$B$4:$X$117,MATCH(O$153,Residential!$B$4:$X$4,0),0) -> 0.3428540049 | P158: =VLOOKUP(CONCATENATE("GHG emissions - ",LPGEnergy," (",ResidentialSector,")"),Residential!$B$4:$X$117,MATCH(P$153,Residential!$B$4:$X$4,0),0) -> 0.387909309 | Q158: =VLOOKUP(CONCATENATE("GHG emissions - ",LPGEnergy," (",ResidentialSector,")"),Residential!$B$4:$X$117,MATCH(Q$153,Residential!$B$4:$X$4,0),0) -> 0.4313383933 | R158: =VLOOKUP(CONCATENATE("GHG emissions - ",LPGEnergy," (",ResidentialSector,")"),Residential!$B$4:$X$117,MATCH(R$153,Residential!$B$4:$X$4,0),0) -> 0.4712889952 | S158: =VLOOKUP(CONCATENATE("GHG emissions - ",LPGEnergy," (",ResidentialSector,")"),Residential!$B$4:$X$117,MATCH(S$153,Residential!$B$4:$X$4,0),0) -> 0.5066111711 | T158: =VLOOKUP(CONCATENATE("GHG emissions - ",LPGEnergy," (",ResidentialSector,")"),Residential!$B$4:$X$117,MATCH(T$153,Residential!$B$4:$X$4,0),0) -> 0.247045188 | U158: =VLOOKUP(CONCATENATE("GHG emissions - ",LPGEnergy," (",ResidentialSector,")"),Residential!$B$4:$X$117,MATCH(U$153,Residential!$B$4:$X$4,0),0) -> 0.2893434642 | V158: =VLOOKUP(CONCATENATE("GHG emissions - ",LPGEnergy," (",ResidentialSector,")"),Residential!$B$4:$X$117,MATCH(V$153,Residential!$B$4:$X$4,0),0) -> 0.3264745203 | W158: =VLOOKUP(CONCATENATE("GHG emissions - ",LPGEnergy," (",ResidentialSector,")"),Residential!$B$4:$X$117,MATCH(W$153,Residential!$B$4:$X$4,0),0) -> 0.3604352137 | X158: =VLOOKUP(CONCATENATE("GHG emissions - ",LPGEnergy," (",ResidentialSector,")"),Residential!$B$4:$X$117,MATCH(X$153,Residential!$B$4:$X$4,0),0) -> 0.3907288888 | Y158: =VLOOKUP(CONCATENATE("GHG emissions - ",LPGEnergy," (",ResidentialSector,")"),Residential!$B$4:$X$117,MATCH(Y$153,Residential!$B$4:$X$4,0),0) -> 0.4156709979 | Z158: =VLOOKUP(CONCATENATE("GHG emissions - ",LPGEnergy," (",ResidentialSector,")"),Residential!$B$4:$X$117,MATCH(Z$153,Residential!$B$4:$X$4,0),0) -> 0.4183249975
E159: =NaturalGasEnergy -> Natural gas | F159: =VLOOKUP(CONCATENATE("GHG emissions - ",NaturalGasEnergy," (",ResidentialSector,")"),Residential!$B$4:$X$117,MATCH(F$153,Residential!$B$4:$X$4,0),0) -> 0 | G159: =VLOOKUP(CONCATENATE("GHG emissions - ",NaturalGasEnergy," (",ResidentialSector,")"),Residential!$B$4:$X$117,MATCH(G$153,Residential!$B$4:$X$4,0),0) -> 0 | H159: =VLOOKUP(CONCATENATE("GHG emissions - ",NaturalGasEnergy," (",ResidentialSector,")"),Residential!$B$4:$X$117,MATCH(H$153,Residential!$B$4:$X$4,0),0) -> 0 | I159: =VLOOKUP(CONCATENATE("GHG emissions - ",NaturalGasEnergy," (",ResidentialSector,")"),Residential!$B$4:$X$117,MATCH(I$153,Residential!$B$4:$X$4,0),0) -> 0 | J159: =VLOOKUP(CONCATENATE("GHG emissions - ",NaturalGasEnergy," (",ResidentialSector,")"),Residential!$B$4:$X$117,MATCH(J$153,Residential!$B$4:$X$4,0),0) -> 0 | K159: =VLOOKUP(CONCATENATE("GHG emissions - ",NaturalGasEnergy," (",ResidentialSector,")"),Residential!$B$4:$X$117,MATCH(K$153,Residential!$B$4:$X$4,0),0) -> 0 | L159: =VLOOKUP(CONCATENATE("GHG emissions - ",NaturalGasEnergy," (",ResidentialSector,")"),Residential!$B$4:$X$117,MATCH(L$153,Residential!$B$4:$X$4,0),0) -> 0 | M159: =VLOOKUP(CONCATENATE("GHG emissions - ",NaturalGasEnergy," (",ResidentialSector,")"),Residential!$B$4:$X$117,MATCH(M$153,Residential!$B$4:$X$4,0),0) -> 0 | N159: =VLOOKUP(CONCATENATE("GHG emissions - ",NaturalGasEnergy," (",ResidentialSector,")"),Residential!$B$4:$X$117,MATCH(N$153,Residential!$B$4:$X$4,0),0) -> 0.01917679238 | O159: =VLOOKUP(CONCATENATE("GHG emissions - ",NaturalGasEnergy," (",ResidentialSector,")"),Residential!$B$4:$X$117,MATCH(O$153,Residential!$B$4:$X$4,0),0) -> 0.0457649952 | P159: =VLOOKUP(CONCATENATE("GHG emissions - ",NaturalGasEnergy," (",ResidentialSector,")"),Residential!$B$4:$X$117,MATCH(P$153,Residential!$B$4:$X$4,0),0) -> 0.08028097439 | Q159: =VLOOKUP(CONCATENATE("GHG emissions - ",NaturalGasEnergy," (",ResidentialSector,")"),Residential!$B$4:$X$117,MATCH(Q$153,Residential!$B$4:$X$4,0),0) -> 0.1231595973 | R159: =VLOOKUP(CONCATENATE("GHG emissions - ",NaturalGasEnergy," (",ResidentialSector,")"),Residential!$B$4:$X$117,MATCH(R$153,Residential!$B$4:$X$4,0),0) -> 0.1745622404 | S159: =VLOOKUP(CONCATENATE("GHG emissions - ",NaturalGasEnergy," (",ResidentialSector,")"),Residential!$B$4:$X$117,MATCH(S$153,Residential!$B$4:$X$4,0),0) -> 0.2344294505 | T159: =VLOOKUP(CONCATENATE("GHG emissions - ",NaturalGasEnergy," (",ResidentialSector,")"),Residential!$B$4:$X$117,MATCH(T$153,Residential!$B$4:$X$4,0),0) -> 0 | U159: =VLOOKUP(CONCATENATE("GHG emissions - ",NaturalGasEnergy," (",ResidentialSector,")"),Residential!$B$4:$X$117,MATCH(U$153,Residential!$B$4:$X$4,0),0) -> 0 | V159: =VLOOKUP(CONCATENATE("GHG emissions - ",NaturalGasEnergy," (",ResidentialSector,")"),Residential!$B$4:$X$117,MATCH(V$153,Residential!$B$4:$X$4,0),0) -> 0 | W159: =VLOOKUP(CONCATENATE("GHG emissions - ",NaturalGasEnergy," (",ResidentialSector,")"),Residential!$B$4:$X$117,MATCH(W$153,Residential!$B$4:$X$4,0),0) -> 0 | X159: =VLOOKUP(CONCATENATE("GHG emissions - ",NaturalGasEnergy," (",ResidentialSector,")"),Residential!$B$4:$X$117,MATCH(X$153,Residential!$B$4:$X$4,0),0) -> 0 | Y159: =VLOOKUP(CONCATENATE("GHG emissions - ",NaturalGasEnergy," (",ResidentialSector,")"),Residential!$B$4:$X$117,MATCH(Y$153,Residential!$B$4:$X$4,0),0) -> 0 | Z159: =VLOOKUP(CONCATENATE("GHG emissions - ",NaturalGasEnergy," (",ResidentialSector,")"),Residential!$B$4:$X$117,MATCH(Z$153,Residential!$B$4:$X$4,0),0) -> 0
E160: TOTAL Residential | F160: =SUM(F155:F158) -> 2705.135264 | G160: 0.5505464553 | H160: 0.619967929 | I160: 0.7207167364 | J160: 0.8137000869 | K160: 0.8125862705 | L160: 0.7489376784 | M160: 0.5035383652 | N160: 0.5683339292 | O160: 0.6478582316 | P160: 0.7522945266 | Q160: 0.8440476044 | R160: 0.924606537 | S160: 0.9967984183 | T160: 0.4967019898 | U160: 0.5475179323 | V160: 0.6136960675 | W160: 0.7108507859 | X160: 0.7999609264 | Y160: 0.794793214 | Z160: 0.7316674272
B173: Total GHG emissions per energy for the residential sector (MtCO2eq)
B175: Selected scenario | C175: =$C$1 -> A1 | F175: Scenario | G175: =C175 -> A1
E176: Energy | F176: ='%User_input%'!B10 -> 2024 | G176: ='%User_input%'!C10 -> 2030 | H176: ='%User_input%'!D10 -> 2035 | I176: ='%User_input%'!E10 -> 2040 | J176: ='%User_input%'!F10 -> 2045 | K176: ='%User_input%'!G10 -> 2050 | L176: ='%User_input%'!H10 -> 2055
B177: titre: | C177: =CONCATENATE(B173," for scenario ",C175,) -> Total GHG emissions per energy for the residential sector (MtCO2eq) for scenario A1 | E177: =PowerEnergy -> Electricity | F177: =SUMIFS($F155:$AG155,$F$152:$AG$152,$C$175,$F$154:$AG$154,F$176) -> 2704.769344 | G177: 0.1302190141 | H177: 0.159669294 | I177: 0.2292141913 | J177: 0.3007440847 | K177: 0.2893965041 | L177: 0.2472161262
E178: =BiomassEnergy -> Wood | F178: 0 | G178: 0 | H178: 0 | I178: 0 | J178: 0 | K178: 0 | L178: 0
E179: =CharcoalEnergy -> Charcoal | F179: 0.1188750251 | G179: 0.1253271913 | H179: 0.1222248614 | I179: 0.1132291079 | J179: 0.09814402141 | K179: 0.07726408289 | L179: 0.05202217995
E180: =LPGEnergy -> LPG | F180: 0.247045188 | G180: 0.2950002499 | H180: 0.3380737736 | I180: 0.3782734372 | J180: 0.4148119807 | K180: 0.4459256835 | L180: 0.4496993723
E181: =NaturalGasEnergy -> Natural gas | F181: 0 | G181: 0 | H181: 0 | I181: 0 | J181: 0 | K181: 0 | L181: 0
B202: Breakdown of cooking stoves
B204: Breakdown of cooking stoves
B206: Choose year : | C206: 2035 | F206: =Scenario1 -> A1 | M206: =Scenario2 -> A2 | T206: =Scenario3 -> B1
F207: =Scenario1 -> A1 | G207: A1 | H207: A1 | I207: A1 | J207: A1 | K207: A1 | L207: A1 | M207: =Scenario2 -> A2 | N207: A2 | O207: A2 | P207: A2 | Q207: A2 | R207: A2 | S207: A2 | T207: =Scenario3 -> B1 | U207: B1 | V207: B1 | W207: B1 | X207: B1 | Y207: B1 | Z207: B1
F208: =F207&F209 -> A12024 | G208: A12030 | H208: A12035 | I208: A12040 | J208: A12045 | K208: A12050 | L208: A12055 | M208: A22024 | N208: A22030 | O208: A22035 | P208: A22040 | Q208: A22045 | R208: A22050 | S208: A22055 | T208: B12024 | U208: B12030 | V208: B12035 | W208: B12040 | X208: B12045 | Y208: B12050 | Z208: B12055
E209: National | F209: ='%User_input%'!B10 -> 2024 | G209: ='%User_input%'!C10 -> 2030 | H209: ='%User_input%'!D10 -> 2035 | I209: ='%User_input%'!E10 -> 2040 | J209: ='%User_input%'!F10 -> 2045 | K209: ='%User_input%'!G10 -> 2050 | L209: ='%User_input%'!H10 -> 2055 | M209: ='%User_input%'!B10 -> 2024 | N209: ='%User_input%'!C10 -> 2030 | O209: ='%User_input%'!D10 -> 2035 | P209: ='%User_input%'!E10 -> 2040 | Q209: ='%User_input%'!F10 -> 2045 | R209: ='%User_input%'!G10 -> 2050 | S209: ='%User_input%'!H10 -> 2055 | T209: ='%User_input%'!B10 -> 2024 | U209: ='%User_input%'!C10 -> 2030 | V209: ='%User_input%'!D10 -> 2035 | W209: ='%User_input%'!E10 -> 2040 | X209: ='%User_input%'!F10 -> 2045 | Y209: ='%User_input%'!G10 -> 2050 | Z209: ='%User_input%'!H10 -> 2055
E210: =LPGEnergy -> LPG | F210: =Residential!D24 -> 0.4817850096 | G210: =Residential!E24 -> 0.4889951934 | H210: =Residential!F24 -> 0.4910840621 | I210: =Residential!G24 -> 0.486896452 | J210: =Residential!H24 -> 0.478415232 | K210: =Residential!I24 -> 0.4659440926 | L210: =Residential!J24 -> 0.43 | M210: =Residential!K24 -> 0.4817850096 | N210: =Residential!L24 -> 0.491630504 | O210: =Residential!M24 -> 0.4980277993 | P210: =Residential!N24 -> 0.4992993101 | Q210: =Residential!O24 -> 0.4974756446 | R210: =Residential!P24 -> 0.4924460092 | S210: =Residential!Q24 -> 0.4844187406 | T210: =Residential!R24 -> 0.4817850096 | U210: =Residential!S24 -> 0.4796184521 | V210: =Residential!T24 -> 0.474235052 | W210: =Residential!U24 -> 0.4639358979 | X210: =Residential!V24 -> 0.450639472 | Y210: =Residential!W24 -> 0.4343312195 | Z210: =Residential!X24 -> 0.4
E211: =PowerEnergy -> Electricity | F211: =Residential!D25 -> 0.01973830304 | G211: =Residential!E25 -> 0.08356855862 | H211: =Residential!F25 -> 0.1506835385 | I211: =Residential!G25 -> 0.2199310971 | J211: =Residential!H25 -> 0.2911643451 | K211: =Residential!I25 -> 0.3640304782 | L211: =Residential!J25 -> 0.46 | M211: =Residential!K25 -> 0.01973830304 | N211: =Residential!L25 -> 0.02219847813 | O211: =Residential!M25 -> 0.02527444168 | P211: =Residential!N25 -> 0.02849405579 | Q211: =Residential!O25 -> 0.03199188711 | R211: =Residential!P25 -> 0.03561380619 | S211: =Residential!Q25 -> 0.03927118583 | T211: =Residential!R25 -> 0.01973830304 | U211: =Residential!S25 -> 0.0773721701 | V211: =Residential!T25 -> 0.1395492852 | W211: =Residential!U25 -> 0.2047581806 | X211: =Residential!V25 -> 0.2728094183 | Y211: =Residential!W25 -> 0.3431398897 | Z211: =Residential!X25 -> 0.44
B212: titre | C212: =CONCATENATE(B204," for year ",C206) -> Breakdown of cooking stoves for year 2035 | E212: =NaturalGasEnergy -> Natural gas | F212: =Residential!D26 -> 0 | G212: =Residential!E26 -> 0 | H212: =Residential!F26 -> 0 | I212: =Residential!G26 -> 0 | J212: =Residential!H26 -> 0 | K212: =Residential!I26 -> 0 | L212: =Residential!J26 -> 0 | M212: =Residential!K26 -> 0 | N212: =Residential!L26 -> 0.04390030445 | O212: =Residential!M26 -> 0.09180939783 | P212: =Residential!N26 -> 0.1427094586 | Q212: =Residential!O26 -> 0.1961694284 | R212: =Residential!P26 -> 0.2519016371 | S212: =Residential!Q26 -> 0.3095762985 | T212: =Residential!R26 -> 0 | U212: =Residential!S26 -> 0 | V212: =Residential!T26 -> 0 | W212: =Residential!U26 -> 0 | X212: =Residential!V26 -> 0 | Y212: =Residential!W26 -> 0 | Z212: =Residential!X26 -> 0
E213: =CharcoalEnergy -> Charcoal | F213: =Residential!D27 -> 0.2239286115 | G213: =Residential!E27 -> 0.2018561235 | H213: =Residential!F27 -> 0.1755679177 | I213: =Residential!G27 -> 0.1478852777 | J213: =Residential!H27 -> 0.119240219 | K213: =Residential!I27 -> 0.08973652334 | L213: =Residential!J27 -> 0.05962610722 | M213: =Residential!K27 -> 0.2239286115 | N213: =Residential!L27 -> 0.2056211637 | O213: =Residential!M27 -> 0.1823332957 | P213: =Residential!N27 -> 0.1571046222 | Q213: =Residential!O27 -> 0.1303930117 | R213: =Residential!P27 -> 0.1024300309 | S213: =Residential!Q27 -> 0.07356530376 | T213: =Residential!R27 -> 0.2239286115 | U213: =Residential!S27 -> 0.2063598281 | V213: =Residential!T27 -> 0.1836605973 | W213: =Residential!U27 -> 0.1589133682 | X213: =Residential!V27 -> 0.1325810816 | Y213: =Residential!W27 -> 0.1049203741 | Z213: =Residential!X27 -> 0.07630003909
E214: =BiomassEnergy -> Wood | F214: =Residential!D28 -> 0.2745480759 | G214: =Residential!E28 -> 0.2255801245 | H214: =Residential!F28 -> 0.1826644817 | I214: =Residential!G28 -> 0.1452871732 | J214: =Residential!H28 -> 0.1111802039 | K214: =Residential!I28 -> 0.08028890593 | L214: =Residential!J28 -> 0.05218646624 | M214: =Residential!K28 -> 0.2745480759 | N214: =Residential!L28 -> 0.2366495497 | O214: =Residential!M28 -> 0.2025550655 | P214: =Residential!N28 -> 0.1723925533 | Q214: =Residential!O28 -> 0.1439700281 | R214: =Residential!P28 -> 0.1176085167 | S214: =Residential!Q28 -> 0.09316847129 | T214: =Residential!R28 -> 0.2745480759 | U214: =Residential!S28 -> 0.2366495497 | V214: =Residential!T28 -> 0.2025550655 | W214: =Residential!U28 -> 0.1723925533 | X214: =Residential!V28 -> 0.1439700281 | Y214: =Residential!W28 -> 0.1176085167 | Z214: =Residential!X28 -> 0.09316847129
E215: TOTAL Residential | F215: =SUM(F211:F214) -> 0.5182149904 | G215: 0.5110048066 | H215: 0.5089159379 | I215: 0.513103548 | J215: 0.521584768 | K215: 0.5340559074 | L215: 0.5718125735 | M215: 0.5182149904 | N215: 0.508369496 | O215: 0.5019722007 | P215: 0.5007006899 | Q215: 0.5025243554 | R215: 0.5075539908 | S215: 0.5155812594 | T215: 0.5182149904 | U215: 0.5203815479 | V215: 0.525764948 | W215: 0.5360641021 | X215: 0.549360528 | Y215: 0.5656687805 | Z215: 0.6094685104
E220: National | F220: =Scenario1 -> A1 | G220: =Scenario2 -> A2 | H220: =Scenario3 -> B1
E221: =LPGEnergy -> LPG | F221: =SUMIFS($F210:$AG210,$F$207:$AG$207,F$220,$F$209:$AG$209,$C$206) -> 0.4910840621 | G221: =SUMIFS($F210:$AG210,$F$207:$AG$207,G$220,$F$209:$AG$209,$C$206) -> 0.4980277993 | H221: 0.474235052
E222: =PowerEnergy -> Electricity | F222: =SUMIFS($F211:$AG211,$F$207:$AG$207,F$220,$F$209:$AG$209,$C$206) -> 0.1506835385 | G222: 0.02527444168 | H222: 0.1395492852
E223: =NaturalGasEnergy -> Natural gas | F223: 0 | G223: 0.09180939783 | H223: 0
E224: =CharcoalEnergy -> Charcoal | F224: 0.1755679177 | G224: 0.1823332957 | H224: 0.1836605973
E225: =BiomassEnergy -> Wood | F225: 0.1826644817 | G225: 0.2025550655 | H225: 0.2025550655
B241: Evolution of population breakdown per cooking stove (%)
B243: Chosen scenario | C243: =$C$1 -> A1 | E243: National | F243: ='%User_input%'!B10 -> 2024 | G243: ='%User_input%'!C10 -> 2030 | H243: ='%User_input%'!D10 -> 2035 | I243: ='%User_input%'!E10 -> 2040 | J243: ='%User_input%'!F10 -> 2045 | K243: ='%User_input%'!G10 -> 2050 | L243: ='%User_input%'!H10 -> 2055
E244: =LPGEnergy -> LPG | F244: =SUMIFS($F210:$AG210,$F$207:$AG$207,$C$243,$F$209:$AG$209,F$243) -> 0.4817850096 | G244: 0.4889951934 | H244: 0.4910840621 | I244: 0.486896452 | J244: 0.478415232 | K244: 0.4659440926 | L244: 0.43
E245: =PowerEnergy -> Electricity | F245: 0.01973830304 | G245: 0.08356855862 | H245: 0.1506835385 | I245: 0.2199310971 | J245: 0.2911643451 | K245: 0.3640304782 | L245: 0.46
E246: =NaturalGasEnergy -> Natural gas | F246: 0 | G246: 0 | H246: 0 | I246: 0 | J246: 0 | K246: 0 | L246: 0
E247: =CharcoalEnergy -> Charcoal | F247: 0.2239286115 | G247: 0.2018561235 | H247: 0.1755679177 | I247: 0.1478852777 | J247: 0.119240219 | K247: 0.08973652334 | L247: 0.05962610722
E248: =BiomassEnergy -> Wood | F248: 0.2745480759 | G248: 0.2255801245 | H248: 0.1826644817 | I248: 0.1452871732 | J248: 0.1111802039 | K248: 0.08028890593 | L248: 0.05218646624
B249: =CONCATENATE(B241," for scenario ",C1,) -> Evolution of population breakdown per cooking stove (%) for scenario A1
B271: Energy consumption per usage
B272: =CONCATENATE("Energy consumption for cooking in ",C274,", per energy") -> Energy consumption for cooking in 2050, per energy
B274: Chosen year : | C274: 2050 | F274: =Scenario1 -> A1 | M274: =Scenario2 -> A2 | T274: =Scenario3 -> B1
F275: =Scenario1 -> A1 | G275: A1 | H275: A1 | I275: A1 | J275: A1 | K275: A1 | L275: A1 | M275: =Scenario2 -> A2 | N275: A2 | O275: A2 | P275: A2 | Q275: A2 | R275: A2 | S275: A2 | T275: =Scenario3 -> B1 | U275: B1 | V275: B1 | W275: B1 | X275: B1 | Y275: B1 | Z275: B1
F276: =F275&F277 -> A12024 | G276: A12030 | H276: A12035 | I276: A12040 | J276: A12045 | K276: A12050 | L276: A12055 | M276: A22024 | N276: A22030 | O276: A22035 | P276: A22040 | Q276: A22045 | R276: A22050 | S276: A22055 | T276: B12024 | U276: B12030 | V276: B12035 | W276: B12040 | X276: B12045 | Y276: B12050 | Z276: B12055
E277: Energy | F277: ='%User_input%'!B10 -> 2024 | G277: ='%User_input%'!C10 -> 2030 | H277: ='%User_input%'!D10 -> 2035 | I277: ='%User_input%'!E10 -> 2040 | J277: ='%User_input%'!F10 -> 2045 | K277: ='%User_input%'!G10 -> 2050 | L277: ='%User_input%'!H10 -> 2055 | M277: ='%User_input%'!B10 -> 2024 | N277: ='%User_input%'!C10 -> 2030 | O277: ='%User_input%'!D10 -> 2035 | P277: ='%User_input%'!E10 -> 2040 | Q277: ='%User_input%'!F10 -> 2045 | R277: ='%User_input%'!G10 -> 2050 | S277: ='%User_input%'!H10 -> 2055 | T277: ='%User_input%'!B10 -> 2024 | U277: ='%User_input%'!C10 -> 2030 | V277: ='%User_input%'!D10 -> 2035 | W277: ='%User_input%'!E10 -> 2040 | X277: ='%User_input%'!F10 -> 2045 | Y277: ='%User_input%'!G10 -> 2050 | Z277: ='%User_input%'!H10 -> 2055
E278: GPL | F278: =Residential!D51 -> 75.54898716 | G278: =Residential!E51 -> 90.21414369 | H278: =Residential!F51 -> 103.3864751 | I278: =Residential!G51 -> 115.6799502 | J278: =Residential!H51 -> 126.8538167 | K278: =Residential!I51 -> 136.3687105 | L278: =Residential!J51 -> 137.5227438 | M278: =Residential!K51 -> 75.54898716 | N278: =Residential!L51 -> 90.70032903 | O278: =Residential!M51 -> 104.8483196 | P278: =Residential!N51 -> 118.6267 | Q278: =Residential!O51 -> 131.9077655 | R278: =Residential!P51 -> 144.125075 | S278: =Residential!Q51 -> 154.9269636 | T278: =Residential!R51 -> 75.54898716 | U278: =Residential!S51 -> 88.4842398 | V278: =Residential!T51 -> 99.83930284 | W278: =Residential!U51 -> 110.224836 | X278: =Residential!V51 -> 119.4889568 | Y278: =Residential!W51 -> 127.1165131 | Z278: =Residential!X51 -> 127.9281338
E279: Electricité | F279: =Residential!D52*GWh_to_ktoe -> 0.1663357031 | G279: =Residential!E52*GWh_to_ktoe -> 0.828539571 | H279: =Residential!F52*GWh_to_ktoe -> 1.704802218 | I279: =Residential!G52*GWh_to_ktoe -> 2.808073212 | J279: =Residential!H52*GWh_to_ktoe -> 4.148938857 | K279: =Residential!I52*GWh_to_ktoe -> 5.725573219 | L279: =Residential!J52*GWh_to_ktoe -> 7.906134665 | M279: =Residential!K52*GWh_to_ktoe -> 0.1663357031 | N279: =Residential!L52*GWh_to_ktoe -> 0.2200865715 | O279: =Residential!M52*GWh_to_ktoe -> 0.285949777 | P279: =Residential!N52*GWh_to_ktoe -> 0.3638111927 | Q279: =Residential!O52*GWh_to_ktoe -> 0.4558675737 | R279: =Residential!P52*GWh_to_ktoe -> 0.5601439087 | S279: =Residential!Q52*GWh_to_ktoe -> 0.67496366 | T279: =Residential!R52*GWh_to_ktoe -> 0.1663357031 | U279: =Residential!S52*GWh_to_ktoe -> 0.7671055441 | V279: =Residential!T52*GWh_to_ktoe -> 1.578831592 | W279: =Residential!U52*GWh_to_ktoe -> 2.614345899 | X279: =Residential!V52*GWh_to_ktoe -> 3.887390799 | Y279: =Residential!W52*GWh_to_ktoe -> 5.397000199 | Z279: =Residential!X52*GWh_to_ktoe -> 7.56238968
E280: Gaz naturel | F280: =Residential!D53 -> 0 | G280: =Residential!E53 -> 0 | H280: =Residential!F53 -> 0 | I280: =Residential!G53 -> 0 | J280: =Residential!H53 -> 0 | K280: =Residential!I53 -> 0 | L280: =Residential!J53 -> 0 | M280: =Residential!K53 -> 0 | N280: =Residential!L53 -> 8.09911514 | O280: =Residential!M53 -> 19.32836098 | P280: =Residential!N53 -> 33.9058192 | Q280: =Residential!O53 -> 52.0151514 | R280: =Residential!P53 -> 73.72451326 | S280: =Residential!Q53 -> 99.00879533 | T280: =Residential!R53 -> 0 | U280: =Residential!S53 -> 0 | V280: =Residential!T53 -> 0 | W280: =Residential!U53 -> 0 | X280: =Residential!V53 -> 0 | Y280: =Residential!W53 -> 0 | Z280: =Residential!X53 -> 0
E281: =CharcoalEnergy -> Charcoal | F281: =Residential!D54 -> 113.5712479 | G281: =Residential!E54 -> 119.7355415 | H281: =Residential!F54 -> 116.7716265 | I281: =Residential!G54 -> 108.1772312 | J281: =Residential!H54 -> 93.76518717 | K281: =Residential!I54 -> 73.81683662 | L281: =Residential!J54 -> 49.70113686 | M281: =Residential!K54 -> 113.5712479 | N281: =Residential!L54 -> 121.9688606 | O281: =Residential!M54 -> 121.2713335 | P281: =Residential!N54 -> 114.9211287 | Q281: =Residential!O54 -> 102.5352456 | R281: =Residential!P54 -> 84.25845544 | S281: =Residential!Q54 -> 61.32010625 | T281: =Residential!R54 -> 113.5712479 | U281: =Residential!S54 -> 122.4070161 | V281: =Residential!T54 -> 122.1541325 | W281: =Residential!U54 -> 116.2442161 | X281: =Residential!V54 -> 104.2558461 | Y281: =Residential!W54 -> 86.3069999 | Z281: =Residential!X54 -> 63.59963549
E282: Bois | F282: =Residential!D55 -> 127.8515223 | G282: =Residential!E55 -> 122.2562039 | H282: =Residential!F55 -> 109.7138189 | I282: =Residential!G55 -> 95.05552231 | J282: =Residential!H55 -> 77.79934904 | K282: =Residential!I55 -> 58.94428554 | L282: =Residential!J55 -> 39.42751025 | M282: =Residential!K55 -> 127.8515223 | N282: =Residential!L55 -> 128.2554288 | O282: =Residential!M55 -> 121.6607058 | P282: =Residential!N55 -> 112.7894765 | Q282: =Residential!O55 -> 100.7443239 | R282: =Residential!P55 -> 86.34256389 | S282: =Residential!Q55 -> 70.38991373 | T282: =Residential!R55 -> 127.8515223 | U282: =Residential!S55 -> 128.2554288 | V282: =Residential!T55 -> 121.6607058 | W282: =Residential!U55 -> 112.7894765 | X282: =Residential!V55 -> 100.7443239 | Y282: =Residential!W55 -> 86.34256389 | Z282: =Residential!X55 -> 70.38991373
E283: TOTAL Résidentiel | F283: =SUM(F278:F282) -> 317.1380931 | G283: 333.0344287 | H283: 331.5767227 | I283: 321.7207769 | J283: 302.5672918 | K283: 274.8554059 | L283: 234.5575256 | M283: 317.1380931 | N283: 349.2438201 | O283: 367.3946697 | P283: 380.6069356 | Q283: 387.658354 | R283: 389.0107515 | S283: 386.3207426 | T283: 317.1380931 | U283: 339.9137903 | V283: 345.2329727 | W283: 341.8728745 | X283: 328.3765176 | Y283: 305.1630771 | Z283: 269.4800727
F286: Year choisie | G286: =C274 -> 2050
E287: Energy | F287: =Scenario1 -> A1 | G287: =Scenario2 -> A2 | H287: =Scenario3 -> B1
E288: GPL | F288: =SUMIFS($F278:$AG278,$F$275:$AG$275,F$287,$F$277:$AG$277,$C$274) -> 136.3687105 | G288: 144.125075 | H288: 127.1165131 | I288: 0
E289: Electricité | F289: 5.725573219 | G289: 0.5601439087 | H289: 5.397000199 | I289: 0
E290: Gaz naturel | F290: 0 | G290: 73.72451326 | H290: 0 | I290: 0
E291: =CharcoalEnergy -> Charcoal | F291: 73.81683662 | G291: 84.25845544 | H291: 86.3069999 | I291: 0
E292: Bois | F292: 58.94428554 | G292: 86.34256389 | H292: 86.34256389 | I292: 0
E293: TOTAL Résidentiel | F293: =SUM(F288:F292) -> 274.8554059 | G293: 389.0107515 | H293: 305.1630771 | I293: 0
B302: =CONCATENATE("Energy consumption for cooking evolution, per type of energy, for scenario ",C304) -> Energy consumption for cooking evolution, per type of energy, for scenario A1
B304: Chosen scenario : | C304: =C1 -> A1
F305: Scenario | G305: =C304 -> A1
E306: Energy | F306: ='%User_input%'!B10 -> 2024 | G306: ='%User_input%'!C10 -> 2030 | H306: ='%User_input%'!D10 -> 2035 | I306: ='%User_input%'!E10 -> 2040 | J306: ='%User_input%'!F10 -> 2045 | K306: ='%User_input%'!G10 -> 2050 | L306: ='%User_input%'!H10 -> 2055
E307: =LPGEnergy -> LPG | F307: =SUMIFS($F278:$AG278,$F$275:$AG$275,$C$304,$F$277:$AG$277,F$306) -> 75.54898716 | G307: 90.21414369 | H307: 103.3864751 | I307: 115.6799502 | J307: 126.8538167 | K307: 136.3687105 | L307: 137.5227438
E308: =PowerEnergy -> Electricity | F308: 0.1663357031 | G308: 0.828539571 | H308: 1.704802218 | I308: 2.808073212 | J308: 4.148938857 | K308: 5.725573219 | L308: 7.906134665
E309: =NaturalGasEnergy -> Natural gas | F309: 0 | G309: 0 | H309: 0 | I309: 0 | J309: 0 | K309: 0 | L309: 0
E310: =CharcoalEnergy -> Charcoal | F310: 113.5712479 | G310: 119.7355415 | H310: 116.7716265 | I310: 108.1772312 | J310: 93.76518717 | K310: 73.81683662 | L310: 49.70113686
E311: =BiomassEnergy -> Wood | F311: 127.8515223 | G311: 122.2562039 | H311: 109.7138189 | I311: 95.05552231 | J311: 77.79934904 | K311: 58.94428554 | L311: 39.42751025
E312: Total | F312: =SUM(F307:F311) -> 317.1380931 | G312: =SUM(G307:G311) -> 333.0344287 | H312: 331.5767227 | I312: 321.7207769 | J312: 302.5672918 | K312: 274.8554059 | L312: 234.5575256
B327: =CONCATENATE("Energy consumption evolution per usage, for scenario ",C1) -> Energy consumption evolution per usage, for scenario A1
B329: Chosen scenario : | C329: =C1 -> A1
E331: Usage | F331: ='%User_input%'!B10 -> 2024 | G331: ='%User_input%'!C10 -> 2030 | H331: ='%User_input%'!D10 -> 2035 | I331: ='%User_input%'!E10 -> 2040 | J331: ='%User_input%'!F10 -> 2045 | K331: ='%User_input%'!G10 -> 2050 | L331: ='%User_input%'!H10 -> 2055
E332: =CONCATENATE("Energy consumption for cooking (",ResidentialSector,")") -> Energy consumption for cooking (Residential) | F332: =VLOOKUP(CONCATENATE("Energy consumption for cooking (",ResidentialSector,")"),Residential!$B$4:$X$117,MATCH($C$329&F$331,Residential!$B$4:$X$4,0),0) -> 317.1380931 | G332: =VLOOKUP(CONCATENATE("Energy consumption for cooking (",ResidentialSector,")"),Residential!$B$4:$X$117,MATCH($C$329&G$331,Residential!$B$4:$X$4,0),0) -> 333.0344287 | H332: =VLOOKUP(CONCATENATE("Energy consumption for cooking (",ResidentialSector,")"),Residential!$B$4:$X$117,MATCH($C$329&H$331,Residential!$B$4:$X$4,0),0) -> 331.5767227 | I332: =VLOOKUP(CONCATENATE("Energy consumption for cooking (",ResidentialSector,")"),Residential!$B$4:$X$117,MATCH($C$329&I$331,Residential!$B$4:$X$4,0),0) -> 321.7207769 | J332: =VLOOKUP(CONCATENATE("Energy consumption for cooking (",ResidentialSector,")"),Residential!$B$4:$X$117,MATCH($C$329&J$331,Residential!$B$4:$X$4,0),0) -> 302.5672918 | K332: =VLOOKUP(CONCATENATE("Energy consumption for cooking (",ResidentialSector,")"),Residential!$B$4:$X$117,MATCH($C$329&K$331,Residential!$B$4:$X$4,0),0) -> 274.8554059 | L332: =VLOOKUP(CONCATENATE("Energy consumption for cooking (",ResidentialSector,")"),Residential!$B$4:$X$117,MATCH($C$329&L$331,Residential!$B$4:$X$4,0),0) -> 234.5575256
E333: =CONCATENATE("Domestic energy consumption - other electrical usages (",ResidentialSector,")") -> Domestic energy consumption - other electrical usages (Residential) | F333: =VLOOKUP(CONCATENATE("Electricity consumption for other usages (",ResidentialSector,")"),Residential!$B$4:$X$117,MATCH($C$329&F$331,Residential!$B$4:$X$4,0),0)*GWh_to_ktoe -> 303531768.7 | G333: =VLOOKUP(CONCATENATE("Electricity consumption for other usages (",ResidentialSector,")"),Residential!$B$4:$X$117,MATCH($C$329&G$331,Residential!$B$4:$X$4,0),0)*GWh_to_ktoe -> 41905.19147 | H333: =VLOOKUP(CONCATENATE("Electricity consumption for other usages (",ResidentialSector,")"),Residential!$B$4:$X$117,MATCH($C$329&H$331,Residential!$B$4:$X$4,0),0)*GWh_to_ktoe -> 64539.36283 | I333: =VLOOKUP(CONCATENATE("Electricity consumption for other usages (",ResidentialSector,")"),Residential!$B$4:$X$117,MATCH($C$329&I$331,Residential!$B$4:$X$4,0),0)*GWh_to_ktoe -> 92193.84427 | J333: =VLOOKUP(CONCATENATE("Electricity consumption for other usages (",ResidentialSector,")"),Residential!$B$4:$X$117,MATCH($C$329&J$331,Residential!$B$4:$X$4,0),0)*GWh_to_ktoe -> 120258.0798 | K333: =VLOOKUP(CONCATENATE("Electricity consumption for other usages (",ResidentialSector,")"),Residential!$B$4:$X$117,MATCH($C$329&K$331,Residential!$B$4:$X$4,0),0)*GWh_to_ktoe -> 150343.7765 | L333: =VLOOKUP(CONCATENATE("Electricity consumption for other usages (",ResidentialSector,")"),Residential!$B$4:$X$117,MATCH($C$329&L$331,Residential!$B$4:$X$4,0),0)*GWh_to_ktoe -> 183854.2536
B351: Energy consumption per inhabitants (Residential sector, all energies included : Electricity, LPG, Wood, Charcoal, Natural gas)
E358: Scenario | F358: ='%User_input%'!B10 -> 2024 | G358: ='%User_input%'!C10 -> 2030 | H358: ='%User_input%'!D10 -> 2035 | I358: ='%User_input%'!E10 -> 2040 | J358: ='%User_input%'!F10 -> 2045 | K358: ='%User_input%'!G10 -> 2050 | L358: ='%User_input%'!H10 -> 2055
E359: =Scenario1 -> A1 | F359: =VLOOKUP(CONCATENATE("Energy consumption per inhabitant (",ResidentialSector,")"),Residential!$B$4:$X$117,MATCH($E359&F$358,Residential!$B$4:$X$4,0),0) -> 798755.2305 | G359: =VLOOKUP(CONCATENATE("Energy consumption per inhabitant (",ResidentialSector,")"),Residential!$B$4:$X$117,MATCH($E359&G$358,Residential!$B$4:$X$4,0),0) -> 837.7659293 | H359: =VLOOKUP(CONCATENATE("Energy consumption per inhabitant (",ResidentialSector,")"),Residential!$B$4:$X$117,MATCH($E359&H$358,Residential!$B$4:$X$4,0),0) -> 775.6146255 | I359: =VLOOKUP(CONCATENATE("Energy consumption per inhabitant (",ResidentialSector,")"),Residential!$B$4:$X$117,MATCH($E359&I$358,Residential!$B$4:$X$4,0),0) -> 718.1591278 | J359: =VLOOKUP(CONCATENATE("Energy consumption per inhabitant (",ResidentialSector,")"),Residential!$B$4:$X$117,MATCH($E359&J$358,Residential!$B$4:$X$4,0),0) -> 657.3458103 | K359: =VLOOKUP(CONCATENATE("Energy consumption per inhabitant (",ResidentialSector,")"),Residential!$B$4:$X$117,MATCH($E359&K$358,Residential!$B$4:$X$4,0),0) -> 598.8842571 | L359: =VLOOKUP(CONCATENATE("Energy consumption per inhabitant (",ResidentialSector,")"),Residential!$B$4:$X$117,MATCH($E359&L$358,Residential!$B$4:$X$4,0),0) -> 539.2985212
E360: =Scenario2 -> A2 | F360: =VLOOKUP(CONCATENATE("Energy consumption per inhabitant (",ResidentialSector,")"),Residential!$B$4:$X$117,MATCH($E360&F$358,Residential!$B$4:$X$4,0),0) -> 903.2172707 | G360: =VLOOKUP(CONCATENATE("Energy consumption per inhabitant (",ResidentialSector,")"),Residential!$B$4:$X$117,MATCH($E360&G$358,Residential!$B$4:$X$4,0),0) -> 873.98423 | H360: =VLOOKUP(CONCATENATE("Energy consumption per inhabitant (",ResidentialSector,")"),Residential!$B$4:$X$117,MATCH($E360&H$358,Residential!$B$4:$X$4,0),0) -> 845.7479135 | I360: =VLOOKUP(CONCATENATE("Energy consumption per inhabitant (",ResidentialSector,")"),Residential!$B$4:$X$117,MATCH($E360&I$358,Residential!$B$4:$X$4,0),0) -> 820.3290686 | J360: =VLOOKUP(CONCATENATE("Energy consumption per inhabitant (",ResidentialSector,")"),Residential!$B$4:$X$117,MATCH($E360&J$358,Residential!$B$4:$X$4,0),0) -> 789.6326998 | K360: =VLOOKUP(CONCATENATE("Energy consumption per inhabitant (",ResidentialSector,")"),Residential!$B$4:$X$117,MATCH($E360&K$358,Residential!$B$4:$X$4,0),0) -> 759.6697011 | L360: =VLOOKUP(CONCATENATE("Energy consumption per inhabitant (",ResidentialSector,")"),Residential!$B$4:$X$117,MATCH($E360&L$358,Residential!$B$4:$X$4,0),0) -> 734.9088807
E361: =Scenario3 -> B1 | F361: =VLOOKUP(CONCATENATE("Energy consumption per inhabitant (",ResidentialSector,")"),Residential!$B$4:$X$117,MATCH($E361&F$358,Residential!$B$4:$X$4,0),0) -> 903.2172707 | G361: =VLOOKUP(CONCATENATE("Energy consumption per inhabitant (",ResidentialSector,")"),Residential!$B$4:$X$117,MATCH($E361&G$358,Residential!$B$4:$X$4,0),0) -> 853.1371904 | H361: =VLOOKUP(CONCATENATE("Energy consumption per inhabitant (",ResidentialSector,")"),Residential!$B$4:$X$117,MATCH($E361&H$358,Residential!$B$4:$X$4,0),0) -> 802.3542294 | I361: =VLOOKUP(CONCATENATE("Energy consumption per inhabitant (",ResidentialSector,")"),Residential!$B$4:$X$117,MATCH($E361&I$358,Residential!$B$4:$X$4,0),0) -> 753.1238574 | J361: =VLOOKUP(CONCATENATE("Energy consumption per inhabitant (",ResidentialSector,")"),Residential!$B$4:$X$117,MATCH($E361&J$358,Residential!$B$4:$X$4,0),0) -> 697.4701443 | K361: =VLOOKUP(CONCATENATE("Energy consumption per inhabitant (",ResidentialSector,")"),Residential!$B$4:$X$117,MATCH($E361&K$358,Residential!$B$4:$X$4,0),0) -> 641.5719853 | L361: =VLOOKUP(CONCATENATE("Energy consumption per inhabitant (",ResidentialSector,")"),Residential!$B$4:$X$117,MATCH($E361&L$358,Residential!$B$4:$X$4,0),0) -> 584.3108248
B375: Electrical consumption per inhabitant (Residential sector)
E378: Scenario | F378: ='%User_input%'!B10 -> 2024 | G378: ='%User_input%'!C10 -> 2030 | H378: ='%User_input%'!D10 -> 2035 | I378: ='%User_input%'!E10 -> 2040 | J378: ='%User_input%'!F10 -> 2045 | K378: ='%User_input%'!G10 -> 2050 | L378: ='%User_input%'!H10 -> 2055
E379: =Scenario1 -> A1 | F379: =VLOOKUP(CONCATENATE("Electricity consumption per inhabitant (",ResidentialSector,")"),Residential!$B$4:$X$117,MATCH($E379&F$378,Residential!$B$4:$X$4,0),0) -> 797921.978 | G379: =VLOOKUP(CONCATENATE("Electricity consumption per inhabitant (",ResidentialSector,")"),Residential!$B$4:$X$117,MATCH($E379&G$378,Residential!$B$4:$X$4,0),0) -> 95.48434461 | H379: =VLOOKUP(CONCATENATE("Electricity consumption per inhabitant (",ResidentialSector,")"),Residential!$B$4:$X$117,MATCH($E379&H$378,Residential!$B$4:$X$4,0),0) -> 129.7093078 | I379: =VLOOKUP(CONCATENATE("Electricity consumption per inhabitant (",ResidentialSector,")"),Residential!$B$4:$X$117,MATCH($E379&I$378,Residential!$B$4:$X$4,0),0) -> 164.8322884 | J379: =VLOOKUP(CONCATENATE("Electricity consumption per inhabitant (",ResidentialSector,")"),Residential!$B$4:$X$117,MATCH($E379&J$378,Residential!$B$4:$X$4,0),0) -> 193.4094735 | K379: =VLOOKUP(CONCATENATE("Electricity consumption per inhabitant (",ResidentialSector,")"),Residential!$B$4:$X$117,MATCH($E379&K$378,Residential!$B$4:$X$4,0),0) -> 219.8204522 | L379: =VLOOKUP(CONCATENATE("Electricity consumption per inhabitant (",ResidentialSector,")"),Residential!$B$4:$X$117,MATCH($E379&L$378,Residential!$B$4:$X$4,0),0) -> 247.163438
E380: =Scenario2 -> A2 | F380: =VLOOKUP(CONCATENATE("Electricity consumption per inhabitant (",ResidentialSector,")"),Residential!$B$4:$X$117,MATCH($E380&F$378,Residential!$B$4:$X$4,0),0) -> 69.96481054 | G380: =VLOOKUP(CONCATENATE("Electricity consumption per inhabitant (",ResidentialSector,")"),Residential!$B$4:$X$117,MATCH($E380&G$378,Residential!$B$4:$X$4,0),0) -> 94.12481586 | H380: =VLOOKUP(CONCATENATE("Electricity consumption per inhabitant (",ResidentialSector,")"),Residential!$B$4:$X$117,MATCH($E380&H$378,Residential!$B$4:$X$4,0),0) -> 126.9311255 | I380: =VLOOKUP(CONCATENATE("Electricity consumption per inhabitant (",ResidentialSector,")"),Residential!$B$4:$X$117,MATCH($E380&I$378,Residential!$B$4:$X$4,0),0) -> 160.5913918 | J380: =VLOOKUP(CONCATENATE("Electricity consumption per inhabitant (",ResidentialSector,")"),Residential!$B$4:$X$117,MATCH($E380&J$378,Residential!$B$4:$X$4,0),0) -> 187.6680372 | K380: =VLOOKUP(CONCATENATE("Electricity consumption per inhabitant (",ResidentialSector,")"),Residential!$B$4:$X$117,MATCH($E380&K$378,Residential!$B$4:$X$4,0),0) -> 212.5450518 | L380: =VLOOKUP(CONCATENATE("Electricity consumption per inhabitant (",ResidentialSector,")"),Residential!$B$4:$X$117,MATCH($E380&L$378,Residential!$B$4:$X$4,0),0) -> 237.8430507
E381: =Scenario3 -> B1 | F381: =VLOOKUP(CONCATENATE("Electricity consumption per inhabitant (",ResidentialSector,")"),Residential!$B$4:$X$117,MATCH($E381&F$378,Residential!$B$4:$X$4,0),0) -> 69.96481054 | G381: =VLOOKUP(CONCATENATE("Electricity consumption per inhabitant (",ResidentialSector,")"),Residential!$B$4:$X$117,MATCH($E381&G$378,Residential!$B$4:$X$4,0),0) -> 95.34707628 | H381: =VLOOKUP(CONCATENATE("Electricity consumption per inhabitant (",ResidentialSector,")"),Residential!$B$4:$X$117,MATCH($E381&H$378,Residential!$B$4:$X$4,0),0) -> 129.4626512 | I381: =VLOOKUP(CONCATENATE("Electricity consumption per inhabitant (",ResidentialSector,")"),Residential!$B$4:$X$117,MATCH($E381&I$378,Residential!$B$4:$X$4,0),0) -> 164.4961634 | J381: =VLOOKUP(CONCATENATE("Electricity consumption per inhabitant (",ResidentialSector,")"),Residential!$B$4:$X$117,MATCH($E381&J$378,Residential!$B$4:$X$4,0),0) -> 193.0028576 | K381: =VLOOKUP(CONCATENATE("Electricity consumption per inhabitant (",ResidentialSector,")"),Residential!$B$4:$X$117,MATCH($E381&K$378,Residential!$B$4:$X$4,0),0) -> 219.3576639 | L381: =VLOOKUP(CONCATENATE("Electricity consumption per inhabitant (",ResidentialSector,")"),Residential!$B$4:$X$117,MATCH($E381&L$378,Residential!$B$4:$X$4,0),0) -> 246.7203788
A397: Transports
B399: Energy consumption
B401: Transport : Total energy consumption per scenario
F403: =Scenario1 -> A1 | M403: =Scenario2 -> A2 | T403: =Scenario3 -> B1
F404: =Scenario1 -> A1 | G404: A1 | H404: A1 | I404: A1 | J404: A1 | K404: A1 | L404: A1 | M404: =Scenario2 -> A2 | N404: A2 | O404: A2 | P404: A2 | Q404: A2 | R404: A2 | S404: A2 | T404: =Scenario3 -> B1 | U404: B1 | V404: B1 | W404: B1 | X404: B1 | Y404: B1 | Z404: B1
F405: =F404&F406 -> A12024 | G405: A12030 | H405: A12035 | I405: A12040 | J405: A12045 | K405: A12050 | L405: A12055 | M405: A22024 | N405: A22030 | O405: A22035 | P405: A22040 | Q405: A22045 | R405: A22050 | S405: A22055 | T405: B12024 | U405: B12030 | V405: B12035 | W405: B12040 | X405: B12045 | Y405: B12050 | Z405: B12055
E406: Type of mobility | F406: ='%User_input%'!B10 -> 2024 | G406: ='%User_input%'!C10 -> 2030 | H406: ='%User_input%'!D10 -> 2035 | I406: ='%User_input%'!E10 -> 2040 | J406: ='%User_input%'!F10 -> 2045 | K406: ='%User_input%'!G10 -> 2050 | L406: ='%User_input%'!H10 -> 2055 | M406: ='%User_input%'!B10 -> 2024 | N406: ='%User_input%'!C10 -> 2030 | O406: ='%User_input%'!D10 -> 2035 | P406: ='%User_input%'!E10 -> 2040 | Q406: ='%User_input%'!F10 -> 2045 | R406: ='%User_input%'!G10 -> 2050 | S406: ='%User_input%'!H10 -> 2055 | T406: ='%User_input%'!B10 -> 2024 | U406: ='%User_input%'!C10 -> 2030 | V406: ='%User_input%'!D10 -> 2035 | W406: ='%User_input%'!E10 -> 2040 | X406: ='%User_input%'!F10 -> 2045 | Y406: ='%User_input%'!G10 -> 2050 | Z406: ='%User_input%'!H10 -> 2055
E407: Passenger transport | F407: =Transport!D87 -> 238.3796971 | G407: =Transport!E87 -> 292.466079 | H407: =Transport!F87 -> 340.5784378 | I407: =Transport!G87 -> 429.4803174 | J407: =Transport!H87 -> 368.0034877 | K407: =Transport!I87 -> 325.600762 | L407: =Transport!J87 -> 317.6506259 | M407: =Transport!K87 -> 251.5647472 | N407: =Transport!L87 -> 314.9865065 | O407: =Transport!M87 -> 370.26408 | P407: =Transport!N87 -> 511.5521179 | Q407: =Transport!O87 -> 537.8548292 | R407: =Transport!P87 -> 665.5441151 | S407: =Transport!Q87 -> 676.2210119 | T407: =Transport!R87 -> 222.8483253 | U407: =Transport!S87 -> 263.5798761 | V407: =Transport!T87 -> 305.5510822 | W407: =Transport!U87 -> 441.7641559 | X407: =Transport!V87 -> 491.4922197 | Y407: =Transport!W87 -> 575.72698 | Z407: =Transport!X87 -> 569.2730502
E408: Freight/Logistic | F408: =Transport!D148 -> 11.27142448 | G408: =Transport!E148 -> 12.36287357 | H408: =Transport!F148 -> 14.22229986 | I408: =Transport!G148 -> 14.83350745 | J408: =Transport!H148 -> 13.56406198 | K408: =Transport!I148 -> 10.09554516 | L408: =Transport!J148 -> 9.152869199 | M408: =Transport!K148 -> 11.27142448 | N408: =Transport!L148 -> 12.36287357 | O408: =Transport!M148 -> 14.25621981 | P408: =Transport!N148 -> 15.92713822 | Q408: =Transport!O148 -> 17.01584327 | R408: =Transport!P148 -> 17.49067522 | S408: =Transport!Q148 -> 16.90462542 | T408: =Transport!R148 -> 11.27142448 | U408: =Transport!S148 -> 12.36287357 | V408: =Transport!T148 -> 14.68750698 | W408: =Transport!U148 -> 16.40509811 | X408: =Transport!V148 -> 17.5875391 | Y408: =Transport!W148 -> 17.84782558 | Z408: =Transport!X148 -> 16.63637621
E409: Total | F409: =SUM(F407:F408) -> 249.6511216 | G409: 304.8289526 | H409: 354.8007376 | I409: 444.3138248 | J409: 381.5675497 | K409: 335.6963072 | L409: 326.8034951 | M409: 262.8361716 | N409: 327.3493801 | O409: 384.5202998 | P409: 527.4792561 | Q409: 554.8706725 | R409: 683.0347903 | S409: 693.1256373 | T409: 234.1197498 | U409: 275.9427496 | V409: 320.2385891 | W409: 458.169254 | X409: 509.0797588 | Y409: 593.5748056 | Z409: 585.9094264
B421: =CONCATENATE("Energy consumption per type of mobility for scenario ",C423) -> Energy consumption per type of mobility for scenario A1
B423: Selected scenario | C423: =$C$1 -> A1
E426: Type of mobility | F426: ='%User_input%'!B10 -> 2024 | G426: ='%User_input%'!C10 -> 2030 | H426: ='%User_input%'!D10 -> 2035 | I426: ='%User_input%'!E10 -> 2040 | J426: ='%User_input%'!F10 -> 2045 | K426: ='%User_input%'!G10 -> 2050 | L426: ='%User_input%'!H10 -> 2055
... 274 more rows

Sheet Electricity gen. indicators
A1: Choose scenario | D1: Choose year
A2: B1 | D2: 2055 | G2: Retour sommaire
A5: Interconnected network (IN)
A6: Installed capacities on interconnected network | M6: Capacités installées
A7: Capacities in MW in the table and GW on the graph
N8: =Scenario1 -> A1 | U8: =Scenario2 -> A2 | AB8: =Scenario3 -> B1
N9: =Scenario1 -> A1 | O9: A1 | P9: A1 | Q9: A1 | R9: A1 | S9: A1 | T9: A1 | U9: =Scenario2 -> A2 | V9: A2 | W9: A2 | X9: A2 | Y9: A2 | Z9: A2 | AA9: A2 | AB9: =Scenario3 -> B1 | AC9: B1 | AD9: B1 | AE9: B1 | AF9: B1 | AG9: B1 | AH9: B1
D10: =CONCATENATE("Installed capacities on the interconnected network - ",PowerSector_Scenario_display[]) -> Installed capacities on the interconnected network - B1 | N10: =N9&N11 -> A12024 | O10: A12030 | P10: A12035 | Q10: A12040 | R10: A12045 | S10: A12050 | T10: A12055 | U10: A22024 | V10: A22030 | W10: A22035 | X10: A22040 | Y10: A22045 | Z10: A22050 | AA10: A22055 | AB10: B12024 | AC10: B12030 | AD10: B12035 | AE10: B12040 | AF10: B12045 | AG10: B12050 | AH10: B12055
M11: Technology | N11: ='%User_input%'!B10 -> 2024 | O11: ='%User_input%'!C10 -> 2030 | P11: ='%User_input%'!D10 -> 2035 | Q11: ='%User_input%'!E10 -> 2040 | R11: ='%User_input%'!F10 -> 2045 | S11: ='%User_input%'!G10 -> 2050 | T11: ='%User_input%'!H10 -> 2055 | U11: ='%User_input%'!B10 -> 2024 | V11: ='%User_input%'!C10 -> 2030 | W11: ='%User_input%'!D10 -> 2035 | X11: ='%User_input%'!E10 -> 2040 | Y11: ='%User_input%'!F10 -> 2045 | Z11: ='%User_input%'!G10 -> 2050 | AA11: ='%User_input%'!H10 -> 2055 | AB11: ='%User_input%'!B10 -> 2024 | AC11: ='%User_input%'!C10 -> 2030 | AD11: ='%User_input%'!D10 -> 2035 | AE11: ='%User_input%'!E10 -> 2040 | AF11: ='%User_input%'!F10 -> 2045 | AG11: ='%User_input%'!G10 -> 2050 | AH11: ='%User_input%'!H10 -> 2055
M12: =WINDONSHORETechnology -> Eolien Onshore | N12: ='Interconnected network'!D55 -> 34 | O12: ='Interconnected network'!E55 -> 126.6340809 | P12: ='Interconnected network'!F55 -> 262.2141904 | Q12: ='Interconnected network'!G55 -> 432.9917495 | R12: ='Interconnected network'!H55 -> 645.3413697 | S12: ='Interconnected network'!I55 -> 1150.845537 | T12: ='Interconnected network'!J55 -> 1847.088891 | U12: ='Interconnected network'!K55 -> 34 | V12: ='Interconnected network'!L55 -> 107.6497239 | W12: ='Interconnected network'!M55 -> 217.977772 | X12: ='Interconnected network'!N55 -> 356.0335679 | Y12: ='Interconnected network'!O55 -> 522.2065978 | Z12: ='Interconnected network'!P55 -> 808.8512982 | AA12: ='Interconnected network'!Q55 -> 1127.409158 | AB12: ='Interconnected network'!R55 -> 34 | AC12: ='Interconnected network'!S55 -> 125.14062 | AD12: ='Interconnected network'!T55 -> 188.3169177 | AE12: ='Interconnected network'!U55 -> 241.747775 | AF12: ='Interconnected network'!V55 -> 370.045354 | AG12: ='Interconnected network'!W55 -> 732.2180435 | AH12: ='Interconnected network'!X55 -> 1159.961532
M13: =HYDROTechnology -> Hydroélectricité | N13: ='Interconnected network'!D45 -> 94 | O13: ='Interconnected network'!E45 -> 94 | P13: ='Interconnected network'!F45 -> 94 | Q13: ='Interconnected network'!G45 -> 200.5 | R13: ='Interconnected network'!H45 -> 200.5 | S13: ='Interconnected network'!I45 -> 200.5 | T13: ='Interconnected network'!J45 -> 200.5 | U13: ='Interconnected network'!K45 -> 94 | V13: ='Interconnected network'!L45 -> 94 | W13: ='Interconnected network'!M45 -> 94 | X13: ='Interconnected network'!N45 -> 200.5 | Y13: ='Interconnected network'!O45 -> 200.5 | Z13: ='Interconnected network'!P45 -> 200.5 | AA13: ='Interconnected network'!Q45 -> 200.5 | AB13: ='Interconnected network'!R45 -> 94 | AC13: ='Interconnected network'!S45 -> 94 | AD13: ='Interconnected network'!T45 -> 94 | AE13: ='Interconnected network'!U45 -> 200.5 | AF13: ='Interconnected network'!V45 -> 200.5 | AG13: ='Interconnected network'!W45 -> 200.5 | AH13: ='Interconnected network'!X45 -> 200.5
M14: =CCGTTechnology -> CCGT (Gaz) | N14: ='Interconnected network'!D66 -> 0 | O14: ='Interconnected network'!E66 -> 172.0057246 | P14: ='Interconnected network'!F66 -> 292.0732769 | Q14: ='Interconnected network'!G66 -> 511.4215946 | R14: ='Interconnected network'!H66 -> 695.7187449 | S14: ='Interconnected network'!I66 -> 578.1010889 | T14: ='Interconnected network'!J66 -> 315.5619449 | U14: ='Interconnected network'!K66 -> 0 | V14: ='Interconnected network'!L66 -> 250.9670583 | W14: ='Interconnected network'!M66 -> 362.6025868 | X14: ='Interconnected network'!N66 -> 564.9061969 | Y14: ='Interconnected network'!O66 -> 664.136938 | Z14: ='Interconnected network'!P66 -> 836.7734316 | AA14: ='Interconnected network'!Q66 -> 982.0124096 | AB14: ='Interconnected network'!R66 -> 0 | AC14: ='Interconnected network'!S66 -> 170.7079632 | AD14: ='Interconnected network'!T66 -> 227.3600225 | AE14: ='Interconnected network'!U66 -> 344.2581717 | AF14: ='Interconnected network'!V66 -> 455.5404819 | AG14: ='Interconnected network'!W66 -> 392.3614671 | AH14: ='Interconnected network'!X66 -> 207.1024521
M15: =OCGTTechnology -> Multi-combustibles | N15: ='Interconnected network'!D64 -> 2810524.843 | O15: ='Interconnected network'!E64 -> 219.624885 | P15: ='Interconnected network'!F64 -> 356.5340334 | Q15: ='Interconnected network'!G64 -> 631.1979281 | R15: ='Interconnected network'!H64 -> 868.1665648 | S15: ='Interconnected network'!I64 -> 1474.755281 | T15: ='Interconnected network'!J64 -> 2320.460276 | U15: ='Interconnected network'!K64 -> 224 | V15: ='Interconnected network'!L64 -> 191.6206631 | W15: ='Interconnected network'!M64 -> 299.256596 | X15: ='Interconnected network'!N64 -> 537.6818596 | Y15: ='Interconnected network'!O64 -> 727.8660104 | Z15: ='Interconnected network'!P64 -> 1055.761687 | AA15: ='Interconnected network'!Q64 -> 1428.119752 | AB15: ='Interconnected network'!R64 -> 224 | AC15: ='Interconnected network'!S64 -> 217.9678432 | AD15: ='Interconnected network'!T64 -> 277.5385229 | AE15: ='Interconnected network'!U64 -> 424.8843752 | AF15: ='Interconnected network'!V64 -> 568.4553108 | AG15: ='Interconnected network'!W64 -> 1000.927271 | AH15: ='Interconnected network'!X64 -> 1522.911812
M16: =SOLARTechnology -> Solaire PV | N16: ='Interconnected network'!D54 -> 263.3333333 | O16: ='Interconnected network'!E54 -> 187.0542633 | P16: ='Interconnected network'!F54 -> 387.3229218 | Q16: ='Interconnected network'!G54 -> 639.5825842 | R16: ='Interconnected network'!H54 -> 953.2493435 | S16: ='Interconnected network'!I54 -> 1699.941774 | T16: ='Interconnected network'!J54 -> 2728.379669 | U16: ='Interconnected network'!K54 -> 263.3333333 | V16: ='Interconnected network'!L54 -> 159.0120105 | W16: ='Interconnected network'!M54 -> 321.9802384 | X16: ='Interconnected network'!N54 -> 525.9057931 | Y16: ='Interconnected network'!O54 -> 771.3639942 | Z16: ='Interconnected network'!P54 -> 1194.773813 | AA16: ='Interconnected network'!Q54 -> 1665.323331 | AB16: ='Interconnected network'!R54 -> 263.3333333 | AC16: ='Interconnected network'!S54 -> 184.8482361 | AD16: ='Interconnected network'!T54 -> 278.1674731 | AE16: ='Interconnected network'!U54 -> 357.0914846 | AF16: ='Interconnected network'!V54 -> 546.6029412 | AG16: ='Interconnected network'!W54 -> 1081.576979 | AH16: ='Interconnected network'!X54 -> 1713.40723
M17: Capacité totale installée | N17: =SUM(N12:N16) -> 2810916.176 | O17: 799.3189538 | P17: 1392.144423 | Q17: 2415.693856 | R17: 3362.976023 | S17: 5104.143681 | T17: 7411.990781 | U17: 615.3333333 | V17: 803.2494558 | W17: 1295.817193 | X17: 2185.027417 | Y17: 2886.07354 | Z17: 4096.66023 | AA17: 5403.36465 | AB17: 615.3333333 | AC17: 792.6646625 | AD17: 1065.382936 | AE17: 1568.481807 | AF17: 2141.144088 | AG17: 3407.583761 | AH17: 4803.883025
M19: Scenario | N19: =$A$2 -> B1
M20: Technology | N20: ='%User_input%'!B10 -> 2024 | O20: ='%User_input%'!C10 -> 2030 | P20: ='%User_input%'!D10 -> 2035 | Q20: ='%User_input%'!E10 -> 2040 | R20: ='%User_input%'!F10 -> 2045 | S20: ='%User_input%'!G10 -> 2050 | T20: ='%User_input%'!H10 -> 2055
M21: =WINDONSHORETechnology -> Eolien Onshore | N21: =SUMIFS($N12:$AO12,$N$9:$AO$9,$N$19,$N$11:$AO$11,N$20) -> 34 | O21: 125.14062 | P21: 188.3169177 | Q21: 241.747775 | R21: 370.045354 | S21: 732.2180435 | T21: 1159.961532
M22: =HYDROTechnology -> Hydroélectricité | N22: 94 | O22: 94 | P22: 94 | Q22: 200.5 | R22: 200.5 | S22: 200.5 | T22: 200.5
M23: =CCGTTechnology -> CCGT (Gaz) | N23: 0 | O23: 170.7079632 | P23: 227.3600225 | Q23: 344.2581717 | R23: 455.5404819 | S23: 392.3614671 | T23: 207.1024521
M24: =OCGTTechnology -> Multi-combustibles | N24: 224 | O24: 217.9678432 | P24: 277.5385229 | Q24: 424.8843752 | R24: 568.4553108 | S24: 1000.927271 | T24: 1522.911812
D25: =CONCATENATE("Installed capacities on interconnected network - ",PowerSector_Year_display[Choose year]) -> Installed capacities on interconnected network - 2055 | M25: =SOLARTechnology -> Solaire PV | N25: 263.3333333 | O25: 184.8482361 | P25: 278.1674731 | Q25: 357.0914846 | R25: 546.6029412 | S25: 1081.576979 | T25: 1713.40723
M28: Year | N28: =PowerSector_Year_display[Choose year] -> 2055
M29: Technology | N29: =Scenario1 -> A1 | O29: =Scenario2 -> A2 | P29: =Scenario3 -> B1 | Q29: =Scenario4 -> 
M30: =WINDONSHORETechnology -> Eolien Onshore | N30: =SUMIFS($N12:$AO12,$N$9:$AO$9,N$29,$N$11:$AO$11,$N$28) -> 1847.088891 | O30: 1127.409158 | P30: 1159.961532 | Q30: 0
M31: =HYDROTechnology -> Hydroélectricité | N31: 200.5 | O31: 200.5 | P31: 200.5 | Q31: 0
M32: =CCGTTechnology -> CCGT (Gaz) | N32: 315.5619449 | O32: 982.0124096 | P32: 207.1024521 | Q32: 0
M33: =OCGTTechnology -> Multi-combustibles | N33: 2320.460276 | O33: 1428.119752 | P33: 1522.911812 | Q33: 0
M34: =SOLARTechnology -> Solaire PV | N34: 2728.379669 | O34: 1665.323331 | P34: 1713.40723 | Q34: 0
A40: GHG emissions per source on IN | M40: Emissions par source
A41: Emissions in MtCO2eq on the graph and in the table
N42: =Scenario1 -> A1 | U42: =Scenario2 -> A2 | AB42: =Scenario3 -> B1
N43: =Scenario1 -> A1 | O43: A1 | P43: A1 | Q43: A1 | R43: A1 | S43: A1 | T43: A1 | U43: =Scenario2 -> A2 | V43: A2 | W43: A2 | X43: A2 | Y43: A2 | Z43: A2 | AA43: A2 | AB43: =Scenario3 -> B1 | AC43: B1 | AD43: B1 | AE43: B1 | AF43: B1 | AG43: B1 | AH43: B1
N44: =N43&N45 -> A12024 | O44: A12030 | P44: A12035 | Q44: A12040 | R44: A12045 | S44: A12050 | T44: A12055 | U44: A22024 | V44: A22030 | W44: A22035 | X44: A22040 | Y44: A22045 | Z44: A22050 | AA44: A22055 | AB44: B12024 | AC44: B12030 | AD44: B12035 | AE44: B12040 | AF44: B12045 | AG44: B12050 | AH44: B12055
C45: titre : | D45: =CONCATENATE(A40," - ",PowerSector_Scenario_display[Choose scenario]) -> GHG emissions per source on IN - B1 | M45: Technology | N45: ='%User_input%'!B10 -> 2024 | O45: ='%User_input%'!C10 -> 2030 | P45: ='%User_input%'!D10 -> 2035 | Q45: ='%User_input%'!E10 -> 2040 | R45: ='%User_input%'!F10 -> 2045 | S45: ='%User_input%'!G10 -> 2050 | T45: ='%User_input%'!H10 -> 2055 | U45: ='%User_input%'!B10 -> 2024 | V45: ='%User_input%'!C10 -> 2030 | W45: ='%User_input%'!D10 -> 2035 | X45: ='%User_input%'!E10 -> 2040 | Y45: ='%User_input%'!F10 -> 2045 | Z45: ='%User_input%'!G10 -> 2050 | AA45: ='%User_input%'!H10 -> 2055 | AB45: ='%User_input%'!B10 -> 2024 | AC45: ='%User_input%'!C10 -> 2030 | AD45: ='%User_input%'!D10 -> 2035 | AE45: ='%User_input%'!E10 -> 2040 | AF45: ='%User_input%'!F10 -> 2045 | AG45: ='%User_input%'!G10 -> 2050 | AH45: ='%User_input%'!H10 -> 2055
M46: =HeavyFuelOilEnergy -> Heavy oil | N46: ='Interconnected network'!D80 -> 4515.201178 | O46: ='Interconnected network'!E80 -> 0.1069195898 | P46: ='Interconnected network'!F80 -> 0 | Q46: ='Interconnected network'!G80 -> 0 | R46: ='Interconnected network'!H80 -> 0 | S46: ='Interconnected network'!I80 -> 0 | T46: ='Interconnected network'!J80 -> 0 | U46: ='Interconnected network'!K80 -> 0.3326665723 | V46: ='Interconnected network'!L80 -> 0.0932863446 | W46: ='Interconnected network'!M80 -> 0 | X46: ='Interconnected network'!N80 -> 0 | Y46: ='Interconnected network'!O80 -> 0 | Z46: ='Interconnected network'!P80 -> 0 | AA46: ='Interconnected network'!Q80 -> 0 | AB46: ='Interconnected network'!R80 -> 0.2924158442 | AC46: ='Interconnected network'!S80 -> 0.1061128951 | AD46: ='Interconnected network'!T80 -> 0 | AE46: ='Interconnected network'!U80 -> 0 | AF46: ='Interconnected network'!V80 -> 0 | AG46: ='Interconnected network'!W80 -> 0 | AH46: ='Interconnected network'!X80 -> 0
M47: =NaturalGasEnergy -> Natural gas | N47: ='Interconnected network'!D81 -> 0 | O47: ='Interconnected network'!E81 -> 0.3681178965 | P47: ='Interconnected network'!F81 -> 0.7729555524 | Q47: ='Interconnected network'!G81 -> 1.356312589 | R47: ='Interconnected network'!H81 -> 1.849020506 | S47: ='Interconnected network'!I81 -> 1.848888452 | T47: ='Interconnected network'!J81 -> 1.637778095 | U47: ='Interconnected network'!K81 -> 0 | V47: ='Interconnected network'!L81 -> 0.5371069237 | W47: ='Interconnected network'!M81 -> 0.9001425403 | X47: ='Interconnected network'!N81 -> 1.431991114 | Y47: ='Interconnected network'!O81 -> 1.723240013 | Z47: ='Interconnected network'!P81 -> 2.228705066 | AA47: ='Interconnected network'!Q81 -> 2.693976462 | AB47: ='Interconnected network'!R81 -> 0 | AC47: ='Interconnected network'!S81 -> 0.3653404938 | AD47: ='Interconnected network'!T81 -> 0.6016955527 | AE47: ='Interconnected network'!U81 -> 0.9129878302 | AF47: ='Interconnected network'!V81 -> 1.2106957 | AG47: ='Interconnected network'!W81 -> 1.254854211 | AH47: ='Interconnected network'!X81 -> 1.07486934
M48: Diesel | N48: ='Interconnected network'!D82 -> 1710.421632 | O48: ='Interconnected network'!E82 -> 0.04050264255 | P48: ='Interconnected network'!F82 -> 0 | Q48: ='Interconnected network'!G82 -> 0 | R48: ='Interconnected network'!H82 -> 0 | S48: ='Interconnected network'!I82 -> 0 | T48: ='Interconnected network'!J82 -> 0 | U48: ='Interconnected network'!K82 -> 0.1260187706 | V48: ='Interconnected network'!L82 -> 0.03533817775 | W48: ='Interconnected network'!M82 -> 0 | X48: ='Interconnected network'!N82 -> 0 | Y48: ='Interconnected network'!O82 -> 0 | Z48: ='Interconnected network'!P82 -> 0 | AA48: ='Interconnected network'!Q82 -> 0 | AB48: ='Interconnected network'!R82 -> 0.1107712294 | AC48: ='Interconnected network'!S82 -> 0.04019705526 | AD48: ='Interconnected network'!T82 -> 0 | AE48: ='Interconnected network'!U82 -> 0 | AF48: ='Interconnected network'!V82 -> 0 | AG48: ='Interconnected network'!W82 -> 0 | AH48: ='Interconnected network'!X82 -> 0
M49: Emissions totales de GES | N49: =SUM(N46:N48) -> 6225.62281 | O49: 0.5155401289 | P49: 0.7729555524 | Q49: 1.356312589 | R49: 1.849020506 | S49: 1.848888452 | T49: 1.637778095 | U49: 0.4586853429 | V49: 0.665731446 | W49: 0.9001425403 | X49: 1.431991114 | Y49: 1.723240013 | Z49: 2.228705066 | AA49: 2.693976462 | AB49: 0.4031870736 | AC49: 0.5116504441 | AD49: 0.6016955527 | AE49: 0.9129878302 | AF49: 1.2106957 | AG49: 1.254854211 | AH49: 1.07486934
M54: Scenario | N54: =$A$2 -> B1
M55: Technology | N55: ='%User_input%'!B10 -> 2024 | O55: ='%User_input%'!C10 -> 2030 | P55: ='%User_input%'!D10 -> 2035 | Q55: ='%User_input%'!E10 -> 2040 | R55: ='%User_input%'!F10 -> 2045 | S55: ='%User_input%'!G10 -> 2050 | T55: ='%User_input%'!H10 -> 2055
M56: =HeavyFuelOilEnergy -> Heavy oil | N56: =SUMIFS($N46:$AO46,$N$43:$AO$43,$N$54,$N$45:$AO$45,N$55) -> 0.2924158442 | O56: 0.1061128951 | P56: 0 | Q56: 0 | R56: 0 | S56: 0 | T56: 0
M57: =NaturalGasEnergy -> Natural gas | N57: 0 | O57: 0.3653404938 | P57: 0.6016955527 | Q57: 0.9129878302 | R57: 1.2106957 | S57: 1.254854211 | T57: 1.07486934
M58: Diesel | N58: 0.1107712294 | O58: 0.04019705526 | P58: 0 | Q58: 0 | R58: 0 | S58: 0 | T58: 0
M61: Year | N61: =PowerSector_Year_display[Choose year] -> 2055
M62: Technology | N62: =Scenario1 -> A1 | O62: =Scenario2 -> A2 | P62: =Scenario3 -> B1 | Q62: =Scenario4 -> 
M63: =HeavyFuelOilEnergy -> Heavy oil | N63: =SUMIFS($N46:$AO46,$N$43:$AO$43,N$62,$N$45:$AO$45,$N$61) -> 0 | O63: 0 | P63: 0 | Q63: 0
M64: =NaturalGasEnergy -> Natural gas | N64: 1.637778095 | O64: 2.693976462 | P64: 1.07486934 | Q64: 0
M65: Diesel | N65: 0 | O65: 0 | P65: 0 | Q65: 0
C66: titre : | D66: =CONCATENATE(A40," - ",PowerSector_Year_display[Choose year]) -> GHG emissions per source on IN - 2055
A85: Electricity generation on interconnected network | M85: Production par source
A86: Production in GWh in the table and in TWh on the graph
N87: =Scenario1 -> A1 | U87: =Scenario2 -> A2 | AB87: =Scenario3 -> B1
N88: =Scenario1 -> A1 | O88: A1 | P88: A1 | Q88: A1 | R88: A1 | S88: A1 | T88: A1 | U88: =Scenario2 -> A2 | V88: A2 | W88: A2 | X88: A2 | Y88: A2 | Z88: A2 | AA88: A2 | AB88: =Scenario3 -> B1 | AC88: B1 | AD88: B1 | AE88: B1 | AF88: B1 | AG88: B1 | AH88: B1
C89: titre | D89: =CONCATENATE(A85," - ",PowerSector_Scenario_display[Choose scenario]) -> Electricity generation on interconnected network - B1 | N89: =N88&N90 -> A12024 | O89: A12030 | P89: A12035 | Q89: A12040 | R89: A12045 | S89: A12050 | T89: A12055 | U89: A22024 | V89: A22030 | W89: A22035 | X89: A22040 | Y89: A22045 | Z89: A22050 | AA89: A22055 | AB89: B12024 | AC89: B12030 | AD89: B12035 | AE89: B12040 | AF89: B12045 | AG89: B12050 | AH89: B12055
M90: Technology | N90: ='%User_input%'!B10 -> 2024 | O90: ='%User_input%'!C10 -> 2030 | P90: ='%User_input%'!D10 -> 2035 | Q90: ='%User_input%'!E10 -> 2040 | R90: ='%User_input%'!F10 -> 2045 | S90: ='%User_input%'!G10 -> 2050 | T90: ='%User_input%'!H10 -> 2055 | U90: ='%User_input%'!B10 -> 2024 | V90: ='%User_input%'!C10 -> 2030 | W90: ='%User_input%'!D10 -> 2035 | X90: ='%User_input%'!E10 -> 2040 | Y90: ='%User_input%'!F10 -> 2045 | Z90: ='%User_input%'!G10 -> 2050 | AA90: ='%User_input%'!H10 -> 2055 | AB90: ='%User_input%'!B10 -> 2024 | AC90: ='%User_input%'!C10 -> 2030 | AD90: ='%User_input%'!D10 -> 2035 | AE90: ='%User_input%'!E10 -> 2040 | AF90: ='%User_input%'!F10 -> 2045 | AG90: ='%User_input%'!G10 -> 2050 | AH90: ='%User_input%'!H10 -> 2055
M91: =WINDONSHORETechnology -> Eolien Onshore | N91: ='Interconnected network'!D51 -> 113 | O91: ='Interconnected network'!E51 -> 420.8720925 | P91: ='Interconnected network'!F51 -> 871.476574 | Q91: ='Interconnected network'!G51 -> 1439.060814 | R91: ='Interconnected network'!H51 -> 2144.811023 | S91: ='Interconnected network'!I51 -> 3824.868991 | T91: ='Interconnected network'!J51 -> 6138.854255 | U91: ='Interconnected network'!K51 -> 113 | V91: ='Interconnected network'!L51 -> 357.7770236 | W91: ='Interconnected network'!M51 -> 724.4555364 | X91: ='Interconnected network'!N51 -> 1183.288034 | Y91: ='Interconnected network'!O51 -> 1735.568987 | Z91: ='Interconnected network'!P51 -> 2688.241079 | AA91: ='Interconnected network'!Q51 -> 3746.977495 | AB91: ='Interconnected network'!R51 -> 113 | AC91: ='Interconnected network'!S51 -> 415.9085312 | AD91: ='Interconnected network'!T51 -> 625.8768146 | AE91: ='Interconnected network'!U51 -> 803.4558404 | AF91: ='Interconnected network'!V51 -> 1229.856618 | AG91: ='Interconnected network'!W51 -> 2433.548203 | AH91: ='Interconnected network'!X51 -> 3855.166267
M92: =HYDROTechnology -> Hydroélectricité | N92: ='Interconnected network'!D47 -> 395 | O92: ='Interconnected network'!E47 -> 395 | P92: ='Interconnected network'!F47 -> 395 | Q92: ='Interconnected network'!G47 -> 842.5265957 | R92: ='Interconnected network'!H47 -> 842.5265957 | S92: ='Interconnected network'!I47 -> 842.5265957 | T92: ='Interconnected network'!J47 -> 842.5265957 | U92: ='Interconnected network'!K47 -> 395 | V92: ='Interconnected network'!L47 -> 395 | W92: ='Interconnected network'!M47 -> 395 | X92: ='Interconnected network'!N47 -> 842.5265957 | Y92: ='Interconnected network'!O47 -> 842.5265957 | Z92: ='Interconnected network'!P47 -> 842.5265957 | AA92: ='Interconnected network'!Q47 -> 842.5265957 | AB92: ='Interconnected network'!R47 -> 395 | AC92: ='Interconnected network'!S47 -> 395 | AD92: ='Interconnected network'!T47 -> 395 | AE92: ='Interconnected network'!U47 -> 842.5265957 | AF92: ='Interconnected network'!V47 -> 842.5265957 | AG92: ='Interconnected network'!W47 -> 842.5265957 | AH92: ='Interconnected network'!X47 -> 842.5265957
M93: =CCGTTechnology -> CCGT (Gaz) | N93: ='Interconnected network'!D65 -> 0 | O93: ='Interconnected network'!E65 -> 904.0620883 | P93: ='Interconnected network'!F65 -> 1535.137143 | Q93: ='Interconnected network'!G65 -> 2688.031901 | R93: ='Interconnected network'!H65 -> 3656.697723 | S93: ='Interconnected network'!I65 -> 3038.499323 | T93: ='Interconnected network'!J65 -> 1658.593583 | U93: ='Interconnected network'!K65 -> 0 | V93: ='Interconnected network'!L65 -> 1319.082858 | W93: ='Interconnected network'!M65 -> 1905.839196 | X93: ='Interconnected network'!N65 -> 2969.146971 | Y93: ='Interconnected network'!O65 -> 3490.703746 | Z93: ='Interconnected network'!P65 -> 4398.081156 | AA93: ='Interconnected network'!Q65 -> 5161.457225 | AB93: ='Interconnected network'!R65 -> 0 | AC93: ='Interconnected network'!S65 -> 897.2410548 | AD93: ='Interconnected network'!T65 -> 1195.004278 | AE93: ='Interconnected network'!U65 -> 1809.42095 | AF93: ='Interconnected network'!V65 -> 2394.320773 | AG93: ='Interconnected network'!W65 -> 2062.251871 | AH93: ='Interconnected network'!X65 -> 1088.530488
M94: =OCGTTechnology -> Multi-combustibles | N94: ='Interconnected network'!D63 -> 8124665.216 | O94: ='Interconnected network'!E63 -> 192.3913993 | P94: ='Interconnected network'!F63 -> 312.3238133 | Q94: ='Interconnected network'!G63 -> 552.929385 | R94: ='Interconnected network'!H63 -> 760.5139107 | S94: ='Interconnected network'!I63 -> 1291.885626 | T94: ='Interconnected network'!J63 -> 2032.723202 | U94: ='Interconnected network'!K63 -> 598.6011303 | V94: ='Interconnected network'!L63 -> 167.8597009 | W94: ='Interconnected network'!M63 -> 262.1487781 | X94: ='Interconnected network'!N63 -> 471.009309 | Y94: ='Interconnected network'!O63 -> 637.6106251 | Z94: ='Interconnected network'!P63 -> 924.847238 | AA94: ='Interconnected network'!Q63 -> 1251.032902 | AB94: ='Interconnected network'!R63 -> 526.1738612 | AC94: ='Interconnected network'!S63 -> 190.9398306 | AD94: ='Interconnected network'!T63 -> 243.1237461 | AE94: ='Interconnected network'!U63 -> 372.1987127 | AF94: ='Interconnected network'!V63 -> 497.9668522 | AG94: ='Interconnected network'!W63 -> 876.8122898 | AH94: ='Interconnected network'!X63 -> 1334.070747
M95: =SOLARTechnology -> Solaire PV | N95: ='Interconnected network'!D50 -> 395 | O95: ='Interconnected network'!E50 -> 280.581395 | P95: ='Interconnected network'!F50 -> 580.9843827 | Q95: ='Interconnected network'!G50 -> 959.3738762 | R95: ='Interconnected network'!H50 -> 1429.874015 | S95: ='Interconnected network'!I50 -> 2549.912661 | T95: ='Interconnected network'!J50 -> 4092.569503 | U95: ='Interconnected network'!K50 -> 395 | V95: ='Interconnected network'!L50 -> 238.5180158 | W95: ='Interconnected network'!M50 -> 482.9703576 | X95: ='Interconnected network'!N50 -> 788.8586896 | Y95: ='Interconnected network'!O50 -> 1157.045991 | Z95: ='Interconnected network'!P50 -> 1792.160719 | AA95: ='Interconnected network'!Q50 -> 2497.984997 | AB95: ='Interconnected network'!R50 -> 395 | AC95: ='Interconnected network'!S50 -> 277.2723542 | AD95: ='Interconnected network'!T50 -> 417.2512097 | AE95: ='Interconnected network'!U50 -> 535.6372269 | AF95: ='Interconnected network'!V50 -> 819.9044118 | AG95: ='Interconnected network'!W50 -> 1622.365469 | AH95: ='Interconnected network'!X50 -> 2570.110844
M96: Production totale | N96: =SUM(N91:N95) -> 8125568.216 | O96: 2192.906975 | P96: 3694.921913 | Q96: 6481.922573 | R96: 8834.423268 | S96: 11547.6932 | T96: 14765.26714 | U96: 1501.60113 | V96: 2478.237598 | W96: 3770.413868 | X96: 6254.8296 | Y96: 7863.455945 | Z96: 10645.85679 | AA96: 13499.97922 | AB96: 1429.173861 | AC96: 2176.361771 | AD96: 2876.256049 | AE96: 4363.239326 | AF96: 5784.575251 | AG96: 7837.504429 | AH96: 9690.404942
M98: Scenario | N98: =$A$2 -> B1
M99: Technology | N99: ='%User_input%'!B10 -> 2024 | O99: ='%User_input%'!C10 -> 2030 | P99: ='%User_input%'!D10 -> 2035 | Q99: ='%User_input%'!E10 -> 2040 | R99: ='%User_input%'!F10 -> 2045 | S99: ='%User_input%'!G10 -> 2050 | T99: ='%User_input%'!H10 -> 2055
M100: =WINDONSHORETechnology -> Eolien Onshore | N100: =SUMIFS($N91:$AO91,$N$88:$AO$88,$N$98,$N$90:$AO$90,N$99) -> 113 | O100: 415.9085312 | P100: 625.8768146 | Q100: 803.4558404 | R100: 1229.856618 | S100: 2433.548203 | T100: 3855.166267
M101: =HYDROTechnology -> Hydroélectricité | N101: 395 | O101: 395 | P101: 395 | Q101: 842.5265957 | R101: 842.5265957 | S101: 842.5265957 | T101: 842.5265957
M102: =CCGTTechnology -> CCGT (Gaz) | N102: 0 | O102: 897.2410548 | P102: 1195.004278 | Q102: 1809.42095 | R102: 2394.320773 | S102: 2062.251871 | T102: 1088.530488
M103: =OCGTTechnology -> Multi-combustibles | N103: 526.1738612 | O103: 190.9398306 | P103: 243.1237461 | Q103: 372.1987127 | R103: 497.9668522 | S103: 876.8122898 | T103: 1334.070747
C104: titre | D104: =CONCATENATE(A85," - ",PowerSector_Year_display[Choose year]) -> Electricity generation on interconnected network - 2055 | M104: =SOLARTechnology -> Solaire PV | N104: 395 | O104: 277.2723542 | P104: 417.2512097 | Q104: 535.6372269 | R104: 819.9044118 | S104: 1622.365469 | T104: 2570.110844
M107: Année | N107: =PowerSector_Year_display[Choose year] -> 2055
M108: Technology | N108: =Scenario1 -> A1 | O108: =Scenario2 -> A2 | P108: =Scenario3 -> B1 | Q108: =Scenario4 -> 
M109: =WINDONSHORETechnology -> Eolien Onshore | N109: =SUMIFS($N91:$AO91,$N$88:$AO$88,N$108,$N$90:$AO$90,$N$107) -> 6138.854255 | O109: 3746.977495 | P109: 3855.166267 | Q109: 0
M110: =HYDROTechnology -> Hydroélectricité | N110: 842.5265957 | O110: 842.5265957 | P110: 842.5265957 | Q110: 0
M111: =CCGTTechnology -> CCGT (Gaz) | N111: 1658.593583 | O111: 5161.457225 | P111: 1088.530488 | Q111: 0
M112: =OCGTTechnology -> Multi-combustibles | N112: 2032.723202 | O112: 1251.032902 | P112: 1334.070747 | Q112: 0
M113: =SOLARTechnology -> Solaire PV | N113: 4092.569503 | O113: 2497.984997 | P113: 2570.110844 | Q113: 0
A121: Costs by items
N122: =Scenario1 -> A1 | U122: =Scenario2 -> A2 | AB122: =Scenario3 -> B1
N123: =Scenario1 -> A1 | O123: A1 | P123: A1 | Q123: A1 | R123: A1 | S123: A1 | T123: A1 | U123: =Scenario2 -> A2 | V123: A2 | W123: A2 | X123: A2 | Y123: A2 | Z123: A2 | AA123: A2 | AB123: =Scenario3 -> B1 | AC123: B1 | AD123: B1 | AE123: B1 | AF123: B1 | AG123: B1 | AH123: B1
N124: =N123&N125 -> A12024 | O124: A12030 | P124: A12035 | Q124: A12040 | R124: A12045 | S124: A12050 | T124: A12055 | U124: A22024 | V124: A22030 | W124: A22035 | X124: A22040 | Y124: A22045 | Z124: A22050 | AA124: A22055 | AB124: B12024 | AC124: B12030 | AD124: B12035 | AE124: B12040 | AF124: B12045 | AG124: B12050 | AH124: B12055
B125: titre | C125: =CONCATENATE(A121," - ",PowerSector_Scenario_display[Choose scenario]) -> Costs by items - B1 | M125: Item | N125: ='%User_input%'!B10 -> 2024 | O125: ='%User_input%'!C10 -> 2030 | P125: ='%User_input%'!D10 -> 2035 | Q125: ='%User_input%'!E10 -> 2040 | R125: ='%User_input%'!F10 -> 2045 | S125: ='%User_input%'!G10 -> 2050 | T125: ='%User_input%'!H10 -> 2055 | U125: ='%User_input%'!B10 -> 2024 | V125: ='%User_input%'!C10 -> 2030 | W125: ='%User_input%'!D10 -> 2035 | X125: ='%User_input%'!E10 -> 2040 | Y125: ='%User_input%'!F10 -> 2045 | Z125: ='%User_input%'!G10 -> 2050 | AA125: ='%User_input%'!H10 -> 2055 | AB125: ='%User_input%'!B10 -> 2024 | AC125: ='%User_input%'!C10 -> 2030 | AD125: ='%User_input%'!D10 -> 2035 | AE125: ='%User_input%'!E10 -> 2040 | AF125: ='%User_input%'!F10 -> 2045 | AG125: ='%User_input%'!G10 -> 2050 | AH125: ='%User_input%'!H10 -> 2055
M126: Investment costs | N126: ='Interconnected network'!D140 -> 271737.817 | O126: ='Interconnected network'!E140 -> 92.10959161 | P126: ='Interconnected network'!F140 -> 142.5457708 | Q126: ='Interconnected network'!G140 -> 246.9653785 | R126: ='Interconnected network'!H140 -> 324.2251832 | S126: ='Interconnected network'!I140 -> 453.5015323 | T126: ='Interconnected network'!J140 -> 617.7778002 | U126: ='Interconnected network'!K140 -> 67.66095255 | V126: ='Interconnected network'!L140 -> 93.36418374 | W126: ='Interconnected network'!M140 -> 135.4455376 | X126: ='Interconnected network'!N140 -> 228.925672 | Y126: ='Interconnected network'!O140 -> 285.2854108 | Z126: ='Interconnected network'!P140 -> 381.2360876 | AA126: ='Interconnected network'!Q140 -> 481.761108 | AB126: ='Interconnected network'!R140 -> 67.66095255 | AC126: ='Interconnected network'!S140 -> 91.50107683 | AD126: ='Interconnected network'!T140 -> 114.5787383 | AE126: ='Interconnected network'!U140 -> 175.7814798 | AF126: ='Interconnected network'!V140 -> 222.4980849 | AG126: ='Interconnected network'!W140 -> 317.061865 | AH126: ='Interconnected network'!X140 -> 415.7873671
M127: Operational costs | N127: ='Interconnected network'!D141 -> 894541.4052 | O127: ='Interconnected network'!E141 -> 61.81493674 | P127: ='Interconnected network'!F141 -> 86.21519698 | Q127: ='Interconnected network'!G141 -> 151.296699 | R127: ='Interconnected network'!H141 -> 206.2775957 | S127: ='Interconnected network'!I141 -> 207.7901288 | T127: ='Interconnected network'!J141 -> 186.6171949 | U127: ='Interconnected network'!K141 -> 65.90714596 | V127: ='Interconnected network'!L141 -> 77.76669032 | W127: ='Interconnected network'!M141 -> 100.1096972 | X127: ='Interconnected network'!N141 -> 159.4145447 | Y127: ='Interconnected network'!O141 -> 192.0409323 | Z127: ='Interconnected network'!P141 -> 248.6588535 | AA127: ='Interconnected network'!Q141 -> 300.9521983 | AB127: ='Interconnected network'!R141 -> 57.9327631 | AC127: ='Interconnected network'!S141 -> 61.34855091 | AD127: ='Interconnected network'!T141 -> 67.11291541 | AE127: ='Interconnected network'!U141 -> 101.8438125 | AF127: ='Interconnected network'!V141 -> 135.0657806 | AG127: ='Interconnected network'!W141 -> 141.0286909 | AH127: ='Interconnected network'!X141 -> 122.476361
M128: Total costs of interconnected network | N128: ='Interconnected network'!D142 -> 1166279.222 | O128: ='Interconnected network'!E142 -> 153.9245284 | P128: ='Interconnected network'!F142 -> 228.7609677 | Q128: ='Interconnected network'!G142 -> 398.2620775 | R128: ='Interconnected network'!H142 -> 530.5027789 | S128: ='Interconnected network'!I142 -> 661.2916611 | T128: ='Interconnected network'!J142 -> 804.3949951 | U128: ='Interconnected network'!K142 -> 133.5680985 | V128: ='Interconnected network'!L142 -> 171.1308741 | W128: ='Interconnected network'!M142 -> 235.5552349 | X128: ='Interconnected network'!N142 -> 388.3402167 | Y128: ='Interconnected network'!O142 -> 477.3263431 | Z128: ='Interconnected network'!P142 -> 629.8949411 | AA128: ='Interconnected network'!Q142 -> 782.7133062 | AB128: ='Interconnected network'!R142 -> 125.5937156 | AC128: ='Interconnected network'!S142 -> 152.8496277 | AD128: ='Interconnected network'!T142 -> 181.6916538 | AE128: ='Interconnected network'!U142 -> 277.6252922 | AF128: ='Interconnected network'!V142 -> 357.5638655 | AG128: ='Interconnected network'!W142 -> 458.090556 | AH128: ='Interconnected network'!X142 -> 538.2637281
M130: Scenario | N130: =$A$2 -> B1
M131: Item | N131: ='%User_input%'!B10 -> 2024 | O131: ='%User_input%'!C10 -> 2030 | P131: ='%User_input%'!D10 -> 2035 | Q131: ='%User_input%'!E10 -> 2040 | R131: ='%User_input%'!F10 -> 2045 | S131: ='%User_input%'!G10 -> 2050 | T131: ='%User_input%'!H10 -> 2055
M132: Investment costs | N132: =SUMIFS($N126:$AO126,$N$123:$AO$123,$N$130,$N$125:$AO$125,N$131) -> 67.66095255 | O132: 91.50107683 | P132: 114.5787383 | Q132: 175.7814798 | R132: 222.4980849 | S132: 317.061865 | T132: 415.7873671
M133: Operational costs | N133: 57.9327631 | O133: 61.34855091 | P133: 67.11291541 | Q133: 101.8438125 | R133: 135.0657806 | S133: 141.0286909 | T133: 122.476361
M136: Year | N136: =PowerSector_Year_display[Choose year] -> 2055
M137: Item | N137: =Scenario1 -> A1 | O137: =Scenario2 -> A2 | P137: =Scenario3 -> B1 | Q137: =Scenario4 -> 
M138: Investment costs | N138: =SUMIFS($N126:$AO126,$N$123:$AO$123,N$137,$N$125:$AO$125,$N$136) -> 617.7778002 | O138: 481.761108 | P138: 415.7873671 | Q138: 0
M139: Operational costs | N139: 186.6171949 | O139: 300.9521983 | P139: 122.476361 | Q139: 0
B145: titre | C145: =CONCATENATE(A121," - ",PowerSector_Year_display[Choose year]) -> Costs by items - 2055
A161: Costs by item and by techonology | M161: Coûts par poste et par Technology
N164: =Scenario1 -> A1 | U164: =Scenario2 -> A2 | AB164: =Scenario3 -> B1
N165: =Scenario1 -> A1 | O165: A1 | P165: A1 | Q165: A1 | R165: A1 | S165: A1 | T165: A1 | U165: =Scenario2 -> A2 | V165: A2 | W165: A2 | X165: A2 | Y165: A2 | Z165: A2 | AA165: A2 | AB165: =Scenario3 -> B1 | AC165: B1 | AD165: B1 | AE165: B1 | AF165: B1 | AG165: B1 | AH165: B1
C166: titre : | D166: =CONCATENATE(A161," - ",PowerSector_Scenario_display[Choose scenario]) -> Costs by item and by techonology - B1 | N166: =N165&N167 -> A12024 | O166: A12030 | P166: A12035 | Q166: A12040 | R166: A12045 | S166: A12050 | T166: A12055 | U166: A22024 | V166: A22030 | W166: A22035 | X166: A22040 | Y166: A22045 | Z166: A22050 | AA166: A22055 | AB166: B12024 | AC166: B12030 | AD166: B12035 | AE166: B12040 | AF166: B12045 | AG166: B12050 | AH166: B12055
L167: Technology | M167: Item | N167: ='%User_input%'!B10 -> 2024 | O167: ='%User_input%'!C10 -> 2030 | P167: ='%User_input%'!D10 -> 2035 | Q167: ='%User_input%'!E10 -> 2040 | R167: ='%User_input%'!F10 -> 2045 | S167: ='%User_input%'!G10 -> 2050 | T167: ='%User_input%'!H10 -> 2055 | U167: ='%User_input%'!B10 -> 2024 | V167: ='%User_input%'!C10 -> 2030 | W167: ='%User_input%'!D10 -> 2035 | X167: ='%User_input%'!E10 -> 2040 | Y167: ='%User_input%'!F10 -> 2045 | Z167: ='%User_input%'!G10 -> 2050 | AA167: ='%User_input%'!H10 -> 2055 | AB167: ='%User_input%'!B10 -> 2024 | AC167: ='%User_input%'!C10 -> 2030 | AD167: ='%User_input%'!D10 -> 2035 | AE167: ='%User_input%'!E10 -> 2040 | AF167: ='%User_input%'!F10 -> 2045 | AG167: ='%User_input%'!G10 -> 2050 | AH167: ='%User_input%'!H10 -> 2055
L168: =WINDONSHORETechnology -> Eolien Onshore | M168: Investment costs | N168: ='Interconnected network'!D112/1000000 -> 5.046810557 | O168: ='Interconnected network'!E112/1000000 -> 17.14046503 | P168: ='Interconnected network'!F112/1000000 -> 32.82040992 | Q168: ='Interconnected network'!G112/1000000 -> 51.8009535 | R168: ='Interconnected network'!H112/1000000 -> 74.50935089 | S168: ='Interconnected network'!I112/1000000 -> 126.558489 | T168: ='Interconnected network'!J112/1000000 -> 195.6398598 | U168: ='Interconnected network'!K112/1000000 -> 5.046810557 | V168: ='Interconnected network'!L112/1000000 -> 14.66200082 | W168: ='Interconnected network'!M112/1000000 -> 27.42152522 | X168: ='Interconnected network'!N112/1000000 -> 42.76530963 | Y168: ='Interconnected network'!O112/1000000 -> 60.53564139 | Z168: ='Interconnected network'!P112/1000000 -> 90.04995713 | AA168: ='Interconnected network'!Q112/1000000 -> 121.6573161 | AB168: ='Interconnected network'!R112/1000000 -> 5.046810557 | AC168: ='Interconnected network'!S112/1000000 -> 16.94548927 | AD168: ='Interconnected network'!T112/1000000 -> 24.25187713 | AE168: ='Interconnected network'!U112/1000000 -> 30.1902845 | AF168: ='Interconnected network'!V112/1000000 -> 43.91026387 | AG168: ='Interconnected network'!W112/1000000 -> 81.2013043 | AH168: ='Interconnected network'!X112/1000000 -> 123.6420778
L169: =WINDONSHORETechnology -> Eolien Onshore | M169: Operational costs | N169: 0 | O169: 0 | P169: 0 | Q169: 0 | R169: 0 | S169: 0 | T169: 0 | U169: 0 | V169: 0 | W169: 0 | X169: 0 | Y169: 0 | Z169: 0 | AA169: 0 | AB169: 0 | AC169: 0 | AD169: 0 | AE169: 0 | AF169: 0 | AG169: 0 | AH169: 0
L170: =HYDROTechnology -> Hydroélectricité | M170: Investment costs | N170: ='Interconnected network'!D98/1000000 -> 22.84509051 | O170: ='Interconnected network'!E98/1000000 -> 22.84509051 | P170: ='Interconnected network'!F98/1000000 -> 22.84509051 | Q170: ='Interconnected network'!G98/1000000 -> 48.728092 | R170: ='Interconnected network'!H98/1000000 -> 48.728092 | S170: ='Interconnected network'!I98/1000000 -> 48.728092 | T170: ='Interconnected network'!J98/1000000 -> 48.728092 | U170: ='Interconnected network'!K98/1000000 -> 22.84509051 | V170: ='Interconnected network'!L98/1000000 -> 22.84509051 | W170: ='Interconnected network'!M98/1000000 -> 22.84509051 | X170: ='Interconnected network'!N98/1000000 -> 48.728092 | Y170: ='Interconnected network'!O98/1000000 -> 48.728092 | Z170: ='Interconnected network'!P98/1000000 -> 48.728092 | AA170: ='Interconnected network'!Q98/1000000 -> 48.728092 | AB170: ='Interconnected network'!R98/1000000 -> 22.84509051 | AC170: ='Interconnected network'!S98/1000000 -> 22.84509051 | AD170: ='Interconnected network'!T98/1000000 -> 22.84509051 | AE170: ='Interconnected network'!U98/1000000 -> 48.728092 | AF170: ='Interconnected network'!V98/1000000 -> 48.728092 | AG170: ='Interconnected network'!W98/1000000 -> 48.728092 | AH170: ='Interconnected network'!X98/1000000 -> 48.728092
L171: =HYDROTechnology -> Hydroélectricité | M171: Operational costs | N171: 0 | O171: 0 | P171: 0 | Q171: 0 | R171: 0 | S171: 0 | T171: 0 | U171: 0 | V171: 0 | W171: 0 | X171: 0 | Y171: 0 | Z171: 0 | AA171: 0 | AB171: 0 | AC171: 0 | AD171: 0 | AE171: 0 | AF171: 0 | AG171: 0 | AH171: 0
L172: =CCGTTechnology -> CCGT (Gaz) | M172: Investment costs | N172: ='Interconnected network'!D121/1000000 -> 0 | O172: ='Interconnected network'!E121/1000000 -> 17.40770204 | P172: ='Interconnected network'!F121/1000000 -> 29.55904283 | Q172: ='Interconnected network'!G121/1000000 -> 51.75801422 | R172: ='Interconnected network'!H121/1000000 -> 70.40966019 | S172: ='Interconnected network'!I121/1000000 -> 58.50625921 | T172: ='Interconnected network'!J121/1000000 -> 31.93619473 | U172: ='Interconnected network'!K121/1000000 -> 0 | V172: ='Interconnected network'!L121/1000000 -> 25.39892079 | W172: ='Interconnected network'!M121/1000000 -> 36.69690534 | X172: ='Interconnected network'!N121/1000000 -> 57.1708807 | Y172: ='Interconnected network'!O121/1000000 -> 67.21344864 | Z172: ='Interconnected network'!P121/1000000 -> 84.68498716 | AA172: ='Interconnected network'!Q121/1000000 -> 99.38378199 | AB172: ='Interconnected network'!R121/1000000 -> 0 | AC172: ='Interconnected network'!S121/1000000 -> 17.27636315 | AD172: ='Interconnected network'!T121/1000000 -> 23.00978958 | AE172: ='Interconnected network'!U121/1000000 -> 34.84037345 | AF172: ='Interconnected network'!V121/1000000 -> 46.10261082 | AG172: ='Interconnected network'!W121/1000000 -> 39.70862906 | AH172: ='Interconnected network'!X121/1000000 -> 20.95963834
L173: =CCGTTechnology -> CCGT (Gaz) | M173: Operational costs | N173: ='Interconnected network'!D122/1000000 -> 0 | O173: ='Interconnected network'!E122/1000000 -> 40.63227038 | P173: ='Interconnected network'!F122/1000000 -> 68.99538017 | Q173: ='Interconnected network'!G122/1000000 -> 120.8112146 | R173: ='Interconnected network'!H122/1000000 -> 164.3470426 | S173: ='Interconnected network'!I122/1000000 -> 136.5626627 | T173: ='Interconnected network'!J122/1000000 -> 74.54402055 | U173: ='Interconnected network'!K122/1000000 -> 0 | V173: ='Interconnected network'!L122/1000000 -> 59.28501155 | W173: ='Interconnected network'!M122/1000000 -> 85.65625582 | X173: ='Interconnected network'!N122/1000000 -> 133.4456826 | Y173: ='Interconnected network'!O122/1000000 -> 156.8865903 | Z173: ='Interconnected network'!P122/1000000 -> 197.6678648 | AA173: ='Interconnected network'!Q122/1000000 -> 231.9771266 | AB173: ='Interconnected network'!R122/1000000 -> 0 | AC173: ='Interconnected network'!S122/1000000 -> 40.32570506 | AD173: ='Interconnected network'!T122/1000000 -> 53.70840959 | AE173: ='Interconnected network'!U122/1000000 -> 81.32282311 | AF173: ='Interconnected network'!V122/1000000 -> 107.6106279 | AG173: ='Interconnected network'!W122/1000000 -> 92.68608506 | AH173: ='Interconnected network'!X122/1000000 -> 48.92303935
L174: =OCGTTechnology -> Multi-combustibles | M174: Investment costs | N174: ='Interconnected network'!D133/1000000 -> 271691.81 | O174: ='Interconnected network'!E133/1000000 -> 21.23101052 | P174: ='Interconnected network'!F133/1000000 -> 34.46593867 | Q174: ='Interconnected network'!G133/1000000 -> 61.0175384 | R174: ='Interconnected network'!H133/1000000 -> 83.92515937 | S174: ='Interconnected network'!I133/1000000 -> 142.5637395 | T174: ='Interconnected network'!J133/1000000 -> 224.317552 | U174: ='Interconnected network'!K133/1000000 -> 21.65395036 | V174: ='Interconnected network'!L133/1000000 -> 18.5238586 | W174: ='Interconnected network'!M133/1000000 -> 28.92896194 | X174: ='Interconnected network'!N133/1000000 -> 51.97739419 | Y174: ='Interconnected network'!O133/1000000 -> 70.36238597 | Z174: ='Interconnected network'!P133/1000000 -> 102.0598713 | AA174: ='Interconnected network'!Q133/1000000 -> 138.0555099 | AB174: ='Interconnected network'!R133/1000000 -> 21.65395036 | AC174: ='Interconnected network'!S133/1000000 -> 21.07082525 | AD174: ='Interconnected network'!T133/1000000 -> 26.82948839 | AE174: ='Interconnected network'!U133/1000000 -> 41.07332665 | AF174: ='Interconnected network'!V133/1000000 -> 54.9522459 | AG174: ='Interconnected network'!W133/1000000 -> 96.75906005 | AH174: ='Interconnected network'!X133/1000000 -> 147.2190035
L175: =OCGTTechnology -> Multi-combustibles | M175: Operational costs | N175: ='Interconnected network'!D134/1000000 -> 894541.4052 | O175: ='Interconnected network'!E134/1000000 -> 21.18266637 | P175: ='Interconnected network'!F134/1000000 -> 17.21981682 | Q175: ='Interconnected network'!G134/1000000 -> 30.48548435 | R175: ='Interconnected network'!H134/1000000 -> 41.93055308 | S175: ='Interconnected network'!I134/1000000 -> 71.22746611 | T175: ='Interconnected network'!J134/1000000 -> 112.0731744 | U175: ='Interconnected network'!K134/1000000 -> 65.90714596 | V175: ='Interconnected network'!L134/1000000 -> 18.48167878 | W175: ='Interconnected network'!M134/1000000 -> 14.45344141 | X175: ='Interconnected network'!N134/1000000 -> 25.96886205 | Y175: ='Interconnected network'!O134/1000000 -> 35.15434206 | Z175: ='Interconnected network'!P134/1000000 -> 50.99098867 | AA175: ='Interconnected network'!Q134/1000000 -> 68.97507169 | AB175: ='Interconnected network'!R134/1000000 -> 57.9327631 | AC175: ='Interconnected network'!S134/1000000 -> 21.02284584 | AD175: ='Interconnected network'!T134/1000000 -> 13.40450582 | AE175: ='Interconnected network'!U134/1000000 -> 20.52098937 | AF175: ='Interconnected network'!V134/1000000 -> 27.45515267 | AG175: ='Interconnected network'!W134/1000000 -> 48.34260589 | AH175: ='Interconnected network'!X134/1000000 -> 73.55332162
